{"text_format":"1","workbook":"xlsx","n_sheets":49,"sheets":["Шаблон ДШК","Шаблон ПД4","Квитанция ПД4","1_1","1_2","1_3","1_4","2_1","3_1","3_2","3_3","3_4","3_5","3_6","3_7","3_8","3_9","3_10","3_11","3_12","3_13","3_15","3_16","4_1","5_1","6_1","6_2","7_1","8_1","8_2","9_1","10_1","10_2","10_3","10_4","10_5","10_6","11_1","13_1","13_2","14_1","ЖКХ 55_@100009_1","ЖКХ 55_@100500_1","ДЕТ.САДЫ 55_@100320","ДЕТ.САД ДОП","ВУЗЫ 55_@100015_1","ВУЗЫ 55_@55000167","ШАБЛОН_Б1","ШАБЛОН_Б2"],"not_rendered":{"charts":0,"images":0,"macros":1,"external_links":0,"defined_names":17,"comments":0,"pivot_tables":0},"unopened":[],"bounds":{"document_bytes":16777216,"sheet_cells":100000,"rows_first":2000,"rows_last":500,"rows_between":2000,"halvings":0,"cell_chars":16384,"cell_head_chars":4096},"cells_cut":0,"cells_raw":0,"read":"whole","date_system":"1900"}

{"sheet":"Шаблон ДШК","index":0,"n_rows":47,"n_cols":25,"rows_kept":47,"cut":false,"hidden":true,"merged":[[52,1,53,13],[52,24,53,36],[55,1,56,13],[55,24,56,36],[58,1,62,13],[58,24,62,36],[43,0,44,22],[46,1,47,21],[46,24,47,44],[49,1,50,13],[49,24,50,36],[43,23,44,45],[31,1,32,13],[31,24,32,36],[34,1,35,13],[34,24,35,36],[37,1,41,13],[37,24,41,36],[22,0,23,22],[25,1,26,21],[25,24,26,44],[28,1,29,13],[28,24,29,36],[22,23,23,45],[10,1,11,13],[10,24,11,36],[13,1,14,13],[13,24,14,36],[16,1,20,13],[16,24,20,36],[1,0,2,22],[4,1,5,21],[4,24,5,44],[7,1,8,13],[7,24,8,36],[1,23,2,45]]}
[]
[{"$f":"Name","v":{"$error":"#REF!"}},null,null,null,null,null,null,null,null,null,null,null,null,null,null,null,null,null,null,null,null,null,null,{"$f":"Name","v":{"$error":"#REF!"}}]
[]
[]
[null,{"$f":"\"ИНН \"&INN&\", БИК \"&BIC&\", Р/С \"&PersonalAcc","v":{"$error":"#REF!"}},null,null,null,null,null,null,null,null,null,null,null,null,null,null,null,null,null,null,null,null,null,null,{"$f":"\"ИНН \"&INN&\", БИК \"&BIC&\", Р/С \"&PersonalAcc","v":{"$error":"#REF!"}}]
[]
[]
[]
[]
[]
[]
[]
[]
[]
[]
[]
[]
[]
[]
[]
[]
[]
[{"$f":"Name","v":{"$error":"#REF!"}},null,null,null,null,null,null,null,null,null,null,null,null,null,null,null,null,null,null,null,null,null,null,{"$f":"Name","v":{"$error":"#REF!"}}]
[]
[]
[null,{"$f":"\"ИНН \"&INN&\", БИК \"&BIC&\", Р/С \"&PersonalAcc","v":{"$error":"#REF!"}},null,null,null,null,null,null,null,null,null,null,null,null,null,null,null,null,null,null,null,null,null,null,{"$f":"\"ИНН \"&INN&\", БИК \"&BIC&\", Р/С \"&PersonalAcc","v":{"$error":"#REF!"}}]
[]
[]
[null,"ЛС: 1240"]
[]
[]
[null,"Кузьменко "]
[]
[]
[null,"Сумма: 106.00"]
[]
[]
[null,"Аэродромная"]
[]
[]
[]
[]
[]
[{"$f":"Name","v":{"$error":"#REF!"}},null,null,null,null,null,null,null,null,null,null,null,null,null,null,null,null,null,null,null,null,null,null,{"$f":"Name","v":{"$error":"#REF!"}}]
[]
[]
[null,{"$f":"\"ИНН \"&INN&\", БИК \"&BIC&\", Р/С \"&PersonalAcc","v":{"$error":"#REF!"}},null,null,null,null,null,null,null,null,null,null,null,null,null,null,null,null,null,null,null,null,null,null,{"$f":"\"ИНН \"&INN&\", БИК \"&BIC&\", Р/С \"&PersonalAcc","v":{"$error":"#REF!"}}]

{"sheet":"Шаблон ПД4","index":1,"n_rows":13,"n_cols":3,"rows_kept":13,"cut":false,"hidden":true,"merged":[]}
[null,null,"СБЕРБАНК РОССИИ                                                                                          Форма №ПД-4"]
[null,"Извещение",{"$f":"Name","v":{"$error":"#REF!"}}]
[null,null,"(наименование получателя платежа)"]
[null,null,{"$f":"\"  ИНН \"&INN&\" КПП \"&KPP&\"            \"&PersonalAcc","v":{"$error":"#REF!"}}]
[null,null,"  (инн получателя платежа)                                                    (номер счёта получателя платежа)"]
[null,null,{"$f":"\"БИК \"&BIC&\" (\"&BankName&\")\"","v":{"$error":"#REF!"}}]
[null,null,"(наименование банка получателя платежа)"]
[]
[null,null,"(назначение платежа)"]
[]
[null,null,"(сумма платежа)"]
[null,null,"С условиями приёма указанной в платёжном документе суммы, в т.ч. с суммой взимаемой платы за услуги  "]
[null,null,"банка, ознакомлен и согласен.                    Подпись плательщика                                        \\"]

{"sheet":"Квитанция ПД4","index":2,"n_rows":14,"n_cols":3,"rows_kept":14,"cut":false,"hidden":false,"merged":[]}
[]
[null,null,"СБЕРБАНК РОССИИ                                                                                          Форма №ПД-4"]
[null,"Извещение","КОМИТЕТ ФИНАНСОВ САНКТ-ПЕТЕРБУРГА (ГБОУ ШКОЛА N268 НЕВСКОГО РАЙОНА САНКТ-ПЕТЕРБУРГА л/с 0601206)"]
[null,null,"(наименование получателя платежа)"]
[null,null,"  ИНН 7811044812 КПП 781101001            03224643400000007200"]
[null,null,"  (инн получателя платежа)                                                    (номер счёта получателя платежа)"]
[null,null,"БИК 014030106 (СЕВЕРО-ЗАПАДНОЕ ГУ БАНКА РОССИИ//УФК по г.Санкт-Петербургу г.Санкт-Петербург)"]
[null,null,"(наименование банка получателя платежа)"]
[null,null,"ФИО: ; ФИО ребенка: ; Назначение: Платные услуги ; КБК: ; ОКТМО: "]
[null,null,"(назначение платежа)"]
[null,null,"Сумма: 0 руб. 00 коп."]
[null,null,"(сумма платежа)"]
[null,null,"С условиями приёма указанной в платёжном документе суммы, в т.ч. с суммой взимаемой платы за услуги  "]
[null,null,"банка, ознакомлен и согласен.                    Подпись плательщика                                        \\"]

{"sheet":"1_1","index":3,"n_rows":78,"n_cols":9,"rows_kept":78,"cut":false,"hidden":true,"merged":[[48,1,54,1],[48,3,48,5],[55,3,55,5],[56,3,56,5],[24,1,24,4],[27,1,27,4],[40,1,47,1],[40,3,40,5],[44,3,45,3],[44,5,45,5]]}
[null,"КОД ГРУППЫ РЕКВИЗИТОВ",null,"ШАБЛОН 1_1"]
[]
[null,"Группа реквизитов"]
["№","Наименование реквизита","Имя реквизита для ЕПС","Имя реквизита для ДШК","Тип реквизита","Режим ввода","Текст подсказки в СБОЛ","мин. длина","макс. Длина"]
[1,2,3,4,5,6,7,8,9]
[1,"ФИО","ФИО_ПЛАТЕЛЬЩИКА","LastName, FirstName, MiddleName","Ключевой.Обязательный.","Ручной","Введите ФИО плательщика, например, Иванов Иван Иванович.",2,60]
[2,"Назначение платежа","НАЗНАЧЕНИЕ","Purpose","Обязательный","Ручной","Введите назначение платежа (за какие работы/товары осуществляется платеж) или иную дополнительную информацию о платеже.",6,210]
[]
[]
[null,null,"ОПИСАНИЕ ТЕГОВ ДЛЯ ДШК","Ваш текст для ДШК","ПРИМЕР"]
[null,"Идентификатор стандарта","СТАНДАРТ КОДИРОВКИ","ST00012","ST00012"]
[null,"Name","НАИМЕНОВАНИЕ ОРГАНИЗАЦИИ","МОТОРЛЭНД СПБ","МОТОРЛЭНД СПБ"]
[null,"PersonalAcc","РАСЧЕТНЫЙ СЧЕТ","40702810355130003611","40702810355130003611"]
[null,"BankName","НАИМЕНОВАНИЕ БАНКА ПОЛУЧАТЕЛЯ","СЕВЕРО-ЗАПАДНЫЙ БАНК ПАО СБЕРБАНК","СЕВЕРО-ЗАПАДНЫЙ БАНК ПАО СБЕРБАНК"]
[null,"BIC","БИК","044030653","044030653"]
[null,"CorrespAcc","КОР.СЧЕТ","30101810500000000653","30101810500000000653"]
[null,"PayeeINN","ИНН ПОЛУЧАТЕЛЯ",7816500265,7816500265]
[null,"LastName","ФИО ПЛАТЕЛЬЩИКА","Семенова Ирина Петровна","Семенова Ирина Петровна","Ключевой.Обязательный."]
[null,"Purpose","НАЗНАЧЕНИЕ ПЛАТЕЖА","оплата по счету 116 от 03.06.2016","оплата по счету 116 от 03.06.2016"]
[null,"Sum","СУММА ПЛАТЕЖА","110000","110000"]
[null,"Category","НОМЕР УСЛУГИ В СИСТЕМЕ БАНКА",4550501345,4550501345]
[]
[]
[null,"Ваш текст для ДШК",null,"Для создания QR кода можно использовать генератор по адресу http://qrcoder.ru"]
[null,{"$f":"CONCATENATE(\"\",D11,\"|\",B12,\"=\",D12,\"|\",B13,A25,\"=\",D13,\"|\",B14,\"=\",D14,\"|\",B15,\"=\",D15,\"|\",B16,\"=\",D16,\"|\",B17,\"=\",D17,\"|\",B18,\"=\",D18,\"|\",B19,\"=\",D19,\"|\",B20,\"=\",D20,\"|\",B21,\"=\",D21,\"\")","v":"ST00012|Name=МОТОРЛЭНД СПБ|PersonalAcc=40702810355130003611|BankName=СЕВЕРО-ЗАПАДНЫЙ БАНК ПАО СБЕРБАНК|BIC=044030653|CorrespAcc=30101810500000000653|PayeeINN=7816500265|LastName=Семенова Ирина Петровна|Purpose=оплата по счету 116 от 03.06.2016|Sum=110000|Category=4550501345"}]
[]
[null,"ПРИМЕР"]
[null,{"$f":"CONCATENATE(\"\",E11,\"|Name=\",E12,\"|PersonalAcc=\",E13,\"|BankName=\",E14,\"|BIC=\",E15,\"|CorrespAcc=\",E16,\"|PayeeINN=\",E17,\"|LastName=\",E18,\"|Purpose=\",E19,\"|Sum=\",E20,\"|Category=\",E21,\"\")","v":"ST00012|Name=МОТОРЛЭНД СПБ|PersonalAcc=40702810355130003611|BankName=СЕВЕРО-ЗАПАДНЫЙ БАНК ПАО СБЕРБАНК|BIC=044030653|CorrespAcc=30101810500000000653|PayeeINN=7816500265|LastName=Семенова Ирина Петровна|Purpose=оплата по счету 116 от 03.06.2016|Sum=110000|Category=4550501345"}]
[]
[]
[null,"Структура реестра"]
[null,"Поле 1; Поле 2; Поле 3; …..; Поле t"]
[null,"…"]
[null,"Строка n"]
[null,"Поле 1; Поле 2; Поле 3; …..; Поле t"]
[null,"Контрольная строка (используется для исходящего реестра)"]
[null,"=Поле1;Поле2;Поле3;Поле4;Поле5;Поле6"]
[]
[]
[null,"Формат исходящего реестра"]
[null,"Имя архива",null,"ИНН_РС_код_счетчик_дата.zip"]
[null,null,null,"значение","описание","параметры"]
[null,null,null,"ИНН","ИНН поставщика услуг","XXXXXXXXXX"]
[null,null,null,"РС","Расчетный счет ПУ для перечисления д/с","YYYYYYYYYYYYYYYYYYYY"]
[null,null,null,"код","Код услуги. В качестве кода будут использоваться последние 3 символа “Лицевого счета” вида платежа ЕПС, дополненного лидирующими нулями.","001-999"]
[null,null,null,null,"Если “Лицевой счет” в ЕПС будет равен 0, код услуги будет пустой."]
[null,null,null,"счетчик","порядковый номер реестра в течение одного рабочего дня","00-99"]
[null,null,null,"дата","дата формирования реестра","ДДММГГГГ"]
[null,"Имя реестра",null,"SBкод_ПП_дата.txt "]
[null,null,null,"значение","описание","параметры"]
[null,null,null,"SB","константа"]
[null,null,null,"код","Код услуги. Аналогия с кодом услуги в имени архива"]
[null,null,null,"ПП","Номер платежного поручения","ZZZZZZ"]
[null,null,null,"дата","дата формирования реестра","ДДММГГГГ"]
[null,null,null,"txt","признак текстового файла"]
[null,"Кодировка",null,"WIN-1251\nKOI8-R\nUTF8"]
[null,"Разделители",null,"; (ASCII-код 59, точка с запятой)"]
[]
[]
[null,"Формат строк"]
[null,"Номер поля в реестре",null,"Наименование поля","Обязательное наличие информации в поле","Тип поля","Маска"]
[null,"Поле 1 строки",null,"Дата платежа","ДА","числовой","ДД-ММ-ГГГГ"]
[null,"Поле 2 строки",null,"Время платежа","ДА","числовой","00-00-00"]
[null,"Поле 3 строки",null,"Номер отделения","ДА","числовой"]
[null,"Поле 4 строки",null,"Номер кассира/УС/СБОЛ","ДА","числовой"]
[null,"Поле 5 строки",null,"Уникальный код операции в ЕПС","ДА","числовой"]
[null,"Поле 6 строки",null,"Фамилия, Имя, Отчество","ДА","текстовый","Фамилия, Имя, Отчество"]
[null,"Поле 7 строки",null,"Дополнительная информация","ДА","текстовый"]
[null,"Поле 8 строки",null,"Сумма операции","ДА","цифровой",999999.99]
[null,"Поле 9 строки",null,"Сумма перевода","ДА","цифровой",999999.99]
[null,"Поле 10 строки",null,"Сумма комиссии банку","ДА","цифровой",999999.99]
[null,"Признак контрольной знаки",null,"Знак равно \"=\"","ДА","текстовый","="]
[null,"Поле 1 контрольной строки",null,"Количество строк в реестре","ДА","числовой"]
[null,"Поле 2 контрольной строки",null,"Общая сумма принятых средств","ДА","числовой",999999.99]
[null,"Поле 3 контрольной строки",null,"Сумма перечисления клиенту","ДА","числовой",999999.99]
[null,"Поле 4 контрольной строки",null,"Комиссия банку","ДА","числовой",999999.99]
[null,"Поле 5 контрольной строки",null,"Номер платежного поручения","ДА","числовой"]
[null,"Поле 6 контрольной строки",null,"Дата платежного поручения","ДА","числовой","ДД-ММ-ГГГГ"]

{"sheet":"1_2","index":4,"n_rows":80,"n_cols":9,"rows_kept":80,"cut":false,"hidden":true,"merged":[[51,1,57,1],[51,3,51,5],[58,3,58,5],[59,3,59,5],[24,1,24,4],[27,1,27,4],[43,1,50,1],[43,3,43,5],[47,3,48,3],[47,5,48,5]]}
[null,"КОД ГРУППЫ РЕКВИЗИТОВ",null,"ШАБЛОН 1_2"]
[]
[null,"Группа реквизитов"]
["№","Наименование реквизита","Имя реквизита для ЕПС","Имя реквизита для ДШК","Тип реквизита","Режим ввода","Текст подсказки в СБОЛ","мин. длина","макс. Длина"]
[1,2,3,4,5,6,7,8,9]
[1,"Номер договора","НОМЕР ДОГОВОРА","contract или persAcc","Ключевой.Обязательный.","Ручной","Введите лицевой счет, не менее 3-х и не более 30-ти символов.",3,30]
[2,"ФИО","ФИО_ПЛАТЕЛЬЩИКА","LastName, FirstName, MiddleName","Обязательный","Ручной","Введите ФИО плательщика, например, Иванов Иван Иванович.",2,60]
[]
[]
[null,null,"ОПИСАНИЕ ТЕГОВ ДЛЯ ДШК","Ваш текст для ДШК","ПРИМЕР"]
[null,"Идентификатор стандарта","СТАНДАРТ КОДИРОВКИ",null,"ST00012"]
[null,"Name","НАИМЕНОВАНИЕ ОРГАНИЗАЦИИ",null,"KolpinoNet"]
[null,"PersonalAcc","РАСЧЕТНЫЙ СЧЕТ",null,"40702810855110000053"]
[null,"BankName","НАИМЕНОВАНИЕ БАНКА ПОЛУЧАТЕЛЯ",null,"СЕВЕРО-ЗАПАДНЫЙ БАНК ПАО СБЕРБАНК"]
[null,"BIC","БИК",null,"044030653"]
[null,"CorrespAcc","КОР.СЧЕТ",null,"30101810500000000653"]
[null,"PayeeINN","ИНН ПОЛУЧАТЕЛЯ",null,7817304030]
[null,"Contract","НОМЕР ДОГОВОРА",null,"0130","Ключевой.Обязательный."]
[null,"LastName","ФИО ПЛАТЕЛЬЩИКА",null,"Семенова Ирина Петровна"]
[null,"Sum","СУММА ПЛАТЕЖА",null,"10000"]
[null,"Category","НОМЕР УСЛУГИ В СИСТЕМЕ БАНКА",null,4200800201]
[]
[]
[null,"Ваш текст для ДШК",null,"Для создания QR кода можно использовать генератор по адресу http://qrcoder.ru"]
[null,{"$f":"CONCATENATE(\"\",D11,\"|\",B12,\"=\",D12,\"|\",B13,A25,\"=\",D13,\"|\",B14,\"=\",D14,\"|\",B15,\"=\",D15,\"|\",B16,\"=\",D16,\"|\",B17,\"=\",D17,\"|\",B18,\"=\",D18,\"|\",B19,\"=\",D19,\"|\",B20,\"=\",D20,\"|\",B21,\"=\",D21,\"\")","v":"|Name=|PersonalAcc=|BankName=|BIC=|CorrespAcc=|PayeeINN=|Contract=|LastName=|Sum=|Category="}]
[]
[null,"ПРИМЕР"]
[null,{"$f":"CONCATENATE(\"\",E11,\"|Name=\",E12,\"|PersonalAcc=\",E13,\"|BankName=\",E14,\"|BIC=\",E15,\"|CorrespAcc=\",E16,\"|PayeeINN=\",E17,\"|Contract=\",E18,\"|LastName=\",E19,\"|Sum=\",E20,\"|Category=\",E21,\"\")","v":"ST00012|Name=KolpinoNet|PersonalAcc=40702810855110000053|BankName=СЕВЕРО-ЗАПАДНЫЙ БАНК ПАО СБЕРБАНК|BIC=044030653|CorrespAcc=30101810500000000653|PayeeINN=7817304030|Contract=0130|LastName=Семенова Ирина Петровна|Sum=10000|Category=4200800201"}]
[]
[]
[null,"Структура реестра"]
[null,"Строка 1"]
[null,"Поле 1; Поле 2; Поле 3; …..; Поле t"]
[null,"Строка 2"]
[null,"Поле 1; Поле 2; Поле 3; …..; Поле t"]
[null,"…"]
[null,"Строка n"]
[null,"Поле 1; Поле 2; Поле 3; …..; Поле t"]
[null,"Контрольная строка (используется для исходящего реестра)"]
[null,"=Поле1;Поле2;Поле3;Поле4;Поле5;Поле6"]
[]
[]
[null,"Формат исходящего реестра"]
[null,"Имя архива",null,"ИНН_РС_код_счетчик_дата.zip"]
[null,null,null,"значение","описание","параметры"]
[null,null,null,"ИНН","ИНН поставщика услуг","XXXXXXXXXX"]
[null,null,null,"РС","Расчетный счет ПУ для перечисления д/с","YYYYYYYYYYYYYYYYYYYY"]
[null,null,null,"код","Код услуги. В качестве кода будут использоваться последние 3 символа “Лицевого счета” вида платежа ЕПС, дополненного лидирующими нулями.","001-999"]
[null,null,null,null,"Если “Лицевой счет” в ЕПС будет равен 0, код услуги будет пустой."]
[null,null,null,"счетчик","порядковый номер реестра в течение одного рабочего дня","00-99"]
[null,null,null,"дата","дата формирования реестра","ДДММГГГГ"]
[null,"Имя реестра",null,"SBкод_ПП_дата.txt "]
[null,null,null,"значение","описание","параметры"]
[null,null,null,"SB","константа"]
[null,null,null,"код","Код услуги. Аналогия с кодом услуги в имени архива"]
[null,null,null,"ПП","Номер платежного поручения","ZZZZZZ"]
[null,null,null,"дата","дата формирования реестра","ДДММГГГГ"]
[null,null,null,"txt","признак текстового файла"]
[null,"Кодировка",null,"WIN-1251\nKOI8-R\nUTF8"]
[null,"Разделители",null,"; (ASCII-код 59, точка с запятой)"]
[]
[null,"Формат строк"]
[null,"Номер поля в реестре",null,"Наименование поля","Обязательное наличие информации в поле","Тип поля","Маска"]
[null,"Поле 1 строки",null,"Дата платежа","ДА","числовой","ДД-ММ-ГГГГ"]
[null,"Поле 2 строки",null,"Время платежа","ДА","числовой","00-00-00"]
[null,"Поле 3 строки",null,"Номер отделения","ДА","числовой"]
[null,"Поле 4 строки",null,"Номер кассира/УС/СБОЛ","ДА","числовой"]
[null,"Поле 5 строки",null,"Уникальный код операции в ЕПС","ДА","числовой"]
[null,"Поле 6 строки",null,"НОМЕР ДОГОВОРА","ДА","текстовый"]
[null,"Поле 7 строки",null,"Фамилия, Имя, Отчество","ДА","текстовый","Фамилия, Имя, Отчество"]
[null,"Поле 8 строки",null,"Сумма операции","ДА","цифровой",999999.99]
[null,"Поле 9 строки",null,"Сумма перевода","ДА","цифровой",999999.99]
[null,"Поле 10 строки",null,"Сумма комиссии банку","ДА","цифровой",999999.99]
[null,"Признак контрольной знаки",null,"Знак равно \"=\"","ДА","текстовый","="]
[null,"Поле 1 контрольной строки",null,"Количество строк в реестре","ДА","числовой"]
[null,"Поле 2 контрольной строки",null,"Общая сумма принятых средств","ДА","числовой",999999.99]
[null,"Поле 3 контрольной строки",null,"Сумма перечисления клиенту","ДА","числовой",999999.99]
[null,"Поле 4 контрольной строки",null,"Комиссия банку","ДА","числовой",999999.99]
[null,"Поле 5 контрольной строки",null,"Номер платежного поручения","ДА","числовой"]
[null,"Поле 6 контрольной строки",null,"Дата платежного поручения","ДА","числовой","ДД-ММ-ГГГГ"]

{"sheet":"1_3","index":5,"n_rows":96,"n_cols":9,"rows_kept":96,"cut":false,"hidden":true,"merged":[[45,3,45,4],[24,1,24,4],[27,1,27,4],[42,3,42,4],[43,3,43,4],[44,3,44,4],[72,3,72,5],[73,3,73,5],[57,1,64,1],[57,3,57,5],[61,3,62,3],[61,5,62,5],[65,1,71,1],[65,3,65,5]]}
[null,"КОД ГРУППЫ РЕКВИЗИТОВ","БИЛЛИНГ","ШАБЛОН 1_3"]
[]
[null,"Группа реквизитов"]
["№","Наименование реквизита","Имя реквизита для ЕПС","Имя реквизита для ДШК","Тип реквизита","Режим ввода","Текст подсказки в СБОЛ","мин. длина","макс. Длина"]
[1,2,3,4,5,6,7,8,9]
[1,"Номер договора","НОМЕР ДОГОВОРА","contract или persAcc","Ключевой.Обязательный.","Ручной","Введите номер договора (1-30 символов)",1,30]
[2,"ФИО","ФИО_ПЛАТЕЛЬЩИКА","LastName, FirstName, MiddleName","Только для чтения","Из базы начислений",null,2,60]
[3,"Адрес","АДРЕС","PayerAddress","Только для чтения","Из базы начислений",null,1,90]
[]
[]
[null,null,"ОПИСАНИЕ ТЕГОВ ДЛЯ ДШК","Ваш текст для ДШК","ПРИМЕР"]
[null,"Идентификатор стандарта","СТАНДАРТ КОДИРОВКИ",null,"ST00012"]
[null,"Name","НАИМЕНОВАНИЕ ОРГАНИЗАЦИИ",null,"Транзит-телеком"]
[null,"PersonalAcc","РАСЧЕТНЫЙ СЧЕТ",null,"40702810951010104210"]
[null,"BankName","НАИМЕНОВАНИЕ БАНКА ПОЛУЧАТЕЛЯ",null,"СЕВЕРО-ЗАПАДНЫЙ БАНК ПАО СБЕРБАНК"]
[null,"BIC","БИК",null,"044030653"]
[null,"CorrespAcc","КОР.СЧЕТ",null,"30101810500000000653"]
[null,"PayeeINN","ИНН ПОЛУЧАТЕЛЯ",null,6027090059]
[null,"Contract","НОМЕР ДОГОВОРА",null,"111"]
[null,"Sum","СУММА ПЛАТЕЖА",null,"15000"]
[null,"Category","НОМЕР УСЛУГИ В СИСТЕМЕ БАНКА",null,8455977574]
[]
[]
[null,"Ваш текст для ДШК",null,"Для создания QR кода можно использовать генератор по адресу http://qrcoder.ru"]
[null,{"$f":"CONCATENATE(\"\",D12,\"|\",B13,\"=\",D13,\"|\",B14,A25,\"=\",D14,\"|\",B15,\"=\",D15,\"|\",B16,\"=\",D16,\"|\",B17,\"=\",D17,\"|\",B18,\"=\",D18,\"|\",B19,\"=\",D19,\"|\",B20,\"=\",D20,\"|\",B21,\"=\",D21,\"\")","v":"|Name=|PersonalAcc=|BankName=|BIC=|CorrespAcc=|PayeeINN=|Contract=|Sum=|Category="}]
[]
[null,"ПРИМЕР"]
[null,{"$f":"CONCATENATE(\"\",E12,\"|Name=\",E13,\"|PersonalAcc=\",E14,\"|BankName=\",E15,\"|BIC=\",E16,\"|CorrespAcc=\",E17,\"|PayeeINN=\",E18,\"|Contract=\",E19,\"|Sum=\",E20,\"|Category=\",E21,\"\")","v":"ST00012|Name=Транзит-телеком|PersonalAcc=40702810951010104210|BankName=СЕВЕРО-ЗАПАДНЫЙ БАНК ПАО СБЕРБАНК|BIC=044030653|CorrespAcc=30101810500000000653|PayeeINN=6027090059|Contract=111|Sum=15000|Category=8455977574"}]
[]
[]
[null,"Структура реестра"]
[null,"Строка 1"]
[null,"Поле 1; Поле 2; Поле 3; …..; Поле t"]
[null,"Строка 2"]
[null,"Поле 1; Поле 2; Поле 3; …..; Поле t"]
[null,"…"]
[null,"Строка n"]
[null,"Поле 1; Поле 2; Поле 3; …..; Поле t"]
[null,"Контрольная строка (используется для исходящего реестра)"]
[null,"=Поле1;Поле2;Поле3;Поле4;Поле5;Поле6"]
[]
[null,"Формат входящего реестра (может не использоваться)"]
[null,"Имя реестра",null,"ИИИИИИИИИ(ИИ)_ РРРРРРРРРРРРРРРРРРРР _XXX_ММDD.txt"]
[null,"Формат реестра",null,"txt"]
[null,"Кодировка",null,"WIN-1251\nKOI8-R\nUTF8"]
[null,"Разделители",null,"; (ASCII-код 59, точка с запятой)"]
[]
[]
[]
[null,"Формат строк"]
[null,"Номер поля в реестре",null,"Наименование поля","Тип поля","Маска"]
[null,1,null,"Номер договора","текстовое","мин. 1 знак макс. 30"]
[null,2,null,"ФИО","текстовое","Фамилия, Имя, Отчетсво"]
[null,3,null,"Адрес","текстовое","Населенный пункт, адрес, номер дома, кв"]
[null,4,null,"Сумма начислений","числовое",999999.99]
[]
[null,"Формат исходящего реестра"]
[null,"Имя архива",null,"ИНН_РС_код_счетчик_дата.zip"]
[null,null,null,"значение","описание","параметры"]
[null,null,null,"ИНН","ИНН поставщика услуг","XXXXXXXXXX"]
[null,null,null,"РС","Расчетный счет ПУ для перечисления д/с","YYYYYYYYYYYYYYYYYYYY"]
[null,null,null,"код","Код услуги. В качестве кода будут использоваться последние 3 символа “Лицевого счета” вида платежа ЕПС, дополненного лидирующими нулями.","001-999"]
[null,null,null,null,"Если “Лицевой счет” в ЕПС будет равен 0, код услуги будет пустой."]
[null,null,null,"счетчик","порядковый номер реестра в течение одного рабочего дня","00-99"]
[null,null,null,"дата","дата формирования реестра","ДДММГГГГ"]
[null,"Имя реестра",null,"SBкод_ПП_дата.txt "]
[null,null,null,"значение","описание","параметры"]
[null,null,null,"SB","константа"]
[null,null,null,"код","Код услуги. Аналогия с кодом услуги в имени архива"]
[null,null,null,"ПП","Номер платежного поручения","ZZZZZZ"]
[null,null,null,"дата","дата формирования реестра","ДДММГГГГ"]
[null,null,null,"txt","признак текстового файла"]
[null,"Кодировка",null,"WIN-1251\nKOI8-R\nUTF8"]
[null,"Разделители",null,"; (ASCII-код 59, точка с запятой)"]
[]
[]
[null,"Формат строк"]
[null,"Номер поля в реестре",null,"Наименование поля","Обязательное наличие информации в поле","Тип поля","Маска"]
[null,"Поле 1 строки",null,"Дата платежа","ДА","числовой","ДД-ММ-ГГГГ"]
[null,"Поле 2 строки",null,"Время платежа","ДА","числовой","00-00-00"]
[null,"Поле 3 строки",null,"Номер отделения","ДА","числовой"]
[null,"Поле 4 строки",null,"Номер кассира/УС/СБОЛ","ДА","числовой"]
[null,"Поле 5 строки",null,"Уникальный код операции в ЕПС","ДА","числовой"]
[null,"Поле 6 строки",null,"Номер договора","ДА","текстовый"]
[null,"Поле 7 строки",null,"Фамилия, Имя, Отчество","ДА","текстовый","Фамилия, Имя, Отчество"]
[null,"Поле 8 строки",null,"Адрес","ДА","текстовый","Населенный пункт, улица, номер дома, номер квартиры"]
[null,"Поле 9 строки",null,"Сумма операции","ДА","цифровой",999999.99]
[null,"Поле 10 строки",null,"Сумма перевода","ДА","цифровой",999999.99]
[null,"Поле 11 строки",null,"Сумма комиссии банку","ДА","цифровой",999999.99]
[null,"Признак контрольной знаки",null,"Знак равно \"=\"","ДА","текстовый","="]
[null,"Поле 1 контрольной строки",null,"Количество строк в реестре","ДА","числовой"]
[null,"Поле 2 контрольной строки",null,"Общая сумма принятых средств","ДА","числовой",999999.99]
[null,"Поле 3 контрольной строки",null,"Сумма перечисления клиенту","ДА","числовой",999999.99]
[null,"Поле 4 контрольной строки",null,"Комиссия банку","ДА","числовой",999999.99]
[null,"Поле 5 контрольной строки",null,"Номер платежного поручения","ДА","числовой"]
[null,"Поле 6 контрольной строки",null,"Дата платежного поручения","ДА","числовой","ДД-ММ-ГГГГ"]

{"sheet":"1_4","index":6,"n_rows":85,"n_cols":9,"rows_kept":85,"cut":false,"hidden":true,"merged":[[53,1,59,1],[53,3,53,5],[60,3,60,5],[61,3,61,5],[26,1,26,4],[29,1,29,4],[45,1,52,1],[45,3,45,5],[49,3,50,3],[49,5,50,5]]}
[null,"КОД ГРУППЫ РЕКВИЗИТОВ",null,"ШАБЛОН 1_4"]
[]
[null,"Группа реквизитов"]
["№","Наименование реквизита","Имя реквизита для ЕПС","Имя реквизита для ДШК","Тип реквизита","Режим ввода","Текст подсказки в СБОЛ","мин. длина","макс. Длина"]
[1,2,3,4,5,6,7,8,9]
[1,"Номер договора","НОМЕР ДОГОВОРА","contract","Ключевой.Обязательный.","Ручной","Вводится номер договора",1,30]
[2,"ФИО","ФИО_ПЛАТЕЛЬЩИКА","LastName, FirstName, MiddleName","Обязательный","Ручной","Вводится фамилия, имя и отчество плательщика. Например, Иванов Иван Иванович.",2,60]
[3,"Адрес плательщика","АДРЕС","PayerAddress","Обязательный","Ручной","Введите адрес плательщика (до 90 знаков), например: г. Белгород ул. Ххххххххх д. ХХХ кв. ХХХ",1,90]
[]
[]
[null,null,"ОПИСАНИЕ ТЕГОВ ДЛЯ ДШК","Ваш текст для ДШК","ПРИМЕР"]
[null,"Идентификатор стандарта","СТАНДАРТ КОДИРОВКИ",null,"ST00012"]
[null,"Name","НАИМЕНОВАНИЕ ОРГАНИЗАЦИИ",null,"СНТ Политехник"]
[null,"PersonalAcc","РАСЧЕТНЫЙ СЧЕТ",null,"40703810255080101607"]
[null,"BankName","НАИМЕНОВАНИЕ БАНКА ПОЛУЧАТЕЛЯ",null,"СЕВЕРО-ЗАПАДНЫЙ БАНК ПАО СБЕРБАНК"]
[null,"BIC","БИК",null,"044030653"]
[null,"CorrespAcc","КОР.СЧЕТ",null,"30101810500000000653"]
[null,"PayeeINN","ИНН ПОЛУЧАТЕЛЯ",null,4719008630]
[null,"Contract","НОМЕР ДОГОВОРА",null,"11111","Ключевой.Обязательный."]
[null,"LastName","ФИО ПЛАТЕЛЬЩИКА",null,"Семенов Иван Григорьевич"]
[null,"PayerAddress","АДРЕС",null,"Санкт-Петербург  ул Парковая, д 17 кв 5"]
[null,"Sum","СУММА ПЛАТЕЖА",null,"30000"]
[null,"Category","НОМЕР УСЛУГИ В СИСТЕМЕ БАНКА",null,2683948223]
[]
[]
[null,"Ваш текст для ДШК",null,"Для создания QR кода можно использовать генератор по адресу http://qrcoder.ru"]
[null,{"$f":"CONCATENATE(\"\",D12,\"|\",B13,\"=\",D13,\"|\",B14,A27,\"=\",D14,\"|\",B15,\"=\",D15,\"|\",B16,\"=\",D16,\"|\",B17,\"=\",D17,\"|\",B18,\"=\",D18,\"|\",B19,\"=\",D19,\"|\",B20,\"=\",D20,\"|\",B21,\"=\",D21,\"|\",B22,\"=\",D22,\"|\",B23,\"=\",D23,\"\")","v":"|Name=|PersonalAcc=|BankName=|BIC=|CorrespAcc=|PayeeINN=|Contract=|LastName=|PayerAddress=|Sum=|Category="}]
[]
[null,"ПРИМЕР"]
[null,{"$f":"CONCATENATE(\"\",E12,\"|Name=\",E13,\"|PersonalAcc=\",E14,\"|BankName=\",E15,\"|BIC=\",E16,\"|CorrespAcc=\",E17,\"|PayeeINN=\",E18,\"|Contract=\",E19,\"|LastName=\",E20,\"|payerAddress=\",E21,\"|Sum=\",E22,\"|Category=\",E23,\"\")","v":"ST00012|Name=СНТ Политехник|PersonalAcc=40703810255080101607|BankName=СЕВЕРО-ЗАПАДНЫЙ БАНК ПАО СБЕРБАНК|BIC=044030653|CorrespAcc=30101810500000000653|PayeeINN=4719008630|Contract=11111|LastName=Семенов Иван Григорьевич|payerAddress=Санкт-Петербург  ул Парковая, д 17 кв 5|Sum=30000|Category=2683948223"}]
[]
[]
[null,"Структура реестра"]
[null,"Строка 1"]
[null,"Поле 1; Поле 2; Поле 3; …..; Поле t"]
[null,"Строка 2"]
[null,"Поле 1; Поле 2; Поле 3; …..; Поле t"]
[null,"…"]
[null,"Строка n"]
[null,"Поле 1; Поле 2; Поле 3; …..; Поле t"]
[null,"Контрольная строка (используется для исходящего реестра)"]
[null,"=Поле1;Поле2;Поле3;Поле4;Поле5;Поле6"]
[]
[]
[null,"Формат исходящего реестра"]
[null,"Имя архива",null,"ИНН_РС_код_счетчик_дата.zip"]
[null,null,null,"значение","описание","параметры"]
[null,null,null,"ИНН","ИНН поставщика услуг","XXXXXXXXXX"]
[null,null,null,"РС","Расчетный счет ПУ для перечисления д/с","YYYYYYYYYYYYYYYYYYYY"]
[null,null,null,"код","Код услуги. В качестве кода будут использоваться последние 3 символа “Лицевого счета” вида платежа ЕПС, дополненного лидирующими нулями.","001-999"]
[null,null,null,null,"Если “Лицевой счет” в ЕПС будет равен 0, код услуги будет пустой."]
[null,null,null,"счетчик","порядковый номер реестра в течение одного рабочего дня","00-99"]
[null,null,null,"дата","дата формирования реестра","ДДММГГГГ"]
[null,"Имя реестра",null,"SBкод_ПП_дата.txt "]
[null,null,null,"значение","описание","параметры"]
[null,null,null,"SB","константа"]
[null,null,null,"код","Код услуги. Аналогия с кодом услуги в имени архива"]
[null,null,null,"ПП","Номер платежного поручения","ZZZZZZ"]
[null,null,null,"дата","дата формирования реестра","ДДММГГГГ"]
[null,null,null,"txt","признак текстового файла"]
[null,"Кодировка",null,"WIN-1251\nKOI8-R\nUTF8"]
[null,"Разделители",null,"; (ASCII-код 59, точка с запятой)"]
[]
[]
[]
[null,"Формат строк"]
[null,"Номер поля в реестре",null,"Наименование поля","Обязательное наличие информации в поле","Тип поля","Маска"]
[null,"Поле 1 строки",null,"Дата платежа","ДА","числовой","ДД-ММ-ГГГГ"]
[null,"Поле 2 строки",null,"Время платежа","ДА","числовой","00-00-00"]
[null,"Поле 3 строки",null,"Номер отделения","ДА","числовой"]
[null,"Поле 4 строки",null,"Номер кассира/УС/СБОЛ","ДА","числовой"]
[null,"Поле 5 строки",null,"Уникальный код операции в ЕПС","ДА","числовой"]
[null,"Поле 6 строки",null,"Номер договора","ДА","текстовый"]
[null,"Поле 7 строки",null,"Фамилия, Имя, Отчество","ДА","текстовый","Фамилия, Имя, Отчество"]
[null,"Поле 8 строки",null,"Адрес","ДА","текстовый","Населенный пункт, улица, номер дома, номер квартиры"]
[null,"Поле 9 строки",null,"Сумма операции","ДА","цифровой",999999.99]
[null,"Поле 10 строки",null,"Сумма перевода","ДА","цифровой",999999.99]
[null,"Поле 11 строки",null,"Сумма комиссии банку","ДА","цифровой",999999.99]
[null,"Признак контрольной знаки",null,"Знак равно \"=\"","ДА","текстовый","="]
[null,"Поле 1 контрольной строки",null,"Количество строк в реестре","ДА","числовой"]
[null,"Поле 2 контрольной строки",null,"Общая сумма принятых средств","ДА","числовой",999999.99]
[null,"Поле 3 контрольной строки",null,"Сумма перечисления клиенту","ДА","числовой",999999.99]
[null,"Поле 4 контрольной строки",null,"Комиссия банку","ДА","числовой",999999.99]
[null,"Поле 5 контрольной строки",null,"Номер платежного поручения","ДА","числовой"]
[null,"Поле 6 контрольной строки",null,"Дата платежного поручения","ДА","числовой","ДД-ММ-ГГГГ"]

{"sheet":"2_1","index":7,"n_rows":84,"n_cols":9,"rows_kept":84,"cut":false,"hidden":true,"merged":[[52,1,58,1],[52,3,52,5],[59,3,59,5],[60,3,60,5],[26,1,26,4],[29,1,29,4],[44,1,51,1],[44,3,44,5],[48,3,49,3],[48,5,49,5]]}
[null,"КОД ГРУППЫ РЕКВИЗИТОВ",null,"ШАБЛОН 2_1"]
[]
[null,"Группа реквизитов"]
["№","Наименование реквизита","Имя реквизита для ЕПС","Имя реквизита для ДШК","Тип реквизита","Режим ввода","Текст подсказки в СБОЛ","мин. длина","макс. Длина"]
[1,2,3,4,5,6,7,8,9]
[1,"ФИО","ФИО_ПЛАТЕЛЬЩИКА","LastName, FirstName, MiddleName","Ключевой.Обязательный.","Ручной","Введите ФИО плательщика, например, Иванов Иван Иванович.",2,60]
[2,"Адрес","АДРЕС","PayerAddress","Обязательный","Ручной","Введите адрес плательщика, например, г. Псков, ул. Шверника, д.11-111.",1,120]
[3,"Назначение платежа","НАЗНАЧЕНИЕ","Purpose","Обязательный","Ручной","Введите назначение платежа (за какие работы/товары осуществляется платеж) или иную дополнительную информацию о платеже.",6,210]
[]
[]
[null,null,"ОПИСАНИЕ ТЕГОВ ДЛЯ ДШК","Ваш текст для ДШК","ПРИМЕР"]
[null,"Идентификатор стандарта","СТАНДАРТ КОДИРОВКИ",null,"ST00012"]
[null,"Name","НАИМЕНОВАНИЕ ОРГАНИЗАЦИИ",null,"НП АСАБ"]
[null,"PersonalAcc","РАСЧЕТНЫЙ СЧЕТ",null,"40703810555080000644"]
[null,"BankName","НАИМЕНОВАНИЕ БАНКА ПОЛУЧАТЕЛЯ",null,"СЕВЕРО-ЗАПАДНЫЙ БАНК ПАО СБЕРБАНК"]
[null,"BIC","БИК",null,"044030653"]
[null,"CorrespAcc","КОР.СЧЕТ",null,"30101810500000000653"]
[null,"PayeeINN","ИНН ПОЛУЧАТЕЛЯ",null,"7810437063"]
[null,"lastName","ФИО ПЛАТЕЛЬЩИКА",null,"Иванов Иван Иванович","Ключевой.Обязательный."]
[null,"PayerAddress","АДРЕС ПЛАТЕЛЬЩИКА",null,"Санкт-Петербург  "]
[null,"Purpose","НАЗНАЧЕНИЕ ПЛАТЕЖА до 210 знаков",null,"назначение до 200 знаков"]
[null,"Sum","СУММА ПЛАТЕЖА",null,"10000"]
[null,"Category","НОМЕР УСЛУГИ В СИСТЕМЕ БАНКА",null,"9446629742"]
[]
[]
[null,"Ваш текст для ДШК",null,"Для создания QR кода можно использовать генератор по адресу http://qrcoder.ru"]
[null,{"$f":"CONCATENATE(\"\",D12,\"|\",B13,\"=\",D13,\"|\",B14,A27,\"=\",D14,\"|\",B15,\"=\",D15,\"|\",B16,\"=\",D16,\"|\",B17,\"=\",D17,\"|\",B18,\"=\",D18,\"|\",B19,\"=\",D19,\"|\",B20,\"=\",D20,\"|\",B21,\"=\",D21,\"|\",B22,\"=\",D22,\"|\",B23,\"=\",D23,\"\")","v":"|Name=|PersonalAcc=|BankName=|BIC=|CorrespAcc=|PayeeINN=|lastName=|PayerAddress=|Purpose=|Sum=|Category="}]
[]
[null,"ПРИМЕР"]
[null,{"$f":"CONCATENATE(\"\",E12,\"|Name=\",E13,\"|PersonalAcc=\",E14,\"|BankName=\",E15,\"|BIC=\",E16,\"|CorrespAcc=\",E17,\"|PayeeINN=\",E18,\"|lastName=\",E19,\"|payerAddress=\",E20,\"|Purpose=\",E21,\"|Sum=\",E22,\"|Category=\",E23,\"\")","v":"ST00012|Name=НП АСАБ|PersonalAcc=40703810555080000644|BankName=СЕВЕРО-ЗАПАДНЫЙ БАНК ПАО СБЕРБАНК|BIC=044030653|CorrespAcc=30101810500000000653|PayeeINN=7810437063|lastName=Иванов Иван Иванович|payerAddress=Санкт-Петербург  |Purpose=назначение до 200 знаков|Sum=10000|Category=9446629742"}]
[]
[null,"Структура реестра"]
[null,"Строка 1"]
[null,"Поле 1; Поле 2; Поле 3; …..; Поле t"]
[null,"Строка 2"]
[null,"Поле 1; Поле 2; Поле 3; …..; Поле t"]
[null,"…"]
[null,"Строка n"]
[null,"Поле 1; Поле 2; Поле 3; …..; Поле t"]
[null,"Контрольная строка (используется для исходящего реестра)"]
[null,"=Поле1;Поле2;Поле3;Поле4;Поле5;Поле6"]
[]
[]
[null,"Формат исходящего реестра"]
[null,"Имя архива",null,"ИНН_РС_код_счетчик_дата.zip"]
[null,null,null,"значение","описание","параметры"]
[null,null,null,"ИНН","ИНН поставщика услуг","XXXXXXXXXX"]
[null,null,null,"РС","Расчетный счет ПУ для перечисления д/с","YYYYYYYYYYYYYYYYYYYY"]
[null,null,null,"код","Код услуги. В качестве кода будут использоваться последние 3 символа “Лицевого счета” вида платежа ЕПС, дополненного лидирующими нулями.","001-999"]
[null,null,null,null,"Если “Лицевой счет” в ЕПС будет равен 0, код услуги будет пустой."]
[null,null,null,"счетчик","порядковый номер реестра в течение одного рабочего дня","00-99"]
[null,null,null,"дата","дата формирования реестра","ДДММГГГГ"]
[null,"Имя реестра",null,"SBкод_ПП_дата.txt "]
[null,null,null,"значение","описание","параметры"]
[null,null,null,"SB","константа"]
[null,null,null,"код","Код услуги. Аналогия с кодом услуги в имени архива"]
[null,null,null,"ПП","Номер платежного поручения","ZZZZZZ"]
[null,null,null,"дата","дата формирования реестра","ДДММГГГГ"]
[null,null,null,"txt","признак текстового файла"]
[null,"Кодировка",null,"WIN-1251\nKOI8-R\nUTF8"]
[null,"Разделители",null,"; (ASCII-код 59, точка с запятой)"]
[]
[]
[]
[null,"Формат строк"]
[null,"Номер поля в реестре",null,"Наименование поля","Обязательное наличие информации в поле","Тип поля","Маска"]
[null,"Поле 1 строки",null,"Дата платежа","ДА","числовой","ДД-ММ-ГГГГ"]
[null,"Поле 2 строки",null,"Время платежа","ДА","числовой","00-00-00"]
[null,"Поле 3 строки",null,"Номер отделения","ДА","числовой"]
[null,"Поле 4 строки",null,"Номер кассира/УС/СБОЛ","ДА","числовой"]
[null,"Поле 5 строки",null,"Уникальный код операции в ЕПС","ДА","числовой"]
[null,"Поле 6 строки",null,"Фамилия, Имя, Отчество","ДА","текстовый","Фамилия, Имя, Отчество"]
[null,"Поле 7 строки",null,"Адрес","ДА","текстовый","Населенный пункт, улица, номер дома, номер квартиры"]
[null,"Поле 8 строки",null,"Дополнительная информация","ДА","текстовый"]
[null,"Поле 9 строки",null,"Сумма операции","ДА","цифровой",999999.99]
[null,"Поле 10 строки",null,"Сумма перевода","ДА","цифровой",999999.99]
[null,"Поле 11 строки",null,"Сумма комиссии банку","ДА","цифровой",999999.99]
[null,"Признак контрольной знаки",null,"Знак равно \"=\"","ДА","текстовый","="]
[null,"Поле 1 контрольной строки",null,"Количество строк в реестре","ДА","числовой"]
[null,"Поле 2 контрольной строки",null,"Общая сумма принятых средств","ДА","числовой",999999.99]
[null,"Поле 3 контрольной строки",null,"Сумма перечисления клиенту","ДА","числовой",999999.99]
[null,"Поле 4 контрольной строки",null,"Комиссия банку","ДА","числовой",999999.99]
[null,"Поле 5 контрольной строки",null,"Номер платежного поручения","ДА","числовой"]
[null,"Поле 6 контрольной строки",null,"Дата платежного поручения","ДА","числовой","ДД-ММ-ГГГГ"]

{"sheet":"3_1","index":8,"n_rows":110,"n_cols":9,"rows_kept":110,"cut":false,"hidden":true,"merged":[[72,1,78,1],[72,3,72,5],[79,3,79,5],[80,3,80,5],[45,1,45,4],[48,1,48,4],[64,1,71,1],[64,3,64,5],[68,3,69,3],[68,5,69,5]]}
[null,"КОД ГРУППЫ РЕКВИЗИТОВ",null,"ШАБЛОН 3_1"]
[]
[null,"Группа реквизитов"]
["№","Наименование реквизита","Имя реквизита для ЕПС","Имя реквизита для ДШК","Тип реквизита","Режим ввода","Текст подсказки в СБОЛ","мин. длина","макс. Длина"]
[1,2,3,4,5,6,7,8,9]
[1,"ФИО","ФИО_ПЛАТЕЛЬЩИКА","LastName, FirstName, MiddleName","Ключевой.Обязательный.","Ручной","Введите ФИО плательщика, например, Иванов Иван Иванович.",2,60]
[2,"Фамилия, имя ребенка","ФИ_РЕБЕНКА","ChildFio","Обязательный","Ручной","Введите фамилию и имя ребенка, например, Иванов Иван.",2,60]
[3,"Адрес","АДРЕС","PayerAddress","Необязательный","Ручной","Введите адрес плательщика, например, город, улица д кв",1,90]
[4,"Номер учреждения","N_УЧРЕЖДЕНИЯ","InstNum","Необязательный","Ручной","Введите номер детского сада или школы.",1,15]
[5,"Номер группы","N_ГРУППЫ","classNum ","Обязательный","Ручной","Введите номер группы.",1,20]
[6,"Лицевой счет","N_Л/СЧЕТА","persAcc","Необязательный","Ручной","Введите лицевой счет, не более 15 символов, например, 23018258.",1,15]
[7,"Период оплаты","ПЕРИОД","PaymPeriod","Необязательный","Ручной","Введите период оплаты в формате ММГГ, например, 0415",3,4]
[8,"ОКТМО","ОКТМО","OKTMO","Обязательный","Ручной","Введите ОКТМО, 8 цифр.",8,11]
[9,"КБК","КБК","CBC","Обязательный","Ручной","Введите КБК, 20 цифр.",20,20]
[10,"Назначение платежа","НАЗНАЧЕНИЕ","Purpose","Обязательный","Ручной","Введите назначение платежа или иную дополнительную информацию о платеже, не более 150 символов.",6,150]
[11,"Вид документа","ВИД_ДОК",null,"Обязательный","Ручной","Выберите вид документа, удостоверяющего Вашу личность",0,250]
[12,"Номер документа","НОМЕР ДОКУМЕНТА",null,"Обязательный","Ручной","Введите номер и/или серию документа (без пробелов)",0,12]
[13,"Гражданство","ГРАЖДАНСТВО",null,"Обязательный","Ручной","Укажите страну, выдавшую документ",0,250]
[14,"Идентификатор плательщика услуги","ИПГУ",null,"Только для чтения","Автоматически",null,0,25]
[15,"УИП","УИП",null,"Только для чтения","Автоматически",null,0,32]
[]
[]
[null,null,"ОПИСАНИЕ ТЕГОВ ДЛЯ ДШК","Ваш текст для ДШК","ПРИМЕР"]
[null,"Идентификатор стандарта","СТАНДАРТ КОДИРОВКИ",null,"ST00012"]
[null,"Name","НАИМЕНОВАНИЕ ОРГАНИЗАЦИИ",null,"УФК ПО Г. САНКТ-ПЕТЕРБУРГУ (ГБОУ 111, Л/С 50190)"]
[null,"PersonalAcc","РАСЧЕТНЫЙ СЧЕТ",null,"40601810200003000000"]
[null,"BankName","НАИМЕНОВАНИЕ БАНКА ПОЛУЧАТЕЛЯ",null,"Северо-Западное ГУ Банка России"]
[null,"BIC","БИК",null,"044030001"]
[null,"CorrespAcc","КОР.СЧЕТ",null,"0"]
[null,"PayeeINN","ИНН ПОЛУЧАТЕЛЯ",null,"7801021076"]
[null,"LastName","ФИО ПЛАТЕЛЬЩИКА",null,"Семенова Ирина Петровна","Ключевой.Обязательный."]
[null,"ChildFio","ФИ РЕБЕНКА",null,"Семенов Иван Сергеевич"]
[null,"PayerAddress","АДРЕС ПЛАТЕЛЬЩИКА",null,"Санкт-Петербург  ул Парковая, д 17 кв 5"]
[null,"InstNum","НОМЕР УЧРЕЖДЕНИЯ",null,"25"]
[null,"classNum","НОМЕР ГРУППЫ/КЛАСС",null,"средняя"]
[null,"persAcc","НОМЕР ЛИЦЕВОГО СЧЕИА РЕБЕНКА",null,"782343234"]
[null,"PaymPeriod","ПЕРИОД ОПЛАТЫ В ФОРМАТЕ ММГГ",null,"0616"]
[null,"OKTMO","ОКТМО",null,"4030900003"]
[null,"CBC","КБК",null,"00000000000000000130"]
[null,"Purpose","НАЗНАЧЕНИЕ",null,"бассейн"]
[null,"Sum","СУММА ПЛАТЕЖА",null,"300000"]
[null,"Category","НОМЕР УСЛУГИ В СИСТЕМЕ БАНКА",null,3000002555]
[]
[]
[null,"Ваш текст для ДШК",null,"Для создания QR кода можно использовать генератор по адресу http://qrcoder.ru"]
[null,{"$f":"CONCATENATE(\"\",D24,\"|\",B25,\"=\",D25,\"|\",B26,A46,\"=\",D26,\"|\",B27,\"=\",D27,\"|\",B28,\"=\",D28,\"|\",B29,\"=\",D29,\"|\",B30,\"=\",D30,\"|\",B31,\"=\",D31,\"|\",B32,\"=\",D32,\"|\",B33,\"=\",D33,\"|\",B34,\"=\",D34,\"|\",B35,\"=\",D35,\"|\",B36,\"=\",D36,\"|\",B37,\"=\",D37,\"|\",B38,\"=\",D38,\"|\",B39,\"=\",D39,\"|\",B40,\"=\",D40,\"|\",B41,\"=\",D41,\"|\",B42,\"=\",D42,\"\")","v":"|Name=|PersonalAcc=|BankName=|BIC=|CorrespAcc=|PayeeINN=|LastName=|ChildFio=|PayerAddress=|InstNum=|classNum=|persAcc=|PaymPeriod=|OKTMO=|CBC=|Purpose=|Sum=|Category="}]
[]
[null,"ПРИМЕР"]
[null,{"$f":"CONCATENATE(\"\",E24,\"|Name=\",E25,\"|PersonalAcc=\",E26,\"|BankName=\",E27,\"|BIC=\",E28,\"|CorrespAcc=\",E29,\"|PayeeINN=\",E30,\"|LastName=\",E31,\"|ChildFio=\",E32,\"|payerAddress=\",E33,\"|InstNum=\",E34,\"|classNum=\",E35,\"|persAcc=\",E36,\"|paymPeriod=\",E37,\"|OKTMO=\",E38,\"|CBC=\",E39,\"|Purpose=\",E40,\"|Sum=\",E41,\"|Category=\",E42,\"\")","v":"ST00012|Name=УФК ПО Г. САНКТ-ПЕТЕРБУРГУ (ГБОУ 111, Л/С 50190)|PersonalAcc=40601810200003000000|BankName=Северо-Западное ГУ Банка России|BIC=044030001|CorrespAcc=0|PayeeINN=7801021076|LastName=Семенова Ирина Петровна|ChildFio=Семенов Иван Сергеевич|payerAddress=Санкт-Петербург  ул Парковая, д 17 кв 5|InstNum=25|classNum=средняя|persAcc=782343234|paymPeriod=0616|OKTMO=4030900003|CBC=00000000000000000130|Purpose=бассейн|Sum=300000|Category=3000002555"}]
[]
[]
[null,"Структура реестра"]
[null,"Строка 1"]
[null,"Поле 1; Поле 2; Поле 3; …..; Поле t"]
[null,"Строка 2"]
[null,"Поле 1; Поле 2; Поле 3; …..; Поле t"]
[null,"…"]
[null,"Строка n"]
[null,"Поле 1; Поле 2; Поле 3; …..; Поле t"]
[null,"Контрольная строка (используется для исходящего реестра)"]
[null,"=Поле1;Поле2;Поле3;Поле4;Поле5;Поле6"]
[]
[]
[null,"Формат исходящего реестра"]
[null,"Имя архива",null,"ИНН_РС_код_счетчик_дата.zip"]
[null,null,null,"значение","описание","параметры"]
[null,null,null,"ИНН","ИНН поставщика услуг","XXXXXXXXXX"]
[null,null,null,"РС","Расчетный счет ПУ для перечисления д/с","YYYYYYYYYYYYYYYYYYYY"]
[null,null,null,"код","Код услуги. В качестве кода будут использоваться последние 3 символа “Лицевого счета” вида платежа ЕПС, дополненного лидирующими нулями.","001-999"]
[null,null,null,null,"Если “Лицевой счет” в ЕПС будет равен 0, код услуги будет пустой."]
[null,null,null,"счетчик","порядковый номер реестра в течение одного рабочего дня","00-99"]
[null,null,null,"дата","дата формирования реестра","ДДММГГГГ"]
[null,"Имя реестра",null,"SBкод_ПП_дата.txt "]
[null,null,null,"значение","описание","параметры"]
[null,null,null,"SB","константа"]
[null,null,null,"код","Код услуги. Аналогия с кодом услуги в имени архива"]
[null,null,null,"ПП","Номер платежного поручения","ZZZZZZ"]
[null,null,null,"дата","дата формирования реестра","ДДММГГГГ"]
[null,null,null,"txt","признак текстового файла"]
[null,"Кодировка",null,"WIN-1251\nKOI8-R\nUTF8"]
[null,"Разделители",null,"; (ASCII-код 59, точка с запятой)"]
[]
[]
[null,"Формат строк"]
[null,"Номер поля в реестре",null,"Наименование поля","Обязательное наличие информации в поле","Тип поля","Маска"]
[null,"Поле 1 строки",null,"Дата платежа","ДА","числовой","ДД-ММ-ГГГГ"]
[null,"Поле 2 строки",null,"Время платежа","ДА","числовой","00-00-00"]
[null,"Поле 3 строки",null,"Номер отделения","ДА","числовой"]
[null,"Поле 4 строки",null,"Номер кассира/УС/СБОЛ","ДА","числовой"]
[null,"Поле 5 строки",null,"Уникальный код операции в ЕПС","ДА","числовой"]
[null,"Поле 6 строки",null,"Фамилия, Имя, Отчество","ДА","текстовый","Фамилия, Имя, Отчество"]
[null,"Поле 7 строки",null,"ФИ Ребенка","ДА","текстовый","Фамилия, Имя"]
[null,"Поле 8 строки",null,"Адрес","ДА","текстовый","Населенный пункт, улица, номер дома, номер квартиры"]
[null,"Поле 9 строки",null,"Номер учреждения","ДА","числовой"]
[null,"Поле 10 строки",null,"Номер группы","ДА","числовой"]
[null,"Поле 11 строки",null,"Номер лицвого счета","ДА","числовой"]
[null,"Поле 12 строки",null,"Период оплаты","ДА","текстовый","ММГГ"]
[null,"Поле 13 строки",null,"ОКТМО","ДА","числовой","8-11 знаков"]
[null,"Поле 14 строки",null,"КБК","ДА","числовой","20 знаков"]
[null,"Поле 15 строки",null,"Дополнительная информация","НЕТ","текстовый"]
[null,"Поле 16 строки",null,"Сумма операции","ДА","цифровой",999999.99]
[null,"Поле 17 строки",null,"Сумма перевода","ДА","цифровой",999999.99]
[null,"Поле 18 строки",null,"Сумма комиссии банку","ДА","цифровой",999999.99]
[null,"Признак контрольной знаки",null,"Знак равно \"=\"","ДА","текстовый","="]
[null,"Поле 1 контрольной строки",null,"Количество строк в реестре","ДА","числовой"]
[null,"Поле 2 контрольной строки",null,"Общая сумма принятых средств","ДА","числовой",999999.99]
[null,"Поле 3 контрольной строки",null,"Сумма перечисления клиенту","ДА","числовой",999999.99]
[null,"Поле 4 контрольной строки",null,"Комиссия банку","ДА","числовой",999999.99]
[null,"Поле 5 контрольной строки",null,"Номер платежного поручения","ДА","числовой"]
[null,"Поле 6 контрольной строки",null,"Дата платежного поручения","ДА","числовой","ДД-ММ-ГГГГ"]

{"sheet":"3_2","index":9,"n_rows":86,"n_cols":9,"rows_kept":86,"cut":false,"hidden":true,"merged":[[31,1,31,4],[34,1,34,4]]}
[null,"КОД ГРУППЫ РЕКВИЗИТОВ",null,"ШАБЛОН 3_2"]
[]
[null,"Группа реквизитов"]
["№","Наименование реквизита","Имя реквизита для ЕПС","Имя реквизита для ДШК","Тип реквизита","Режим ввода","Текст подсказки в СБОЛ","мин. длина","макс. Длина"]
[1,2,3,4,5,6,7,8,9]
[1,"ФИО","ФИО_ПЛАТЕЛЬЩИКА","LastName, FirstName, MiddleName","Ключевой.Обязательный.","Ручной","Введите ФИО плательщика, например, Иванов Иван Иванович.",2,60]
[2,"Адрес","АДРЕС_ПЛАТЕЛЬЩИКА","PayerAddress","Необязательный","Ручной","Введите адрес плательщика, например, г. Псков, ул. Шверника д.11-111",1,90]
[3,"Фамилия, имя ребенка","ФИ_РЕБЕНКА","ChildFio","Обязательный","Ручной","Введите фамилию и имя ребенка, например, Иванов Иван.",2,60]
[4,"Вид документа","ВИД_ДОК",null,"Обязательный","Ручной","Выберите вид документа, удостоверяющего Вашу личность",0,250]
[5,"Номер документа","НОМЕР ДОКУМЕНТА",null,"Обязательный","Ручной","Введите номер и/или серию документа (без пробелов)",0,12]
[6,"Гражданство","ГРАЖДАНСТВО",null,"Обязательный","Ручной","Укажите страну, выдавшую документ",0,250]
[7,"Идентификатор плательщика услуги","ИПГУ",null,"Только для чтения","Автоматически",null,0,25]
[8,"УИП","УИП",null,"Только для чтения","Автоматически",null,0,32]
[]
[]
[null,null,"ОПИСАНИЕ ТЕГОВ ДЛЯ ДШК","Ваш текст для ДШК","                                                   ПРИМЕР"]
[null,"Идентификатор стандарта","СТАНДАРТ КОДИРОВКИ",null,"ST00012"]
[null,"Name","НАИМЕНОВАНИЕ ОРГАНИЗАЦИИ",null,"УФК ПО Г. САНКТ-ПЕТЕРБУРГУ (ОФК 02, ГОРНЫЙ УНИВЕРСИТЕТ, Л/С 190)"]
[null,"PersonalAcc","РАСЧЕТНЫЙ СЧЕТ",null,"40501810300002000001"]
[null,"BankName","НАИМЕНОВАНИЕ БАНКА ПОЛУЧАТЕЛЯ",null,"Северо-Западное ГУ Банка России"]
[null,"BIC","БИК",null,"044030001"]
[null,"CorrespAcc","КОР.СЧЕТ",null,"0"]
[null,"PayeeINN","ИНН ПОЛУЧАТЕЛЯ",null,"7801021076"]
[null,"LastName","ФИО ПЛАТЕЛЬЩИКА",null,"Семенова Ирина Петровна","Ключевой.Обязательный."]
[null,"PayerAddress","АДРЕС ПЛАТЕЛЬЩИКА",null,"Санкт-Петербург  ул Парковая, д 17 кв 5","Необязательный"]
[null,"ChildFio","ФИ РЕБЕНКА",null,"Семенов Иван Сергеевич"]
[null,"Sum","СУММА ПЛАТЕЖА",null,"20000"]
[null,"Category","НОМЕР УСЛУГИ В СИСТЕМЕ БАНКА",null,3000002555]
[]
[]
[null,"Ваш текст для ДШК",null,"Для создания QR кода можно использовать генератор по адресу http://qrcoder.ru"]
[null,{"$f":"CONCATENATE(\"\",D17,\"|\",B18,\"=\",D18,\"|\",B19,A32,\"=\",D19,\"|\",B20,\"=\",D20,\"|\",B21,\"=\",D21,\"|\",B22,\"=\",D22,\"|\",B23,\"=\",D23,\"|\",B24,\"=\",D24,\"|\",B25,\"=\",D25,\"|\",B26,\"=\",D26,\"|\",B27,\"=\",D27,\"|\",B28,\"=\",D28,\"\")","v":"|Name=|PersonalAcc=|BankName=|BIC=|CorrespAcc=|PayeeINN=|LastName=|PayerAddress=|ChildFio=|Sum=|Category="}]
[]
[null,"ПРИМЕР"]
[null,{"$f":"CONCATENATE(\"\",E17,\"|Name=\",E18,\"|PersonalAcc=\",E19,\"|BankName=\",E20,\"|BIC=\",E21,\"|CorrespAcc=\",E22,\"|PayeeINN=\",E23,\"|LastName=\",E24,\"|PayerAddress=\",E25,\"|ChildFio=\",E26,\"|Sum=\",E27,\"|Category=\",E28,\"\")","v":"ST00012|Name=УФК ПО Г. САНКТ-ПЕТЕРБУРГУ (ОФК 02, ГОРНЫЙ УНИВЕРСИТЕТ, Л/С 190)|PersonalAcc=40501810300002000001|BankName=Северо-Западное ГУ Банка России|BIC=044030001|CorrespAcc=0|PayeeINN=7801021076|LastName=Семенова Ирина Петровна|PayerAddress=Санкт-Петербург  ул Парковая, д 17 кв 5|ChildFio=Семенов Иван Сергеевич|Sum=20000|Category=3000002555"}]
[]
[]
[null,"Структура реестра"]
[null,"Строка 2"]
[null,"Поле 1; Поле 2; Поле 3; …..; Поле t"]
[null,"…"]
[null,"Строка n"]
[null,"Поле 1; Поле 2; Поле 3; …..; Поле t"]
[null,"Контрольная строка (используется для исходящего реестра)"]
[null,"=Поле1;Поле2;Поле3;Поле4;Поле5;Поле6"]
[]
[null,"Формат исходящего реестра"]
[null,"Имя архива",null,"ИНН_РС_код_счетчик_дата.zip"]
[null,null,null,"значение","описание","параметры"]
[null,null,null,"ИНН","ИНН поставщика услуг","XXXXXXXXXX"]
[null,null,null,"РС","Расчетный счет ПУ для перечисления д/с","YYYYYYYYYYYYYYYYYYYY"]
[null,null,null,"код","Код услуги. В качестве кода будут использоваться последние 3 символа “Лицевого счета” вида платежа ЕПС, дополненного лидирующими нулями.","001-999"]
[null,null,null,null,"Если “Лицевой счет” в ЕПС будет равен 0, код услуги будет пустой."]
[null,null,null,"счетчик","порядковый номер реестра в течение одного рабочего дня","00-99"]
[null,null,null,"дата","дата формирования реестра","ДДММГГГГ"]
[null,"Имя реестра",null,"SBкод_ПП_дата.txt "]
[null,null,null,"значение","описание","параметры"]
[null,null,null,"SB","константа"]
[null,null,null,"код","Код услуги. Аналогия с кодом услуги в имени архива"]
[null,null,null,"ПП","Номер платежного поручения","ZZZZZZ"]
[null,null,null,"дата","дата формирования реестра","ДДММГГГГ"]
[null,null,null,"txt","признак текстового файла"]
[null,"Кодировка",null,"WIN-1251\nKOI8-R\nUTF8"]
[null,"Разделители",null,"; (ASCII-код 59, точка с запятой)"]
[]
[]
[null,"Формат строк"]
[null,"Номер поля в реестре",null,"Наименование поля","Обязательное наличие информации в поле","Тип поля","Маска"]
[null,"Поле 1 строки",null,"Дата платежа","ДА","числовой","ДД-ММ-ГГГГ"]
[null,"Поле 2 строки",null,"Время платежа","ДА","числовой","00-00-00"]
[null,"Поле 3 строки",null,"Номер отделения","ДА","числовой"]
[null,"Поле 4 строки",null,"Номер кассира/УС/СБОЛ","ДА","числовой"]
[null,"Поле 5 строки",null,"Уникальный код операции в ЕПС","ДА","числовой"]
[null,"Поле 6 строки",null,"Фамилия, Имя, Отчество","ДА","текстовый","Фамилия, Имя, Отчество"]
[null,"Поле 7 строки",null,"Адрес","ДА","текстовый","Населенный пункт, улица, номер дома, номер квартиры"]
[null,"Поле 8 строки",null,"ФИ Ребенка","ДА","текстовый","Фамилия, Имя Ребенка"]
[null,"Поле 9 строки",null,"Сумма операции","ДА","цифровой",999999.99]
[null,"Поле 10 строки",null,"Сумма перевода","ДА","цифровой",999999.99]
[null,"Поле 11 строки",null,"Сумма комиссии банку","ДА","цифровой",999999.99]
[null,"Признак контрольной строки",null,"Знак равно \"=\"","ДА","текстовый","="]
[null,"Поле 1 контрольной строки",null,"Количество строк в реестре","ДА","числовой"]
[null,"Поле 2 контрольной строки",null,"Общая сумма принятых средств","ДА","числовой",999999.99]
[null,"Поле 3 контрольной строки",null,"Сумма перечисления клиенту","ДА","числовой",999999.99]
[null,"Поле 4 контрольной строки",null,"Комиссия банку","ДА","числовой",999999.99]
[null,"Поле 5 контрольной строки",null,"Номер платежного поручения","ДА","числовой"]
[null,"Поле 6 контрольной строки",null,"Дата платежного поручения","ДА","числовой","ДД-ММ-ГГГГ"]

{"sheet":"3_3","index":10,"n_rows":95,"n_cols":9,"rows_kept":95,"cut":false,"hidden":true,"merged":[[62,1,68,1],[62,3,62,5],[69,3,69,5],[70,3,70,5],[39,1,39,4],[42,1,42,4],[54,1,61,1],[54,3,54,5],[58,3,59,3],[58,5,59,5]]}
[null,"КОД ГРУППЫ РЕКВИЗИТОВ",null,"ШАБЛОН 3_3"]
[]
[null,"Группа реквизитов"]
["№","Наименование реквизита","Имя реквизита для ЕПС","Имя реквизита для ДШК","Тип реквизита","Режим ввода","Текст подсказки в СБОЛ","мин. длина","макс. Длина"]
[1,2,3,4,5,6,7,8,9]
[1,"ФИО студента","ФИО_СТУДЕНТА","Fiostud","Ключевой.Обязательный.","Ручной","Введите ФИО Студента, например, Иванов Иван Иванович.",2,60]
[2,"ФИО плательщика","ФИО_ПЛАТЕЛЬЩИКА","LastName, FirstName, MiddleName","Необязательный",null,"Введите ФИО по договору, например, Иванов Иван Иванович."]
[3,"Номер группы","N_ГРУППЫ","classNum","Обязательный","Ручной","Введите номер группы.",1,20]
[4,"Номер договора","НОМЕР ДОГОВОРА","contract","Обязательный","Ручной","Введите номер договора, например 12345",1,30]
[5,"Период оплаты","ПЕРИОД","PaymPeriod","Необязательный","Ручной","Введите период оплаты в формате ММГГ, например, 0415",3,4]
[6,"ОКТМО","ОКТМО","OKTMO","Обязательный","Из базы начислений","Введите ОКТМО, 8 цифр.",8,11]
[7,"КБК","КБК","CBC","Обязательный","Из базы начислений","Введите КБК, 20 цифр.",20,20]
[8,"Назначение платежа","НАЗНАЧЕНИЕ","Purpose","Обязательный","Из базы начислений","Введите назначение платежа или иную дополнительную информацию о платеже, не более 150 символов.",6,150]
[9,"Вид документа","ВИД_ДОК",null,"Обязательный","Ручной","Выберите вид документа, удостоверяющего Вашу личность",0,250]
[10,"Номер документа","НОМЕР ДОКУМЕНТА",null,"Обязательный","Ручной","Введите номер и/или серию документа (без пробелов)",0,12]
[11,"Гражданство","ГРАЖДАНСТВО",null,"Обязательный","Ручной","Укажите страну, выдавшую документ",0,250]
[12,"Идентификатор плательщика услуги","ИПГУ",null,"Только для чтения","Автоматически",null,0,25]
[13,"УИП","УИП",null,"Только для чтения","Автоматически",null,0,32]
[]
[]
[null,null,"ОПИСАНИЕ ТЕГОВ ДЛЯ ДШК","Ваш текст для ДШК","ПРИМЕР"]
[null,"Идентификатор стандарта","СТАНДАРТ КОДИРОВКИ",null,"ST00012"]
[null,"Name","НАИМЕНОВАНИЕ ОРГАНИЗАЦИИ",null,"УФК ПО Г. САНКТ-ПЕТЕРБУРГУ (ОФК 02, ГОРНЫЙ УНИВЕРСИТЕТ, Л/С 190)"]
[null,"PersonalAcc","РАСЧЕТНЫЙ СЧЕТ",null,"40501810300002000001"]
[null,"BankName","НАИМЕНОВАНИЕ БАНКА ПОЛУЧАТЕЛЯ",null,"Северо-Западное ГУ Банка России"]
[null,"BIC","БИК",null,"044030001"]
[null,"CorrespAcc","КОР.СЧЕТ",null,"0"]
[null,"PayeeINN","ИНН ПОЛУЧАТЕЛЯ",null,"7801021076"]
[null,"Fiostud","ФИО СТУДЕНТА",null,"Семенов Иван Сергеевич","Ключевой.Обязательный."]
[null,"LastName","ФИО ПЛАТЕЛЬЩИКА",null,"Семенова Ирина Петровна"]
[null,"classNum","НОМЕР ГРУППЫ",null,"1256"]
[null,"Contract","НОМЕР ДОГОВОРА",null,"1000-к"]
[null,"paymPeriod","ПЕРИОД ОПЛАТЫ В ФОРМАТЕ ММГГ",null,"0416"]
[null,"Sum","СУММА ПЛАТЕЖА",null,"1250000"]
[null,"Category","НОМЕР УСЛУГИ В СИСТЕМЕ БАНКА",null,3000002555]
[]
[]
[null,"Ваш текст для ДШК",null,"Для создания QR кода можно использовать генератор по адресу http://qrcoder.ru"]
[]
[null,{"$f":"CONCATENATE(\"\",D22,\"|\",B23,\"=\",D23,\"|\",B24,A40,\"=\",D24,\"|\",B25,\"=\",D25,\"|\",B26,\"=\",D26,\"|\",B27,\"=\",D27,\"|\",B28,\"=\",D28,\"|\",B29,\"=\",D29,\"|\",B30,\"=\",D30,\"|\",B31,\"=\",D31,\"|\",B32,\"=\",D32,\"|\",B33,\"=\",D33,\"|\",B34,\"=\",D34,\"|\",B35,\"=\",D35,\"\")","v":"|Name=|PersonalAcc=|BankName=|BIC=|CorrespAcc=|PayeeINN=|Fiostud=|LastName=|classNum=|Contract=|paymPeriod=|Sum=|Category="}]
[]
[null,"ПРИМЕР"]
[null,{"$f":"CONCATENATE(\"\",E22,\"|Name=\",E23,\"|PersonalAcc=\",E24,\"|BankName=\",E25,\"|BIC=\",E26,\"|CorrespAcc=\",E27,\"|PayeeINN=\",E28,\"|Fiostud=\",E29,\"|LastName=\",E30,\"|ClassNum=\",E31,\"|Contract=\",E32,\"|PaymPeriod=\",E33,\"|Sum=\",E34,\"|Category=\",E35,\"\")","v":"ST00012|Name=УФК ПО Г. САНКТ-ПЕТЕРБУРГУ (ОФК 02, ГОРНЫЙ УНИВЕРСИТЕТ, Л/С 190)|PersonalAcc=40501810300002000001|BankName=Северо-Западное ГУ Банка России|BIC=044030001|CorrespAcc=0|PayeeINN=7801021076|Fiostud=Семенов Иван Сергеевич|LastName=Семенова Ирина Петровна|ClassNum=1256|Contract=1000-к|PaymPeriod=0416|Sum=1250000|Category=3000002555"}]
[]
[]
[null,"Структура реестра"]
[null,"Поле 1; Поле 2; Поле 3; …..; Поле t"]
[null,"…"]
[null,"Строка n"]
[null,"Поле 1; Поле 2; Поле 3; …..; Поле t"]
[null,"Контрольная строка (используется для исходящего реестра)"]
[null,"=Поле1;Поле2;Поле3;Поле4;Поле5;Поле6"]
[]
[null,"Формат исходящего реестра"]
[null,"Имя архива",null,"ИНН_РС_код_счетчик_дата.zip"]
[null,null,null,"значение","описание","параметры"]
[null,null,null,"ИНН","ИНН поставщика услуг","XXXXXXXXXX"]
[null,null,null,"РС","Расчетный счет ПУ для перечисления д/с","YYYYYYYYYYYYYYYYYYYY"]
[null,null,null,"код","Код услуги. В качестве кода будут использоваться последние 3 символа “Лицевого счета” вида платежа ЕПС, дополненного лидирующими нулями.","001-999"]
[null,null,null,null,"Если “Лицевой счет” в ЕПС будет равен 0, код услуги будет пустой."]
[null,null,null,"счетчик","порядковый номер реестра в течение одного рабочего дня","00-99"]
[null,null,null,"дата","дата формирования реестра","ДДММГГГГ"]
[null,"Имя реестра",null,"SBкод_ПП_дата.txt "]
[null,null,null,"значение","описание","параметры"]
[null,null,null,"SB","константа"]
[null,null,null,"код","Код услуги. Аналогия с кодом услуги в имени архива"]
[null,null,null,"ПП","Номер платежного поручения","ZZZZZZ"]
[null,null,null,"дата","дата формирования реестра","ДДММГГГГ"]
[null,null,null,"txt","признак текстового файла"]
[null,"Кодировка",null,"WIN-1251\nKOI8-R\nUTF8"]
[null,"Разделители",null,"; (ASCII-код 59, точка с запятой)"]
[]
[]
[null,"Формат строк"]
[null,"Номер поля в реестре",null,"Наименование поля","Обязательное наличие информации в поле","Тип поля","Маска"]
[null,"Поле 1 строки",null,"Дата платежа","ДА","числовой","ДД-ММ-ГГГГ"]
[null,"Поле 2 строки",null,"Время платежа","ДА","числовой","00-00-00"]
[null,"Поле 3 строки",null,"Номер отделения","ДА","числовой"]
[null,"Поле 4 строки",null,"Номер кассира/УС/СБОЛ","ДА","числовой"]
[null,"Поле 5 строки",null,"Уникальный код операции в ЕПС","ДА","числовой"]
[null,"Поле 6 строки",null,"ФИО студента","ДА","текстовый","Фамилия, Имя, Отчество"]
[null,"Поле 7 строки",null,"ФИО плательщика","ДА","текстовый","Фамилия, Имя, Отчество"]
[null,"Поле 8 строки",null,"Номер группы","ДА","текстовый"]
[null,"Поле 9 строки",null,"Номер договора","ДА","текстовый"]
[null,"Поле 10 строки",null,"Период оплаты","ДА","текстовый","ММ.ГГ"]
[null,"Поле 11 строки",null,"Сумма операции","ДА","цифровой",999999.99]
[null,"Поле 12 строки",null,"Сумма перевода","ДА","цифровой",999999.99]
[null,"Поле 13 строки",null,"Сумма комиссии банку","ДА","цифровой",999999.99]
[null,"Признак контрольной строки",null,"Знак равно \"=\"","ДА","текстовый","="]
[null,"Поле 1 контрольной строки",null,"Количество строк в реестре","ДА","числовой"]
[null,"Поле 2 контрольной строки",null,"Общая сумма принятых средств","ДА","числовой",999999.99]
[null,"Поле 3 контрольной строки",null,"Сумма перечисления клиенту","ДА","числовой",999999.99]
[null,"Поле 4 контрольной строки",null,"Комиссия банку","ДА","числовой",999999.99]
[null,"Поле 5 контрольной строки",null,"Номер платежного поручения","ДА","числовой"]
[null,"Поле 6 контрольной строки",null,"Дата платежного поручения","ДА","числовой","ДД-ММ-ГГГГ"]

{"sheet":"3_4","index":11,"n_rows":101,"n_cols":9,"rows_kept":101,"cut":false,"hidden":true,"merged":[[66,1,72,1],[66,3,66,5],[73,3,73,5],[74,3,74,5],[39,1,39,4],[42,1,42,4],[58,1,65,1],[58,3,58,5],[62,3,63,3],[62,5,63,5]]}
[null,"КОД ГРУППЫ РЕКВИЗИТОВ",null,"ШАБЛОН 3_4"]
[]
[null,"Группа реквизитов"]
["№","Наименование реквизита","Имя реквизита для ЕПС","Имя реквизита для ДШК","Тип реквизита","Режим ввода","Текст подсказки в СБОЛ","мин. длина","макс. Длина"]
[1,2,3,4,5,6,7,8,9]
[1,"Фамилия, имя ребенка","ФИ_РЕБЕНКА","ChildFio","Ключевой.Обязательный.","Ручной","Введите фамилию и имя ребенка, например, Иванов Иван.",2,60]
[2,"Лицевой счет","N_Л/СЧЕТА","persAcc","Необязательный","Ручной","Введите лицевой счет, не более 15 символов, например, 23018258.",1,15]
[3,"Номер группы","N_ГРУППЫ","ClassNum","Обязательный","Ручной","Введите номер группы.",1,20]
[4,"Период оплаты","ПЕРИОД","PaymPeriod","Необязательный","Ручной","Введите период оплаты в формате ММГГ, например, 0415",3,4]
[5,"ОКТМО","ОКТМО","OKTMO","Обязательный","Ручной","Введите ОКТМО, 8 цифр.",8,11]
[6,"КБК","КБК","CBC","Обязательный","Ручной","Введите КБК, 20 цифр.",20,20]
[7,"Назначение платежа","НАЗНАЧЕНИЕ","Purpose","Обязательный","Ручной","Введите назначение платежа (за какие работы/товары осуществляется платеж) или иную дополнительную информацию о платеже, не более 150 символов.",6,50]
[8,"Вид документа","ВИД_ДОК",null,"Обязательный","Ручной","Выберите вид документа, удостоверяющего Вашу личность",0,250]
[9,"Номер документа","НОМЕР ДОКУМЕНТА",null,"Обязательный","Ручной","Введите номер и/или серию документа (без пробелов)",0,12]
[10,"Гражданство","ГРАЖДАНСТВО",null,"Обязательный","Ручной","Укажите страну, выдавшую документ",0,250]
[11,"Идентификатор плательщика услуги","ИПГУ",null,"Только для чтения","Автоматически",null,0,25]
[12,"УИП","УИП",null,"Только для чтения","Автоматически",null,0,32]
[]
[]
[null,null,"ОПИСАНИЕ ТЕГОВ ДЛЯ ДШК","Ваш текст для ДШК","ПРИМЕР"]
[null,"Идентификатор стандарта","СТАНДАРТ КОДИРОВКИ",null,"ST00012"]
[null,"Name","НАИМЕНОВАНИЕ ОРГАНИЗАЦИИ",null,"УФК ПО Г. САНКТ-ПЕТЕРБУРГУ (ОФК 02, ГОРНЫЙ УНИВЕРСИТЕТ, Л/С 190)"]
[null,"PersonalAcc","РАСЧЕТНЫЙ СЧЕТ",null,"40501810300002000001"]
[null,"BankName","НАИМЕНОВАНИЕ БАНКА ПОЛУЧАТЕЛЯ",null,"Северо-Западное ГУ Банка России"]
[null,"BIC","БИК",null,"044030001"]
[null,"CorrespAcc","КОР.СЧЕТ",null,"0"]
[null,"PayeeINN","ИНН ПОЛУЧАТЕЛЯ",null,"7801021076"]
[null,"ChildFio","ФИ РЕБЕНКА",null,"Семенов Иван Сергеевич","Ключевой.Обязательный."]
[null,"persAcc","НОМЕР ЛИЦЕВОГО СЧЕТА",null,"1000-к"]
[null,"ClassNum","НОМЕР ГРУППЫ\\ КЛАСС",null,"1256"]
[null,"PaymPeriod","ПЕРИОД ОПЛАТЫ В ФОРМАТЕ ММГГ",null,"0516"]
[null,"OKTMO","ОКТМО",null,"40300003"]
[null,"CBC","КБК",null,"00000000000000000130"]
[null,"Purpose","НАЗНАЧЕНИЕ",null,"Обучение 3 семестр"]
[null,"Sum","СУММА ПЛАТЕЖА",null,"1250000"]
[null,"Category","НОМЕР УСЛУГИ В СИСТЕМЕ БАНКА",null,3000002555]
[]
[]
[null,"Ваш текст для ДШК",null,"Для создания QR кода можно использовать генератор по адресу http://qrcoder.ru"]
[null,{"$f":"CONCATENATE(\"\",D21,\"|\",B22,\"=\",D22,\"|\",B23,A40,\"=\",D23,\"|\",B24,\"=\",D24,\"|\",B25,\"=\",D25,\"|\",B26,\"=\",D26,\"|\",B27,\"=\",D27,\"|\",B28,\"=\",D28,\"|\",B29,\"=\",D29,\"|\",B30,\"=\",D30,\"|\",B31,\"=\",D31,\"|\",B32,\"=\",D32,\"|\",B33,\"=\",D33,\"|\",B34,\"=\",D34,\"|\",B35,\"=\",D35,\"|\",B36,\"=\",D36,\"\")","v":"|Name=|PersonalAcc=|BankName=|BIC=|CorrespAcc=|PayeeINN=|ChildFio=|persAcc=|ClassNum=|PaymPeriod=|OKTMO=|CBC=|Purpose=|Sum=|Category="}]
[]
[null,"ПРИМЕР"]
[null,{"$f":"CONCATENATE(\"\",E21,\"|Name=\",E22,\"|PersonalAcc=\",E23,\"|BankName=\",E24,\"|BIC=\",E25,\"|CorrespAcc=\",E26,\"|PayeeINN=\",E27,\"|ChildFio=\",E28,\"|persAcc=\",E29,\"|ClassNum=\",E30,\"|paymPeriod=\",E31,\"|OKTMO=\",E32,\"|CBC=\",E33,\"|Purpose=\",E35,\"|Sum=\",E36,\"|Category=\",E36,\"\")","v":"ST00012|Name=УФК ПО Г. САНКТ-ПЕТЕРБУРГУ (ОФК 02, ГОРНЫЙ УНИВЕРСИТЕТ, Л/С 190)|PersonalAcc=40501810300002000001|BankName=Северо-Западное ГУ Банка России|BIC=044030001|CorrespAcc=0|PayeeINN=7801021076|ChildFio=Семенов Иван Сергеевич|persAcc=1000-к|ClassNum=1256|paymPeriod=0516|OKTMO=40300003|CBC=00000000000000000130|Purpose=1250000|Sum=3000002555|Category=3000002555"}]
[]
[]
[null,"Структура реестра"]
[null,"Строка 1"]
[null,"Поле 1; Поле 2; Поле 3; …..; Поле t"]
[null,"Строка 2"]
[null,"Поле 1; Поле 2; Поле 3; …..; Поле t"]
[null,"…"]
[null,"Строка n"]
[null,"Поле 1; Поле 2; Поле 3; …..; Поле t"]
[null,"Контрольная строка (используется для исходящего реестра)"]
[null,"=Поле1;Поле2;Поле3;Поле4;Поле5;Поле6"]
[]
[]
[null,"Формат исходящего реестра"]
[null,"Имя архива",null,"ИНН_РС_код_счетчик_дата.zip"]
[null,null,null,"значение","описание","параметры"]
[null,null,null,"ИНН","ИНН поставщика услуг","XXXXXXXXXX"]
[null,null,null,"РС","Расчетный счет ПУ для перечисления д/с","YYYYYYYYYYYYYYYYYYYY"]
[null,null,null,"код","Код услуги. В качестве кода будут использоваться последние 3 символа “Лицевого счета” вида платежа ЕПС, дополненного лидирующими нулями.","001-999"]
[null,null,null,null,"Если “Лицевой счет” в ЕПС будет равен 0, код услуги будет пустой."]
[null,null,null,"счетчик","порядковый номер реестра в течение одного рабочего дня","00-99"]
[null,null,null,"дата","дата формирования реестра","ДДММГГГГ"]
[null,"Имя реестра",null,"SBкод_ПП_дата.txt "]
[null,null,null,"значение","описание","параметры"]
[null,null,null,"SB","константа"]
[null,null,null,"код","Код услуги. Аналогия с кодом услуги в имени архива"]
[null,null,null,"ПП","Номер платежного поручения","ZZZZZZ"]
[null,null,null,"дата","дата формирования реестра","ДДММГГГГ"]
[null,null,null,"txt","признак текстового файла"]
[null,"Кодировка",null,"WIN-1251\nKOI8-R\nUTF8"]
[null,"Разделители",null,"; (ASCII-код 59, точка с запятой)"]
[]
[]
[null,"Формат строк"]
[null,"Номер поля в реестре",null,"Наименование поля","Обязательное наличие информации в поле","Тип поля","Маска"]
[null,"Поле 1 строки",null,"Дата платежа","ДА","числовой","ДД-ММ-ГГГГ"]
[null,"Поле 2 строки",null,"Время платежа","ДА","числовой","00-00-00"]
[null,"Поле 3 строки",null,"Номер отделения","ДА","числовой"]
[null,"Поле 4 строки",null,"Номер кассира/УС/СБОЛ","ДА","числовой"]
[null,"Поле 5 строки",null,"Уникальный код операции в ЕПС","ДА","числовой"]
[null,"Поле 6 строки",null,"Фамилия, имя ребенка","ДА","текстовый","Фамилия, Имя, Отчество"]
[null,"Поле 7 строки",null,"Лицевой счет","ДА","текстовый"]
[null,"Поле 8 строки",null,"Номер группы","ДА","текстовый"]
[null,"Поле 9 строки",null,"ОКТМО","ДА","цифровой","8-11 знаков"]
[null,"Поле 10 строки",null,"КБК","ДА","цифровой","20 знаков"]
[null,"Поле 11 строки",null,"Назначение платежа","НЕТ","текстовый"]
[null,"Поле 12 строки",null,"Период оплаты","ДА","текстовый","ММ.ГГ"]
[null,"Поле 13 строки",null,"Сумма операции","ДА","цифровой",999999.99]
[null,"Поле 14 строки",null,"Сумма перевода","ДА","цифровой",999999.99]
[null,"Поле 15 строки",null,"Сумма комиссии банку","ДА","цифровой",999999.99]
[null,"Признак контрольной строки",null,"Знак равно \"=\"","ДА","текстовый","="]
[null,"Поле 1 контрольной строки",null,"Количество строк в реестре","ДА","числовой"]
[null,"Поле 2 контрольной строки",null,"Общая сумма принятых средств","ДА","числовой",999999.99]
[null,"Поле 3 контрольной строки",null,"Сумма перечисления клиенту","ДА","числовой",999999.99]
[null,"Поле 4 контрольной строки",null,"Комиссия банку","ДА","числовой",999999.99]
[null,"Поле 5 контрольной строки",null,"Номер платежного поручения","ДА","числовой"]
[null,"Поле 6 контрольной строки",null,"Дата платежного поручения","ДА","числовой","ДД-ММ-ГГГГ"]

{"sheet":"3_5","index":12,"n_rows":95,"n_cols":9,"rows_kept":95,"cut":false,"hidden":true,"merged":[[61,1,67,1],[61,3,61,5],[68,3,68,5],[69,3,69,5],[37,1,37,4],[40,1,40,4],[53,1,60,1],[53,3,53,5],[57,3,58,3],[57,5,58,5]]}
[null,"КОД ГРУППЫ РЕКВИЗИТОВ",null,"ШАБЛОН 3_5"]
[]
[null,"Группа реквизитов"]
["№","Наименование реквизита","Имя реквизита для ЕПС","Имя реквизита для ДШК","Тип реквизита","Режим ввода","Текст подсказки в СБОЛ","мин. длина","макс. Длина"]
[1,2,3,4,5,6,7,8,9]
[1,"ФИО","ФИО_ПЛАТЕЛЬЩИКА","LastName, FirstName, MiddleName","Ключевой.Обязательный.","ручной","Введите Фамилию, Имя, Отчество например, Иванов Иван Иванович.",2,60]
[2,"Адрес","АДРЕС_ПЛАТЕЛЬЩИКА","PayerAddress","Необязательный","Ручной","Введите адрес плательщика, например, г. Псков, ул. Шверника д.11-111",1,150]
[3,"Фамилия, имя ребенка","ФИ_РЕБЕНКА","ChildFio","Обязательный","Ручной","Введите фамилию и имя ребенка, например, Иванов Иван.",2,60]
[4,"Период оплаты","ПЕРИОД","PaymPeriod","Необязательный","Ручной","Введите период оплаты в формате ММГГ, например, 0415",3,4]
[5,"ОКТМО","ОКТМО","OKTMO","Обязательный","Ручной","Введите ОКТМО, 8 цифр.",8,11]
[6,"КБК","КБК","CBC","Обязательный","Ручной","Введите КБК, 20 цифр.",20,20]
[7,"Вид документа","ВИД_ДОК",null,"Обязательный","Ручной","Выберите вид документа, удостоверяющего Вашу личность",0,250]
[8,"Номер документа","НОМЕР ДОКУМЕНТА",null,"Обязательный","Ручной","Введите номер и/или серию документа (без пробелов)",0,12]
[9,"Гражданство","ГРАЖДАНСТВО",null,"Обязательный","Ручной","Укажите страну, выдавшую документ",0,250]
[10,"Идентификатор плательщика услуги","ИПГУ",null,"Только для чтения","Автоматически",null,0,25]
[11,"УИП","УИП",null,"Только для чтения","Автоматически",null,0,32]
[]
[]
[null,null,"ОПИСАНИЕ ТЕГОВ ДЛЯ ДШК","Ваш текст для ДШК","ПРИМЕР"]
[null,"Идентификатор стандарта","СТАНДАРТ КОДИРОВКИ",null,"ST00012"]
[null,"Name","НАИМЕНОВАНИЕ ОРГАНИЗАЦИИ",null,"УФК ПО Г. САНКТ-ПЕТЕРБУРГУ (ОФК 02, ГОРНЫЙ УНИВЕРСИТЕТ, Л/С 190)"]
[null,"PersonalAcc","РАСЧЕТНЫЙ СЧЕТ",null,"40501810300002000001"]
[null,"BankName","НАИМЕНОВАНИЕ БАНКА ПОЛУЧАТЕЛЯ",null,"Северо-Западное ГУ Банка России"]
[null,"BIC","БИК",null,"044030001"]
[null,"CorrespAcc","КОР.СЧЕТ",null,"0"]
[null,"PayeeINN","ИНН ПОЛУЧАТЕЛЯ",null,"7801021076"]
[null,"LastName","ФИО ПЛАТЕЛЬЩИКА",null,"Семенова Ирина Петровна","Ключевой.Обязательный."]
[null,"PayerAddress","АДРЕС ПЛАТЕЛЬЩИКА",null,"Санкт-Петербург  ул Парковая, д 17 кв 5"]
[null,"ChildFio","ФИ РЕБЕНКА",null,"Семенов Иван Сергеевич"]
[null,"PaymPeriod","ПЕРИОД ОПЛАТЫ В ФОРМАТЕ ММГГ",null,"0516"]
[null,"OKTMO","ОКТМО",null,"40300003"]
[null,"CBC","КБК",null,"00000000000000000130"]
[null,"Sum","СУММА ПЛАТЕЖА",null,"1250000"]
[null,"Category","НОМЕР УСЛУГИ В СИСТЕМЕ БАНКА",null,3000002555]
[]
[]
[null,"Ваш текст для ДШК",null,"Для создания QR кода можно использовать генератор по адресу http://qrcoder.ru"]
[null,{"$f":"CONCATENATE(\"\",D20,\"|\",B21,\"=\",D21,\"|\",B22,A38,\"=\",D22,\"|\",B23,\"=\",D23,\"|\",B24,\"=\",D24,\"|\",B25,\"=\",D25,\"|\",B26,\"=\",D26,\"|\",B27,\"=\",D27,\"|\",B28,\"=\",D28,\"|\",B29,\"=\",D29,\"|\",B30,\"=\",D30,\"|\",B31,\"=\",D31,\"|\",B32,\"=\",D32,\"|\",B33,\"=\",D33,\"|\",B34,\"=\",D34,\"\")","v":"|Name=|PersonalAcc=|BankName=|BIC=|CorrespAcc=|PayeeINN=|LastName=|PayerAddress=|ChildFio=|PaymPeriod=|OKTMO=|CBC=|Sum=|Category="}]
[]
[null,"ПРИМЕР"]
[null,{"$f":"CONCATENATE(\"\",E20,\"|Name=\",E21,\"|PersonalAcc=\",E22,\"|BankName=\",E23,\"|BIC=\",E24,\"|CorrespAcc=\",E25,\"|PayeeINN=\",E26,\"|LastName=\",E27,\"|payerAddress=\",E28,\"|ChildFio=\",E29,\"|paymPeriod=\",E30,\"|OKTMO=\",E31,\"|CBC=\",E32,\"|Sum=\",E33,\"|Category=\",E34,\"\")","v":"ST00012|Name=УФК ПО Г. САНКТ-ПЕТЕРБУРГУ (ОФК 02, ГОРНЫЙ УНИВЕРСИТЕТ, Л/С 190)|PersonalAcc=40501810300002000001|BankName=Северо-Западное ГУ Банка России|BIC=044030001|CorrespAcc=0|PayeeINN=7801021076|LastName=Семенова Ирина Петровна|payerAddress=Санкт-Петербург  ул Парковая, д 17 кв 5|ChildFio=Семенов Иван Сергеевич|paymPeriod=0516|OKTMO=40300003|CBC=00000000000000000130|Sum=1250000|Category=3000002555"}]
[]
[]
[null,"Структура реестра"]
[null,"Поле 1; Поле 2; Поле 3; …..; Поле t"]
[null,"…"]
[null,"Строка n"]
[null,"Поле 1; Поле 2; Поле 3; …..; Поле t"]
[null,"Контрольная строка (используется для исходящего реестра)"]
[null,"=Поле1;Поле2;Поле3;Поле4;Поле5;Поле6"]
[]
[]
[null,"Формат исходящего реестра"]
[null,"Имя архива",null,"ИНН_РС_код_счетчик_дата.zip"]
[null,null,null,"значение","описание","параметры"]
[null,null,null,"ИНН","ИНН поставщика услуг","XXXXXXXXXX"]
[null,null,null,"РС","Расчетный счет ПУ для перечисления д/с","YYYYYYYYYYYYYYYYYYYY"]
[null,null,null,"код","Код услуги. В качестве кода будут использоваться последние 3 символа “Лицевого счета” вида платежа ЕПС, дополненного лидирующими нулями.","001-999"]
[null,null,null,null,"Если “Лицевой счет” в ЕПС будет равен 0, код услуги будет пустой."]
[null,null,null,"счетчик","порядковый номер реестра в течение одного рабочего дня","00-99"]
[null,null,null,"дата","дата формирования реестра","ДДММГГГГ"]
[null,"Имя реестра",null,"SBкод_ПП_дата.txt "]
[null,null,null,"значение","описание","параметры"]
[null,null,null,"SB","константа"]
[null,null,null,"код","Код услуги. Аналогия с кодом услуги в имени архива"]
[null,null,null,"ПП","Номер платежного поручения","ZZZZZZ"]
[null,null,null,"дата","дата формирования реестра","ДДММГГГГ"]
[null,null,null,"txt","признак текстового файла"]
[null,"Кодировка",null,"WIN-1251\nKOI8-R\nUTF8"]
[null,"Разделители",null,"; (ASCII-код 59, точка с запятой)"]
[]
[]
[null,"Формат строк"]
[null,"Номер поля в реестре",null,"Наименование поля","Обязательное наличие информации в поле","Тип поля","Маска"]
[null,"Поле 1 строки",null,"Дата платежа","ДА","числовой","ДД-ММ-ГГГГ"]
[null,"Поле 2 строки",null,"Время платежа","ДА","числовой","00-00-00"]
[null,"Поле 3 строки",null,"Номер отделения","ДА","числовой"]
[null,"Поле 4 строки",null,"Номер кассира/УС/СБОЛ","ДА","числовой"]
[null,"Поле 5 строки",null,"Уникальный код операции в ЕПС","ДА","числовой"]
[null,"Поле 6 строки",null,"ФИО","ДА","текстовый","Фамилия, Имя, Отчество"]
[null,"Поле 7 строки",null,"Адрес","ДА","текстовый","Населенный пункт, улица, номер дома, номер квартиры"]
[null,"Поле 8 строки",null,"Фамилия, имя ребенка","ДА","текстовый","Фамилия, Имя Ребенка"]
[null,"Поле 9 строки",null,"Период оплаты","ДА","текстовый","ММ.ГГ"]
[null,"Поле 10 строки",null,"ОКТМО","ДА","цифровой","8-11 знаков"]
[null,"Поле 11 строки",null,"КБК","ДА","цифровой","20 знаков"]
[null,"Поле 12 строки",null,"Сумма операции","ДА","цифровой",999999.99]
[null,"Поле 13 строки",null,"Сумма перевода","ДА","цифровой",999999.99]
[null,"Поле 14 строки",null,"Сумма комиссии банку","ДА","цифровой",999999.99]
[null,"Признак контрольной строки",null,"Знак равно \"=\"","ДА","текстовый","="]
[null,"Поле 1 контрольной строки",null,"Количество строк в реестре","ДА","числовой"]
[null,"Поле 2 контрольной строки",null,"Общая сумма принятых средств","ДА","числовой",999999.99]
[null,"Поле 3 контрольной строки",null,"Сумма перечисления клиенту","ДА","числовой",999999.99]
[null,"Поле 4 контрольной строки",null,"Комиссия банку","ДА","числовой",999999.99]
[null,"Поле 5 контрольной строки",null,"Номер платежного поручения","ДА","числовой"]
[null,"Поле 6 контрольной строки",null,"Дата платежного поручения","ДА","числовой","ДД-ММ-ГГГГ"]

{"sheet":"3_6","index":13,"n_rows":89,"n_cols":9,"rows_kept":89,"cut":false,"hidden":true,"merged":[[57,1,63,1],[57,3,57,5],[64,3,64,5],[65,3,65,5],[33,1,33,4],[36,1,36,4],[49,1,56,1],[49,3,49,5],[53,3,54,3],[53,5,54,5]]}
[null,"КОД ГРУППЫ РЕКВИЗИТОВ",null,"ШАБЛОН 3_6"]
[]
[null,"Группа реквизитов"]
["№","Наименование реквизита","Имя реквизита для ЕПС","Имя реквизита для ДШК","Тип реквизита","Режим ввода","Текст подсказки в СБОЛ","мин. длина","макс. Длина"]
[1,2,3,4,5,6,7,8,9]
[1,"КБК","КБК","CBC","Обязательный","Ручной","Введите КБК, 20 цифр.",20,20]
[2,"ОКТМО","ОКТМО","OKTMO","Обязательный","Ручной","Введите ОКТМО, 8 цифр.",8,11]
[3,"Фамилия, имя ребенка","ФИ_РЕБЕНКА","ChildFio","Ключевой.Обязательный.","Ручной","Введите фамилию и имя ребенка, например, Иванов Иван.",2,60]
[4,"Период оплаты","ПЕРИОД","PaymPeriod","Необязательный","Ручной","Введите период оплаты в формате ММГГ, например, 0415",3,4]
[5,"Вид документа","ВИД_ДОК",null,"Обязательный","Ручной","Выберите вид документа, удостоверяющего Вашу личность",0,250]
[6,"Номер документа","НОМЕР ДОКУМЕНТА",null,"Обязательный","Ручной","Введите номер и/или серию документа (без пробелов)",0,12]
[7,"Гражданство","ГРАЖДАНСТВО",null,"Обязательный","Ручной","Укажите страну, выдавшую документ",0,250]
[8,"Идентификатор плательщика услуги","ИПГУ",null,"Только для чтения","Автоматически",null,0,25]
[9,"УИП","УИП",null,"Только для чтения","Автоматически",null,0,32]
[]
[]
[null,null,"ОПИСАНИЕ ТЕГОВ ДЛЯ ДШК","Ваш текст для ДШК","ПРИМЕР"]
[null,"Идентификатор стандарта","СТАНДАРТ КОДИРОВКИ",null,"ST00012"]
[null,"Name","НАИМЕНОВАНИЕ ОРГАНИЗАЦИИ",null,"УФК ПО Г. САНКТ-ПЕТЕРБУРГУ (ОФК 02, ГОРНЫЙ УНИВЕРСИТЕТ, Л/С 190)"]
[null,"PersonalAcc","РАСЧЕТНЫЙ СЧЕТ",null,"40501810300002000001"]
[null,"BankName","НАИМЕНОВАНИЕ БАНКА ПОЛУЧАТЕЛЯ",null,"Северо-Западное ГУ Банка России"]
[null,"BIC","БИК",null,"044030001"]
[null,"CorrespAcc","КОР.СЧЕТ",null,"0"]
[null,"PayeeINN","ИНН ПОЛУЧАТЕЛЯ",null,"7801021076"]
[null,"ChildFio","ФИ РЕБЕНКА",null,"Семенов Иван Сергеевич","Ключевой.Обязательный."]
[null,"PaymPeriod","ПЕРИОД ОПЛАТЫ В ФОРМАТЕ ММГГ",null,"0516"]
[null,"OKTMO","ОКТМО",null,"40300003"]
[null,"CBC","КБК",null,"00000000000000000130"]
[null,"Sum","СУММА ПЛАТЕЖА",null,"1250000"]
[null,"Category","НОМЕР УСЛУГИ В СИСТЕМЕ БАНКА",null,3000002555]
[]
[]
[null,"Ваш текст для ДШК",null,"Для создания QR кода можно использовать генератор по адресу http://qrcoder.ru"]
[null,{"$f":"CONCATENATE(\"\",D18,\"|\",B19,\"=\",D19,\"|\",B20,A34,\"=\",D20,\"|\",B21,\"=\",D21,\"|\",B22,\"=\",D22,\"|\",B23,\"=\",D23,\"|\",B24,\"=\",D24,\"|\",B25,\"=\",D25,\"|\",B26,\"=\",D26,\"|\",B27,\"=\",D27,\"|\",B28,\"=\",D28,\"|\",B29,\"=\",D29,\"|\",B30,\"=\",D30,\"\")","v":"|Name=|PersonalAcc=|BankName=|BIC=|CorrespAcc=|PayeeINN=|ChildFio=|PaymPeriod=|OKTMO=|CBC=|Sum=|Category="}]
[]
[null,"ПРИМЕР"]
[null,{"$f":"CONCATENATE(\"\",E18,\"|Name=\",E19,\"|PersonalAcc=\",E20,\"|BankName=\",E21,\"|BIC=\",E22,\"|CorrespAcc=\",E23,\"|PayeeINN=\",E24,\"|ChildFio=\",E25,\"|paymPeriod=\",E26,\"|OKTMO=\",E27,\"|CBC=\",E28,\"|Sum=\",E29,\"|Category=\",E30,\"\")","v":"ST00012|Name=УФК ПО Г. САНКТ-ПЕТЕРБУРГУ (ОФК 02, ГОРНЫЙ УНИВЕРСИТЕТ, Л/С 190)|PersonalAcc=40501810300002000001|BankName=Северо-Западное ГУ Банка России|BIC=044030001|CorrespAcc=0|PayeeINN=7801021076|ChildFio=Семенов Иван Сергеевич|paymPeriod=0516|OKTMO=40300003|CBC=00000000000000000130|Sum=1250000|Category=3000002555"}]
[]
[]
[null,"Структура реестра"]
[null,"Строка 2"]
[null,"Поле 1; Поле 2; Поле 3; …..; Поле t"]
[null,"…"]
[null,"Строка n"]
[null,"Поле 1; Поле 2; Поле 3; …..; Поле t"]
[null,"Контрольная строка (используется для исходящего реестра)"]
[null,"=Поле1;Поле2;Поле3;Поле4;Поле5;Поле6"]
[]
[null,"Формат исходящего реестра"]
[null,"Имя архива",null,"ИНН_РС_код_счетчик_дата.zip"]
[null,null,null,"значение","описание","параметры"]
[null,null,null,"ИНН","ИНН поставщика услуг","XXXXXXXXXX"]
[null,null,null,"РС","Расчетный счет ПУ для перечисления д/с","YYYYYYYYYYYYYYYYYYYY"]
[null,null,null,"код","Код услуги. В качестве кода будут использоваться последние 3 символа “Лицевого счета” вида платежа ЕПС, дополненного лидирующими нулями.","001-999"]
[null,null,null,null,"Если “Лицевой счет” в ЕПС будет равен 0, код услуги будет пустой."]
[null,null,null,"счетчик","порядковый номер реестра в течение одного рабочего дня","00-99"]
[null,null,null,"дата","дата формирования реестра","ДДММГГГГ"]
[null,"Имя реестра",null,"SBкод_ПП_дата.txt "]
[null,null,null,"значение","описание","параметры"]
[null,null,null,"SB","константа"]
[null,null,null,"код","Код услуги. Аналогия с кодом услуги в имени архива"]
[null,null,null,"ПП","Номер платежного поручения","ZZZZZZ"]
[null,null,null,"дата","дата формирования реестра","ДДММГГГГ"]
[null,null,null,"txt","признак текстового файла"]
[null,"Кодировка",null,"WIN-1251\nKOI8-R\nUTF8"]
[null,"Разделители",null,"; (ASCII-код 59, точка с запятой)"]
[]
[]
[null,"Формат строк"]
[null,"Номер поля в реестре",null,"Наименование поля","Обязательное наличие информации в поле","Тип поля","Маска"]
[null,"Поле 1 строки",null,"Дата платежа","ДА","числовой","ДД-ММ-ГГГГ"]
[null,"Поле 2 строки",null,"Время платежа","ДА","числовой","00-00-00"]
[null,"Поле 3 строки",null,"Номер отделения","ДА","числовой"]
[null,"Поле 4 строки",null,"Номер кассира/УС/СБОЛ","ДА","числовой"]
[null,"Поле 5 строки",null,"Уникальный код операции в ЕПС","ДА","числовой"]
[null,"Поле 6 строки",null,"Фамилия, имя ребенка","ДА","текстовый","Фамилия, Имя Ребенка"]
[null,"Поле 7 строки",null,"Период оплаты","ДА","текстовый","ММ.ГГ"]
[null,"Поле 8 строки",null,"ОКТМО","ДА","цифровой","8-11 знаков"]
[null,"Поле 10 строки",null,"КБК","ДА","цифровой","20 знаков"]
[null,"Поле 11 строки",null,"Сумма операции","ДА","цифровой",999999.99]
[null,"Поле 12 строки",null,"Сумма перевода","ДА","цифровой",999999.99]
[null,"Поле 13 строки",null,"Сумма комиссии банку","ДА","цифровой",999999.99]
[null,"Признак контрольной строки",null,"Знак равно \"=\"","ДА","текстовый","="]
[null,"Поле 1 контрольной строки",null,"Количество строк в реестре","ДА","числовой"]
[null,"Поле 2 контрольной строки",null,"Общая сумма принятых средств","ДА","числовой",999999.99]
[null,"Поле 3 контрольной строки",null,"Сумма перечисления клиенту","ДА","числовой",999999.99]
[null,"Поле 4 контрольной строки",null,"Комиссия банку","ДА","числовой",999999.99]
[null,"Поле 5 контрольной строки",null,"Номер платежного поручения","ДА","числовой"]
[null,"Поле 6 контрольной строки",null,"Дата платежного поручения","ДА","числовой","ДД-ММ-ГГГГ"]

{"sheet":"3_7","index":14,"n_rows":98,"n_cols":9,"rows_kept":98,"cut":false,"hidden":true,"merged":[[64,1,70,1],[64,3,64,5],[71,3,71,5],[72,3,72,5],[39,1,39,4],[42,1,42,4],[56,1,63,1],[56,3,56,5],[60,3,61,3],[60,5,61,5]]}
[null,"КОД ГРУППЫ РЕКВИЗИТОВ",null,"ШАБЛОН 3_7"]
[]
[null,"Группа реквизитов"]
["№","Наименование реквизита","Имя реквизита для ЕПС","Имя реквизита для ДШК","Тип реквизита","Режим ввода","Текст подсказки в СБОЛ","мин. длина","макс. Длина"]
[1,2,3,4,5,6,7,8,9]
[1,"Фамилия, имя ребенка","ФИ_РЕБЕНКА","ChildFio","Ключевой.Обязательный.","Ручной","Введите фамилию и имя ребенка, например, Иванов Иван.",2,60]
[2,"Лицевой счет","N_Л/СЧЕТА","PersAcc","Обязательный","Ручной","Введите лицевой счет, не более 15 символов, например, 23018258.",1,15]
[3,"Номер группы","N_ГРУППЫ","classNum","Обязательный","Ручной","Введите номер группы.",1,20]
[4,"Адрес","АДРЕС_ПЛАТЕЛЬЩИКА","PayerAddress","Обязательный","Ручной","Введите адрес плательщика, например, г. Псков, ул. Шверника д.11-111",1,150]
[5,"ОКТМО","ОКТМО","OKTMO","Обязательный","Ручной","Введите ОКТМО, 8 цифр.",8,11]
[6,"КБК","КБК","CBC","Обязательный","Ручной","Введите КБК, 20 цифр.",20,20]
[7,"Назначение платежа","НАЗНАЧЕНИЕ","Purpose","Обязательный","Ручной","Введите назначение платежа (за какие работы/товары осуществляется платеж) или иную дополнительную информацию о платеже, не более 150 символов.",6,150]
[8,"Вид документа","ВИД_ДОК",null,"Обязательный","Ручной","Выберите вид документа, удостоверяющего Вашу личность",0,250]
[9,"Номер документа","НОМЕР ДОКУМЕНТА",null,"Обязательный","Ручной","Введите номер и/или серию документа (без пробелов)",0,12]
[10,"Гражданство","ГРАЖДАНСТВО",null,"Обязательный","Ручной","Укажите страну, выдавшую документ",0,250]
[11,"Идентификатор плательщика услуги","ИПГУ",null,"Только для чтения","Автоматически",null,0,25]
[12,"УИП","УИП",null,"Только для чтения","Автоматически",null,0,32]
[]
[]
[null,null,"ОПИСАНИЕ ТЕГОВ ДЛЯ ДШК","Ваш текст для ДШК","ПРИМЕР"]
[null,"Идентификатор стандарта","СТАНДАРТ КОДИРОВКИ",null,"ST00012"]
[null,"Name","НАИМЕНОВАНИЕ ОРГАНИЗАЦИИ",null,"УФК ПО Г. САНКТ-ПЕТЕРБУРГУ (ОФК 02, ГОРНЫЙ УНИВЕРСИТЕТ, Л/С 190)"]
[null,"PersonalAcc","РАСЧЕТНЫЙ СЧЕТ",null,"40501810300002000001"]
[null,"BankName","НАИМЕНОВАНИЕ БАНКА ПОЛУЧАТЕЛЯ",null,"Северо-Западное ГУ Банка России"]
[null,"BIC","БИК",null,"044030001"]
[null,"CorrespAcc","КОР.СЧЕТ",null,"0"]
[null,"PayeeINN","ИНН ПОЛУЧАТЕЛЯ",null,"7801021076"]
[null,"ChildFio","ФИ РЕБЕНКА",null,"Семенов Иван Сергеевич","Ключевой.Обязательный."]
[null,"PersAcc","НОМЕР ЛИЦЕВОГО СЧЕТА РЕБЕНКА",null,"1000-к"]
[null,"classNum","НОМЕР ГРУППЫ/ КЛАСС",null,"1256"]
[null,"PayerAddress","АДРЕС_ПЛАТЕЛЬЩИКА",null,"Санкт-Петербург  ул Парковая, д 17 кв 5"]
[null,"OKTMO","ОКТМО",null,"40300003"]
[null,"CBC","КБК",null,"00000000000000000130"]
[null,"Purpose","НАЗНАЧЕНИЕ",null,"Обучение 3 семестр"]
[null,"Sum","СУММА ПЛАТЕЖА",null,"1250000"]
[null,"Category","НОМЕР УСЛУГИ В СИСТЕМЕ БАНКА",null,3000002555]
[]
[]
[null,"Ваш текст для ДШК",null,"Для создания QR кода можно использовать генератор по адресу http://qrcoder.ru"]
[null,{"$f":"CONCATENATE(\"\",D21,\"|\",B22,\"=\",D22,\"|\",B23,A40,\"=\",D23,\"|\",B24,\"=\",D24,\"|\",B25,\"=\",D25,\"|\",B26,\"=\",D26,\"|\",B27,\"=\",D27,\"|\",B28,\"=\",D28,\"|\",B29,\"=\",D29,\"|\",B30,\"=\",D30,\"|\",B31,\"=\",D31,\"|\",B32,\"=\",D32,\"|\",B33,\"=\",D33,\"|\",B34,\"=\",D34,\"|\",B35,\"=\",D35,\"|\",B36,\"=\",D36,\"\")","v":"|Name=|PersonalAcc=|BankName=|BIC=|CorrespAcc=|PayeeINN=|ChildFio=|PersAcc=|classNum=|PayerAddress=|OKTMO=|CBC=|Purpose=|Sum=|Category="}]
[]
[null,"ПРИМЕР"]
[null,{"$f":"CONCATENATE(\"\",E21,\"|Name=\",E22,\"|PersonalAcc=\",E23,\"|BankName=\",E24,\"|BIC=\",E25,\"|CorrespAcc=\",E26,\"|PayeeINN=\",E27,\"|ChildFio=\",E28,\"|persAcc=\",E29,\"|ClassNum=\",E30,\"|paymPeriod=\",E31,\"|OKTMO=\",E32,\"|CBC=\",E33,\"|Purpose=\",E35,\"|Sum=\",E36,\"|Category=\",E36,\"\")","v":"ST00012|Name=УФК ПО Г. САНКТ-ПЕТЕРБУРГУ (ОФК 02, ГОРНЫЙ УНИВЕРСИТЕТ, Л/С 190)|PersonalAcc=40501810300002000001|BankName=Северо-Западное ГУ Банка России|BIC=044030001|CorrespAcc=0|PayeeINN=7801021076|ChildFio=Семенов Иван Сергеевич|persAcc=1000-к|ClassNum=1256|paymPeriod=Санкт-Петербург  ул Парковая, д 17 кв 5|OKTMO=40300003|CBC=00000000000000000130|Purpose=1250000|Sum=3000002555|Category=3000002555"}]
[]
[]
[null,"Структура реестра"]
[null,"Строка 2"]
[null,"Поле 1; Поле 2; Поле 3; …..; Поле t"]
[null,"…"]
[null,"Строка n"]
[null,"Поле 1; Поле 2; Поле 3; …..; Поле t"]
[null,"Контрольная строка (используется для исходящего реестра)"]
[null,"=Поле1;Поле2;Поле3;Поле4;Поле5;Поле6"]
[]
[]
[null,"Формат исходящего реестра"]
[null,"Имя архива",null,"ИНН_РС_код_счетчик_дата.zip"]
[null,null,null,"значение","описание","параметры"]
[null,null,null,"ИНН","ИНН поставщика услуг","XXXXXXXXXX"]
[null,null,null,"РС","Расчетный счет ПУ для перечисления д/с","YYYYYYYYYYYYYYYYYYYY"]
[null,null,null,"код","Код услуги. В качестве кода будут использоваться последние 3 символа “Лицевого счета” вида платежа ЕПС, дополненного лидирующими нулями.","001-999"]
[null,null,null,null,"Если “Лицевой счет” в ЕПС будет равен 0, код услуги будет пустой."]
[null,null,null,"счетчик","порядковый номер реестра в течение одного рабочего дня","00-99"]
[null,null,null,"дата","дата формирования реестра","ДДММГГГГ"]
[null,"Имя реестра",null,"SBкод_ПП_дата.txt "]
[null,null,null,"значение","описание","параметры"]
[null,null,null,"SB","константа"]
[null,null,null,"код","Код услуги. Аналогия с кодом услуги в имени архива"]
[null,null,null,"ПП","Номер платежного поручения","ZZZZZZ"]
[null,null,null,"дата","дата формирования реестра","ДДММГГГГ"]
[null,null,null,"txt","признак текстового файла"]
[null,"Кодировка",null,"WIN-1251\nKOI8-R\nUTF8"]
[null,"Разделители",null,"; (ASCII-код 59, точка с запятой)"]
[]
[]
[null,"Формат строк"]
[null,"Номер поля в реестре",null,"Наименование поля","Обязательное наличие информации в поле","Тип поля","Маска"]
[null,"Поле 1 строки",null,"Дата платежа","ДА","числовой","ДД-ММ-ГГГГ"]
[null,"Поле 2 строки",null,"Время платежа","ДА","числовой","00-00-00"]
[null,"Поле 3 строки",null,"Номер отделения","ДА","числовой"]
[null,"Поле 4 строки",null,"Номер кассира/УС/СБОЛ","ДА","числовой"]
[null,"Поле 5 строки",null,"Уникальный код операции в ЕПС","ДА","числовой"]
[null,"Поле 6 строки",null,"Фамилия, имя ребенка","ДА","текстовый","Фамилия, Имя Ребенка"]
[null,"Поле 7 строки",null,"Лицевой счет","ДА","текстовый"]
[null,"Поле 8 строки",null,"Номер группы","ДА","текстовый"]
[null,"Поле 9 строки",null,"Адрес","ДА","текстовый","Населенный пункт, улица, номер дома, номер квартиры"]
[null,"Поле 10 строки",null,"ОКТМО","ДА","цифровой","8-11 знаков"]
[null,"Поле 11 строки",null,"КБК","ДА","цифровой","20 знаков"]
[null,"Поле 12 строки",null,"Сумма операции","ДА","цифровой",999999.99]
[null,"Поле 13 строки",null,"Сумма перевода","ДА","цифровой",999999.99]
[null,"Поле 14 строки",null,"Сумма комиссии банку","ДА","цифровой",999999.99]
[null,"Признак контрольной строки",null,"Знак равно \"=\"","ДА","текстовый","="]
[null,"Поле 1 контрольной строки",null,"Количество строк в реестре","ДА","числовой"]
[null,"Поле 2 контрольной строки",null,"Общая сумма принятых средств","ДА","числовой",999999.99]
[null,"Поле 3 контрольной строки",null,"Сумма перечисления клиенту","ДА","числовой",999999.99]
[null,"Поле 4 контрольной строки",null,"Комиссия банку","ДА","числовой",999999.99]
[null,"Поле 5 контрольной строки",null,"Номер платежного поручения","ДА","числовой"]
[null,"Поле 6 контрольной строки",null,"Дата платежного поручения","ДА","числовой","ДД-ММ-ГГГГ"]

{"sheet":"3_8","index":15,"n_rows":97,"n_cols":9,"rows_kept":97,"cut":false,"hidden":true,"merged":[[63,1,69,1],[63,3,63,5],[70,3,70,5],[71,3,71,5],[36,1,36,4],[39,1,39,4],[55,1,62,1],[55,3,55,5],[59,3,60,3],[59,5,60,5]]}
[null,"КОД ГРУППЫ РЕКВИЗИТОВ",null,"ШАБЛОН 3_8"]
[]
[null,"Группа реквизитов"]
["№","Наименование реквизита","Имя реквизита для ЕПС","Имя реквизита для ДШК","Тип реквизита","Режим ввода","Текст подсказки в СБОЛ","мин. длина","макс. Длина"]
[1,2,3,4,5,6,7,8,9]
[1,"ФИО","ФИО_ПЛАТЕЛЬЩИКА","LastName, FirstName, MiddleName","Ключевой.Обязательный.","Ручной","Введите Фамилию, Имя, Отчество например, Иванов Иван Иванович.",2,120]
[2,"Адрес","АДРЕС_ПЛАТЕЛЬЩИКА","PayerAddress","Обязательный","Ручной","Введите адрес плательщика, например, г. Псков, ул. Шверника д.11-111",1,150]
[3,"Назначение платежа","НАЗНАЧЕНИЕ","Purpose","Обязательный","Ручной","Введите назначение платежа (за какие работы/товары осуществляется платеж) или иную дополнительную информацию о платеже, не более 150 символов.",6,50]
[4,"ОКТМО","ОКТМО","OKTMO","Обязательный","Ручной","Введите ОКТМО, 8 цифр.",8,11]
[5,"КБК","КБК","CBC","Обязательный","Ручной","Введите КБК, 20 цифр.",20,20]
[6,"Вид документа","ВИД_ДОК",null,"Обязательный","Ручной","Выберите вид документа, удостоверяющего Вашу личность",0,250]
[7,"Номер документа","НОМЕР ДОКУМЕНТА",null,"Обязательный","Ручной","Введите номер и/или серию документа (без пробелов)",0,12]
[8,"Гражданство","ГРАЖДАНСТВО",null,"Обязательный","Ручной","Укажите страну, выдавшую документ",0,250]
[9,"Идентификатор плательщика услуги","ИПГУ",null,"Только для чтения","Автоматически",null,0,25]
[10,"УИП","УИП",null,"Только для чтения","Автоматически",null,0,32]
[]
[]
[null,null,"ОПИСАНИЕ ТЕГОВ ДЛЯ ДШК","Ваш текст для ДШК","ПРИМЕР"]
[null,"Идентификатор стандарта","СТАНДАРТ КОДИРОВКИ",null,"ST00012"]
[null,"Name","НАИМЕНОВАНИЕ ОРГАНИЗАЦИИ",null,"УФК ПО Г. САНКТ-ПЕТЕРБУРГУ (ОФК 02, ГОРНЫЙ УНИВЕРСИТЕТ, Л/С 190)"]
[null,"PersonalAcc","РАСЧЕТНЫЙ СЧЕТ",null,"40501810300002000001"]
[null,"BankName","НАИМЕНОВАНИЕ БАНКА ПОЛУЧАТЕЛЯ",null,"Северо-Западное ГУ Банка России"]
[null,"BIC","БИК",null,"044030001"]
[null,"CorrespAcc","КОР.СЧЕТ",null,"0"]
[null,"PayeeINN","ИНН ПОЛУЧАТЕЛЯ",null,"7801021076"]
[null,"Lastname","ФИО ПЛАТЕЛЬЩИКА",null,"Семенова Ирина Петровна","Ключевой.Обязательный."]
[null,"PayerAddress","АДРЕС ПЛАТЕЛЬЩИКА",null,"Санкт-Петербург  ул Парковая, д 17 кв 5"]
[null,"OKTMO","ОКТМО",null,"40300003"]
[null,"CBC","КБК",null,"00000000000000000130"]
[null,"Purpose","НАЗНАЧЕНИЕ ПЛАТЕЖА",null,"ритмопластика преподаватель Окунева"]
[null,"UIN","УИН"]
[null,"Sum","СУММА ПЛАТЕЖА",null,"1250000"]
[null,"Category","НОМЕР УСЛУГИ В СИСТЕМЕ БАНКА",null,3000002555]
[]
[]
[null,"Ваш текст для ДШК",null,"Для создания QR кода можно использовать генератор по адресу http://qrcoder.ru"]
[null,{"$f":"CONCATENATE(\"\",D19,\"|\",B20,\"=\",D20,\"|\",B21,A37,\"=\",D21,\"|\",B22,\"=\",D22,\"|\",B23,\"=\",D23,\"|\",B24,\"=\",D24,\"|\",B25,\"=\",D25,\"|\",B26,\"=\",D26,\"|\",B27,\"=\",D27,\"|\",B28,\"=\",D28,\"|\",B29,\"=\",D29,\"|\",B30,\"=\",D30,\"|\",B32,\"=\",D32,\"|\",B33,\"=\",D33,\"\")","v":"|Name=|PersonalAcc=|BankName=|BIC=|CorrespAcc=|PayeeINN=|Lastname=|PayerAddress=|OKTMO=|CBC=|Purpose=|Sum=|Category="}]
[]
[null,"ПРИМЕР"]
[null,{"$f":"CONCATENATE(\"\",E19,\"|Name=\",E20,\"|PersonalAcc=\",E21,\"|BankName=\",E22,\"|BIC=\",E23,\"|CorrespAcc=\",E24,\"|PayeeINN=\",E25,\"|LastName=\",E26,\"|payerAddress=\",E27,\"|OKTMO=\",E28,\"|CBC=\",E29,\"|Purpose=\",E30,\"|Sum=\",E32,\"|Category=\",E33,\"\")","v":"ST00012|Name=УФК ПО Г. САНКТ-ПЕТЕРБУРГУ (ОФК 02, ГОРНЫЙ УНИВЕРСИТЕТ, Л/С 190)|PersonalAcc=40501810300002000001|BankName=Северо-Западное ГУ Банка России|BIC=044030001|CorrespAcc=0|PayeeINN=7801021076|LastName=Семенова Ирина Петровна|payerAddress=Санкт-Петербург  ул Парковая, д 17 кв 5|OKTMO=40300003|CBC=00000000000000000130|Purpose=ритмопластика преподаватель Окунева|Sum=1250000|Category=3000002555"}]
[]
[]
[null,"Структура реестра"]
[null,"Строка 1"]
[null,"Поле 1; Поле 2; Поле 3; …..; Поле t"]
[null,"Строка 2"]
[null,"Поле 1; Поле 2; Поле 3; …..; Поле t"]
[null,"…"]
[null,"Строка n"]
[null,"Поле 1; Поле 2; Поле 3; …..; Поле t"]
[null,"Контрольная строка (используется для исходящего реестра)"]
[null,"=Поле1;Поле2;Поле3;Поле4;Поле5;Поле6"]
[]
[]
[null,"Формат исходящего реестра"]
[null,"Имя архива",null,"ИНН_РС_код_счетчик_дата.zip"]
[null,null,null,"значение","описание","параметры"]
[null,null,null,"ИНН","ИНН поставщика услуг","XXXXXXXXXX"]
[null,null,null,"РС","Расчетный счет ПУ для перечисления д/с","YYYYYYYYYYYYYYYYYYYY"]
[null,null,null,"код","Код услуги. В качестве кода будут использоваться последние 3 символа “Лицевого счета” вида платежа ЕПС, дополненного лидирующими нулями.","001-999"]
[null,null,null,null,"Если “Лицевой счет” в ЕПС будет равен 0, код услуги будет пустой."]
[null,null,null,"счетчик","порядковый номер реестра в течение одного рабочего дня","00-99"]
[null,null,null,"дата","дата формирования реестра","ДДММГГГГ"]
[null,"Имя реестра",null,"SBкод_ПП_дата.txt "]
[null,null,null,"значение","описание","параметры"]
[null,null,null,"SB","константа"]
[null,null,null,"код","Код услуги. Аналогия с кодом услуги в имени архива"]
[null,null,null,"ПП","Номер платежного поручения","ZZZZZZ"]
[null,null,null,"дата","дата формирования реестра","ДДММГГГГ"]
[null,null,null,"txt","признак текстового файла"]
[null,"Кодировка",null,"WIN-1251\nKOI8-R\nUTF8"]
[null,"Разделители",null,"; (ASCII-код 59, точка с запятой)"]
[]
[]
[]
[null,"Формат строк"]
[null,"Номер поля в реестре",null,"Наименование поля","Обязательное наличие информации в поле","Тип поля","Маска"]
[null,"Поле 1 строки",null,"Дата платежа","ДА","числовой","ДД-ММ-ГГГГ"]
[null,"Поле 2 строки",null,"Время платежа","ДА","числовой","00-00-00"]
[null,"Поле 3 строки",null,"Номер отделения","ДА","числовой"]
[null,"Поле 4 строки",null,"Номер кассира/УС/СБОЛ","ДА","числовой"]
[null,"Поле 5 строки",null,"Уникальный код операции в ЕПС","ДА","числовой"]
[null,"Поле 6 строки",null,"ФИО","ДА","текстовый","Фамилия, Имя, Отчество"]
[null,"Поле 7 строки",null,"Адрес","ДА","текстовый","Населенный пункт, улица, номер дома, номер квартиры"]
[null,"Поле 8 строки",null,"ОКТМО","ДА","числовой"]
[null,"Поле 9 строки",null,"КБК","ДА","числовой"]
[null,"Поле 10 строки",null,"Назначение платежа","ДА","текстовый"]
[null,"Поле 11 строки",null,"Сумма операции","ДА","цифровой",999999.99]
[null,"Поле 12 строки",null,"Сумма перевода","ДА","цифровой",999999.99]
[null,"Поле 13 строки",null,"Сумма комиссии банку","ДА","цифровой",999999.99]
[null,"Признак контрольной строки",null,"Знак равно \"=\"","ДА","текстовый","="]
[null,"Поле 1 контрольной строки",null,"Количество строк в реестре","ДА","числовой"]
[null,"Поле 2 контрольной строки",null,"Общая сумма принятых средств","ДА","числовой",999999.99]
[null,"Поле 3 контрольной строки",null,"Сумма перечисления клиенту","ДА","числовой",999999.99]
[null,"Поле 4 контрольной строки",null,"Комиссия банку","ДА","числовой",999999.99]
[null,"Поле 5 контрольной строки",null,"Номер платежного поручения","ДА","числовой"]
[null,"Поле 6 контрольной строки",null,"Дата платежного поручения","ДА","числовой","ДД-ММ-ГГГГ"]

{"sheet":"3_9","index":16,"n_rows":94,"n_cols":9,"rows_kept":94,"cut":false,"hidden":true,"merged":[[60,1,66,1],[60,3,60,5],[67,3,67,5],[68,3,68,5],[35,1,35,4],[38,1,38,4],[52,1,59,1],[52,3,52,5],[56,3,57,3],[56,5,57,5]]}
[null,"КОД ГРУППЫ РЕКВИЗИТОВ",null,"ШАБЛОН 3_9"]
[]
[null,"Группа реквизитов"]
["№","Наименование реквизита","Имя реквизита для ЕПС","Имя реквизита для ДШК","Тип реквизита","Режим ввода","Текст подсказки в СБОЛ","мин. длина","макс. Длина"]
[1,2,3,4,5,6,7,8,9]
[1,"ФИО","ФИО_ПЛАТЕЛЬЩИКА","LastName, FirstName, MiddleName","Ключевой.Обязательный.","Ручной","Введите Фамилию, Имя, Отчество например, Иванов Иван Иванович.",2,120]
[2,"Адрес","АДРЕС_ПЛАТЕЛЬЩИКА","PayerAddress","Обязательный","Ручной","Введите адрес плательщика, например, г. Псков, ул. Шверника д.11-111",1,150]
[4,"Назначение платежа","НАЗНАЧЕНИЕ","Purpose","Обязательный","Ручной","Введите назначение платежа (за какие работы/товары осуществляется платеж) или иную дополнительную информацию о платеже, не более 150 символов.",6,50]
[5,"ОКТМО","ОКТМО","OKTMO","Обязательный","Ручной","Введите ОКТМО, 8 цифр.",8,11]
[6,"КБК","КБК","CBC","Обязательный","Ручной","Введите КБК, 20 цифр.",20,20]
[7,"Вид документа","ВИД_ДОК",null,"Обязательный","Ручной","Выберите вид документа, удостоверяющего Вашу личность",0,250]
[8,"Номер документа","НОМЕР ДОКУМЕНТА",null,"Обязательный","Ручной","Введите номер и/или серию документа (без пробелов)",0,12]
[9,"Гражданство","ГРАЖДАНСТВО",null,"Обязательный","Ручной","Укажите страну, выдавшую документ",0,250]
[10,"Идентификатор плательщика услуги","ИПГУ",null,"Только для чтения","Автоматически",null,0,25]
[11,"УИП","УИП",null,"Только для чтения","Автоматически",null,0,32]
[]
[null,null,"ОПИСАНИЕ ТЕГОВ ДЛЯ ДШК","Ваш текст для ДШК","ПРИМЕР"]
[null,"Идентификатор стандарта","СТАНДАРТ КОДИРОВКИ",null,"ST00012"]
[null,"Name","НАИМЕНОВАНИЕ ОРГАНИЗАЦИИ",null,"УФК ПО Г. САНКТ-ПЕТЕРБУРГУ (ОФК 02, ГОРНЫЙ УНИВЕРСИТЕТ, Л/С 190)"]
[null,"PersonalAcc","РАСЧЕТНЫЙ СЧЕТ",null,"40501810300002000001"]
[null,"BankName","НАИМЕНОВАНИЕ БАНКА ПОЛУЧАТЕЛЯ",null,"Северо-Западное ГУ Банка России"]
[null,"BIC","БИК",null,"044030001"]
[null,"CorrespAcc","КОР.СЧЕТ",null,"0"]
[null,"PayeeINN","ИНН ПОЛУЧАТЕЛЯ",null,"7801021076"]
[null,"Lastname","ФИО ПЛАТЕЛЬЩИКА",null,"Семенова Ирина Петровна","Ключевой.Обязательный."]
[null,"PayerAddress","АДРЕС ПЛАТЕЛЬЩИКА",null,"Санкт-Петербург  ул Парковая, д 17 кв 5"]
[null,"OKTMO","ОКТМО",null,"40300003"]
[null,"CBC","КБК",null,"00000000000000000130"]
[null,"Purpose","НАЗНАЧЕНИЕ ПЛАТЕЖА",null,"ритмопластика преподаватель Окунева"]
[null,"UIN","УИН"]
[null,"Sum","СУММА ПЛАТЕЖА",null,"1250000"]
[null,"Category","НОМЕР УСЛУГИ В СИСТЕМЕ БАНКА",null,3000002555]
[]
[]
[null,"Ваш текст для ДШК",null,"Для создания QR кода можно использовать генератор по адресу http://qrcoder.ru"]
[null,{"$f":"CONCATENATE(\"\",D18,\"|\",B19,\"=\",D19,\"|\",B20,A36,\"=\",D20,\"|\",B21,\"=\",D21,\"|\",B22,\"=\",D22,\"|\",B23,\"=\",D23,\"|\",B24,\"=\",D24,\"|\",B25,\"=\",D25,\"|\",B26,\"=\",D26,\"|\",B27,\"=\",D27,\"|\",B28,\"=\",D28,\"|\",B29,\"=\",D29,\"|\",B31,\"=\",D31,\"|\",B32,\"=\",D32,\"\")","v":"|Name=|PersonalAcc=|BankName=|BIC=|CorrespAcc=|PayeeINN=|Lastname=|PayerAddress=|OKTMO=|CBC=|Purpose=|Sum=|Category="}]
[]
[null,"ПРИМЕР"]
[null,{"$f":"CONCATENATE(\"\",E18,\"|Name=\",E19,\"|PersonalAcc=\",E20,\"|BankName=\",E21,\"|BIC=\",E22,\"|CorrespAcc=\",E23,\"|PayeeINN=\",E24,\"|LastName=\",E25,\"|payerAddress=\",E26,\"|OKTMO=\",E27,\"|CBC=\",E28,\"|Purpose=\",E29,\"|Sum=\",E31,\"|Category=\",E32,\"\")","v":"ST00012|Name=УФК ПО Г. САНКТ-ПЕТЕРБУРГУ (ОФК 02, ГОРНЫЙ УНИВЕРСИТЕТ, Л/С 190)|PersonalAcc=40501810300002000001|BankName=Северо-Западное ГУ Банка России|BIC=044030001|CorrespAcc=0|PayeeINN=7801021076|LastName=Семенова Ирина Петровна|payerAddress=Санкт-Петербург  ул Парковая, д 17 кв 5|OKTMO=40300003|CBC=00000000000000000130|Purpose=ритмопластика преподаватель Окунева|Sum=1250000|Category=3000002555"}]
[]
[]
[null,"Структура реестра"]
[null,"Строка 2"]
[null,"Поле 1; Поле 2; Поле 3; …..; Поле t"]
[null,"…"]
[null,"Строка n"]
[null,"Поле 1; Поле 2; Поле 3; …..; Поле t"]
[null,"Контрольная строка (используется для исходящего реестра)"]
[null,"=Поле1;Поле2;Поле3;Поле4;Поле5;Поле6"]
[]
[]
[null,"Формат исходящего реестра"]
[null,"Имя архива",null,"ИНН_РС_код_счетчик_дата.zip"]
[null,null,null,"значение","описание","параметры"]
[null,null,null,"ИНН","ИНН поставщика услуг","XXXXXXXXXX"]
[null,null,null,"РС","Расчетный счет ПУ для перечисления д/с","YYYYYYYYYYYYYYYYYYYY"]
[null,null,null,"код","Код услуги. В качестве кода будут использоваться последние 3 символа “Лицевого счета” вида платежа ЕПС, дополненного лидирующими нулями.","001-999"]
[null,null,null,null,"Если “Лицевой счет” в ЕПС будет равен 0, код услуги будет пустой."]
[null,null,null,"счетчик","порядковый номер реестра в течение одного рабочего дня","00-99"]
[null,null,null,"дата","дата формирования реестра","ДДММГГГГ"]
[null,"Имя реестра",null,"SBкод_ПП_дата.txt "]
[null,null,null,"значение","описание","параметры"]
[null,null,null,"SB","константа"]
[null,null,null,"код","Код услуги. Аналогия с кодом услуги в имени архива"]
[null,null,null,"ПП","Номер платежного поручения","ZZZZZZ"]
[null,null,null,"дата","дата формирования реестра","ДДММГГГГ"]
[null,null,null,"txt","признак текстового файла"]
[null,"Кодировка",null,"WIN-1251\nKOI8-R\nUTF8"]
[null,"Разделители",null,"; (ASCII-код 59, точка с запятой)"]
[]
[]
[null,"Формат строк"]
[null,"Номер поля в реестре",null,"Наименование поля","Обязательное наличие информации в поле","Тип поля","Маска"]
[null,"Поле 1 строки",null,"Дата платежа","ДА","числовой","ДД-ММ-ГГГГ"]
[null,"Поле 2 строки",null,"Время платежа","ДА","числовой","00-00-00"]
[null,"Поле 3 строки",null,"Номер отделения","ДА","числовой"]
[null,"Поле 4 строки",null,"Номер кассира/УС/СБОЛ","ДА","числовой"]
[null,"Поле 5 строки",null,"Уникальный код операции в ЕПС","ДА","числовой"]
[null,"Поле 6 строки",null,"ФИО","ДА","текстовый","Фамилия, Имя Ребенка"]
[null,"Поле 7 строки",null,"Адрес","ДА","текстовый","Населенный пункт, улица, номер дома, номер квартиры"]
[null,"Поле 8 строки",null,"Тип средств","ДА","текстовый"]
[null,"Поле 9 строки",null,"ОКТМО","ДА","цифровой","8-11 знаков"]
[null,"Поле 11 строки",null,"КБК","ДА","цифровой","20 знаков"]
[null,"Поле 12 строки",null,"Назначение платежа","ДА","текстовый"]
[null,"Поле 13 строки",null,"Сумма операции","ДА","цифровой",999999.99]
[null,"Поле 14 строки",null,"Сумма перевода","ДА","цифровой",999999.99]
[null,"Поле 15 строки",null,"Сумма комиссии банку","ДА","цифровой",999999.99]
[null,"Признак контрольной строки",null,"Знак равно \"=\"","ДА","текстовый","="]
[null,"Поле 1 контрольной строки",null,"Количество строк в реестре","ДА","числовой"]
[null,"Поле 2 контрольной строки",null,"Общая сумма принятых средств","ДА","числовой",999999.99]
[null,"Поле 3 контрольной строки",null,"Сумма перечисления клиенту","ДА","числовой",999999.99]
[null,"Поле 4 контрольной строки",null,"Комиссия банку","ДА","числовой",999999.99]
[null,"Поле 5 контрольной строки",null,"Номер платежного поручения","ДА","числовой"]
[null,"Поле 6 контрольной строки",null,"Дата платежного поручения","ДА","числовой","ДД-ММ-ГГГГ"]

{"sheet":"3_10","index":17,"n_rows":100,"n_cols":9,"rows_kept":100,"cut":false,"hidden":true,"merged":[[66,1,72,1],[66,3,66,5],[73,3,73,5],[74,3,74,5],[41,1,41,4],[44,1,44,4],[58,1,65,1],[58,3,58,5],[62,3,63,3],[62,5,63,5]]}
[null,"КОД ГРУППЫ РЕКВИЗИТОВ",null,"ШАБЛОН 3_10"]
[]
[null,"Группа реквизитов"]
["№","Наименование реквизита","Имя реквизита для ЕПС","Имя реквизита для ДШК","Тип реквизита","Режим ввода","Текст подсказки в СБОЛ","мин. длина","макс. Длина"]
[1,2,3,4,5,6,7,8,9]
[1,"ФИО","ФИО_ПЛАТЕЛЬЩИКА","LastName, FirstName, MiddleName","Ключевой.Обязательный.","Ручной","Введите ФИО плательщика, например, Иванов Иван Иванович.",2,60]
[2,"Фамилия, имя ребенка","ФИ_РЕБЕНКА","ChildFio","Обязательный","Ручной","Введите фамилию и имя ребенка, например, Иванов Иван.",2,60]
[3,"Адрес","АДРЕС","PayerAddress","Необязательный","Ручной","Введите адрес плательщика, например, город, улица дом кв.",1,90]
[4,"Номер группы","N_ГРУППЫ","ClassNum",null,"Ручной","Введите номер группы.",1,20]
[5,"Лицевой счет","N_Л/СЧЕТА","persAcc","Необязательный","Ручной","Введите лицевой счет, не более 15 символов, например, 23018258.",1,15]
[6,"ОКТМО","ОКТМО","OKTMO","Обязательный","Ручной","Введите ОКТМО, 8 цифр.",8,11]
[7,"КБК","КБК","CBC","Обязательный","Ручной","Введите КБК, 20 цифр.",20,20]
[8,"Назначение платежа","НАЗНАЧЕНИЕ","Purpose","Обязательный","Ручной","Введите назначение платежа (за какие работы/товары осуществляется платеж) или иную дополнительную информацию о платеже, не более 150 символов.",6,50]
[9,"Вид документа","ВИД_ДОК",null,"Обязательный","Ручной","Выберите вид документа, удостоверяющего Вашу личность",0,250]
[10,"Номер документа","НОМЕР ДОКУМЕНТА",null,"Обязательный","Ручной","Введите номер и/или серию документа (без пробелов)",0,12]
[11,"Гражданство","ГРАЖДАНСТВО",null,"Обязательный","Ручной","Укажите страну, выдавшую документ",0,250]
[12,"Идентификатор плательщика услуги","ИПГУ",null,"Только для чтения","Автоматически",null,0,25]
[13,"УИП","УИП",null,"Только для чтения","Автоматически",null,0,32]
[]
[]
[null,null,"ОПИСАНИЕ ТЕГОВ ДЛЯ ДШК","Ваш текст для ДШК","ПРИМЕР"]
[null,"Идентификатор стандарта","СТАНДАРТ КОДИРОВКИ",null,"ST00012"]
[null,"Name","НАИМЕНОВАНИЕ ОРГАНИЗАЦИИ",null,"УФК ПО Г. САНКТ-ПЕТЕРБУРГУ (ОФК 02, ГОРНЫЙ УНИВЕРСИТЕТ, Л/С 190)"]
[null,"PersonalAcc","РАСЧЕТНЫЙ СЧЕТ",null,"40501810300002000001"]
[null,"BankName","НАИМЕНОВАНИЕ БАНКА ПОЛУЧАТЕЛЯ",null,"Северо-Западное ГУ Банка России"]
[null,"BIC","БИК",null,"044030001"]
[null,"CorrespAcc","КОР.СЧЕТ",null,"0"]
[null,"PayeeINN","ИНН ПОЛУЧАТЕЛЯ",null,"7801021076"]
[null,"LastName","ФИО ПЛАТЕЛЬЩИКА",null,"Семенова Ирина Петровна","Ключевой.Обязательный."]
[null,"PayerAddress","АДРЕС ПЛАТЕЛЬЩИКА",null,"Санкт-Петербург  ул Парковая, д 17 кв 5"]
[null,"ChildFio","ФИ РЕБЕНКА",null,"Семенов Иван Сергеевич"]
[null,"classNum","НОМЕР ГРУППЫ/ КЛАСС",null,"1средняя"]
[null,"PersAcc","НОМЕР ЛИЦЕВОГО СЧЕТА РЕБЕНКА",null,"7801021076033333"]
[null,"OKTMO","ОКТМО",null,"40300003"]
[null,"CBC","КБК",null,"00000000000000000130"]
[null,"Sum","СУММА ПЛАТЕЖА",null,"1250000"]
[null,"Purpose","НАЗНАЧЕНИЕ ПЛАТЕЖА",null,"РОДИТЕЛЬСКАЯ ПЛАТА"]
[null,"Category","НОМЕР УСЛУГИ В СИСТЕМЕ БАНКА",null,3000002555]
[]
[]
[null,"Ваш текст для ДШК",null,"Для создания QR кода можно использовать генератор по адресу http://qrcoder.ru"]
[null,{"$f":"CONCATENATE(\"\",D22,\"|\",B23,\"=\",D23,\"|\",B24,A42,\"=\",D24,\"|\",B25,\"=\",D25,\"|\",B26,\"=\",D26,\"|\",B27,\"=\",D27,\"|\",B28,\"=\",D28,\"|\",B29,\"=\",D29,\"|\",B30,\"=\",D30,\"|\",B31,\"=\",D31,\"|\",B32,\"=\",D32,\"|\",B33,\"=\",D33,\"|\",B34,\"=\",D34,\"|\",B35,\"=\",D35,\"|\",B36,\"=\",D36,\"|\",B37,\"=\",D37,\"|\",B38,\"=\",D38,\"\")","v":"|Name=|PersonalAcc=|BankName=|BIC=|CorrespAcc=|PayeeINN=|LastName=|PayerAddress=|ChildFio=|classNum=|PersAcc=|OKTMO=|CBC=|Sum=|Purpose=|Category="}]
[]
[null,"ПРИМЕР"]
[null,{"$f":"CONCATENATE(\"\",E22,\"|Name=\",E23,\"|PersonalAcc=\",E24,\"|BankName=\",E25,\"|BIC=\",E26,\"|CorrespAcc=\",E27,\"|PayeeINN=\",E28,\"|LastName=\",E29,\"|payerAddress=\",E30,\"|ChildFio=\",E31,\"|ClassNum=\",E32,\"|persAcc=\",E33,\"|OKTMO=\",E34,\"|CBC=\",E35,\"|Sum=\",E36,\"|Purpose=\",E37,\"|Category=\",E38,\"\")","v":"ST00012|Name=УФК ПО Г. САНКТ-ПЕТЕРБУРГУ (ОФК 02, ГОРНЫЙ УНИВЕРСИТЕТ, Л/С 190)|PersonalAcc=40501810300002000001|BankName=Северо-Западное ГУ Банка России|BIC=044030001|CorrespAcc=0|PayeeINN=7801021076|LastName=Семенова Ирина Петровна|payerAddress=Санкт-Петербург  ул Парковая, д 17 кв 5|ChildFio=Семенов Иван Сергеевич|ClassNum=1средняя|persAcc=7801021076033333|OKTMO=40300003|CBC=00000000000000000130|Sum=1250000|Purpose=РОДИТЕЛЬСКАЯ ПЛАТА|Category=3000002555"}]
[]
[]
[null,"Структура реестра"]
[null,"Строка 2"]
[null,"Поле 1; Поле 2; Поле 3; …..; Поле t"]
[null,"…"]
[null,"Строка n"]
[null,"Поле 1; Поле 2; Поле 3; …..; Поле t"]
[null,"Контрольная строка (используется для исходящего реестра)"]
[null,"=Поле1;Поле2;Поле3;Поле4;Поле5;Поле6"]
[]
[]
[null,"Формат исходящего реестра"]
[null,"Имя архива",null,"ИНН_РС_код_счетчик_дата.zip"]
[null,null,null,"значение","описание","параметры"]
[null,null,null,"ИНН","ИНН поставщика услуг","XXXXXXXXXX"]
[null,null,null,"РС","Расчетный счет ПУ для перечисления д/с","YYYYYYYYYYYYYYYYYYYY"]
[null,null,null,"код","Код услуги. В качестве кода будут использоваться последние 3 символа “Лицевого счета” вида платежа ЕПС, дополненного лидирующими нулями.","001-999"]
[null,null,null,null,"Если “Лицевой счет” в ЕПС будет равен 0, код услуги будет пустой."]
[null,null,null,"счетчик","порядковый номер реестра в течение одного рабочего дня","00-99"]
[null,null,null,"дата","дата формирования реестра","ДДММГГГГ"]
[null,"Имя реестра",null,"SBкод_ПП_дата.txt "]
[null,null,null,"значение","описание","параметры"]
[null,null,null,"SB","константа"]
[null,null,null,"код","Код услуги. Аналогия с кодом услуги в имени архива"]
[null,null,null,"ПП","Номер платежного поручения","ZZZZZZ"]
[null,null,null,"дата","дата формирования реестра","ДДММГГГГ"]
[null,null,null,"txt","признак текстового файла"]
[null,"Кодировка",null,"WIN-1251\nKOI8-R\nUTF8"]
[null,"Разделители",null,"; (ASCII-код 59, точка с запятой)"]
[]
[]
[null,"Формат строк"]
[null,"Номер поля в реестре",null,"Наименование поля","Обязательное наличие информации в поле","Тип поля","Маска"]
[null,"Поле 1 строки",null,"Дата платежа","ДА","числовой","ДД-ММ-ГГГГ"]
[null,"Поле 2 строки",null,"Время платежа","ДА","числовой","00-00-00"]
[null,"Поле 3 строки",null,"Номер отделения","ДА","числовой"]
[null,"Поле 4 строки",null,"Номер кассира/УС/СБОЛ","ДА","числовой"]
[null,"Поле 5 строки",null,"Уникальный код операции в ЕПС","ДА","числовой"]
[null,"Поле 6 строки",null,"Фамилия, Имя, Отчество","ДА","текстовый","Фамилия, Имя, Отчество"]
[null,"Поле 7 строки",null,"Адрес","ДА","текстовый","Населенный пункт, улица, номер дома, номер квартиры"]
[null,"Поле 8 строки",null,"ФИ Ребенка","ДА","числовой"]
[null,"Поле 9 строки",null,"Номер группы","ДА","числовой"]
[null,"Поле 10 строки",null,"Номер лицвого счета","ДА","числовой"]
[null,"Поле 11 строки",null,"Дополнительная информация","НЕТ","текстовый"]
[null,"Поле 12 строки",null,"Сумма операции","ДА","цифровой",999999.99]
[null,"Поле 13 строки",null,"Сумма перевода","ДА","цифровой",999999.99]
[null,"Поле 14 строки",null,"Сумма комиссии банку","ДА","цифровой",999999.99]
[null,"Признак контрольной строки",null,"Знак равно \"=\"","ДА","текстовый","="]
[null,"Поле 1 контрольной строки",null,"Количество строк в реестре","ДА","числовой"]
[null,"Поле 2 контрольной строки",null,"Общая сумма принятых средств","ДА","числовой",999999.99]
[null,"Поле 3 контрольной строки",null,"Сумма перечисления клиенту","ДА","числовой",999999.99]
[null,"Поле 4 контрольной строки",null,"Комиссия банку","ДА","числовой",999999.99]
[null,"Поле 5 контрольной строки",null,"Номер платежного поручения","ДА","числовой"]
[null,"Поле 6 контрольной строки",null,"Дата платежного поручения","ДА","числовой","ДД-ММ-ГГГГ"]

{"sheet":"3_11","index":18,"n_rows":96,"n_cols":9,"rows_kept":96,"cut":false,"hidden":true,"merged":[[61,1,67,1],[61,3,61,5],[68,3,68,5],[69,3,69,5],[36,1,36,4],[39,1,39,4],[53,1,60,1],[53,3,53,5],[57,3,58,3],[57,5,58,5]]}
[null,"КОД ГРУППЫ РЕКВИЗИТОВ",null,"ШАБЛОН 3_11"]
[]
[null,"Группа реквизитов"]
["№","Наименование реквизита","Имя реквизита для ЕПС","Имя реквизита для ДШК","Тип реквизита","Режим ввода","Текст подсказки в СБОЛ","мин. длина","макс. Длина"]
[1,2,3,4,5,6,7,8,9]
[1,"ФИО плательщика","ФИО_ПЛАТЕЛЬЩИКА","LastName, FirstName, MiddleName","Ключевой.Обязательный.","Ручной","Введите полностью фамилию, имя и отчество плательщика",2,50]
[2,"Адрес","АДРЕС","PayerAddress","Обязательный","Ручной","Введите адрес плательщика: населенный пункт, улица, дом, кв.",5,50]
[3,"Дополнительная информация","НАЗНАЧЕНИЕ","Purpose","Необязательный","Ручной","Указывается назначение/вид платежа, дополнительная информация о платеже. Длина поля не более 250 символов.",1,250]
[4,"ОКТМО","ОКТМО","OKTMO","Обязательный","Ручной","Введите ОКТМО, 8 или 11 символов",8,11]
[5,"КБК","КБК","CBC","Обязательный","Ручной","Введите КБК, 20 символов",20,20]
[6,"Вид документа, удостов. личность","ВИД_ДОК","PayerIdType","Обязательный","Ручной",null,1,250]
[7,"Номер документа, удостов. личность","НОМ_ДОК","PayerIdNum","Обязательный","Ручной",null,7,12]
[8,"Вид документа","ВИД_ДОК",null,"Обязательный","Ручной","Выберите вид документа, удостоверяющего Вашу личность",0,250]
[9,"Номер документа","НОМЕР ДОКУМЕНТА",null,"Обязательный","Ручной","Введите номер и/или серию документа (без пробелов)",0,12]
[10,"Гражданство","ГРАЖДАНСТВО",null,"Обязательный","Ручной","Укажите страну, выдавшую документ",0,250]
[11,"Идентификатор плательщика услуги","ИПГУ",null,"Только для чтения","Автоматически",null,0,25]
[12,"УИП","УИП",null,"Только для чтения","Автоматически",null,0,32]
[]
[null,null,"ОПИСАНИЕ ТЕГОВ ДЛЯ ДШК","Ваш текст для ДШК","ПРИМЕР"]
[null,"Идентификатор стандарта","СТАНДАРТ КОДИРОВКИ",null,"ST00012"]
[null,"Name","НАИМЕНОВАНИЕ ОРГАНИЗАЦИИ",null,"УФК ПО Г. САНКТ-ПЕТЕРБУРГУ (ОФК 02, ГОРНЫЙ УНИВЕРСИТЕТ, Л/С 190)"]
[null,"PersonalAcc","РАСЧЕТНЫЙ СЧЕТ",null,"40501810300002000001"]
[null,"BankName","НАИМЕНОВАНИЕ БАНКА ПОЛУЧАТЕЛЯ",null,"Северо-Западное ГУ Банка России"]
[null,"BIC","БИК",null,"044030001"]
[null,"CorrespAcc","КОР.СЧЕТ",null,"0"]
[null,"PayeeINN","ИНН ПОЛУЧАТЕЛЯ",null,"7801021076"]
[null,"LastName","ФИО ПЛАТЕЛЬЩИКА",null,"Семенова Ирина Петровна","Ключевой.Обязательный."]
[null,"PayerAddress","АДРЕС ПЛАТЕЛЬЩИКА",null,"Санкт-Петербург  ул Парковая, д 17 кв 5"]
[null,"Purpose","НАЗНАЧЕНИЕ ПЛАТЕЖА",null,"родительская плата","Необязательный"]
[null,"OKTMO","ОКТМО",null,"40300003"]
[null,"CBC","КБК",null,"00000000000000000130"]
[null,"Sum","СУММА ПЛАТЕЖА",null,"1250000"]
[null,"Category","НОМЕР УСЛУГИ В СИСТЕМЕ БАНКА",null,3000002555]
[]
[]
[null,"Ваш текст для ДШК",null,"Для создания QR кода можно использовать генератор по адресу http://qrcoder.ru"]
[null,{"$f":"CONCATENATE(\"\",D20,\"|\",B21,\"=\",D21,\"|\",B22,A37,\"=\",D22,\"|\",B23,\"=\",D23,\"|\",B24,\"=\",D24,\"|\",B25,\"=\",D25,\"|\",B26,\"=\",D26,\"|\",B27,\"=\",D27,\"|\",B28,\"=\",D28,\"|\",B29,\"=\",D29,\"|\",B30,\"=\",D30,\"|\",B31,\"=\",D31,\"|\",B32,\"=\",D32,\"|\",B33,\"=\",D33,\"\")","v":"|Name=|PersonalAcc=|BankName=|BIC=|CorrespAcc=|PayeeINN=|LastName=|PayerAddress=|Purpose=|OKTMO=|CBC=|Sum=|Category="}]
[]
[null,"ПРИМЕР"]
[null,{"$f":"CONCATENATE(\"\",E20,\"|Name=\",E21,\"|PersonalAcc=\",E22,\"|BankName=\",E23,\"|BIC=\",E24,\"|CorrespAcc=\",E25,\"|PayeeINN=\",E26,\"|LastName=\",E27,\"|payerAddress=\",E28,\"|Purpose=\",E29,\"|OKTMO=\",E30,\"|CBC=\",E31,\"|Sum=\",E32,\"|Category=\",E33,\"\")","v":"ST00012|Name=УФК ПО Г. САНКТ-ПЕТЕРБУРГУ (ОФК 02, ГОРНЫЙ УНИВЕРСИТЕТ, Л/С 190)|PersonalAcc=40501810300002000001|BankName=Северо-Западное ГУ Банка России|BIC=044030001|CorrespAcc=0|PayeeINN=7801021076|LastName=Семенова Ирина Петровна|payerAddress=Санкт-Петербург  ул Парковая, д 17 кв 5|Purpose=родительская плата|OKTMO=40300003|CBC=00000000000000000130|Sum=1250000|Category=3000002555"}]
[]
[]
[null,"Структура реестра"]
[null,"Строка 2"]
[null,"Поле 1; Поле 2; Поле 3; …..; Поле t"]
[null,"…"]
[null,"Строка n"]
[null,"Поле 1; Поле 2; Поле 3; …..; Поле t"]
[null,"Контрольная строка (используется для исходящего реестра)"]
[null,"=Поле1;Поле2;Поле3;Поле4;Поле5;Поле6"]
[]
[]
[null,"Формат исходящего реестра"]
[null,"Имя архива",null,"ИНН_РС_код_счетчик_дата.zip"]
[null,null,null,"значение","описание","параметры"]
[null,null,null,"ИНН","ИНН поставщика услуг","XXXXXXXXXX"]
[null,null,null,"РС","Расчетный счет ПУ для перечисления д/с","YYYYYYYYYYYYYYYYYYYY"]
[null,null,null,"код","Код услуги. В качестве кода будут использоваться последние 3 символа “Лицевого счета” вида платежа ЕПС, дополненного лидирующими нулями.","001-999"]
[null,null,null,null,"Если “Лицевой счет” в ЕПС будет равен 0, код услуги будет пустой."]
[null,null,null,"счетчик","порядковый номер реестра в течение одного рабочего дня","00-99"]
[null,null,null,"дата","дата формирования реестра","ДДММГГГГ"]
[null,"Имя реестра",null,"SBкод_ПП_дата.txt "]
[null,null,null,"значение","описание","параметры"]
[null,null,null,"SB","константа"]
[null,null,null,"код","Код услуги. Аналогия с кодом услуги в имени архива"]
[null,null,null,"ПП","Номер платежного поручения","ZZZZZZ"]
[null,null,null,"дата","дата формирования реестра","ДДММГГГГ"]
[null,null,null,"txt","признак текстового файла"]
[null,"Кодировка",null,"WIN-1251\nKOI8-R\nUTF8"]
[null,"Разделители",null,"; (ASCII-код 59, точка с запятой)"]
[]
[]
[null,"Формат строк"]
[null,"Номер поля в реестре",null,"Наименование поля","Обязательное наличие информации в поле","Тип поля","Маска"]
[null,"Поле 1 строки",null,"Дата платежа","ДА","числовой","ДД-ММ-ГГГГ"]
[null,"Поле 2 строки",null,"Время платежа","ДА","числовой","00-00-00"]
[null,"Поле 3 строки",null,"Номер отделения","ДА","числовой"]
[null,"Поле 4 строки",null,"Номер кассира/УС/СБОЛ","ДА","числовой"]
[null,"Поле 5 строки",null,"Уникальный код операции в ЕПС","ДА","числовой"]
[null,"Поле 6 строки",null,"Фамилия, Имя, Отчество","ДА","текстовый","Фамилия, Имя, Отчество"]
[null,"Поле 7 строки",null,"Адрес","ДА","текстовый","Населенный пункт, улица, номер дома, номер квартиры"]
[null,"Поле 8 строки",null,"Дополнительная информация","НЕТ","текстовый"]
[null,"Поле 9 строки",null,"ОКТМО","ДА","числовой"]
[null,"Поле 10 строки",null,"КБК","ДА","числовой"]
[null,"Поле 11 строки",null,"Вид документа, удостов. личность","ДА","список"]
[null,"Поле 12 строки",null,"Номер документа, удостов. личность","ДА","текстовый"]
[null,"Поле 13 строки",null,"Сумма операции","ДА","цифровой",999999.99]
[null,"Поле 14 строки",null,"Сумма перевода","ДА","цифровой",999999.99]
[null,"Поле 15 строки",null,"Сумма комиссии банку","ДА","цифровой",999999.99]
[null,"Признак контрольной строки",null,"Знак равно \"=\"","ДА","текстовый","="]
[null,"Поле 1 контрольной строки",null,"Количество строк в реестре","ДА","числовой"]
[null,"Поле 2 контрольной строки",null,"Общая сумма принятых средств","ДА","числовой",999999.99]
[null,"Поле 3 контрольной строки",null,"Сумма перечисления клиенту","ДА","числовой",999999.99]
[null,"Поле 4 контрольной строки",null,"Комиссия банку","ДА","числовой",999999.99]
[null,"Поле 5 контрольной строки",null,"Номер платежного поручения","ДА","числовой"]
[null,"Поле 6 контрольной строки",null,"Дата платежного поручения","ДА","числовой","ДД-ММ-ГГГГ"]

{"sheet":"3_12","index":19,"n_rows":104,"n_cols":9,"rows_kept":104,"cut":false,"hidden":true,"merged":[[49,3,49,4],[31,1,31,4],[34,1,34,4],[46,3,46,4],[47,3,47,4],[48,3,48,4],[77,3,77,5],[78,3,78,5],[62,1,69,1],[62,3,62,5],[66,3,67,3],[66,5,67,5],[70,1,76,1],[70,3,70,5]]}
[null,"КОД ГРУППЫ РЕКВИЗИТОВ","БИЛЛИНГ","ШАБЛОН 3_12"]
[]
[null,"Группа реквизитов"]
["№","Наименование реквизита","Имя реквизита для ЕПС","Имя реквизита для ДШК","Тип реквизита","Режим ввода","Текст подсказки в СБОЛ","мин. длина","макс. Длина"]
[1,2,3,4,5,6,7,8,9]
[1,"Лицевой счет","ЛИЦЕВОЙ СЧЕТ","PersAcc","Ключевой.Обязательный.","Ручной","Введите лицевой счет, не менее 3-х и не более 30-ти символов.",3,30]
[2,"ФИО","ФИО_ПЛАТЕЛЬЩИКА","LastName, FirstName, MiddleName","Только для чтения","Из базы начислений",null,2,60]
[3,"Адрес","АДРЕС","PayerAddress","Только для чтения","Из базы начислений",null,1,90]
[4,"КБК","КБК","CBC","Только для чтения","Из базы начислений",null,20,20]
[5,"ОКТМО","ОКТМО","OKTMO","Только для чтения","Из базы начислений",null,8,11]
[6,"Вид документа","ВИД_ДОК",null,"Обязательный","Ручной","Выберите вид документа, удостоверяющего Вашу личность",0,250]
[7,"Номер документа","НОМЕР ДОКУМЕНТА",null,"Обязательный","Ручной","Введите номер и/или серию документа (без пробелов)",0,12]
[8,"Гражданство","ГРАЖДАНСТВО",null,"Обязательный","Ручной","Укажите страну, выдавшую документ",0,250]
[9,"Идентификатор плательщика услуги","ИПГУ",null,"Только для чтения","Автоматически",null,0,25]
[10,"УИП","УИП",null,"Только для чтения","Автоматически",null,0,32]
[]
[]
[null,null,"ОПИСАНИЕ ТЕГОВ ДЛЯ ДШК","Ваш текст для ДШК","ПРИМЕР"]
[null,"Идентификатор стандарта","СТАНДАРТ КОДИРОВКИ",null,"ST00012"]
[null,"Name","НАИМЕНОВАНИЕ ОРГАНИЗАЦИИ",null,"УФК ПО Г. САНКТ-ПЕТЕРБУРГУ (ОФК 02, ГОРНЫЙ УНИВЕРСИТЕТ, Л/С 190)"]
[null,"PersonalAcc","РАСЧЕТНЫЙ СЧЕТ",null,"40501810300002000001"]
[null,"BankName","НАИМЕНОВАНИЕ БАНКА ПОЛУЧАТЕЛЯ",null,"Северо-Западное ГУ Банка России"]
[null,"BIC","БИК",null,"044030001"]
[null,"CorrespAcc","КОР.СЧЕТ",null,"0"]
[null,"PayeeINN","ИНН ПОЛУЧАТЕЛЯ",null,"7801021076"]
[null,"persAcc","ЛИЦЕВОЙ СЧЕТ ПЛАТЕЛЬЩИКА",null,"7801021076033333","Ключевой.Обязательный."]
[null,"Sum","СУММА ПЛАТЕЖА",null,"1250000"]
[null,"Category","НОМЕР УСЛУГИ В СИСТЕМЕ БАНКА",null,3000002555]
[]
[]
[null,"Ваш текст для ДШК",null,"Для создания QR кода можно использовать генератор по адресу http://qrcoder.ru"]
[null,{"$f":"CONCATENATE(\"\",D19,\"|\",B20,\"=\",D20,\"|\",B21,A32,\"=\",D21,\"|\",B22,\"=\",D22,\"|\",B23,\"=\",D23,\"|\",B24,\"=\",D24,\"|\",B25,\"=\",D25,\"|\",B26,\"=\",D26,\"|\",B27,\"=\",D27,\"|\",B28,\"=\",D28,\"\")","v":"|Name=|PersonalAcc=|BankName=|BIC=|CorrespAcc=|PayeeINN=|persAcc=|Sum=|Category="}]
[]
[null,"ПРИМЕР"]
[null,{"$f":"CONCATENATE(\"\",E19,\"|Name=\",E20,\"|PersonalAcc=\",E21,\"|BankName=\",E22,\"|BIC=\",E23,\"|CorrespAcc=\",E24,\"|PayeeINN=\",E25,\"|persAcc=\",E26,\"|Sum=\",E27,\"|Category=\",E28,\"\")","v":"ST00012|Name=УФК ПО Г. САНКТ-ПЕТЕРБУРГУ (ОФК 02, ГОРНЫЙ УНИВЕРСИТЕТ, Л/С 190)|PersonalAcc=40501810300002000001|BankName=Северо-Западное ГУ Банка России|BIC=044030001|CorrespAcc=0|PayeeINN=7801021076|persAcc=7801021076033333|Sum=1250000|Category=3000002555"}]
[]
[]
[null,"Структура реестра"]
[null,"Поле 1; Поле 2; Поле 3; …..; Поле t"]
[null,"…"]
[null,"Строка n"]
[null,"Поле 1; Поле 2; Поле 3; …..; Поле t"]
[null,"Контрольная строка (используется для исходящего реестра)"]
[null,"=Поле1;Поле2;Поле3;Поле4;Поле5;Поле6"]
[]
[null,"Формат входящего реестра (может не использоваться)"]
[null,"Имя реестра",null,"ИИИИИИИИИ(ИИ)_ РРРРРРРРРРРРРРРРРРРР _XXX_ММDD.txt"]
[null,"Формат реестра",null,"txt"]
[null,"Кодировка",null,"WIN-1251\nKOI8-R\nUTF8"]
[null,"Разделители",null,"; (ASCII-код 59, точка с запятой)"]
[]
[]
[null,"Формат строк"]
[null,"Номер поля в реестре",null,"Наименование поля","Тип поля","Маска"]
[null,1,null,"Лицевой счет","текстовое"]
[null,2,null,"ФИО","текстовое","Фамилия, Имя, Отчетсво"]
[null,3,null,"Адрес","текстовое","Населенный пункт, адрес, номер дома, кв"]
[null,4,null,"КБК","числовое","мин. 20 знаков, макс 20"]
[null,5,null,"ОКТМО","числовое","мин. 8 знака макс. 11"]
[null,6,null,"Сумма","числовое",999999.99]
[]
[null,"Формат исходящего реестра"]
[null,"Имя архива",null,"ИНН_РС_код_счетчик_дата.zip"]
[null,null,null,"значение","описание","параметры"]
[null,null,null,"ИНН","ИНН поставщика услуг","XXXXXXXXXX"]
[null,null,null,"РС","Расчетный счет ПУ для перечисления д/с","YYYYYYYYYYYYYYYYYYYY"]
[null,null,null,"код","Код услуги. В качестве кода будут использоваться последние 3 символа “Лицевого счета” вида платежа ЕПС, дополненного лидирующими нулями.","001-999"]
[null,null,null,null,"Если “Лицевой счет” в ЕПС будет равен 0, код услуги будет пустой."]
[null,null,null,"счетчик","порядковый номер реестра в течение одного рабочего дня","00-99"]
[null,null,null,"дата","дата формирования реестра","ДДММГГГГ"]
[null,"Имя реестра",null,"SBкод_ПП_дата.txt "]
[null,null,null,"значение","описание","параметры"]
[null,null,null,"SB","константа"]
[null,null,null,"код","Код услуги. Аналогия с кодом услуги в имени архива"]
[null,null,null,"ПП","Номер платежного поручения","ZZZZZZ"]
[null,null,null,"дата","дата формирования реестра","ДДММГГГГ"]
[null,null,null,"txt","признак текстового файла"]
[null,"Кодировка",null,"WIN-1251\nKOI8-R\nUTF8"]
[null,"Разделители",null,"; (ASCII-код 59, точка с запятой)"]
[]
[]
[]
[null,"Формат строк"]
[null,"Номер поля в реестре",null,"Наименование поля","Обязательное наличие информации в поле","Тип поля","Маска"]
[null,"Поле 1 строки",null,"Дата платежа","ДА","числовой","ДД-ММ-ГГГГ"]
[null,"Поле 2 строки",null,"Время платежа","ДА","числовой","00-00-00"]
[null,"Поле 3 строки",null,"Номер отделения","ДА","числовой"]
[null,"Поле 4 строки",null,"Номер кассира/УС/СБОЛ","ДА","числовой"]
[null,"Поле 5 строки",null,"Уникальный код операции в ЕПС","ДА","числовой"]
[null,"Поле 6 строки",null,"Лицевой счет","ДА","текстовый"]
[null,"Поле 7 строки",null,"Фамилия, Имя, Отчество","ДА","текстовый","Фамилия, Имя, Отчество"]
[null,"Поле 8 строки",null,"Адрес","ДА","текстовый","Населенный пункт, улица, номер дома, номер квартиры"]
[null,"Поле 9 строки",null,"КБК","ДА","числовой"]
[null,"Поле 10 строки",null,"ОКТМО","ДА","числовой"]
[null,"Поле 11 строки",null,"Сумма операции","ДА","цифровой",999999.99]
[null,"Поле 12 строки",null,"Сумма перевода","ДА","цифровой",999999.99]
[null,"Поле 13 строки",null,"Сумма комиссии банку","ДА","цифровой",999999.99]
[null,"Признак контрольной строки",null,"Знак равно \"=\"","ДА","текстовый","="]
[null,"Поле 1 контрольной строки",null,"Количество строк в реестре","ДА","числовой"]
[null,"Поле 2 контрольной строки",null,"Общая сумма принятых средств","ДА","числовой",999999.99]
[null,"Поле 3 контрольной строки",null,"Сумма перечисления клиенту","ДА","числовой",999999.99]
[null,"Поле 4 контрольной строки",null,"Комиссия банку","ДА","числовой",999999.99]
[null,"Поле 5 контрольной строки",null,"Номер платежного поручения","ДА","числовой"]
[null,"Поле 6 контрольной строки",null,"Дата платежного поручения","ДА","числовой","ДД-ММ-ГГГГ"]

{"sheet":"3_13","index":20,"n_rows":94,"n_cols":9,"rows_kept":94,"cut":false,"hidden":true,"merged":[[62,1,68,1],[62,3,62,5],[69,3,69,5],[70,3,70,5],[36,1,36,4],[39,1,39,4],[54,1,61,1],[54,3,54,5],[58,3,59,3],[58,5,59,5]]}
[null,"КОД ГРУППЫ РЕКВИЗИТОВ",null,"ШАБЛОН 3_13"]
[]
[null,"Группа реквизитов"]
["№","Наименование реквизита","Имя реквизита для ЕПС","Имя реквизита для ДШК","Тип реквизита","Режим ввода","Текст подсказки в СБОЛ","мин. длина","макс. Длина"]
[1,2,3,4,5,6,7,8,9]
[1,"ФИО плательщика","ФИО_ПЛАТЕЛЬЩИКА","LastName, FirstName, MiddleName","Ключевой.Обязательный.","Ручной","Введите ФИО плательщика, например, Иванов Иван Иванович.",2,60]
[2,"Фамилия, имя ребенка","ФИ_РЕБЕНКА","ChildFio","Обязательный","Ручной","Введите фамилию и имя ребенка, например, Иванов Иван.",2,60]
[3,"Назначение платежа","НАЗНАЧЕНИЕ","Purpose","Необязательный","Ручной","Введите назначение платежа, наименование кружка или иную доп. информацию о платеже, не более 150 символов.",0,250]
[null,"Назначение платежа","НАЗНАЧЕНИЕ2",null,"Обязательный","Запрос из задолженности","Введите назначение платежа или иную дополнительную информацию о платеже, не более 150 символов.",0,250]
[4,"КБК","КБК","CBC","Обязательный","Ручной","Введите КБК, 20 цифр.",20,20]
[5,"ОКТМО","ОКТМО","OKTMO","Обязательный","Ручной","Введите ОКТМО, 8 цифр.",8,11]
[11,"Вид документа","ВИД_ДОК",null,"Обязательный","Ручной","Выберите вид документа, удостоверяющего Вашу личность",0,250]
[12,"Номер документа","НОМЕР ДОКУМЕНТА",null,"Обязательный","Ручной","Введите номер и/или серию документа (без пробелов)",0,12]
[13,"Гражданство","ГРАЖДАНСТВО",null,"Обязательный","Ручной","Укажите страну, выдавшую документ",0,250]
[14,"Идентификатор плательщика услуги","ИПГУ",null,"Только для чтения","Автоматически",null,0,25]
[15,"УИП","УИП",null,"Только для чтения","Автоматически",null,0,32]
[]
[]
[null,null,"ОПИСАНИЕ ТЕГОВ ДЛЯ ДШК","Ваш текст для ДШК","ПРИМЕР"]
[null,"Идентификатор стандарта","СТАНДАРТ КОДИРОВКИ",null,"ST00012"]
[null,"Name","НАИМЕНОВАНИЕ ОРГАНИЗАЦИИ",null,"УФК ПО Г. САНКТ-ПЕТЕРБУРГУ (ОФК 02, ГОРНЫЙ УНИВЕРСИТЕТ, Л/С 190)"]
[null,"PersonalAcc","РАСЧЕТНЫЙ СЧЕТ",null,"40501810300002000001"]
[null,"BankName","НАИМЕНОВАНИЕ БАНКА ПОЛУЧАТЕЛЯ",null,"Северо-Западное ГУ Банка России"]
[null,"BIC","БИК",null,"044030001"]
[null,"CorrespAcc","КОР.СЧЕТ",null,"0"]
[null,"PayeeINN","ИНН ПОЛУЧАТЕЛЯ",null,"7801021076"]
[null,"LastName","ФИО ПЛАТЕЛЬЩИКА",null,"Семенова Ирина Петровна","Ключевой.Обязательный."]
[null,"CBC","КБК",null,"00000000000000000130"]
[null,"OKTMO","ОКТМО",null,"40300003"]
[null,"ChildFio","ФИ РЕБЕНКА",null,"Семенов Михаил"]
[null,"Purpose","НАЗНАЧЕНИЕ ПЛАТЕЖА",null,"азбука"]
[null,"Sum","СУММА ПЛАТЕЖА",null,"12500"]
[null,"Category","НОМЕР УСЛУГИ В СИСТЕМЕ БАНКА",null,3000002555]
[]
[]
[null,"Ваш текст для ДШК",null,"Для создания QR кода можно использовать генератор по адресу http://qrcoder.ru"]
[null,{"$f":"CONCATENATE(\"\",D20,\"|\",B21,\"=\",D21,\"|\",B22,A37,\"=\",D22,\"|\",B23,\"=\",D23,\"|\",B24,\"=\",D24,\"|\",B25,\"=\",D25,\"|\",B26,\"=\",D26,\"|\",B28,\"=\",D28,\"|\",B29,\"=\",D29,\"|\",B27,\"=\",D27,\"|\",B30,\"=\",D30,\"|\",B31,\"=\",D31,\"|\",B32,\"=\",D32,\"|\",B33,\"=\",D33,\"\")","v":"|Name=|PersonalAcc=|BankName=|BIC=|CorrespAcc=|PayeeINN=|CBC=|OKTMO=|LastName=|ChildFio=|Purpose=|Sum=|Category="}]
[]
[null,"ПРИМЕР"]
[null,{"$f":"CONCATENATE(\"\",E20,\"|Name=\",E21,\"|PersonalAcc=\",E22,\"|BankName=\",E23,\"|BIC=\",E24,\"|CorrespAcc=\",E25,\"|PayeeINN=\",E26,\"|CBC=\",E28,\"|OKTMO=\",E29,\"|LastName=\",E27,\"|ChildFio=\",E30,\"|Purpose=\",E31,\"|Sum=\",E32,\"|Category=\",E33,\"\")","v":"ST00012|Name=УФК ПО Г. САНКТ-ПЕТЕРБУРГУ (ОФК 02, ГОРНЫЙ УНИВЕРСИТЕТ, Л/С 190)|PersonalAcc=40501810300002000001|BankName=Северо-Западное ГУ Банка России|BIC=044030001|CorrespAcc=0|PayeeINN=7801021076|CBC=00000000000000000130|OKTMO=40300003|LastName=Семенова Ирина Петровна|ChildFio=Семенов Михаил|Purpose=азбука|Sum=12500|Category=3000002555"}]
[]
[]
[null,"Структура реестра"]
[null,"Поле 1; Поле 2; Поле 3; …..; Поле t"]
[null,"Строка 2"]
[null,"Поле 1; Поле 2; Поле 3; …..; Поле t"]
[null,"…"]
[null,"Строка n"]
[null,"Поле 1; Поле 2; Поле 3; …..; Поле t"]
[null,"Контрольная строка (используется для исходящего реестра)"]
[null,"=Поле1;Поле2;Поле3;Поле4;Поле5;Поле6"]
[]
[]
[null,"Формат исходящего реестра"]
[null,"Имя архива",null,"ИНН_РС_код_счетчик_дата.zip"]
[null,null,null,"значение","описание","параметры"]
[null,null,null,"ИНН","ИНН поставщика услуг","XXXXXXXXXX"]
[null,null,null,"РС","Расчетный счет ПУ для перечисления д/с","YYYYYYYYYYYYYYYYYYYY"]
[null,null,null,"код","Код услуги. В качестве кода будут использоваться последние 3 символа “Лицевого счета” вида платежа ЕПС, дополненного лидирующими нулями.","001-999"]
[null,null,null,null,"Если “Лицевой счет” в ЕПС будет равен 0, код услуги будет пустой."]
[null,null,null,"счетчик","порядковый номер реестра в течение одного рабочего дня","00-99"]
[null,null,null,"дата","дата формирования реестра","ДДММГГГГ"]
[null,"Имя реестра",null,"SBкод_ПП_дата.txt "]
[null,null,null,"значение","описание","параметры"]
[null,null,null,"SB","константа"]
[null,null,null,"код","Код услуги. Аналогия с кодом услуги в имени архива"]
[null,null,null,"ПП","Номер платежного поручения","ZZZZZZ"]
[null,null,null,"дата","дата формирования реестра","ДДММГГГГ"]
[null,null,null,"txt","признак текстового файла"]
[null,"Кодировка",null,"WIN-1251\nKOI8-R\nUTF8"]
[null,"Разделители",null,"; (ASCII-код 59, точка с запятой)"]
[]
[null,"Формат строк"]
[null,"Номер поля в реестре",null,"Наименование поля","Обязательное наличие информации в поле","Тип поля","Маска"]
[null,"Поле 1 строки",null,"Дата платежа","ДА","числовой","ДД-ММ-ГГГГ"]
[null,"Поле 2 строки",null,"Время платежа","ДА","числовой","00-00-00"]
[null,"Поле 3 строки",null,"Номер отделения","ДА","числовой"]
[null,"Поле 4 строки",null,"Номер кассира/УС/СБОЛ","ДА","числовой"]
[null,"Поле 5 строки",null,"Уникальный код операции в ЕПС","ДА","числовой"]
[null,"Поле 6 строки",null,"Фамилия, Имя, Отчество","ДА","текстовый","Фамилия, Имя, Отчество"]
[null,"Поле 7 строки",null,"ФИ Ребенка","ДА","текстовый"]
[null,"Поле 8 строки",null,"Дополнительная информация","НЕТ","текстовый"]
[null,"Поле 9 строки",null,"ОКТМО","ДА","числовой"]
[null,"Поле 10 строки",null,"КБК","ДА","числовой"]
[null,"Поле 11 строки",null,"Сумма операции","ДА","цифровой",999999.99]
[null,"Поле 12 строки",null,"Сумма перевода","ДА","цифровой",999999.99]
[null,"Поле 13 строки",null,"Сумма комиссии банку","ДА","цифровой",999999.99]
[null,"Признак контрольной строки",null,"Знак равно \"=\"","ДА","текстовый","="]
[null,"Поле 1 контрольной строки",null,"Количество строк в реестре","ДА","числовой"]
[null,"Поле 2 контрольной строки",null,"Общая сумма принятых средств","ДА","числовой",999999.99]
[null,"Поле 3 контрольной строки",null,"Сумма перечисления клиенту","ДА","числовой",999999.99]
[null,"Поле 4 контрольной строки",null,"Комиссия банку","ДА","числовой",999999.99]
[null,"Поле 5 контрольной строки",null,"Номер платежного поручения","ДА","числовой"]
[null,"Поле 6 контрольной строки",null,"Дата платежного поручения","ДА","числовой","ДД-ММ-ГГГГ"]

{"sheet":"3_15","index":21,"n_rows":91,"n_cols":9,"rows_kept":91,"cut":false,"hidden":true,"merged":[[58,1,64,1],[58,3,58,5],[65,3,65,5],[66,3,66,5],[33,1,33,4],[36,1,36,4],[50,1,57,1],[50,3,50,5],[54,3,55,3],[54,5,55,5]]}
[null,"КОД ГРУППЫ РЕКВИЗИТОВ",null,"ШАБЛОН 3_15"]
[]
[null,"Группа реквизитов"]
["№","Наименование реквизита","Имя реквизита для ЕПС","Имя реквизита для ДШК","Тип реквизита","Режим ввода","Текст подсказки в СБОЛ","мин. длина","макс. Длина"]
[1,2,3,4,5,6,7,8,9]
[1,"ФИО плательщика","ФИО_ПЛАТЕЛЬЩИКА","LastName, FirstName, MiddleName","Ключевой.Обязательный.","Ручной","Введите ФИО плательщика, например, Иванов Иван Иванович.",2,60]
[2,"ФИО студента","ФИО_СТУДЕНТА","ChildFio","Обязательный","Ручной","Введите ФИО студента, например, Иванов Иван Иванович.",2,60]
[3,"Группа","N_ГРУППЫ","classNum","Обязательный","Ручной","Введите номер группы.",1,20]
[4,"Курс","КУРС",null,"Необязательный","Ручной","Введите номер курса, не более 1 символа, например, 3",1,15]
[5,"Вид дохода","ВИД_ДОХОДА",null,"Необязательный","Ручной","Введите вид дохода,  например, 1",1,6]
[6,"Вид документа","ВИД_ДОК",null,"Обязательный","Ручной","Выберите вид документа, удостоверяющего Вашу личность",0,250]
[7,"Номер документа","НОМЕР ДОКУМЕНТА",null,"Обязательный","Ручной","Введите номер и/или серию документа (без пробелов)",0,12]
[8,"Гражданство","ГРАЖДАНСТВО",null,"Обязательный","Ручной","Укажите страну, выдавшую документ",0,250]
[9,"Идентификатор плательщика услуги","ИПГУ",null,"Только для чтения","Автоматически",null,0,25]
[10,"УИП","УИП",null,"Только для чтения","Автоматически",null,0,32]
[]
[]
[null,null,"ОПИСАНИЕ ТЕГОВ ДЛЯ ДШК","Ваш текст для ДШК","ПРИМЕР"]
[null,"Идентификатор стандарта","СТАНДАРТ КОДИРОВКИ",null,"ST00012"]
[null,"Name","НАИМЕНОВАНИЕ ОРГАНИЗАЦИИ",null,"УФК ПО Г. САНКТ-ПЕТЕРБУРГУ (ОФК 02, ГОРНЫЙ УНИВЕРСИТЕТ, Л/С 190)"]
[null,"PersonalAcc","РАСЧЕТНЫЙ СЧЕТ",null,"40501810300002000001"]
[null,"BankName","НАИМЕНОВАНИЕ БАНКА ПОЛУЧАТЕЛЯ",null,"Северо-Западное ГУ Банка России"]
[null,"BIC","БИК",null,"044030001"]
[null,"CorrespAcc","КОР.СЧЕТ",null,"0"]
[null,"PayeeINN","ИНН ПОЛУЧАТЕЛЯ",null,"7801021076"]
[null,"LastName","ФИО ПЛАТЕЛЬЩИКА",null,"Семенова Ирина Петровна","Ключевой.Обязательный."]
[null,"ChildFio","ФИ ПЛАТЕЛЬЩИКА",null,"Семенов Иван Сергеевич"]
[null,"classNum","НОМЕР ГРУППЫ/ КЛАСС",null,"родничок 12"]
[null,"Sum","СУММА ПЛАТЕЖА",null,"1250000"]
[null,"Category","НОМЕР УСЛУГИ В СИСТЕМЕ БАНКА",null,3000002555]
[]
[]
[null,"Ваш текст для ДШК",null,"Для создания QR кода можно использовать генератор по адресу http://qrcoder.ru"]
[null,{"$f":"CONCATENATE(\"\",D19,\"|\",B20,\"=\",D20,\"|\",B21,A34,\"=\",D21,\"|\",B22,\"=\",D22,\"|\",B23,\"=\",D23,\"|\",B24,\"=\",D24,\"|\",B25,\"=\",D25,\"|\",B26,\"=\",D26,\"|\",B27,\"=\",D27,\"|\",B28,\"=\",D28,\"|\",B29,\"=\",D29,\"|\",B30,\"=\",D30,\"\")","v":"|Name=|PersonalAcc=|BankName=|BIC=|CorrespAcc=|PayeeINN=|LastName=|ChildFio=|classNum=|Sum=|Category="}]
[]
[null,"ПРИМЕР"]
[null,{"$f":"CONCATENATE(\"\",E19,\"|Name=\",E20,\"|PersonalAcc=\",E21,\"|BankName=\",E22,\"|BIC=\",E23,\"|CorrespAcc=\",E24,\"|PayeeINN=\",E25,\"|LastName=\",E26,\"|ChildFio=\",E27,\"|ClassNum=\",E28,\"|Sum=\",E29,\"|Category=\",E30,\"\")","v":"ST00012|Name=УФК ПО Г. САНКТ-ПЕТЕРБУРГУ (ОФК 02, ГОРНЫЙ УНИВЕРСИТЕТ, Л/С 190)|PersonalAcc=40501810300002000001|BankName=Северо-Западное ГУ Банка России|BIC=044030001|CorrespAcc=0|PayeeINN=7801021076|LastName=Семенова Ирина Петровна|ChildFio=Семенов Иван Сергеевич|ClassNum=родничок 12|Sum=1250000|Category=3000002555"}]
[]
[]
[null,"Структура реестра"]
[null,"Строка 2"]
[null,"Поле 1; Поле 2; Поле 3; …..; Поле t"]
[null,"…"]
[null,"Строка n"]
[null,"Поле 1; Поле 2; Поле 3; …..; Поле t"]
[null,"Контрольная строка (используется для исходящего реестра)"]
[null,"=Поле1;Поле2;Поле3;Поле4;Поле5;Поле6"]
[]
[]
[null,"Формат исходящего реестра"]
[null,"Имя архива",null,"ИНН_РС_код_счетчик_дата.zip"]
[null,null,null,"значение","описание","параметры"]
[null,null,null,"ИНН","ИНН поставщика услуг","XXXXXXXXXX"]
[null,null,null,"РС","Расчетный счет ПУ для перечисления д/с","YYYYYYYYYYYYYYYYYYYY"]
[null,null,null,"код","Код услуги. В качестве кода будут использоваться последние 3 символа “Лицевого счета” вида платежа ЕПС, дополненного лидирующими нулями.","001-999"]
[null,null,null,null,"Если “Лицевой счет” в ЕПС будет равен 0, код услуги будет пустой."]
[null,null,null,"счетчик","порядковый номер реестра в течение одного рабочего дня","00-99"]
[null,null,null,"дата","дата формирования реестра","ДДММГГГГ"]
[null,"Имя реестра",null,"SBкод_ПП_дата.txt "]
[null,null,null,"значение","описание","параметры"]
[null,null,null,"SB","константа"]
[null,null,null,"код","Код услуги. Аналогия с кодом услуги в имени архива"]
[null,null,null,"ПП","Номер платежного поручения","ZZZZZZ"]
[null,null,null,"дата","дата формирования реестра","ДДММГГГГ"]
[null,null,null,"txt","признак текстового файла"]
[null,"Кодировка",null,"WIN-1251\nKOI8-R\nUTF8"]
[null,"Разделители",null,"; (ASCII-код 59, точка с запятой)"]
[]
[]
[null,"Формат строк"]
[null,"Номер поля в реестре",null,"Наименование поля","Обязательное наличие информации в поле","Тип поля","Маска"]
[null,"Поле 1 строки",null,"Дата платежа","ДА","числовой","ДД-ММ-ГГГГ"]
[null,"Поле 2 строки",null,"Время платежа","ДА","числовой","00-00-00"]
[null,"Поле 3 строки",null,"Номер отделения","ДА","числовой"]
[null,"Поле 4 строки",null,"Номер кассира/УС/СБОЛ","ДА","числовой"]
[null,"Поле 5 строки",null,"Уникальный код операции в ЕПС","ДА","числовой"]
[null,"Поле 6 строки",null,"Фамилия, Имя, Отчество","ДА","текстовый","Фамилия, Имя, Отчество"]
[null,"Поле 7 строки",null,"ФИО студента","ДА","текстовый"]
[null,"Поле 8 строки",null,"Группа","ДА","числовой"]
[null,"Поле 9 строки",null,"Курс","ДА","числовой"]
[null,"Поле 10 строки",null,"Вид дохода","ДА","числовой"]
[null,"Поле 11 строки",null,"Сумма операции","ДА","цифровой",999999.99]
[null,"Поле 12 строки",null,"Сумма перевода","ДА","цифровой",999999.99]
[null,"Поле 13 строки",null,"Сумма комиссии банку","ДА","цифровой",999999.99]
[null,"Признак контрольной строки",null,"Знак равно \"=\"","ДА","текстовый","="]
[null,"Поле 1 контрольной строки",null,"Количество строк в реестре","ДА","числовой"]
[null,"Поле 2 контрольной строки",null,"Общая сумма принятых средств","ДА","числовой",999999.99]
[null,"Поле 3 контрольной строки",null,"Сумма перечисления клиенту","ДА","числовой",999999.99]
[null,"Поле 4 контрольной строки",null,"Комиссия банку","ДА","числовой",999999.99]
[null,"Поле 5 контрольной строки",null,"Номер платежного поручения","ДА","числовой"]
[null,"Поле 6 контрольной строки",null,"Дата платежного поручения","ДА","числовой","ДД-ММ-ГГГГ"]

{"sheet":"3_16","index":22,"n_rows":109,"n_cols":9,"rows_kept":109,"cut":false,"hidden":true,"merged":[[52,3,52,4],[34,1,34,4],[37,1,37,4],[49,3,49,4],[50,3,50,4],[51,3,51,4],[81,3,81,5],[82,3,82,5],[66,1,73,1],[66,3,66,5],[70,3,71,3],[70,5,71,5],[74,1,80,1],[74,3,74,5]]}
[null,"КОД ГРУППЫ РЕКВИЗИТОВ","БИЛЛИНГ","ШАБЛОН 3_16",null,null,"Лицевой счет ребенка, ФИО ребенка, Наименование МОУ,  Группа/Кружок, КБК, ОКТМО, ФИО плательщика"]
[]
[null,"Группа реквизитов"]
["№","Наименование реквизита","Имя реквизита для ЕПС","Имя реквизита для ДШК","Тип реквизита","Режим ввода","Текст подсказки в СБОЛ","мин. длина","макс. Длина"]
[1,2,3,4,5,6,7,8,9]
[1,"Лицевой счет ребенка","ЛИЦЕВОЙ СЧЕТ РЕБЕНКА","PersAcc","Ключевой.Обязательный.","Ручной","Введите лицевой счет, не менее 3-х и не более 30-ти символов.",3,30]
[2,"ФИО ребенка","ФИО_РЕБЕНКА","LastName, FirstName, MiddleName","Только для чтения","Из базы начислений"]
[3,"Наименование МОУ","НАИМЕНОВАНИЕ_МОУ",null,"Только для чтения","Из базы начислений",null,2,60]
[4,"Группа/Кружок","ГРУППА_КРУЖОК",null,"Только для чтения","Из базы начислений"]
[5,"КБК","КБК","CBC","Только для чтения","Из базы начислений",null,20,20]
[6,"ОКТМО","ОКТМО","OKTMO","Только для чтения","Из базы начислений",null,8,11]
[7,"ФИО плательщика","ФИО_ПЛАТЕЛЬЩИКА",null,"Обязательный","Ручной","Введите ФИО плательщика, например, Иванов Иван Иванович.",2,60]
[8,"Вид документа","ВИД_ДОК",null,"Обязательный","Ручной","Выберите вид документа, удостоверяющего Вашу личность",0,250]
[9,"Номер документа","НОМЕР ДОКУМЕНТА",null,"Обязательный","Ручной","Введите номер и/или серию документа (без пробелов)",0,12]
[10,"Гражданство","ГРАЖДАНСТВО",null,"Обязательный","Ручной","Укажите страну, выдавшую документ",0,250]
[11,"Идентификатор плательщика услуги","ИПГУ",null,"Только для чтения","Автоматически",null,0,25]
[12,"УИП","УИП",null,"Только для чтения","Автоматически",null,0,32]
[]
[]
[null,null,"ОПИСАНИЕ ТЕГОВ ДЛЯ ДШК","Ваш текст для ДШК","ПРИМЕР"]
[null,"Идентификатор стандарта","СТАНДАРТ КОДИРОВКИ",null,"ST00012"]
[null,"Name","НАИМЕНОВАНИЕ ОРГАНИЗАЦИИ",null,"УФК ПО Г. САНКТ-ПЕТЕРБУРГУ (ОФК 02, ГОРНЫЙ УНИВЕРСИТЕТ, Л/С 190)"]
[null,"PersonalAcc","РАСЧЕТНЫЙ СЧЕТ",null,"40501810300002000001"]
[null,"BankName","НАИМЕНОВАНИЕ БАНКА ПОЛУЧАТЕЛЯ",null,"Северо-Западное ГУ Банка России"]
[null,"BIC","БИК",null,"044030001"]
[null,"CorrespAcc","КОР.СЧЕТ",null,"0"]
[null,"PayeeINN","ИНН ПОЛУЧАТЕЛЯ",null,"7801021076"]
[null,"persAcc","НОМЕР ЛИЦЕВОГО СЧЕТА РЕБЕНКА",null,"1199055","Ключевой.Обязательный."]
[null,"LastName","ФИО РЕБЕНКА",null,"Иванов Иван Иванович"]
[null,"Sum","СУММА ПЛАТЕЖА",null,"137800"]
[null,"Category","НОМЕР УСЛУГИ В СИСТЕМЕ БАНКА",null,3000002555]
[]
[]
[null,"Ваш текст для ДШК",null,"Для создания QR кода можно использовать генератор по адресу http://qrcoder.ru"]
[null,{"$f":"CONCATENATE(\"\",D21,\"|\",B22,\"=\",D22,\"|\",B23,A35,\"=\",D23,\"|\",B24,\"=\",D24,\"|\",B25,\"=\",D25,\"|\",B26,\"=\",D26,\"|\",B27,\"=\",D27,\"|\",B28,\"=\",D28,\"|\",B29,\"=\",D29,\"|\",B30,\"=\",D30,\"|\",B31,\"=\",D31,\"\")","v":"|Name=|PersonalAcc=|BankName=|BIC=|CorrespAcc=|PayeeINN=|persAcc=|LastName=|Sum=|Category="}]
[]
[null,"ПРИМЕР"]
[null,{"$f":"CONCATENATE(\"\",E21,\"|Name=\",E22,\"|PersonalAcc=\",E23,\"|BankName=\",E24,\"|BIC=\",E25,\"|CorrespAcc=\",E26,\"|PayeeINN=\",E27,\"|persAcc=\",E28,\"|LastName=\",E29,\"|Sum=\",E30,\"|Category=\",E31,\"\")","v":"ST00012|Name=УФК ПО Г. САНКТ-ПЕТЕРБУРГУ (ОФК 02, ГОРНЫЙ УНИВЕРСИТЕТ, Л/С 190)|PersonalAcc=40501810300002000001|BankName=Северо-Западное ГУ Банка России|BIC=044030001|CorrespAcc=0|PayeeINN=7801021076|persAcc=1199055|LastName=Иванов Иван Иванович|Sum=137800|Category=3000002555"}]
[]
[]
[null,"Структура реестра"]
[null,"Поле 1; Поле 2; Поле 3; …..; Поле t"]
[null,"…"]
[null,"Строка n"]
[null,"Поле 1; Поле 2; Поле 3; …..; Поле t"]
[null,"Контрольная строка (используется для исходящего реестра)"]
[null,"=Поле1;Поле2;Поле3;Поле4;Поле5;Поле6"]
[]
[null,"Формат входящего реестра (может не использоваться)"]
[null,"Имя реестра",null,"ИИИИИИИИИ(ИИ)_ РРРРРРРРРРРРРРРРРРРР _XXX_ММDD.txt"]
[null,"Формат реестра",null,"txt"]
[null,"Кодировка",null,"WIN-1251\nKOI8-R\nUTF8"]
[null,"Разделители",null,"; (ASCII-код 59, точка с запятой)"]
[]
[]
[null,"Формат строк"]
[null,"Номер поля в реестре",null,"Наименование поля","Тип поля","Маска"]
[null,1,null,"Лицевой счет ребенка","числовой"]
[null,2,null,"ФИО ребенка","текстовое","Фамилия, Имя, Отчетсво"]
[null,3,null,"Наименование МОУ","текстовое"]
[null,4,null,"Группа/Кружок","текстовое"]
[null,5,null,"КБК","числовое","мин. 20 знаков, макс 20"]
[null,6,null,"ОКТМО","числовое","мин. 8 знака макс. 11"]
[null,7,null,"Сумма","числовое",999999.99]
[]
[null,"Формат исходящего реестра"]
[null,"Имя архива",null,"ИНН_РС_код_счетчик_дата.zip"]
[null,null,null,"значение","описание","параметры"]
[null,null,null,"ИНН","ИНН поставщика услуг","XXXXXXXXXX"]
[null,null,null,"РС","Расчетный счет ПУ для перечисления д/с","YYYYYYYYYYYYYYYYYYYY"]
[null,null,null,"код","Код услуги. В качестве кода будут использоваться последние 3 символа “Лицевого счета” вида платежа ЕПС, дополненного лидирующими нулями.","001-999"]
[null,null,null,null,"Если “Лицевой счет” в ЕПС будет равен 0, код услуги будет пустой."]
[null,null,null,"счетчик","порядковый номер реестра в течение одного рабочего дня","00-99"]
[null,null,null,"дата","дата формирования реестра","ДДММГГГГ"]
[null,"Имя реестра",null,"SBкод_ПП_дата.txt "]
[null,null,null,"значение","описание","параметры"]
[null,null,null,"SB","константа"]
[null,null,null,"код","Код услуги. Аналогия с кодом услуги в имени архива"]
[null,null,null,"ПП","Номер платежного поручения","ZZZZZZ"]
[null,null,null,"дата","дата формирования реестра","ДДММГГГГ"]
[null,null,null,"txt","признак текстового файла"]
[null,"Кодировка",null,"WIN-1251\nKOI8-R\nUTF8"]
[null,"Разделители",null,"; (ASCII-код 59, точка с запятой)"]
[]
[]
[null,"Формат строк"]
[null,"Номер поля в реестре",null,"Наименование поля","Обязательное наличие информации в поле","Тип поля","Маска"]
[null,"Поле 1 строки",null,"Дата платежа","ДА","числовой","ДД-ММ-ГГГГ"]
[null,"Поле 2 строки",null,"Время платежа","ДА","числовой","00-00-00"]
[null,"Поле 3 строки",null,"Номер отделения","ДА","числовой"]
[null,"Поле 4 строки",null,"Номер кассира/УС/СБОЛ","ДА","числовой"]
[null,"Поле 5 строки",null,"Уникальный код операции в ЕПС","ДА","числовой"]
[null,"Поле 6 строки",null,"Лицевой счет ребенка","ДА","числовой"]
[null,"Поле 7 строки",null,"Фамилия, Имя, Отчество ребенка","ДА","текстовый","Фамилия, Имя, Отчество"]
[null,"Поле 8 строки",null,"Наименование МОУ","ДА","текстовый","Населенный пункт, улица, номер дома, номер квартиры"]
[null,"Поле 9 строки",null,"Группа/Кружок","ДА","текстовый"]
[null,"Поле 10 строки",null,"КБК","ДА","числовой"]
[null,"Поле 11 строки",null,"ОКТМО","ДА","числовой"]
[null,"Поле 12 строки",null,"ФИО плательщика","ДА","текстовый","Фамилия, Имя, Отчество"]
[null,"Поле 13 строки",null,"Сумма операции","ДА","цифровой",999999.99]
[null,"Поле 14 строки",null,"Сумма перевода","ДА","цифровой",999999.99]
[null,"Поле 15 строки",null,"Сумма комиссии банку","ДА","цифровой",999999.99]
[null,"Признак контрольной строки",null,"Знак равно \"=\"","ДА","текстовый","="]
[null,"Поле 1 контрольной строки",null,"Количество строк в реестре","ДА","числовой"]
[null,"Поле 2 контрольной строки",null,"Общая сумма принятых средств","ДА","числовой",999999.99]
[null,"Поле 3 контрольной строки",null,"Сумма перечисления клиенту","ДА","числовой",999999.99]
[null,"Поле 4 контрольной строки",null,"Комиссия банку","ДА","числовой",999999.99]
[null,"Поле 5 контрольной строки",null,"Номер платежного поручения","ДА","числовой"]
[null,"Поле 6 контрольной строки",null,"Дата платежного поручения","ДА","числовой","ДД-ММ-ГГГГ"]

{"sheet":"4_1","index":23,"n_rows":95,"n_cols":9,"rows_kept":95,"cut":false,"hidden":true,"merged":[[58,1,64,1],[58,3,58,5],[65,3,65,5],[66,3,66,5],[31,1,31,4],[34,1,34,4],[50,1,57,1],[50,3,50,5],[54,3,55,3],[54,5,55,5]]}
[null,"КОД ГРУППЫ РЕКВИЗИТОВ",null,"ШАБЛОН 4_1"]
[]
[null,"Группа реквизитов"]
["№","Наименование реквизита","Имя реквизита для ЕПС","Имя реквизита для ДШК","Тип реквизита","Режим ввода","Текст подсказки в СБОЛ","мин. длина","макс. Длина"]
[1,2,3,4,5,6,7,8,9]
[1,"ФИО","ФИО_ПЛАТЕЛЬЩИКА","LastName, FirstName, MiddleName","Ключевой.Обязательный.","Ручной","Введите ФИО плательщика, например, Иванов Иван Иванович.",2,60]
[2,"Адрес","АДРЕС","PayerAddress","Необязательный","Ручной","Введите адрес плательщика, например, г. ХХХ, ул. ХХХ, ДХХ КВХХ",1,90]
[3,"ОКТМО","ОКТМО","OKTMO","Обязательный","Ручной","Введите ОКТМО",8,8]
[4,"КБК","КБК","CBC","Обязательный","Ручной","Введите КБК",20,20]
[5,"УИН","УИН","uin","Необязательный","Ручной","Введите УИН (уникальный идентификатор начисления), содержит 20 знаков.",20,25]
[6,"Назначение платежа","НАЗНАЧЕНИЕ","Purpose","Обязательный","Ручной","Введите назначение платежа (за какие работы/товары осуществляется платеж) или иную дополнительную информацию о платеже.",6,150]
[]
[]
[null,null,"ОПИСАНИЕ ТЕГОВ ДЛЯ ДШК","Ваш текст для ДШК","ПРИМЕР"]
[null,"Идентификатор стандарта","СТАНДАРТ КОДИРОВКИ",null,"ST00012"]
[null,"Name","НАИМЕНОВАНИЕ ОРГАНИЗАЦИИ",null,"УФК ПО Г. САНКТ-ПЕТЕРБУРГУ (ОФК 02, ГОРНЫЙ УНИВЕРСИТЕТ, Л/С 190)"]
[null,"PersonalAcc","РАСЧЕТНЫЙ СЧЕТ",null,"40501810300002000001"]
[null,"BankName","НАИМЕНОВАНИЕ БАНКА ПОЛУЧАТЕЛЯ",null,"Северо-Западное ГУ Банка России"]
[null,"BIC","БИК",null,"044030001"]
[null,"CorrespAcc","КОР.СЧЕТ",null,"0"]
[null,"PayeeINN","ИНН ПОЛУЧАТЕЛЯ",null,"7801021076"]
[null,"CBC","КБК",null,"00000000000000000130"]
[null,"OKTMO","ОКТМО",null,"40300003"]
[null,"LastName","ФИО ПЛАТЕЛЬЩИКА",null,"Семенова Ирина Петровна","Ключевой.Обязательный."]
[null,"PayerAddress","АДРЕС ПЛАТЕЛЬЩИКА",null,"Санкт-Петербург Лиговский 147 15"]
[null,"Purpose","НАЗНАЧЕНИЕ ПЛАТЕЖА",null,"оплата по счету 001-015 от 20.06.2016"]
[null,"Sum","СУММА ПЛАТЕЖА",null,"62000"]
[null,"Category","НОМЕР УСЛУГИ В СИСТЕМЕ БАНКА",null,3000002555]
[]
[]
[null,"Ваш текст для ДШК",null,"Для создания QR кода можно использовать генератор по адресу http://qrcoder.ru"]
[null,{"$f":"CONCATENATE(\"\",D15,\"|\",B16,\"=\",D16,\"|\",B17,A32,\"=\",D17,\"|\",B18,\"=\",D18,\"|\",B19,\"=\",D19,\"|\",B20,\"=\",D20,\"|\",B21,\"=\",D21,\"|\",B22,\"=\",D22,\"|\",B23,\"=\",D23,\"|\",B24,\"=\",D24,\"|\",B25,\"=\",D25,\"|\",B26,\"=\",D26,\"|\",B27,\"=\",D27,\"|\",B28,\"=\",D28,\"\")","v":"|Name=|PersonalAcc=|BankName=|BIC=|CorrespAcc=|PayeeINN=|CBC=|OKTMO=|LastName=|PayerAddress=|Purpose=|Sum=|Category="}]
[]
[null,"ПРИМЕР"]
[null,{"$f":"CONCATENATE(\"\",E15,\"|Name=\",E16,\"|PersonalAcc=\",E17,\"|BankName=\",E18,\"|BIC=\",E19,\"|CorrespAcc=\",E20,\"|PayeeINN=\",E21,\"|CBC=\",E22,\"|OKTMO=\",E23,\"|LastName=\",E24,\"|PayerAddress=\",E25,\"|Purpose=\",E26,\"|Sum=\",E27,\"|Category=\",E28,\"\")","v":"ST00012|Name=УФК ПО Г. САНКТ-ПЕТЕРБУРГУ (ОФК 02, ГОРНЫЙ УНИВЕРСИТЕТ, Л/С 190)|PersonalAcc=40501810300002000001|BankName=Северо-Западное ГУ Банка России|BIC=044030001|CorrespAcc=0|PayeeINN=7801021076|CBC=00000000000000000130|OKTMO=40300003|LastName=Семенова Ирина Петровна|PayerAddress=Санкт-Петербург Лиговский 147 15|Purpose=оплата по счету 001-015 от 20.06.2016|Sum=62000|Category=3000002555"}]
[]
[]
[null,"Структура реестра"]
[null,"Строка 1"]
[null,"Поле 1; Поле 2; Поле 3; …..; Поле t"]
[null,"Строка 2"]
[null,"Поле 1; Поле 2; Поле 3; …..; Поле t"]
[null,"…"]
[null,"Строка n"]
[null,"Поле 1; Поле 2; Поле 3; …..; Поле t"]
[null,"Контрольная строка (используется для исходящего реестра)"]
[null,"=Поле1;Поле2;Поле3;Поле4;Поле5;Поле6"]
[]
[]
[null,"Формат исходящего реестра"]
[null,"Имя архива",null,"ИНН_РС_код_счетчик_дата.zip"]
[null,null,null,"значение","описание","параметры"]
[null,null,null,"ИНН","ИНН поставщика услуг","XXXXXXXXXX"]
[null,null,null,"РС","Расчетный счет ПУ для перечисления д/с","YYYYYYYYYYYYYYYYYYYY"]
[null,null,null,"код","Код услуги. В качестве кода будут использоваться последние 3 символа “Лицевого счета” вида платежа ЕПС, дополненного лидирующими нулями.","001-999"]
[null,null,null,null,"Если “Лицевой счет” в ЕПС будет равен 0, код услуги будет пустой."]
[null,null,null,"счетчик","порядковый номер реестра в течение одного рабочего дня","00-99"]
[null,null,null,"дата","дата формирования реестра","ДДММГГГГ"]
[null,"Имя реестра",null,"SBкод_ПП_дата.txt "]
[null,null,null,"значение","описание","параметры"]
[null,null,null,"SB","константа"]
[null,null,null,"код","Код услуги. Аналогия с кодом услуги в имени архива"]
[null,null,null,"ПП","Номер платежного поручения","ZZZZZZ"]
[null,null,null,"дата","дата формирования реестра","ДДММГГГГ"]
[null,null,null,"txt","признак текстового файла"]
[null,"Кодировка",null,"WIN-1251\nKOI8-R\nUTF8"]
[null,"Разделители",null,"; (ASCII-код 59, точка с запятой)"]
[]
[]
[null,"Формат строк"]
[null,"Номер поля в реестре",null,"Наименование поля","Обязательное наличие информации в поле","Тип поля","Маска"]
[null,"Поле 1 строки",null,"Дата платежа","ДА","числовой","ДД-ММ-ГГГГ"]
[null,"Поле 2 строки",null,"Время платежа","ДА","числовой","00-00-00"]
[null,"Поле 3 строки",null,"Номер отделения","ДА","числовой"]
[null,"Поле 4 строки",null,"Номер кассира/УС/СБОЛ","ДА","числовой"]
[null,"Поле 5 строки",null,"Уникальный код операции в ЕПС","ДА","числовой"]
[null,"Поле 6 строки",null,"Фамилия, Имя, Отчество","ДА","текстовый","Фамилия, Имя, Отчество"]
[null,"Поле 7 строки",null,"Адрес","ДА","текстовый","Населенный пункт, улица, номер дома, номер квартиры"]
[null,"Поле 8 строки",null,"ОКТМО","ДА","числовой"]
[null,"Поле 9 строки",null,"КБК","ДА","числовой"]
[null,"Поле 10 строки",null,"УИН",null,"числовой"]
[null,"Поле 11 строки",null,"СНИЛС",null,"числовой"]
[null,"Поле 12 строки",null,"ИНН Плательщика",null,"числовой"]
[null,"Поле 13 строки",null,"серия и номер паспорта",null,"числовой"]
[null,"Поле 14 строки",null,"Дополнительная информация","НЕТ","текстовый"]
[null,"Поле 15 строки",null,"Сумма операции","ДА","цифровой",999999.99]
[null,"Поле 16 строки",null,"Сумма перевода","ДА","цифровой",999999.99]
[null,"Поле 17 строки",null,"Сумма комиссии банку","ДА","цифровой",999999.99]
[null,"Признак контрольной строки",null,"Знак равно \"=\"","ДА","текстовый","="]
[null,"Поле 1 контрольной строки",null,"Количество строк в реестре","ДА","числовой"]
[null,"Поле 2 контрольной строки",null,"Общая сумма принятых средств","ДА","числовой",999999.99]
[null,"Поле 3 контрольной строки",null,"Сумма перечисления клиенту","ДА","числовой",999999.99]
[null,"Поле 4 контрольной строки",null,"Комиссия банку","ДА","числовой",999999.99]
[null,"Поле 5 контрольной строки",null,"Номер платежного поручения","ДА","числовой"]
[null,"Поле 6 контрольной строки",null,"Дата платежного поручения","ДА","числовой","ДД-ММ-ГГГГ"]

{"sheet":"5_1","index":24,"n_rows":85,"n_cols":9,"rows_kept":85,"cut":false,"hidden":true,"merged":[[51,1,57,1],[51,3,51,5],[58,3,58,5],[59,3,59,5],[24,1,24,4],[27,1,27,4],[43,1,50,1],[43,3,43,5],[47,3,48,3],[47,5,48,5]]}
[null,"КОД ГРУППЫ РЕКВИЗИТОВ",null,"ШАБЛОН 5_1"]
[]
[null,"Группа реквизитов"]
["№","Наименование реквизита","Имя реквизита для ЕПС","Имя реквизита для ДШК","Тип реквизита","Режим ввода","Текст подсказки в СБОЛ","мин. длина","макс. Длина"]
[1,2,3,4,5,6,7,8,9]
[1,"ФИО","ФИО_ПЛАТЕЛЬЩИКА","LastName, FirstName, MiddleName","Ключевой.Обязательный.","Ручной","Введите ФИО плательщика, например, Иванов Иван Иванович.",2,60]
[2,"Адрес","АДРЕС","PayerAddress","Обязательный","Ручной","Введите адрес плательщика, например, г. Псков, ул. Шверника, д.11-111.",1,90]
[]
[]
[null,null,"ОПИСАНИЕ ТЕГОВ ДЛЯ ДШК","Ваш текст для ДШК","ПРИМЕР"]
[null,"Идентификатор стандарта","СТАНДАРТ КОДИРОВКИ",null,"ST00012"]
[null,"Name","НАИМЕНОВАНИЕ ОРГАНИЗАЦИИ",null,"Фонд развития МСГ"]
[null,"PersonalAcc","РАСЧЕТНЫЙ СЧЕТ",null,"40703810455160000101"]
[null,"BankName","НАИМЕНОВАНИЕ БАНКА ПОЛУЧАТЕЛЯ",null,"Северо-Западный ПАО Сбербанк"]
[null,"BIC","БИК",null,"044030653"]
[null,"CorrespAcc","КОР.СЧЕТ",null,"30101810500000000653"]
[null,"PayeeINN","ИНН ПОЛУЧАТЕЛЯ",null,"7810393602"]
[null,"LastName","ФИО ПЛАТЕЛЬЩИКА",null,"Семенова Ирина Петровна","Ключевой.Обязательный."]
[null,"payerAddress","АДРЕС ПЛАТЕЛЬЩИКА",null,"Санкт-Петербург пр Богатырский 43 1 367"]
[null,"Sum","СУММА ПЛАТЕЖА",null,"10000"]
[null,"Category","НОМЕР УСЛУГИ В СИСТЕМЕ БАНКА",null,"9090342296"]
[]
[]
[null,"Ваш текст для ДШК",null,"Для создания QR кода можно использовать генератор по адресу http://qrcoder.ru"]
[null,{"$f":"CONCATENATE(\"\",D11,\"|\",B12,\"=\",D12,\"|\",B13,A25,\"=\",D13,\"|\",B14,\"=\",D14,\"|\",B15,\"=\",D15,\"|\",B16,\"=\",D16,\"|\",B17,\"=\",D17,\"|\",B18,\"=\",D18,\"|\",B19,\"=\",D19,\"|\",B20,\"=\",D20,\"|\",B21,\"=\",D21,\"\")","v":"|Name=|PersonalAcc=|BankName=|BIC=|CorrespAcc=|PayeeINN=|LastName=|payerAddress=|Sum=|Category="}]
[]
[null,"ПРИМЕР"]
[null,{"$f":"CONCATENATE(\"\",E11,\"|Name=\",E12,\"|PersonalAcc=\",E13,\"|BankName=\",E14,\"|BIC=\",E15,\"|CorrespAcc=\",E16,\"|PayeeINN=\",E17,\"|LastName=\",E18,\"|payerAddress=\",E19,\"|Sum=\",E20,\"|Category=\",E21,\"\")","v":"ST00012|Name=Фонд развития МСГ|PersonalAcc=40703810455160000101|BankName=Северо-Западный ПАО Сбербанк|BIC=044030653|CorrespAcc=30101810500000000653|PayeeINN=7810393602|LastName=Семенова Ирина Петровна|payerAddress=Санкт-Петербург пр Богатырский 43 1 367|Sum=10000|Category=9090342296"}]
[]
[]
[null,"Структура реестра"]
[null,"Строка 1"]
[null,"Поле 1; Поле 2; Поле 3; …..; Поле t"]
[null,"Строка 2"]
[null,"Поле 1; Поле 2; Поле 3; …..; Поле t"]
[null,"…"]
[null,"Строка n"]
[null,"Поле 1; Поле 2; Поле 3; …..; Поле t"]
[null,"Контрольная строка (используется для исходящего реестра)"]
[null,"=Поле1;Поле2;Поле3;Поле4;Поле5;Поле6"]
[]
[]
[null,"Формат исходящего реестра"]
[null,"Имя архива",null,"ИНН_РС_код_счетчик_дата.zip"]
[null,null,null,"значение","описание","параметры"]
[null,null,null,"ИНН","ИНН поставщика услуг","XXXXXXXXXX"]
[null,null,null,"РС","Расчетный счет ПУ для перечисления д/с","YYYYYYYYYYYYYYYYYYYY"]
[null,null,null,"код","Код услуги. В качестве кода будут использоваться последние 3 символа “Лицевого счета” вида платежа ЕПС, дополненного лидирующими нулями.","001-999"]
[null,null,null,null,"Если “Лицевой счет” в ЕПС будет равен 0, код услуги будет пустой."]
[null,null,null,"счетчик","порядковый номер реестра в течение одного рабочего дня","00-99"]
[null,null,null,"дата","дата формирования реестра","ДДММГГГГ"]
[null,"Имя реестра",null,"SBкод_ПП_дата.txt "]
[null,null,null,"значение","описание","параметры"]
[null,null,null,"SB","константа"]
[null,null,null,"код","Код услуги. Аналогия с кодом услуги в имени архива"]
[null,null,null,"ПП","Номер платежного поручения","ZZZZZZ"]
[null,null,null,"дата","дата формирования реестра","ДДММГГГГ"]
[null,null,null,"txt","признак текстового файла"]
[null,"Кодировка",null,"WIN-1251\nKOI8-R\nUTF8"]
[null,"Разделители",null,"; (ASCII-код 59, точка с запятой)"]
[]
[]
[]
[null,"Формат строк"]
[null,"Номер поля в реестре",null,"Наименование поля","Обязательное наличие информации в поле","Тип поля","Маска"]
[null,"Поле 1 строки",null,"Дата платежа","ДА","числовой","ДД-ММ-ГГГГ"]
[null,"Поле 2 строки",null,"Время платежа","ДА","числовой","00-00-00"]
[null,"Поле 3 строки",null,"Номер отделения","ДА","числовой"]
[null,"Поле 4 строки",null,"Номер кассира/УС/СБОЛ","ДА","числовой"]
[null,"Поле 5 строки",null,"Уникальный код операции в ЕПС","ДА","числовой"]
[null,"Поле 6 строки",null,"Лицевой счет","НЕТ","текстовый"]
[null,"Поле 7 строки",null,"Фамилия, Имя, Отчество","ДА","текстовый","Фамилия, Имя, Отчество"]
[null,"Поле 8 строки",null,"Адрес","ДА","текстовый","Населенный пункт, улица, номер дома, номер квартиры"]
[null,"Поле 9 строки",null,"Наименование услуги","НЕТ","текстовый"]
[null,"Поле 10 строки",null,"Дополнительная информация","НЕТ","текстовый"]
[null,"Поле 11 строки",null,"Сумма операции","ДА","цифровой",999999.99]
[null,"Поле 12 строки",null,"Сумма перевода","ДА","цифровой",999999.99]
[null,"Поле 13 строки",null,"Сумма комиссии банку","ДА","цифровой",999999.99]
[null,"Признак контрольной строки",null,"Знак равно \"=\"","ДА","текстовый","="]
[null,"Поле 1 контрольной строки",null,"Количество строк в реестре","ДА","числовой"]
[null,"Поле 2 контрольной строки",null,"Общая сумма принятых средств","ДА","числовой",999999.99]
[null,"Поле 3 контрольной строки",null,"Сумма перечисления клиенту","ДА","числовой",999999.99]
[null,"Поле 4 контрольной строки",null,"Комиссия банку","ДА","числовой",999999.99]
[null,"Поле 5 контрольной строки",null,"Номер платежного поручения","ДА","числовой"]
[null,"Поле 6 контрольной строки",null,"Дата платежного поручения","ДА","числовой","ДД-ММ-ГГГГ"]

{"sheet":"6_1","index":25,"n_rows":89,"n_cols":9,"rows_kept":89,"cut":false,"hidden":true,"merged":[[43,3,43,4],[22,1,22,4],[25,1,25,4],[40,3,40,4],[41,3,41,4],[42,3,42,4],[67,3,67,5],[68,3,68,5],[52,1,59,1],[52,3,52,5],[56,3,57,3],[56,5,57,5],[60,1,66,1],[60,3,60,5]]}
[null,"КОД ГРУППЫ РЕКВИЗИТОВ","БИЛЛИНГ, ОН ЛАЙН","ШАБЛОН 6_1"]
[]
[null,"Группа реквизитов"]
["№","Наименование реквизита","Имя реквизита для ЕПС","Имя реквизита для ДШК","Тип реквизита","Режим ввода","Текст подсказки в СБОЛ","мин. длина","макс. Длина"]
[1,2,3,4,5,6,7,8,9]
[1,"Лицевой счет","ЛИЦЕВОЙ СЧЕТ","PersAcc","Ключевой.Обязательный.","Ручной","Введите лицевой счет, не менее 3-х и не более 30-ти символов.",3,30]
[]
[]
[null,null,"ОПИСАНИЕ ТЕГОВ ДЛЯ ДШК","Ваш текст для ДШК","ПРИМЕР"]
[null,"Идентификатор стандарта","СТАНДАРТ КОДИРОВКИ",null,"ST00012"]
[null,"Name","НАИМЕНОВАНИЕ ОРГАНИЗАЦИИ",null,"ООО ИНФОТЕХ"]
[null,"PersonalAcc","РАСЧЕТНЫЙ СЧЕТ",null,"40702810755130183584"]
[null,"BankName","НАИМЕНОВАНИЕ БАНКА ПОЛУЧАТЕЛЯ",null,"Северо-Западный ПАО Сбербанк"]
[null,"BIC","БИК",null,"044030653"]
[null,"CorrespAcc","КОР.СЧЕТ",null,"30101810500000000653"]
[null,"PayeeINN","ИНН ПОЛУЧАТЕЛЯ",null,"7806326642"]
[null,"persAcc","ЛИЦЕВОЙ СЧЕТ ПЛАТЕЛЬЩИКА",null,"111","Ключевой.Обязательный."]
[null,"Sum","СУММА ПЛАТЕЖА",null,"10000"]
[null,"Category","НОМЕР УСЛУГИ В СИСТЕМЕ БАНКА",null,"1826967695"]
[]
[]
[null,"Ваш текст для ДШК",null,"Для создания QR кода можно использовать генератор по адресу http://qrcoder.ru"]
[null,{"$f":"CONCATENATE(\"\",D10,\"|\",B11,\"=\",D11,\"|\",B12,A23,\"=\",D12,\"|\",B13,\"=\",D13,\"|\",B14,\"=\",D14,\"|\",B15,\"=\",D15,\"|\",B16,\"=\",D16,\"|\",B17,\"=\",D17,\"|\",B18,\"=\",D18,\"|\",B19,\"=\",D19,\"\")","v":"|Name=|PersonalAcc=|BankName=|BIC=|CorrespAcc=|PayeeINN=|persAcc=|Sum=|Category="}]
[]
[null,"ПРИМЕР"]
[null,{"$f":"CONCATENATE(\"\",E10,\"|Name=\",E11,\"|PersonalAcc=\",E12,\"|BankName=\",E13,\"|BIC=\",E14,\"|CorrespAcc=\",E15,\"|PayeeINN=\",E16,\"|persAcc=\",E17,\"|Sum=\",E18,\"|Category=\",E19,\"\")","v":"ST00012|Name=ООО ИНФОТЕХ|PersonalAcc=40702810755130183584|BankName=Северо-Западный ПАО Сбербанк|BIC=044030653|CorrespAcc=30101810500000000653|PayeeINN=7806326642|persAcc=111|Sum=10000|Category=1826967695"}]
[]
[]
[null,"Структура реестра"]
[null,"Строка 1"]
[null,"Поле 1; Поле 2; Поле 3; …..; Поле t"]
[null,"Строка 2"]
[null,"Поле 1; Поле 2; Поле 3; …..; Поле t"]
[null,"…"]
[null,"Строка n"]
[null,"Поле 1; Поле 2; Поле 3; …..; Поле t"]
[null,"Контрольная строка (используется для исходящего реестра)"]
[null,"=Поле1;Поле2;Поле3;Поле4;Поле5;Поле6"]
[]
[null,"Формат входящего реестра (может не использоваться)"]
[null,"Имя реестра",null,"ИИИИИИИИИ(ИИ)_ РРРРРРРРРРРРРРРРРРРР _XXX_ММDD.txt"]
[null,"Формат реестра",null,"txt"]
[null,"Кодировка",null,"WIN-1251\nKOI8-R\nUTF8"]
[null,"Разделители",null,"; (ASCII-код 59, точка с запятой)"]
[]
[]
[null,"Формат строк"]
[null,"Номер поля в реестре",null,"Наименование поля","Тип поля","Маска"]
[null,1,null,"Лицевой счет","текстовое","мин. 3 знака макс. 50"]
[null,2,null,"Сумма начислений","числовое",999999.99]
[]
[null,"Формат исходящего реестра"]
[null,"Имя архива",null,"ИНН_РС_код_счетчик_дата.zip"]
[null,null,null,"значение","описание","параметры"]
[null,null,null,"ИНН","ИНН поставщика услуг","XXXXXXXXXX"]
[null,null,null,"РС","Расчетный счет ПУ для перечисления д/с","YYYYYYYYYYYYYYYYYYYY"]
[null,null,null,"код","Код услуги. В качестве кода будут использоваться последние 3 символа “Лицевого счета” вида платежа ЕПС, дополненного лидирующими нулями.","001-999"]
[null,null,null,null,"Если “Лицевой счет” в ЕПС будет равен 0, код услуги будет пустой."]
[null,null,null,"счетчик","порядковый номер реестра в течение одного рабочего дня","00-99"]
[null,null,null,"дата","дата формирования реестра","ДДММГГГГ"]
[null,"Имя реестра",null,"SBкод_ПП_дата.txt "]
[null,null,null,"значение","описание","параметры"]
[null,null,null,"SB","константа"]
[null,null,null,"код","Код услуги. Аналогия с кодом услуги в имени архива"]
[null,null,null,"ПП","Номер платежного поручения","ZZZZZZ"]
[null,null,null,"дата","дата формирования реестра","ДДММГГГГ"]
[null,null,null,"txt","признак текстового файла"]
[null,"Кодировка",null,"WIN-1251\nKOI8-R\nUTF8"]
[null,"Разделители",null,"; (ASCII-код 59, точка с запятой)"]
[]
[]
[null,"Формат строк"]
[null,"Номер поля в реестре",null,"Наименование поля","Обязательное наличие информации в поле","Тип поля","Маска"]
[null,"Поле 1 строки",null,"Дата платежа","ДА","числовой","ДД-ММ-ГГГГ"]
[null,"Поле 2 строки",null,"Время платежа","ДА","числовой","00-00-00"]
[null,"Поле 3 строки",null,"Номер отделения","ДА","числовой"]
[null,"Поле 4 строки",null,"Номер кассира/УС/СБОЛ","ДА","числовой"]
[null,"Поле 5 строки",null,"Уникальный код операции в ЕПС","ДА","числовой"]
[null,"Поле 6 строки",null,"Лицевой счет","ДА","строка"]
[null,"Поле 7 строки",null,"Сумма операции","ДА","цифровой",999999.99]
[null,"Поле 8 строки",null,"Сумма перевода","ДА","цифровой",999999.99]
[null,"Поле 9 строки",null,"Сумма комиссии банку","ДА","цифровой",999999.99]
[null,"Признак контрольной строки",null,"Знак равно \"=\"","ДА","текстовый","="]
[null,"Поле 1 контрольной строки",null,"Количество строк в реестре","ДА","числовой"]
[null,"Поле 2 контрольной строки",null,"Общая сумма принятых средств","ДА","числовой",999999.99]
[null,"Поле 3 контрольной строки",null,"Сумма перечисления клиенту","ДА","числовой",999999.99]
[null,"Поле 4 контрольной строки",null,"Комиссия банку","ДА","числовой",999999.99]
[null,"Поле 5 контрольной строки",null,"Номер платежного поручения","ДА","числовой"]
[null,"Поле 6 контрольной строки",null,"Дата платежного поручения","ДА","числовой","ДД-ММ-ГГГГ"]

{"sheet":"6_2","index":26,"n_rows":66,"n_cols":9,"rows_kept":66,"cut":false,"hidden":true,"merged":[[25,1,25,4],[28,1,28,4]]}
[null,"КОД ГРУППЫ РЕКВИЗИТОВ","ПЛАТЕЖИ ОН-ЛАЙН","ШАБЛОН 6_2"]
[]
[null,"Группа реквизитов"]
["№","Наименование реквизита","Имя реквизита для ЕПС","Имя реквизита для ДШК","Тип реквизита","Режим ввода","Текст подсказки в СБОЛ","мин. длина","макс. Длина"]
[1,2,3,4,5,6,7,8,9]
[1,"Лицевой счет","SCHET","PersAcc","Ключевой.Обязательный.","Из базы начислений","Введите лицевой счет, не менее 3-х и не более 20-ти символов.",0,20]
[2,"ФИО","FIO","LastName, FirstName, MiddleName","Только для чтения","Из базы начислений",null,1,50]
[3,"Адрес","ADDRESS","PayerAddress","Только для чтения","Из базы начислений",null,0,100]
[4,"Дополнительная информация","НАЗНАЧЕНИЕ","Purpose","Только для чтения","Из базы начислений",null,1,99]
[5,"Баланс","BALANCE",null,"Только для чтения","Из базы начислений",null,1,20]
[]
[]
[null,null,"ОПИСАНИЕ ТЕГОВ ДЛЯ ДШК","Ваш текст для ДШК","ПРИМЕР"]
[null,"Идентификатор стандарта","СТАНДАРТ КОДИРОВКИ",null,"ST00012"]
[null,"Name","НАИМЕНОВАНИЕ ОРГАНИЗАЦИИ",null,"ОАО Комбинат питания Кировский"]
[null,"PersonalAcc","РАСЧЕТНЫЙ СЧЕТ",null,"40702810955240003396"]
[null,"BankName","НАИМЕНОВАНИЕ БАНКА ПОЛУЧАТЕЛЯ",null,"Северо-Западный ПАО Сбербанк"]
[null,"BIC","БИК",null,"044030653"]
[null,"CorrespAcc","КОР.СЧЕТ",null,"30101810500000000653"]
[null,"PayeeINN","ИНН ПОЛУЧАТЕЛЯ",null,7805396573]
[null,"persAcc","ЛИЦЕВОЙ СЧЕТ ПЛАТЕЛЬЩИКА",null,"01693904","Ключевой.Обязательный."]
[null,"Category","НОМЕР УСЛУГИ В СИСТЕМЕ БАНКА",null,"1926850036"]
[]
[]
[null,"Ваш текст для ДШК",null,"Для создания QR кода можно использовать генератор по адресу http://qrcoder.ru"]
[null,{"$f":"CONCATENATE(\"\",D14,\"|\",B15,\"=\",D15,\"|\",B16,A26,\"=\",D16,\"|\",B17,\"=\",D17,\"|\",B18,\"=\",D18,\"|\",B19,\"=\",D19,\"|\",B20,\"=\",D20,\"|\",B21,\"=\",D21,\"|\",B22,\"=\",D22,\"\")","v":"|Name=|PersonalAcc=|BankName=|BIC=|CorrespAcc=|PayeeINN=|persAcc=|Category="}]
[]
[null,"ПРИМЕР"]
[null,{"$f":"CONCATENATE(\"\",E14,\"|Name=\",E15,\"|PersonalAcc=\",E16,\"|BankName=\",E17,\"|BIC=\",E18,\"|CorrespAcc=\",E19,\"|PayeeINN=\",E20,\"|persAcc=\",E21,\"|Category=\",E22,\"\")","v":"ST00012|Name=ОАО Комбинат питания Кировский|PersonalAcc=40702810955240003396|BankName=Северо-Западный ПАО Сбербанк|BIC=044030653|CorrespAcc=30101810500000000653|PayeeINN=7805396573|persAcc=01693904|Category=1926850036"}]
[]
[]
[null,"Структура реестра начислений и реестра оплат"]
[null,"Строка 1"]
[null,"Поле 1; Поле 2; Поле 3; …..; Поле 13"]
[null,"Строка 2"]
[null,"Поле 1; Поле 2; Поле 3; …..; Поле 13"]
[null,"…"]
[null,"Строка n"]
[null,"Поле 1; Поле 2; Поле 3; …..; Поле 13"]
[null,"Контрольная строка",null," (используется для исходящего реестра)"]
[null,"=Поле1; Поле2; Поле3; Поле4; Поле5"]
[]
[null,"Используется типовой онлайн Протокол"]
[]
[null,"Формат строк"]
[null,"Номер поля в реестре",null,"Наименование поля","Обязательное наличие информации в поле","Тип поля","Маска"]
[null,"Поле 1 строки",null,"Дата платежа","ДА","числовой","ДД.ММ.ГГГГ"]
[null,"Поле 2 строки",null,"Время платежа","ДА","числовой","00:00:00"]
[null,"Поле 3 строки",null,"Номер отделения","ДА","числовой"]
[null,"Поле 4 строки",null,"Номер кассира/УС/СБОЛ","ДА","числовой"]
[null,"Поле 5 строки",null,"Уникальный код операции в ЕПС","ДА","числовой"]
[null,"Поле 6 строки",null,"Лицевой счет","ДА","текстовый"]
[null,"Поле 7 строки",null,"Фамилия, Имя, Отчество","ДА","текстовый","Фамилия Имя Отчество"]
[null,"Поле 8 строки",null,"Адрес","НЕТ","текстовый"]
[null,"Поле 9 строки",null,"Дополнительная информация","НЕТ","текстовый"]
[null,"Поле 10 строки",null,"Баланс","НЕТ","текстовый"]
[null,"Поле 11 строки",null,"Сумма операции","ДА","цифровой",999999.99]
[null,"Поле 12 строки",null,"Сумма перевода","ДА","цифровой",999999.99]
[null,"Поле 13 строки",null,"Сумма комиссии банку","ДА","цифровой",999999.99]
[null,"Признак контрольной строки",null,"Знак равно \"=\"","ДА","текстовый","="]
[null,"Поле 1 контрольной строки",null,"Количество строк в реестре","ДА","числовой"]
[null,"Поле 2 контрольной строки",null,"Общая сумма принятых средств","ДА","числовой",999999.99]
[null,"Поле 3 контрольной строки",null,"Сумма перечисления клиенту","ДА","числовой",999999.99]
[null,"Поле 4 контрольной строки",null,"Комиссия банку","ДА","числовой",999999.99]
[null,"Поле 5 контрольной строки",null,"Номер платежного поручения","ДА","числовой"]
[null,"Поле 6 контрольной строки",null,"Дата платежного поручения","ДА","числовой","ДД.ММ.ГГГГ"]

{"sheet":"7_1","index":27,"n_rows":92,"n_cols":9,"rows_kept":92,"cut":false,"hidden":true,"merged":[[44,3,44,4],[23,1,23,4],[26,1,26,4],[41,3,41,4],[42,3,42,4],[43,3,43,4],[69,3,69,5],[70,3,70,5],[54,1,61,1],[54,3,54,5],[58,3,59,3],[58,5,59,5],[62,1,68,1],[62,3,62,5]]}
[null,"КОД ГРУППЫ РЕКВИЗИТОВ","БИЛЛИНГ","ШАБЛОН 7_1"]
[]
[null,"Группа реквизитов"]
["№","Наименование реквизита","Имя реквизита для ЕПС","Имя реквизита для ДШК","Тип реквизита","Режим ввода","Текст подсказки в СБОЛ","мин. длина","макс. Длина"]
[1,2,3,4,5,6,7,8,9]
[1,"Лицевой счет","ЛИЦЕВОЙ СЧЕТ","PersAcc","Ключевой.Обязательный.","Ручной","Введите лицевой счет, не менее 3-х и не более 30-ти символов.",3,30]
[2,"ФИО","ФИО_ПЛАТЕЛЬЩИКА","LastName, FirstName, MiddleName","Только для чтения","Из базы начислений",null,2,60]
[]
[]
[null,null,"ОПИСАНИЕ ТЕГОВ ДЛЯ ДШК","Ваш текст для ДШК","ПРИМЕР"]
[null,"Идентификатор стандарта","СТАНДАРТ КОДИРОВКИ",null,"ST00012"]
[null,"Name","НАИМЕНОВАНИЕ ОРГАНИЗАЦИИ",null,"ООО Ресурсоснабжение"]
[null,"PersonalAcc","РАСЧЕТНЫЙ СЧЕТ",null,"40702810340000008769"]
[null,"BankName","НАИМЕНОВАНИЕ БАНКА ПОЛУЧАТЕЛЯ",null,"ПАО СБЕРБАНК"]
[null,"BIC","БИК",null,"044525225"]
[null,"CorrespAcc","КОР.СЧЕТ",null,"30101810400000000225"]
[null,"PayeeINN","ИНН ПОЛУЧАТЕЛЯ",null,"7840022997"]
[null,"persAcc","ЛИЦЕВОЙ СЧЕТ ПЛАТЕЛЬЩИКА",null,"1002","Ключевой.Обязательный."]
[null,"Sum","СУММА ПЛАТЕЖА",null,"1 94330"]
[null,"Category","НОМЕР УСЛУГИ В СИСТЕМЕ БАНКА"]
[]
[]
[null,"Ваш текст для ДШК",null,"Для создания QR кода можно использовать генератор по адресу http://qrcoder.ru"]
[null,{"$f":"CONCATENATE(\"\",C11,\"|\",B12,\"=\",C12,\"|\",B13,A24,\"=\",C13,\"|\",B14,\"=\",C14,\"|\",B15,\"=\",C15,\"|\",B16,\"=\",C16,\"|\",B17,\"=\",C17,\"|\",B18,\"=\",D18,\"|\",B19,\"=\",D19,\"|\",B20,\"=\",D20,\"\")","v":"СТАНДАРТ КОДИРОВКИ|Name=НАИМЕНОВАНИЕ ОРГАНИЗАЦИИ|PersonalAcc=РАСЧЕТНЫЙ СЧЕТ|BankName=НАИМЕНОВАНИЕ БАНКА ПОЛУЧАТЕЛЯ|BIC=БИК|CorrespAcc=КОР.СЧЕТ|PayeeINN=ИНН ПОЛУЧАТЕЛЯ|persAcc=|Sum=|Category="}]
[]
[null,"ПРИМЕР"]
[null,{"$f":"CONCATENATE(\"\",E11,\"|Name=\",E12,\"|PersonalAcc=\",E13,\"|BankName=\",E14,\"|BIC=\",E15,\"|CorrespAcc=\",E16,\"|PayeeINN=\",E17,\"|persAcc=\",E18,\"|Sum=\",E19,\"|Category=\",E20,\"\")","v":"ST00012|Name=ООО Ресурсоснабжение|PersonalAcc=40702810340000008769|BankName=ПАО СБЕРБАНК|BIC=044525225|CorrespAcc=30101810400000000225|PayeeINN=7840022997|persAcc=1002|Sum=1 94330|Category="}]
[]
[]
[null,"Структура реестра"]
[null,"Строка 1"]
[null,"Поле 1; Поле 2; Поле 3; …..; Поле t"]
[null,"Строка 2"]
[null,"Поле 1; Поле 2; Поле 3; …..; Поле t"]
[null,"…"]
[null,"Строка n"]
[null,"Поле 1; Поле 2; Поле 3; …..; Поле t"]
[null,"Контрольная строка (используется для исходящего реестра)"]
[null,"=Поле1;Поле2;Поле3;Поле4;Поле5;Поле6"]
[]
[null,"Формат входящего реестра (может не использоваться)"]
[null,"Имя реестра",null,"ИИИИИИИИИ(ИИ)_ РРРРРРРРРРРРРРРРРРРР _XXX_MMDD.txt"]
[null,"Формат реестра",null,"txt"]
[null,"Кодировка",null,"WIN-1251\nKOI8-R\nUTF8"]
[null,"Разделители",null,"; (ASCII-код 59, точка с запятой)"]
[]
[]
[null,"Формат строк"]
[null,"Номер поля в реестре",null,"Наименование поля","Тип поля","Маска"]
[null,1,null,"Лицевой счет","текстовое","мин. 3 знака макс. 30"]
[null,2,null,"ФИО","текстовое","Фамилия, Имя, Отчетсво"]
[null,3,null,"Сумма начислений","числовое",999999.99]
[]
[null,"Формат исходящего реестра"]
[null,"Имя архива",null,"ИНН_РС_код_счетчик_дата.zip"]
[null,null,null,"значение","описание","параметры"]
[null,null,null,"ИНН","ИНН поставщика услуг","XXXXXXXXXX"]
[null,null,null,"РС","Расчетный счет ПУ для перечисления д/с","YYYYYYYYYYYYYYYYYYYY"]
[null,null,null,"код","Код услуги. В качестве кода будут использоваться последние 3 символа “Лицевого счета” вида платежа ЕПС, дополненного лидирующими нулями.","001-999"]
[null,null,null,null,"Если “Лицевой счет” в ЕПС будет равен 0, код услуги будет пустой."]
[null,null,null,"счетчик","порядковый номер реестра в течение одного рабочего дня","00-99"]
[null,null,null,"дата","дата формирования реестра","ДДММГГГГ"]
[null,"Имя реестра",null,"SBкод_ПП_дата.txt "]
[null,null,null,"значение","описание","параметры"]
[null,null,null,"SB","константа"]
[null,null,null,"код","Код услуги. Аналогия с кодом услуги в имени архива"]
[null,null,null,"ПП","Номер платежного поручения","ZZZZZZ"]
[null,null,null,"дата","дата формирования реестра","ДДММГГГГ"]
[null,null,null,"txt","признак текстового файла"]
[null,"Кодировка",null,"WIN-1251\nKOI8-R\nUTF8"]
[null,"Разделители",null,"; (ASCII-код 59, точка с запятой)"]
[]
[]
[null,"Формат строк"]
[null,"Номер поля в реестре",null,"Наименование поля","Обязательное наличие информации в поле","Тип поля","Маска"]
[null,"Поле 1 строки",null,"Дата платежа","ДА","числовой","ДД-ММ-ГГГГ"]
[null,"Поле 2 строки",null,"Время платежа","ДА","числовой","00-00-00"]
[null,"Поле 3 строки",null,"Номер отделения","ДА","числовой"]
[null,"Поле 4 строки",null,"Номер кассира/УС/СБОЛ","ДА","числовой"]
[null,"Поле 5 строки",null,"Уникальный код операции в ЕПС","ДА","числовой"]
[null,"Поле 6 строки",null,"Лицевой счет","ДА","текстовый"]
[null,"Поле 7 строки",null,"Фамилия, Имя, Отчество","ДА","текстовый","Фамилия, Имя, Отчество"]
[null,"Поле 8 строки",null,"Сумма операции","ДА","цифровой",999999.99]
[null,"Поле 9 строки",null,"Сумма перевода","ДА","цифровой",999999.99]
[null,"Поле 10 строки",null,"Сумма комиссии банку","ДА","цифровой",999999.99]
[null,"Признак контрольной строки",null,"Знак равно \"=\"","ДА","текстовый","="]
[null,"Поле 1 контрольной строки",null,"Количество строк в реестре","ДА","числовой"]
[null,"Поле 2 контрольной строки",null,"Общая сумма принятых средств","ДА","числовой",999999.99]
[null,"Поле 3 контрольной строки",null,"Сумма перечисления клиенту","ДА","числовой",999999.99]
[null,"Поле 4 контрольной строки",null,"Комиссия банку","ДА","числовой",999999.99]
[null,"Поле 5 контрольной строки",null,"Номер платежного поручения","ДА","числовой"]
[null,"Поле 6 контрольной строки",null,"Дата платежного поручения","ДА","числовой","ДД-ММ-ГГГГ"]

{"sheet":"8_1","index":28,"n_rows":138,"n_cols":9,"rows_kept":138,"cut":false,"hidden":true,"merged":[[44,3,44,4],[23,1,23,4],[26,1,26,4],[41,3,41,4],[42,3,42,4],[43,3,43,4],[69,3,69,5],[70,3,70,5],[54,1,61,1],[54,3,54,5],[58,3,59,3],[58,5,59,5],[62,1,68,1],[62,3,62,5]]}
[null,"КОД ГРУППЫ РЕКВИЗИТОВ","БИЛЛИНГ","ШАБЛОН 8_1"]
[]
[null,"Группа реквизитов"]
["№","Наименование реквизита","Имя реквизита для ЕПС","Имя реквизита для ДШК","Тип реквизита","Режим ввода","Текст подсказки в СБОЛ","мин. длина","макс. Длина"]
[1,2,3,4,5,6,7,8,9]
[1,"Лицевой счет","ЛИЦЕВОЙ СЧЕТ","PersAcc","Ключевой.Обязательный.","Ручной","Введите лицевой счет, не менее 3-х и не более 30-ти символов.",3,30]
[2,"Адрес","АДРЕС","PayerAddress","Только для чтения","Из базы начислений",null,1,90]
[]
[]
[null,null,"ОПИСАНИЕ ТЕГОВ ДЛЯ ДШК","Ваш текст для ДШК","ПРИМЕР"]
[null,"Идентификатор стандарта","СТАНДАРТ КОДИРОВКИ",null,"ST00012"]
[null,"Name","НАИМЕНОВАНИЕ ОРГАНИЗАЦИИ",null,"ООО Система безопасности"]
[null,"PersonalAcc","РАСЧЕТНЫЙ СЧЕТ",null,"40702810919100002067"]
[null,"BankName","НАИМЕНОВАНИЕ БАНКА ПОЛУЧАТЕЛЯ",null,"МОСКОВСКИЙ ФИЛИАЛ \"БАНК СГБ\""]
[null,"BIC","БИК",null,"044525094"]
[null,"CorrespAcc","КОР.СЧЕТ",null,"30101810245250000094"]
[null,"PayeeINN","ИНН ПОЛУЧАТЕЛЯ",null,"7606089546"]
[null,"persAcc","ЛИЦЕВОЙ СЧЕТ ПЛАТЕЛЬЩИКА",null,"000015","Ключевой.Обязательный."]
[null,"Sum","СУММА ПЛАТЕЖА",null,"12500"]
[null,"Category","НОМЕР УСЛУГИ В СИСТЕМЕ БАНКА",null,"1700013827"]
[]
[]
[null,"Ваш текст для ДШК",null,"Для создания QR кода можно использовать генератор по адресу http://qrcoder.ru"]
[null,{"$f":"CONCATENATE(\"\",D11,\"|\",B12,\"=\",D12,\"|\",B13,A24,\"=\",D13,\"|\",B14,\"=\",D14,\"|\",B15,\"=\",D15,\"|\",B16,\"=\",D16,\"|\",B17,\"=\",D17,\"|\",B18,\"=\",D18,\"|\",B19,\"=\",D19,\"|\",B20,\"=\",D20,\"\")","v":"|Name=|PersonalAcc=|BankName=|BIC=|CorrespAcc=|PayeeINN=|persAcc=|Sum=|Category="}]
[]
[null,"ПРИМЕР"]
[null,{"$f":"CONCATENATE(\"\",E11,\"|Name=\",E12,\"|PersonalAcc=\",E13,\"|BankName=\",E14,\"|BIC=\",E15,\"|CorrespAcc=\",E16,\"|PayeeINN=\",E17,\"|persAcc=\",E18,\"|Sum=\",E19,\"|Category=\",E20,\"\")","v":"ST00012|Name=ООО Система безопасности|PersonalAcc=40702810919100002067|BankName=МОСКОВСКИЙ ФИЛИАЛ \"БАНК СГБ\"|BIC=044525094|CorrespAcc=30101810245250000094|PayeeINN=7606089546|persAcc=000015|Sum=12500|Category=1700013827"}]
[]
[]
[null,"Структура реестра"]
[null,"Строка 1"]
[null,"Поле 1; Поле 2; Поле 3; …..; Поле t"]
[null,"Строка 2"]
[null,"Поле 1; Поле 2; Поле 3; …..; Поле t"]
[null,"…"]
[null,"Строка n"]
[null,"Поле 1; Поле 2; Поле 3; …..; Поле t"]
[null,"Контрольная строка (используется для исходящего реестра)"]
[null,"=Поле1;Поле2;Поле3;Поле4;Поле5;Поле6"]
[]
[null,"Формат входящего реестра (может не использоваться)"]
[null,"Имя реестра",null,"ИИИИИИИИИ(ИИ)_ РРРРРРРРРРРРРРРРРРРР _XXX_MMDD.txt"]
[null,"Формат реестра",null,"txt"]
[null,"Кодировка",null,"WIN-1251\nKOI8-R\nUTF8"]
[null,"Разделители",null,"; (ASCII-код 59, точка с запятой)"]
[]
[]
[null,"Формат строк"]
[null,"Номер поля в реестре",null,"Наименование поля","Тип поля","Маска"]
[null,1,null,"Лицевой счет","текстовое","мин. 3 знака макс. 50"]
[null,2,null,"Адрес","текстовое","Населенный пункт, адрес, номер дома, кв"]
[null,3,null,"Сумма","числовое",999999.99]
[]
[null,"Формат исходящего реестра"]
[null,"Имя архива",null,"ИНН_РС_код_счетчик_дата.zip"]
[null,null,null,"значение","описание","параметры"]
[null,null,null,"ИНН","ИНН поставщика услуг","XXXXXXXXXX"]
[null,null,null,"РС","Расчетный счет ПУ для перечисления д/с","YYYYYYYYYYYYYYYYYYYY"]
[null,null,null,"код","Код услуги. В качестве кода будут использоваться последние 3 символа “Лицевого счета” вида платежа ЕПС, дополненного лидирующими нулями.","001-999"]
[null,null,null,null,"Если “Лицевой счет” в ЕПС будет равен 0, код услуги будет пустой."]
[null,null,null,"счетчик","порядковый номер реестра в течение одного рабочего дня","00-99"]
[null,null,null,"дата","дата формирования реестра","ДДММГГГГ"]
[null,"Имя реестра",null,"SBкод_ПП_дата.txt "]
[null,null,null,"значение","описание","параметры"]
[null,null,null,"SB","константа"]
[null,null,null,"код","Код услуги. Аналогия с кодом услуги в имени архива"]
[null,null,null,"ПП","Номер платежного поручения","ZZZZZZ"]
[null,null,null,"дата","дата формирования реестра","ДДММГГГГ"]
[null,null,null,"txt","признак текстового файла"]
[null,"Кодировка",null,"WIN-1251\nKOI8-R\nUTF8"]
[null,"Разделители",null,"; (ASCII-код 59, точка с запятой)"]
[]
[]
[]
[null,"Формат строк"]
[null,"Номер поля в реестре",null,"Наименование поля","Обязательное наличие информации в поле","Тип поля"]
[null,"Поле 1 строки",null,"Дата платежа","ДА","числовой"]
[null,"Поле 2 строки",null,"Время платежа","ДА","числовой"]
[null,"Поле 3 строки",null,"Номер отделения","ДА","числовой"]
[null,"Поле 4 строки",null,"Номер кассира/УС/СБОЛ","ДА","числовой"]
[null,"Поле 5 строки",null,"Уникальный код операции в ЕПС","ДА","числовой"]
[null,"Поле 6 строки",null,"Лицевой счет","ДА","текстовый"]
[null,"Поле 7 строки",null,"Адрес","ДА","текстовый"]
[null,"Поле 8 строки",null,"Сумма операции","ДА","цифровой"]
[null,"Поле 9 строки",null,"Сумма перевода","ДА","цифровой"]
[null,"Поле 10 строки",null,"Сумма комиссии банку","ДА","цифровой"]
[null,"Признак контрольной строки",null,"Знак равно \"=\"","ДА","текстовый"]
[null,"Поле 1 контрольной строки",null,"Количество строк в реестре","ДА","числовой"]
[null,"Поле 2 контрольной строки",null,"Общая сумма принятых средств","ДА","числовой"]
[null,"Поле 3 контрольной строки",null,"Сумма перечисления клиенту","ДА","числовой"]
[null,"Поле 4 контрольной строки",null,"Комиссия банку","ДА","числовой"]
[null,"Поле 5 контрольной строки",null,"Номер платежного поручения","ДА","числовой"]
[null,"Поле 6 контрольной строки",null,"Дата платежного поручения","ДА","числовой"]
[]
[]
[]
[]
[]
[]
[]
[]
[]
[]
[]
[]
[]
[]
[]
[]
[]
[]
[]
[]
[]
[]
[]
[]
[]
[]
[]
[null,null,null,null,null,null,"Маска"]
[null,null,null,null,null,null,"ДД-ММ-ГГГГ"]
[null,null,null,null,null,null,"00-00-00"]
[]
[]
[]
[]
[null,null,null,null,null,null,"Населенный пункт, улица, номер дома, номер квартиры"]
[null,null,null,null,null,null,999999.99]
[null,null,null,null,null,null,999999.99]
[null,null,null,null,null,null,999999.99]
[null,null,null,null,null,null,"="]
[]
[null,null,null,null,null,null,999999.99]
[null,null,null,null,null,null,999999.99]
[null,null,null,null,null,null,999999.99]
[]
[null,null,null,null,null,null,"ДД-ММ-ГГГГ"]

{"sheet":"8_2","index":29,"n_rows":96,"n_cols":9,"rows_kept":96,"cut":false,"hidden":true,"merged":[[46,3,46,4],[25,1,25,4],[28,1,28,4],[43,3,43,4],[44,3,44,4],[45,3,45,4],[72,3,72,5],[73,3,73,5],[57,1,64,1],[57,3,57,5],[61,3,62,3],[61,5,62,5],[65,1,71,1],[65,3,65,5]]}
[null,"КОД ГРУППЫ РЕКВИЗИТОВ","БИЛЛИНГ","ШАБЛОН 8_2"]
[]
[null,"Группа реквизитов"]
["№","Наименование реквизита","Имя реквизита для ЕПС","Имя реквизита для ДШК","Тип реквизита","Режим ввода","Текст подсказки в СБОЛ","мин. длина","макс. Длина"]
[1,2,3,4,5,6,7,8,9]
[1,"Лицевой счет","ЛИЦЕВОЙ СЧЕТ","PersAcc","Ключевой.Обязательный.","Ручной","Введите лицевой счет, не менее 3-х и не более 30-ти символов.",3,30]
[2,"Адрес","АДРЕС","PayerAddress","Только для чтения","Из базы начислений",null,1,90]
[3,"Период оплаты","ПЕРИОД ОПЛАТЫ","PaymPeriod","Обязательный","Ручной","Введите период оплаты в формате ММГГ, например, 0415",4,4]
[]
[]
[null,null,"ОПИСАНИЕ ТЕГОВ ДЛЯ ДШК","Ваш текст для ДШК","ПРИМЕР"]
[null,"Идентификатор стандарта","СТАНДАРТ КОДИРОВКИ",null,"ST00012"]
[null,"Name","НАИМЕНОВАНИЕ ОРГАНИЗАЦИИ",null,"ТСН Ривер Хаус"]
[null,"PersonalAcc","РАСЧЕТНЫЙ СЧЕТ",null,"40703810655130000504"]
[null,"BankName","НАИМЕНОВАНИЕ БАНКА ПОЛУЧАТЕЛЯ",null,"Северо-Западный ПАО Сбербанк"]
[null,"BIC","БИК",null,"044030653"]
[null,"CorrespAcc","КОР.СЧЕТ",null,"30101810500000000653"]
[null,"PayeeINN","ИНН ПОЛУЧАТЕЛЯ",null,"7811200758"]
[null,"persAcc","ЛИЦЕВОЙ СЧЕТ ПЛАТЕЛЬЩИКА",null,"050","Ключевой.Обязательный."]
[null,"paymPeriod","ПЕРИОД ОПЛАТЫ В ФОРМАТЕ ММГГ",null,"0616"]
[null,"Sum","СУММА ПЛАТЕЖА",null,"28882"]
[null,"Category","НОМЕР УСЛУГИ В СИСТЕМЕ БАНКА",null,"1550501016"]
[]
[]
[null,"Ваш текст для ДШК",null,"Для создания QR кода можно использовать генератор по адресу http://qrcoder.ru"]
[null,{"$f":"CONCATENATE(\"\",D12,\"|\",B13,\"=\",D13,\"|\",B14,A26,\"=\",D14,\"|\",B15,\"=\",D15,\"|\",B16,\"=\",D16,\"|\",B17,\"=\",D17,\"|\",B18,\"=\",D18,\"|\",B19,\"=\",D19,\"|\",B20,\"=\",D20,\"|\",B21,\"=\",D21,\"|\",B22,\"=\",D22,\"\")","v":"|Name=|PersonalAcc=|BankName=|BIC=|CorrespAcc=|PayeeINN=|persAcc=|paymPeriod=|Sum=|Category="}]
[null,"Для создания QR кода можно использовать генератор по адресу http://qrcoder.ru"]
[null,"ПРИМЕР"]
[null,{"$f":"CONCATENATE(\"\",E12,\"|Name=\",E13,\"|PersonalAcc=\",E14,\"|BankName=\",E15,\"|BIC=\",E16,\"|CorrespAcc=\",E17,\"|PayeeINN=\",E18,\"|persAcc=\",E19,\"|paymPeriod=\",E20,\"|Sum=\",E21,\"|Category=\",E22,\"\")","v":"ST00012|Name=ТСН Ривер Хаус|PersonalAcc=40703810655130000504|BankName=Северо-Западный ПАО Сбербанк|BIC=044030653|CorrespAcc=30101810500000000653|PayeeINN=7811200758|persAcc=050|paymPeriod=0616|Sum=28882|Category=1550501016"}]
[]
[]
[null,"Структура реестра"]
[null,"Строка 1"]
[null,"Поле 1; Поле 2; Поле 3; …..; Поле t"]
[null,"Строка 2"]
[null,"Поле 1; Поле 2; Поле 3; …..; Поле t"]
[null,"…"]
[null,"Строка n"]
[null,"Поле 1; Поле 2; Поле 3; …..; Поле t"]
[null,"Контрольная строка (используется для исходящего реестра)"]
[null,"=Поле1;Поле2;Поле3;Поле4;Поле5;Поле6"]
[]
[null,"Формат входящего реестра (может не использоваться)"]
[null,"Имя реестра",null,"ИИИИИИИИИ(ИИ)_ РРРРРРРРРРРРРРРРРРРР _XXX_MMDD.txt"]
[null,"Формат реестра",null,"txt"]
[null,"Кодировка",null,"WIN-1251\nKOI8-R\nUTF8"]
[null,"Разделители",null,"; (ASCII-код 59, точка с запятой)"]
[]
[]
[null,"Формат строк"]
[null,"Номер поля в реестре",null,"Наименование поля","Тип поля","Маска"]
[null,1,null,"Лицевой счет","текстовое","мин. 3 знака макс. 50"]
[null,2,null,"Адрес","текстовое","Населенный пункт, адрес, номер дома, кв"]
[null,3,null,"Сумма","числовое",999999.99]
[null,4,null,"Период","числовое","ММГГ"]
[]
[null,"Формат исходящего реестра"]
[null,"Имя архива",null,"ИНН_РС_код_счетчик_дата.zip"]
[null,null,null,"значение","описание","параметры"]
[null,null,null,"ИНН","ИНН поставщика услуг","XXXXXXXXXX"]
[null,null,null,"РС","Расчетный счет ПУ для перечисления д/с","YYYYYYYYYYYYYYYYYYYY"]
[null,null,null,"код","Код услуги. В качестве кода будут использоваться последние 3 символа “Лицевого счета” вида платежа ЕПС, дополненного лидирующими нулями.","001-999"]
[null,null,null,null,"Если “Лицевой счет” в ЕПС будет равен 0, код услуги будет пустой."]
[null,null,null,"счетчик","порядковый номер реестра в течение одного рабочего дня","00-99"]
[null,null,null,"дата","дата формирования реестра","ДДММГГГГ"]
[null,"Имя реестра",null,"SBкод_ПП_дата.txt "]
[null,null,null,"значение","описание","параметры"]
[null,null,null,"SB","константа"]
[null,null,null,"код","Код услуги. Аналогия с кодом услуги в имени архива"]
[null,null,null,"ПП","Номер платежного поручения","ZZZZZZ"]
[null,null,null,"дата","дата формирования реестра","ДДММГГГГ"]
[null,null,null,"txt","признак текстового файла"]
[null,"Кодировка",null,"WIN-1251\nKOI8-R\nUTF8"]
[null,"Разделители",null,"; (ASCII-код 59, точка с запятой)"]
[]
[]
[null,"Формат строк"]
[null,"Номер поля в реестре",null,"Наименование поля","Обязательное наличие информации в поле","Тип поля","Маска"]
[null,"Поле 1 строки",null,"Дата платежа","ДА","числовой","ДД-ММ-ГГГГ"]
[null,"Поле 2 строки",null,"Время платежа","ДА","числовой","00-00-00"]
[null,"Поле 3 строки",null,"Номер отделения","ДА","числовой"]
[null,"Поле 4 строки",null,"Номер кассира/УС/СБОЛ","ДА","числовой"]
[null,"Поле 5 строки",null,"Уникальный код операции в ЕПС","ДА","числовой"]
[null,"Поле 6 строки",null,"Лицевой счет","ДА","текстовый"]
[null,"Поле 7 строки",null,"Адрес","ДА","текстовый","Населенный пункт, улица, номер дома, номер квартиры"]
[null,"Поле 8 строки",null,"Период оплаты","ДА","числовой","ММГГ"]
[null,"Поле 9 строки",null,"Сумма операции","ДА","цифровой",999999.99]
[null,"Поле 10 строки",null,"Сумма перевода","ДА","цифровой",999999.99]
[null,"Поле 11 строки",null,"Сумма комиссии банку","ДА","цифровой",999999.99]
[null,"Признак контрольной знаки",null,"Знак равно \"=\"","ДА","текстовый","="]
[null,"Поле 1 контрольной строки",null,"Количество строк в реестре","ДА","числовой"]
[null,"Поле 2 контрольной строки",null,"Общая сумма принятых средств","ДА","числовой",999999.99]
[null,"Поле 3 контрольной строки",null,"Сумма перечисления клиенту","ДА","числовой",999999.99]
[null,"Поле 4 контрольной строки",null,"Комиссия банку","ДА","числовой",999999.99]
[null,"Поле 5 контрольной строки",null,"Номер платежного поручения","ДА","числовой"]
[null,"Поле 6 контрольной строки",null,"Дата платежного поручения","ДА","числовой","ДД-ММ-ГГГГ"]

{"sheet":"9_1","index":30,"n_rows":114,"n_cols":9,"rows_kept":114,"cut":false,"hidden":true,"merged":[[55,3,55,4],[2,1,2,6],[35,1,35,4],[38,1,38,4],[53,3,53,4],[54,3,54,4],[85,3,85,5],[86,3,86,5],[101,7,103,9],[113,1,122,9],[56,3,56,4],[70,1,77,1],[70,3,70,5],[74,3,75,3],[74,5,75,5],[78,1,84,1],[78,3,78,5]]}
[null,"КОД ГРУППЫ РЕКВИЗИТОВ","БИЛЛИНГ","ШАБЛОН 9_1"]
[]
[null,"Общее описание шаблона.\nШаблон предназначен для настройки ПУ, где требуется оплата большого количества услуг (95% сектор ЖКХ)\nДанный шаблон дает возможность поставщику выставить в задолженности для оплаты одновременно 30 услуг из неограниченного набора.\n\nМеханика:\n   В реестре начислений передается не общая сумма начислений по лицевому счету, а разбитая на подуслуги. Если на лицевом счете есть задолженность например по воде, электричеству, вывозу мусора, содерданию жилья и т.п. в реестре ПУ формирует отдельную строку на каждую услугу.\n   Преобразование реестра начислений формирует назначение, из которого все суммы и наименования подгружаются в соответствующие реквизиты группы, коды услуг остаются храниться в поле назначения в задолженности, откуда будут браться только в момент формирования исходящего реестра.\n   Для мимнимизации вероятности некорректного формирования документа \"платеж\" в ЕПС крайне рекомендуется настройка вида платежа с допнастройкой \"Мультиплатеж\" вида 1.\nНесмотря на это АП может приводить к искажению реквизитов, что уже будет отрабатываться исходящим преобразованием.\n   Исходящее преобразование формирует на каждый лицевой счет несколько строк в соответствии с количеством оплаченных услуг. Это позволяет отказаться от настройки переоформления."]
[]
[null,"Группа реквизитов"]
["№","Наименование реквизита","Имя реквизита для ЕПС","Имя реквизита для ДШК","Тип реквизита","Режим ввода","Текст подсказки в СБОЛ","мин. длина","макс. Длина"]
[1,2,3,4,5,6,7,8,9]
[1,"Лицевой счет","ЛИЦЕВОЙ СЧЕТ","PersAcc","Ключевой.Обязательный.","Ручной","Введите лицевой счет плательщика. Например:1357",null,30]
[2,"ФИО","ФИО_ПЛАТЕЛЬЩИКА","LastName, FirstName, MiddleName","Только для чтения","Из базы начислений",null,2,60]
[3,"Адрес","АДРЕС","PayerAddress","Только для чтения","Из базы начислений",null,1,90]
[4,"Период","ПЕРИОД","Period","Запрос по задолженности","Из базы начислений","Введите период оплаты в формате ММГГ, например, 0415",0,4]
[5,"Услуга","ИМЯ_УСЛУГИ1","Category1","Обязательный","Из базы начислений",null,1,50]
[6,"Сумма к оплате","СУММА1","Sum1","Запрос по задолженности","Из базы начислений",null,1,9]
[7,"Услуга","ИМЯ_УСЛУГИ2","Category2","Обязательный","Из базы начислений",null,1,50]
[8,"Сумма к оплате","СУММА2","Sum2","Запрос по задолженности","Из базы начислений",null,1,9]
[9,"Услуга","ИМЯ_УСЛУГИ3","Category3","Обязательный","Из базы начислений",null,1,50]
[10,"Сумма к оплате","СУММА3","Sum3","Запрос по задолженности","Из базы начислений",null,1,9]
[11,"Услуга","ИМЯ_УСЛУГИ…N","Category..N","Обязательный","Из базы начислений",null,1,50]
[12,"Сумма к оплате","СУММА…N","Sum..N","Запрос по задолженности","Из базы начислений",null,1,9]
[]
[]
[null,null,"ОПИСАНИЕ ТЕГОВ ДЛЯ ДШК","Ваш текст для ДШК","ПРИМЕР"]
[null,"Идентификатор стандарта","СТАНДАРТ КОДИРОВКИ",null,"ST00012"]
[null,"Name","НАИМЕНОВАНИЕ ОРГАНИЗАЦИИ",null,"ТСН Зорге 86"]
[null,"PersonalAcc","РАСЧЕТНЫЙ СЧЕТ",null,"40703810203000000089"]
[null,"BankName","НАИМЕНОВАНИЕ БАНКА ПОЛУЧАТЕЛЯ",null,"ПАО \"ХАНТЫ-МАНСИЙСКИЙ БАНК ОТКРЫТИЕ\""]
[null,"BIC","БИК",null,"045004870"]
[null,"CorrespAcc","КОР.СЧЕТ",null,"30101810250040000870"]
[null,"PayeeINN","ИНН ПОЛУЧАТЕЛЯ",null,"5403162412"]
[null,"persAcc","НОМЕР ЛИЦЕВОГО СЧЕТА ПЛАТЕЛЬЩИКА",null,"006","Ключевой.Обязательный."]
[null,"Category1","НОМЕР УСЛУГИ1"]
[null,"Category2","НОМЕР УСЛУГИ2"]
[]
[]
[null,"Ваш текст для ДШК",null,"Для создания QR кода можно использовать генератор по адресу http://qrcoder.ru"]
[null,{"$f":"CONCATENATE(\"\",D23,\"|\",B24,\"=\",D24,\"|\",B25,A36,\"=\",D25,\"|\",B26,\"=\",D26,\"|\",B27,\"=\",D27,\"|\",B28,\"=\",D28,\"|\",B29,\"=\",D29,\"|\",B30,\"=\",D30,\"|\",B31,\"=\",D31,\"|\",B32,\"=\",D32,\"\")","v":"|Name=|PersonalAcc=|BankName=|BIC=|CorrespAcc=|PayeeINN=|persAcc=|Category1=|Category2="}]
[]
[null,"ПРИМЕР"]
[null,{"$f":"CONCATENATE(\"\",E23,\"|Name=\",E24,\"|PersonalAcc=\",E25,\"|BankName=\",E26,\"|BIC=\",E27,\"|CorrespAcc=\",E28,\"|PayeeINN=\",E29,\"|persAcc=\",E30,\"|Category1=\",E31,\"|Category2=\",E32,\"\")","v":"ST00012|Name=ТСН Зорге 86|PersonalAcc=40703810203000000089|BankName=ПАО \"ХАНТЫ-МАНСИЙСКИЙ БАНК ОТКРЫТИЕ\"|BIC=045004870|CorrespAcc=30101810250040000870|PayeeINN=5403162412|persAcc=006|Category1=|Category2="}]
[]
[]
[null,"Структура реестра"]
[null,"Строка 1"]
[null,"Поле 1; Поле 2; Поле 3; …..; Поле t"]
[null,"Строка 2"]
[null,"Поле 1; Поле 2; Поле 3; …..; Поле t"]
[null,"…"]
[null,"Строка n"]
[null,"Поле 1; Поле 2; Поле 3; …..; Поле t"]
[null,"Контрольная строка (используется для исходящего реестра)"]
[null,"=Поле1;Поле2;Поле3;Поле4;Поле5;Поле6"]
[]
[null,"Формат входящего реестра (может не использоваться)"]
[null,"Имя реестра",null,"ИИИИИИИИИ(ИИ)_ РРРРРРРРРРРРРРРРРРРР _XXX_MMDD.txt"]
[null,"Формат реестра",null,"txt"]
[null,"Кодировка",null,"WIN-1251\nKOI8-R\nUTF8"]
[null,"Разделители",null,"; (ASCII-код 59, точка с запятой)"]
[]
[]
[null,"Формат строк"]
[null,"Номер поля в реестре",null,"Наименование поля","Тип поля","Маска"]
[null,1,null,"Лицевой счет","текстовое","мин. 3 знака макс. 50"]
[null,2,null,"ФИО","текстовое","Фамилия, Имя, Отчество"]
[null,3,null,"Адрес","текстовое","Населенный пункт, адрес, номер дома, кв"]
[null,4,null,"Период","Дата","ДДММ"]
[null,5,null,"Наименование услуги","текстовое"]
[null,6,null,"код услуги","текстовое","Код услуги в биллинге ПУ"]
[null,7,null,"сумма начислений","Сумма",999999.99]
[]
[null,"Формат исходящего реестра"]
[null,"Имя архива",null,"ИНН_РС_код_счетчик_дата.zip"]
[null,null,null,"значение","описание","параметры"]
[null,null,null,"ИНН","ИНН поставщика услуг","XXXXXXXXXX"]
[null,null,null,"РС","Расчетный счет ПУ для перечисления д/с","YYYYYYYYYYYYYYYYYYYY"]
[null,null,null,"код","Код услуги. В качестве кода будут использоваться последние 3 символа “Лицевого счета” вида платежа ЕПС, дополненного лидирующими нулями.","001-999"]
[null,null,null,null,"Если “Лицевой счет” в ЕПС будет равен 0, код услуги будет пустой."]
[null,null,null,"счетчик","порядковый номер реестра в течение одного рабочего дня","00-99"]
[null,null,null,"дата","дата формирования реестра","ДДММГГГГ"]
[null,"Имя реестра",null,"SBкод_ПП_дата.txt "]
[null,null,null,"значение","описание","параметры"]
[null,null,null,"SB","константа"]
[null,null,null,"код","Код услуги. Аналогия с кодом услуги в имени архива"]
[null,null,null,"ПП","Номер платежного поручения","ZZZZZZ"]
[null,null,null,"дата","дата формирования реестра","ДДММГГГГ"]
[null,null,null,"txt","признак текстового файла"]
[null,"Кодировка",null,"WIN-1251\nKOI8-R\nUTF8"]
[null,"Разделители",null,"; (ASCII-код 59, точка с запятой)"]
[]
[]
[null,"Формат строк"]
[null,"Номер поля в реестре",null,"Наименование поля","Обязательное наличие информации в поле","Тип поля","Маска"]
[null,"Поле 1 строки",null,"Дата платежа","ДА","числовой","ДД-ММ-ГГГГ"]
[null,"Поле 2 строки",null,"Время платежа","ДА","числовой","00-00-00"]
[null,"Поле 3 строки",null,"Номер отделения","ДА","числовой"]
[null,"Поле 4 строки",null,"Номер кассира/УС/СБОЛ","ДА","числовой"]
[null,"Поле 5 строки",null,"Уникальный код операции в ЕПС","ДА","числовой"]
[null,"Поле 6 строки",null,"Лицевой счет","ДА","текстовый"]
[null,"Поле 7 строки",null,"Фамилия, Имя, Отчество","ДА","текстовый","Фамилия, Имя, Отчество"]
[null,"Поле 8 строки",null,"Адрес","ДА","текстовый","Населенный пункт, улица, номер дома, номер квартиры"]
[null,"Поле 9 строки",null,"Код услуги","ДА","текстовый"]
[null,"Поле 10 строки",null,"Сумма по услуге","ДА","сумма",999999.99,"Сумма для расчета начислений"]
[null,"Поле 13 строки",null,"Общая сумма платежа","ДА","цифровой",999999.99,"Поля для информациии и контроля. Если общая сумма по каким-то причинам расходится с с суммой по услугам - то именно она считается фактически принятой суммой (контроль на стороне билиинга ПУ)"]
[null,"Поле 14 строки",null,"Общая сумма перевода","ДА","цифровой",999999.99]
[null,"Поле 15 строки",null,"Сумма комиссии банку от общей суммы","ДА","цифровой",999999.99]
[null,"Признак контрольной знаки",null,"Знак равно \"=\"","ДА","текстовый","="]
[null,"Поле 1 контрольной строки",null,"Количество строк в реестре","ДА","числовой"]
[null,"Поле 2 контрольной строки",null,"Общая сумма принятых средств","ДА","числовой",999999.99]
[null,"Поле 3 контрольной строки",null,"Сумма перечисления клиенту","ДА","числовой",999999.99]
[null,"Поле 4 контрольной строки",null,"Комиссия банку","ДА","числовой",999999.99]
[null,"Поле 5 контрольной строки",null,"Номер платежного поручения","ДА","числовой"]
[null,"Поле 6 контрольной строки",null,"Дата платежного поручения","ДА","числовой","ДД-ММ-ГГГГ"]
[]
[]
[null,"Ввиду некоторых особенностей работы ЕРИБ, оплаты по МПК в MassPAy, а также ЕПС в связке с АП в реквизитах платежа в ЕПС могут содержаться некорректные данные в части сумм по реквизитам. В этом случае необходимо считать, что была оплачена только одна сумма на услугу с кодом \"0000\". Эта ситуация отрабатывается в XSLT преобразовании выходного реестра.\nОсновные параметры для контроля в исходящем реестре:\n1) В обязательном порядке проверять на отрицательные суммы - в этом случае баланс не сводить и всю оплату записывать на дефолтную услугу.\n2) После этого проверять на сходимость суммы подуслуг и общей суммы, если не сходится - аналогично п.1\n3) Не выводить в реестр услуги, если в них введены нули\nОсновные аспекты входящего реестра:\n1) Не пропускать отрицательную задолженность - переводить ее в нулевую\n2) Нормализация адреса для поиска\n3) Общие проверки на корректность строк"]

{"sheet":"10_1","index":31,"n_rows":95,"n_cols":9,"rows_kept":95,"cut":false,"hidden":true,"merged":[[45,3,45,4],[24,1,24,4],[27,1,27,4],[42,3,42,4],[43,3,43,4],[44,3,44,4],[71,3,71,5],[72,3,72,5],[56,1,63,1],[56,3,56,5],[60,3,61,3],[60,5,61,5],[64,1,70,1],[64,3,64,5]]}
[null,"КОД ГРУППЫ РЕКВИЗИТОВ","БИЛЛИНГ","ШАБЛОН 10_1"]
[]
[null,"Группа реквизитов"]
["№","Наименование реквизита","Имя реквизита для ЕПС","Имя реквизита для ДШК","Тип реквизита","Режим ввода","Текст подсказки в СБОЛ","мин. длина","макс. Длина"]
[1,2,3,4,5,6,7,8,9]
[1,"Лицевой счет","ЛИЦЕВОЙ СЧЕТ","PersAcc","Ключевой.Обязательный.","Ручной","Введите лицевой счет, не менее 3-х и не более 30-ти символов.",3,30]
[2,"ФИО","ФИО_ПЛАТЕЛЬЩИКА","LastName, FirstName, MiddleName","Обязательный","Из базы начислений",null,2,60]
[3,"Адрес","АДРЕС","PayerAddress","Обязательный","Из базы начислений",null,1,90]
[]
[]
[null,null,"ОПИСАНИЕ ТЕГОВ ДЛЯ ДШК"," Ваш текст для ДШК","ПРИМЕР"]
[null,"Идентификатор стандарта","СТАНДАРТ КОДИРОВКИ",null,"ST00012"]
[null,"Name","НАИМЕНОВАНИЕ ОРГАНИЗАЦИИ",null,"ООО СтройГрад-Сервис"]
[null,"PersonalAcc","РАСЧЕТНЫЙ СЧЕТ",null,"40702810660100005785"]
[null,"BankName","НАИМЕНОВАНИЕ БАНКА ПОЛУЧАТЕЛЯ",null,"ПАО СБЕРБАНК"]
[null,"BIC","БИК",null,"040702615"]
[null,"CorrespAcc","КОР.СЧЕТ",null,"30101810907020000615"]
[null,"PayeeINN","ИНН ПОЛУЧАТЕЛЯ",null,"2636810364"]
[null,"persAcc","НОМЕР ЛИЦЕВОГО СЧЕТА ПЛАТЕЛЬЩИКА",null,"006312","Ключевой.Обязательный."]
[null,"Sum","СУММА ПЛАТЕЖА",null,"425633"]
[null,"Category","НОМЕР УСЛУГИ В СИСТЕМЕ БАНКА",null,"523070217"]
[]
[]
[null,"Ваш текст для ДШК",null,"Для создания QR кода можно использовать генератор по адресу http://qrcoder.ru"]
[null,{"$f":"CONCATENATE(\"\",D12,\"|\",B13,\"=\",D13,\"|\",B14,A25,\"=\",D14,\"|\",B15,\"=\",D15,\"|\",B16,\"=\",D16,\"|\",B17,\"=\",D17,\"|\",B18,\"=\",D18,\"|\",B19,\"=\",D19,\"|\",B20,\"=\",D20,\"|\",B21,\"=\",D21,\"\")","v":"|Name=|PersonalAcc=|BankName=|BIC=|CorrespAcc=|PayeeINN=|persAcc=|Sum=|Category="}]
[]
[null,"ПРИМЕР"]
[null,{"$f":"CONCATENATE(\"\",E12,\"|Name=\",E13,\"|PersonalAcc=\",E14,\"|BankName=\",E15,\"|BIC=\",E16,\"|CorrespAcc=\",E17,\"|PayeeINN=\",E18,\"|persAcc=\",E19,\"|Sum=\",E20,\"|Category=\",E21,\"\")","v":"ST00012|Name=ООО СтройГрад-Сервис|PersonalAcc=40702810660100005785|BankName=ПАО СБЕРБАНК|BIC=040702615|CorrespAcc=30101810907020000615|PayeeINN=2636810364|persAcc=006312|Sum=425633|Category=523070217"}]
[]
[]
[null,"Структура реестра"]
[null,"Строка 1"]
[null,"Поле 1; Поле 2; Поле 3; …..; Поле t"]
[null,"Строка 2"]
[null,"Поле 1; Поле 2; Поле 3; …..; Поле t"]
[null,"…"]
[null,"Строка n"]
[null,"Поле 1; Поле 2; Поле 3; …..; Поле t"]
[null,"Контрольная строка (используется для исходящего реестра)"]
[null,"=Поле1;Поле2;Поле3;Поле4;Поле5;Поле6"]
[]
[null,"Формат входящего реестра (может не использоваться)"]
[null,"Имя реестра",null,"ИИИИИИИИИ(ИИ)_ РРРРРРРРРРРРРРРРРРРР _XXX_MMDD.txt"]
[null,"Формат реестра",null,"txt"]
[null,"Кодировка",null,"WIN-1251\nKOI8-R\nUTF8"]
[null,"Разделители",null,"; (ASCII-код 59, точка с запятой)"]
[]
[]
[null,"Формат строк"]
[null,"Номер поля в реестре",null,"Наименование поля","Тип поля","Маска"]
[null,1,null,"Лицевой счет","текстовое","мин. 3 знака макс. 50"]
[null,2,null,"ФИО","текстовое","Фамилия, Имя, Отчетсво"]
[null,3,null,"Адрес","текстовое","Населенный пункт, адрес, номер дома, кв"]
[null,4,null,"Сумма начислений","числовое",999999.99]
[]
[null,"Формат исходящего реестра"]
[null,"Имя архива",null,"ИНН_РС_код_счетчик_дата.zip"]
[null,null,null,"значение","описание","параметры"]
[null,null,null,"ИНН","ИНН поставщика услуг","XXXXXXXXXX"]
[null,null,null,"РС","Расчетный счет ПУ для перечисления д/с","YYYYYYYYYYYYYYYYYYYY"]
[null,null,null,"код","Код услуги. В качестве кода будут использоваться последние 3 символа “Лицевого счета” вида платежа ЕПС, дополненного лидирующими нулями.","001-999"]
[null,null,null,null,"Если “Лицевой счет” в ЕПС будет равен 0, код услуги будет пустой."]
[null,null,null,"счетчик","порядковый номер реестра в течение одного рабочего дня","00-99"]
[null,null,null,"дата","дата формирования реестра","ДДММГГГГ"]
[null,"Имя реестра",null,"SBкод_ПП_дата.txt "]
[null,null,null,"значение","описание","параметры"]
[null,null,null,"SB","константа"]
[null,null,null,"код","Код услуги. Аналогия с кодом услуги в имени архива"]
[null,null,null,"ПП","Номер платежного поручения","ZZZZZZ"]
[null,null,null,"дата","дата формирования реестра","ДДММГГГГ"]
[null,null,null,"txt","признак текстового файла"]
[null,"Кодировка",null,"WIN-1251\nKOI8-R\nUTF8"]
[null,"Разделители",null,"; (ASCII-код 59, точка с запятой)"]
[]
[]
[null,"Формат строк"]
[null,"Номер поля в реестре",null,"Наименование поля","Обязательное наличие информации в поле","Тип поля","Маска"]
[null,"Поле 1 строки",null,"Дата платежа","ДА","числовой","ДД-ММ-ГГГГ"]
[null,"Поле 2 строки",null,"Время платежа","ДА","числовой","00-00-00"]
[null,"Поле 3 строки",null,"Номер отделения","ДА","числовой"]
[null,"Поле 4 строки",null,"Номер кассира/УС/СБОЛ","ДА","числовой/текстовый"]
[null,"Поле 5 строки",null,"Уникальный код операции в ЕПС","ДА","числовой"]
[null,"Поле 6 строки",null,"Лицевой счет","ДА","текстовый"]
[null,"Поле 7 строки",null,"Фамилия, Имя, Отчество","ДА","текстовый","Фамилия, Имя, Отчество"]
[null,"Поле 8 строки",null,"Адрес","ДА","текстовый","Населенный пункт, улица, номер дома, номер квартиры"]
[null,"Поле 9 строки",null,"Сумма операции","ДА","цифровой",999999.99]
[null,"Поле 10 строки",null,"Сумма перевода","ДА","цифровой",999999.99]
[null,"Поле 11 строки",null,"Сумма комиссии банку","ДА","цифровой",999999.99]
[null,"Признак контрольной знаки",null,"Знак равно \"=\"","ДА","текстовый","="]
[null,"Поле 1 контрольной строки",null,"Количество строк в реестре","ДА","числовой"]
[null,"Поле 2 контрольной строки",null,"Общая сумма принятых средств","ДА","числовой",999999.99]
[null,"Поле 3 контрольной строки",null,"Сумма перечисления клиенту","ДА","числовой",999999.99]
[null,"Поле 4 контрольной строки",null,"Комиссия банку","ДА","числовой",999999.99]
[null,"Поле 5 контрольной строки",null,"Номер платежного поручения","ДА","числовой"]
[null,"Поле 6 контрольной строки",null,"Дата платежного поручения","ДА","числовой","ДД-ММ-ГГГГ"]

{"sheet":"10_2","index":32,"n_rows":98,"n_cols":9,"rows_kept":98,"cut":false,"hidden":true,"merged":[[46,3,46,4],[26,1,26,4],[29,1,29,4],[43,3,43,4],[44,3,44,4],[45,3,45,4],[73,3,73,5],[74,3,74,5],[58,1,65,1],[58,3,58,5],[62,3,63,3],[62,5,63,5],[66,1,72,1],[66,3,66,5]]}
[null,"КОД ГРУППЫ РЕКВИЗИТОВ","БИЛЛИНГ","ШАБЛОН 10_2"]
[]
[null,"Группа реквизитов"]
["№","Наименование реквизита","Имя реквизита для ЕПС","Имя реквизита для ДШК","Тип реквизита","Режим ввода","Текст подсказки в СБОЛ","мин. длина","макс. Длина"]
[1,2,3,4,5,6,7,8,9]
[1,"Лицевой счет","ЛИЦЕВОЙ СЧЕТ","PersAcc","Ключевой.Обязательный.","Ручной","Введите лицевой счет, не менее 3-х и не более 30-ти символов.",3,30]
[2,"ФИО","ФИО_ПЛАТЕЛЬЩИКА","LastName, FirstName, MiddleName","Только для чтения","Из базы начислений",null,2,60]
[3,"Адрес","АДРЕС","PayerAddress","Только для чтения","Из базы начислений",null,1,90]
[4,"Период оплаты","ПЕРИОД ОПЛАТЫ","PaymPeriod","Запрос по задолженности","Ручной","Введите период оплаты в формате ММГГ, например, 0415",4,4]
[]
[]
[null,null,"ОПИСАНИЕ ТЕГОВ ДЛЯ ДШК","Ваш текст для ДШК","ПРИМЕР"]
[null,"Идентификатор стандарта","СТАНДАРТ КОДИРОВКИ",null,"ST00012"]
[null,"Name","НАИМЕНОВАНИЕ ОРГАНИЗАЦИИ",null,"ТСЖ Сампо"]
[null,"PersonalAcc","РАСЧЕТНЫЙ СЧЕТ",null,"40703810325070000578"]
[null,"BankName","НАИМЕНОВАНИЕ БАНКА ПОЛУЧАТЕЛЯ",null,"КАРЕЛЬСКОЕ ОТДЕЛЕНИЕ ПАО СБЕРБАНК"]
[null,"BIC","БИК",null,"048602673"]
[null,"CorrespAcc","КОР.СЧЕТ",null,"30101810600000000673"]
[null,"PayeeINN","ИНН ПОЛУЧАТЕЛЯ",null,"1003007743"]
[null,"persAcc","НОМЕР ЛИЦЕВОГО СЧЕТА ПЛАТЕЛЬЩИКА",null,"26","Ключевой.Обязательный."]
[null,"paymPeriod","ПЕРИОД ОПЛАТЫ В ФОРМАТЕ ММГГ",null,"0616"]
[null,"Sum","СУММА ПЛАТЕЖА",null,"250995"]
[null,"Category","НОМЕР УСЛУГИ В СИСТЕМЕ БАНКА",null,"8947711583"]
[]
[]
[null,"Ваш текст для ДШК",null,"Для создания QR кода можно использовать генератор по адресу http://qrcoder.ru"]
[null,{"$f":"CONCATENATE(\"\",D13,\"|\",B14,\"=\",D14,\"|\",B15,A27,\"=\",D15,\"|\",B16,\"=\",D16,\"|\",B17,\"=\",D17,\"|\",B18,\"=\",D18,\"|\",B19,\"=\",D19,\"|\",B20,\"=\",D20,\"|\",B21,\"=\",D21,\"|\",B22,\"=\",D22,\"|\",B23,\"=\",D23,\"\")","v":"|Name=|PersonalAcc=|BankName=|BIC=|CorrespAcc=|PayeeINN=|persAcc=|paymPeriod=|Sum=|Category="}]
[]
[null,"ПРИМЕР"]
[null,{"$f":"CONCATENATE(\"\",E13,\"|Name=\",E14,\"|PersonalAcc=\",E15,\"|BankName=\",E16,\"|BIC=\",E17,\"|CorrespAcc=\",E18,\"|PayeeINN=\",E19,\"|persAcc=\",E20,\"|paymPeriod=\",E21,\"|Sum=\",E22,\"|Category=\",E23,\"\")","v":"ST00012|Name=ТСЖ Сампо|PersonalAcc=40703810325070000578|BankName=КАРЕЛЬСКОЕ ОТДЕЛЕНИЕ ПАО СБЕРБАНК|BIC=048602673|CorrespAcc=30101810600000000673|PayeeINN=1003007743|persAcc=26|paymPeriod=0616|Sum=250995|Category=8947711583"}]
[]
[null,"Структура реестра"]
[null,"Строка 1"]
[null,"Поле 1; Поле 2; Поле 3; …..; Поле t"]
[null,"Строка 2"]
[null,"Поле 1; Поле 2; Поле 3; …..; Поле t"]
[null,"…"]
[null,"Строка n"]
[null,"Поле 1; Поле 2; Поле 3; …..; Поле t"]
[null,"Контрольная строка (используется для исходящего реестра)"]
[null,"=Поле1;Поле2;Поле3;Поле4;Поле5;Поле6"]
[]
[null,"Формат входящего реестра (может не использоваться)"]
[null,"Имя реестра",null,"ИИИИИИИИИ(ИИ)_ РРРРРРРРРРРРРРРРРРРР _XXX_MMDD.txt"]
[null,"Формат реестра",null,"txt"]
[null,"Кодировка",null,"WIN-1251\nKOI8-R\nUTF8"]
[null,"Разделители",null,"; (ASCII-код 59, точка с запятой)"]
[]
[]
[null,"Формат строк"]
[null,"Номер поля в реестре",null,"Наименование поля","Тип поля","Маска"]
[null,1,null,"Лицевой счет","текстовое","мин. 3 знака макс. 50"]
[null,2,null,"ФИО","текстовое","Фамилия, Имя, Отчество"]
[null,3,null,"Адрес","текстовое","Населенный пункт, адрес, номер дома, кв"]
[null,4,null,"Период оплаты","текстовое","ММГГ"]
[null,5,null,"Сумма начислений","числовое",999999.99]
[]
[null,"Формат исходящего реестра"]
[null,"Имя архива",null,"ИНН_РС_код_счетчик_дата.zip"]
[null,null,null,"значение","описание","параметры"]
[null,null,null,"ИНН","ИНН поставщика услуг","XXXXXXXXXX"]
[null,null,null,"РС","Расчетный счет ПУ для перечисления д/с","YYYYYYYYYYYYYYYYYYYY"]
[null,null,null,"код","Код услуги. В качестве кода будут использоваться последние 3 символа “Лицевого счета” вида платежа ЕПС, дополненного лидирующими нулями.","001-999"]
[null,null,null,null,"Если “Лицевой счет” в ЕПС будет равен 0, код услуги будет пустой."]
[null,null,null,"счетчик","порядковый номер реестра в течение одного рабочего дня","00-99"]
[null,null,null,"дата","дата формирования реестра","ДДММГГГГ"]
[null,"Имя реестра",null,"SBкод_ПП_дата.txt "]
[null,null,null,"значение","описание","параметры"]
[null,null,null,"SB","константа"]
[null,null,null,"код","Код услуги. Аналогия с кодом услуги в имени архива"]
[null,null,null,"ПП","Номер платежного поручения","ZZZZZZ"]
[null,null,null,"дата","дата формирования реестра","ДДММГГГГ"]
[null,null,null,"txt","признак текстового файла"]
[null,"Кодировка",null,"WIN-1251\nKOI8-R\nUTF8"]
[null,"Разделители",null,"; (ASCII-код 59, точка с запятой)"]
[]
[]
[null,"Формат строк"]
[null,"Номер поля в реестре",null,"Наименование поля","Обязательное наличие информации в поле","Тип поля","Маска"]
[null,"Поле 1 строки",null,"Дата платежа","ДА","числовой","ДД-ММ-ГГГГ"]
[null,"Поле 2 строки",null,"Время платежа","ДА","числовой","00-00-00"]
[null,"Поле 3 строки",null,"Номер отделения","ДА","числовой"]
[null,"Поле 4 строки",null,"Номер кассира/УС/СБОЛ","ДА","числовой"]
[null,"Поле 5 строки",null,"Уникальный код операции в ЕПС","ДА","числовой"]
[null,"Поле 6 строки",null,"Лицевой счет","ДА","текстовый"]
[null,"Поле 7 строки",null,"Фамилия, Имя, Отчество","ДА","текстовый","Фамилия, Имя, Отчество"]
[null,"Поле 8 строки",null,"Адрес","ДА","текстовый","Населенный пункт, улица, номер дома, номер квартиры"]
[null,"Поле 9 строки",null,"Период оплаты","ДА","текстовый","ММГГ"]
[null,"Поле 10 строки",null,"Сумма операции","ДА","цифровой",999999]
[null,"Поле 11 строки",null,"Сумма перевода","ДА","цифровой",999999]
[null,"Поле 12 строки",null,"Сумма комиссии банку","ДА","цифровой",999999]
[null,"Признак контрольной знаки",null,"Знак равно \"=\"","ДА","текстовый","="]
[null,"Поле 1 контрольной строки",null,"Количество строк в реестре","ДА","числовой"]
[null,"Поле 2 контрольной строки",null,"Общая сумма принятых средств","ДА","числовой",999999]
[null,"Поле 3 контрольной строки",null,"Сумма перечисления клиенту","ДА","числовой",999999]
[null,"Поле 4 контрольной строки",null,"Комиссия банку","ДА","числовой",999999]
[null,"Поле 5 контрольной строки",null,"Номер платежного поручения","ДА","числовой"]
[null,"Поле 6 контрольной строки",null,"Дата платежного поручения","ДА","числовой","ДД-ММ-ГГГГ"]

{"sheet":"10_3","index":33,"n_rows":84,"n_cols":9,"rows_kept":84,"cut":false,"hidden":true,"merged":[[53,1,59,1],[53,3,53,5],[60,3,60,5],[61,3,61,5],[25,1,25,4],[28,1,28,4],[45,1,52,1],[45,3,45,5],[49,3,50,3],[49,5,50,5]]}
[null,"КОД ГРУППЫ РЕКВИЗИТОВ",null,"ШАБЛОН 10_3"]
[]
[null,"Группа реквизитов"]
["№","Наименование реквизита","Имя реквизита для ЕПС","Имя реквизита для ДШК","Тип реквизита","Режим ввода","Текст подсказки в СБОЛ","мин. длина","макс. Длина"]
[1,2,3,4,5,6,7,8,9]
[1,"Лицевой счет","ЛИЦЕВОЙ СЧЕТ","PersAcc","Ключевой.Обязательный.","Ручной","Введите номер лицнвого счета, 1-10 символов",1,15]
[2,"ФИО плательщика","ФИО_ПЛАТЕЛЬЩИКА","LastName, FirstName, MiddleName","Обязательный","Ручной","Введите полностью фамилию, имя и отчество плательщика",2,60]
[3,"Адрес","АДРЕС","PayerAddress","Обязательный","Ручной","Введите адрес плательщика: населенный пункт, улица, дом, кв.",5,50]
[]
[]
[null,null,"ОПИСАНИЕ ТЕГОВ ДЛЯ ДШК","Ваш текст для ДШК","  ПРИМЕР"]
[null,"Идентификатор стандарта","СТАНДАРТ КОДИРОВКИ",null,"ST00012"]
[null,"Name","НАИМЕНОВАНИЕ ОРГАНИЗАЦИИ",null,"ЖСК Кандалакша-3"]
[null,"PersonalAcc","РАСЧЕТНЫЙ СЧЕТ",null,"40702810841040000384"]
[null,"BankName","НАИМЕНОВАНИЕ БАНКА ПОЛУЧАТЕЛЯ",null,"ПАО СБЕРБАНК"]
[null,"BIC","БИК",null,"044705615"]
[null,"CorrespAcc","КОР.СЧЕТ",null,"30101810300000000615"]
[null,"PayeeINN","ИНН ПОЛУЧАТЕЛЯ",null,"5102014562"]
[null,"persAcc","НОМЕР ЛИЦЕВОГО СЧЕТА ПЛАТЕЛЬЩИКА",null,"12300678","Ключевой.Обязательный."]
[null,"paymPeriod","ПЕРИОД ОПЛАТЫ В ФОРМАТЕ ММГГ",null,"0616"]
[null,"Sum","СУММА ПЛАТЕЖА",null,"133600"]
[null,"Category","НОМЕР УСЛУГИ В СИСТЕМЕ БАНКА",null,"4862700001"]
[]
[]
[null,"Ваш текст для ДШК",null,"Для создания QR кода можно использовать генератор по адресу http://qrcoder.ru"]
[null,{"$f":"CONCATENATE(\"\",D12,\"|\",B13,\"=\",D13,\"|\",B14,A26,\"=\",D14,\"|\",B15,\"=\",D15,\"|\",B16,\"=\",D16,\"|\",B17,\"=\",D17,\"|\",B18,\"=\",D18,\"|\",B19,\"=\",D19,\"|\",B20,\"=\",D20,\"|\",B21,\"=\",D21,\"|\",B22,\"=\",D22,\"\")","v":"|Name=|PersonalAcc=|BankName=|BIC=|CorrespAcc=|PayeeINN=|persAcc=|paymPeriod=|Sum=|Category="}]
[]
[null,"ПРИМЕР"]
[null,{"$f":"CONCATENATE(\"\",E12,\"|Name=\",E13,\"|PersonalAcc=\",E14,\"|BankName=\",E15,\"|BIC=\",E16,\"|CorrespAcc=\",E17,\"|PayeeINN=\",E18,\"|persAcc=\",E19,\"|paymPeriod=\",E20,\"|Sum=\",E21,\"|Category=\",E22,\"\")","v":"ST00012|Name=ЖСК Кандалакша-3|PersonalAcc=40702810841040000384|BankName=ПАО СБЕРБАНК|BIC=044705615|CorrespAcc=30101810300000000615|PayeeINN=5102014562|persAcc=12300678|paymPeriod=0616|Sum=133600|Category=4862700001"}]
[]
[]
[]
[null,"Структура реестра"]
[null,"Строка 1"]
[null,"Поле 1; Поле 2; Поле 3; …..; Поле t"]
[null,"Строка 2"]
[null,"Поле 1; Поле 2; Поле 3; …..; Поле t"]
[null,"…"]
[null,"Строка n"]
[null,"Поле 1; Поле 2; Поле 3; …..; Поле t"]
[null,"Контрольная строка (используется для исходящего реестра)"]
[null,"=Поле1;Поле2;Поле3;Поле4;Поле5;Поле6"]
[]
[]
[null,"Формат исходящего реестра"]
[null,"Имя архива",null,"ИНН_РС_код_счетчик_дата.zip"]
[null,null,null,"значение","описание","параметры"]
[null,null,null,"ИНН","ИНН поставщика услуг","XXXXXXXXXX"]
[null,null,null,"РС","Расчетный счет ПУ для перечисления д/с","YYYYYYYYYYYYYYYYYYYY"]
[null,null,null,"код","Код услуги. В качестве кода будут использоваться последние 3 символа “Лицевого счета” вида платежа ЕПС, дополненного лидирующими нулями.","001-999"]
[null,null,null,null,"Если “Лицевой счет” в ЕПС будет равен 0, код услуги будет пустой."]
[null,null,null,"счетчик","порядковый номер реестра в течение одного рабочего дня","00-99"]
[null,null,null,"дата","дата формирования реестра","ДДММГГГГ"]
[null,"Имя реестра",null,"SBкод_ПП_дата.txt "]
[null,null,null,"значение","описание","параметры"]
[null,null,null,"SB","константа"]
[null,null,null,"код","Код услуги. Аналогия с кодом услуги в имени архива"]
[null,null,null,"ПП","Номер платежного поручения","ZZZZZZ"]
[null,null,null,"дата","дата формирования реестра","ДДММГГГГ"]
[null,null,null,"txt","признак текстового файла"]
[null,"Кодировка",null,"WIN-1251\nKOI8-R\nUTF8"]
[null,"Разделители",null,"; (ASCII-код 59, точка с запятой)"]
[]
[]
[null,"Формат строк"]
[null,"Номер поля в реестре",null,"Наименование поля","Обязательное наличие информации в поле","Тип поля","Маска"]
[null,"Поле 1 строки",null,"Дата платежа","ДА","числовой","ДД-ММ-ГГГГ"]
[null,"Поле 2 строки",null,"Время платежа","ДА","числовой","00-00-00"]
[null,"Поле 3 строки",null,"Номер отделения","ДА","числовой"]
[null,"Поле 4 строки",null,"Номер кассира/УС/СБОЛ","ДА","числовой"]
[null,"Поле 5 строки",null,"Уникальный код операции в ЕПС","ДА","числовой"]
[null,"Поле 6 строки",null,"Лицевой счет","ДА","числовой"]
[null,"Поле 7 строки",null,"Фамилия, Имя, Отчество","ДА","текстовый","Фамилия, Имя, Отчество"]
[null,"Поле 8 строки",null,"Адрес","ДА","текстовый","Населенный пункт, улица, номер дома, номер квартиры"]
[null,"Поле 9 строки",null,"Сумма операции","ДА","цифровой",999999.99]
[null,"Поле 10 строки",null,"Сумма перевода","ДА","цифровой",999999.99]
[null,"Поле 11 строки",null,"Сумма комиссии банку","ДА","цифровой",999999.99]
[null,"Признак контрольной знаки",null,"Знак равно \"=\"","ДА","текстовый","="]
[null,"Поле 1 контрольной строки",null,"Количество строк в реестре","ДА","числовой"]
[null,"Поле 2 контрольной строки",null,"Общая сумма принятых средств","ДА","числовой",999999.99]
[null,"Поле 3 контрольной строки",null,"Сумма перечисления клиенту","ДА","числовой",999999.99]
[null,"Поле 4 контрольной строки",null,"Комиссия банку","ДА","числовой",999999.99]
[null,"Поле 5 контрольной строки",null,"Номер платежного поручения","ДА","числовой"]
[null,"Поле 6 контрольной строки",null,"Дата платежного поручения","ДА","числовой","ДД-ММ-ГГГГ"]

{"sheet":"10_4","index":34,"n_rows":87,"n_cols":9,"rows_kept":87,"cut":false,"hidden":true,"merged":[[55,1,61,1],[55,3,55,5],[62,3,62,5],[63,3,63,5],[28,1,28,4],[31,1,31,4],[47,1,54,1],[47,3,47,5],[51,3,52,3],[51,5,52,5]]}
[null,"КОД ГРУППЫ РЕКВИЗИТОВ",null,"ШАБЛОН 10_4"]
[]
[null,"Группа реквизитов"]
["№","Наименование реквизита","Имя реквизита для ЕПС","Имя реквизита для ДШК","Тип реквизита","Режим ввода","Текст подсказки в СБОЛ","мин. длина","макс. Длина"]
[1,2,3,4,5,6,7,8,9]
[1,"Лицевой счет","ЛИЦЕВОЙ СЧЕТ","PersAcc","Ключевой.Обязательный.","Ручной","Введите номер лицевого счета плательщика, 1-10 символов",1,10]
[2,"ФИО плательщика","ФИО_ПЛАТЕЛЬЩИКА","LastName, FirstName, MiddleName","Обязательный","Ручной","Введите полностью фамилию, имя и отчество плательщика",2,60]
[3,"Адрес","АДРЕС","PayerAddress","Обязательный","Ручной","Введите адрес плательщика: населенный пункт, улица, дом, кв.",5,50]
[4,"Назначение платежа","НАЗНАЧЕНИЕ","Purpose","Обязательный","Ручной","Указывается назначение/вид платежа, дополнительная информация о платеже. Длина поля не более 250 символов.",1,250]
[]
[]
[null,null,"ОПИСАНИЕ ТЕГОВ ДЛЯ ДШК","    Ващ текст для ДШК","                                          ПРИМЕР"]
[null,"Идентификатор стандарта","СТАНДАРТ КОДИРОВКИ",null,"ST00012"]
[null,"Name","НАИМЕНОВАНИЕ ОРГАНИЗАЦИИ",null,"СТ Невское"]
[null,"PersonalAcc","РАСЧЕТНЫЙ СЧЕТ",null,"40703810555100105607"]
[null,"BankName","НАИМЕНОВАНИЕ БАНКА ПОЛУЧАТЕЛЯ",null,"Северо-Западный ПАО Сбербанк"]
[null,"BIC","БИК",null,"044030653"]
[null,"CorrespAcc","КОР.СЧЕТ",null,"30101810500000000653"]
[null,"PayeeINN","ИНН ПОЛУЧАТЕЛЯ",null,"7811058406"]
[null,"persAcc","НОМЕР ЛИЦЕВОГО СЧЕТА ПЛАТЕЛЬЩИКА",null,"12300678","Ключевой.Обязательный."]
[null,"LastName","ФИО ПЛАТЕЛЬЩИКА",null,"Смирнов Иван Петрович"]
[null,"payerAddress","АДРЕС ПЛАТЕЛЬЩИКА",null,"Санкт-Петербург Ивановская 16 34"]
[null,"Purpose","НАЗНАЧЕНИЕ ПЛАТЕЖА",null,"оплата участок 22 3 квартал 2016 г."]
[null,"Sum","СУММА ПЛАТЕЖА",null,"5000"]
[null,"Category","НОМЕР УСЛУГИ В СИСТЕМЕ БАНКА",null,"4807401110"]
[]
[]
[null,"Ваш текст для ДШК",null,"Для создания QR кода можно использовать генератор по адресу http://qrcoder.ru"]
[null,{"$f":"CONCATENATE(\"\",D13,\"|\",B14,\"=\",D14,\"|\",B15,A29,\"=\",D15,\"|\",B16,\"=\",D16,\"|\",B17,\"=\",D17,\"|\",B18,\"=\",D18,\"|\",B19,\"=\",D19,\"|\",B20,\"=\",D20,\"|\",B21,\"=\",D21,\"|\",B22,\"=\",D22,\"|\",B23,\"=\",D23,\"|\",B24,\"=\",D24,\"|\",B25,\"=\",D25,\"\")","v":"|Name=|PersonalAcc=|BankName=|BIC=|CorrespAcc=|PayeeINN=|persAcc=|LastName=|payerAddress=|Purpose=|Sum=|Category="}]
[]
[null,"ПРИМЕР"]
[null,{"$f":"CONCATENATE(\"\",E13,\"|Name=\",E14,\"|PersonalAcc=\",E15,\"|BankName=\",E16,\"|BIC=\",E17,\"|CorrespAcc=\",E18,\"|PayeeINN=\",E19,\"|persAcc=\",E20,\"|payerAddress=\",E22,\"|Purpose=\",E23,\"|Sum=\",E24,\"|Category=\",E25,\"\")","v":"ST00012|Name=СТ Невское|PersonalAcc=40703810555100105607|BankName=Северо-Западный ПАО Сбербанк|BIC=044030653|CorrespAcc=30101810500000000653|PayeeINN=7811058406|persAcc=12300678|payerAddress=Санкт-Петербург Ивановская 16 34|Purpose=оплата участок 22 3 квартал 2016 г.|Sum=5000|Category=4807401110"}]
[]
[]
[null,"Структура реестра"]
[null,"Строка 1"]
[null,"Поле 1; Поле 2; Поле 3; …..; Поле t"]
[null,"Строка 2"]
[null,"Поле 1; Поле 2; Поле 3; …..; Поле t"]
[null,"…"]
[null,"Строка n"]
[null,"Поле 1; Поле 2; Поле 3; …..; Поле t"]
[null,"Контрольная строка (используется для исходящего реестра)"]
[null,"=Поле1;Поле2;Поле3;Поле4;Поле5;Поле6"]
[]
[]
[null,"Формат исходящего реестра"]
[null,"Имя архива",null,"ИНН_РС_код_счетчик_дата.zip"]
[null,null,null,"значение","описание","параметры"]
[null,null,null,"ИНН","ИНН поставщика услуг","XXXXXXXXXX"]
[null,null,null,"РС","Расчетный счет ПУ для перечисления д/с","YYYYYYYYYYYYYYYYYYYY"]
[null,null,null,"код","Код услуги. В качестве кода будут использоваться последние 3 символа “Лицевого счета” вида платежа ЕПС, дополненного лидирующими нулями.","001-999"]
[null,null,null,null,"Если “Лицевой счет” в ЕПС будет равен 0, код услуги будет пустой."]
[null,null,null,"счетчик","порядковый номер реестра в течение одного рабочего дня","00-99"]
[null,null,null,"дата","дата формирования реестра","ДДММГГГГ"]
[null,"Имя реестра",null,"SBкод_ПП_дата.txt "]
[null,null,null,"значение","описание","параметры"]
[null,null,null,"SB","константа"]
[null,null,null,"код","Код услуги. Аналогия с кодом услуги в имени архива"]
[null,null,null,"ПП","Номер платежного поручения","ZZZZZZ"]
[null,null,null,"дата","дата формирования реестра","ДДММГГГГ"]
[null,null,null,"txt","признак текстового файла"]
[null,"Кодировка",null,"WIN-1251\nKOI8-R\nUTF8"]
[null,"Разделители",null,"; (ASCII-код 59, точка с запятой)"]
[]
[]
[null,"Формат строк"]
[null,"Номер поля в реестре",null,"Наименование поля","Обязательное наличие информации в поле","Тип поля","Маска"]
[null,"Поле 1 строки",null,"Дата платежа","ДА","числовой","ДД-ММ-ГГГГ"]
[null,"Поле 2 строки",null,"Время платежа","ДА","числовой","00-00-00"]
[null,"Поле 3 строки",null,"Номер отделения","ДА","числовой"]
[null,"Поле 4 строки",null,"Номер кассира/УС/СБОЛ","ДА","числовой"]
[null,"Поле 5 строки",null,"Уникальный код операции в ЕПС","ДА","числовой"]
[null,"Поле 6 строки",null,"Лицевой счет","ДА","числовой"]
[null,"Поле 7 строки",null,"Фамилия, Имя, Отчество","ДА","текстовый","Фамилия, Имя, Отчество"]
[null,"Поле 8 строки",null,"Адрес","ДА","текстовый","Населенный пункт, улица, номер дома, номер квартиры"]
[null,"Поле 9 строки",null,"Назначение платежа","ДА","текстовый"]
[null,"Поле 10 строки",null,"Сумма операции","ДА","цифровой",999999.99]
[null,"Поле 11 строки",null,"Сумма перевода","ДА","цифровой",999999.99]
[null,"Поле 12 строки",null,"Сумма комиссии банку","ДА","цифровой",999999.99]
[null,"Признак контрольной знаки",null,"Знак равно \"=\"","ДА","текстовый","="]
[null,"Поле 1 контрольной строки",null,"Количество строк в реестре","ДА","числовой"]
[null,"Поле 2 контрольной строки",null,"Общая сумма принятых средств","ДА","числовой",999999.99]
[null,"Поле 3 контрольной строки",null,"Сумма перечисления клиенту","ДА","числовой",999999.99]
[null,"Поле 4 контрольной строки",null,"Комиссия банку","ДА","числовой",999999.99]
[null,"Поле 5 контрольной строки",null,"Номер платежного поручения","ДА","числовой"]
[null,"Поле 6 контрольной строки",null,"Дата платежного поручения","ДА","числовой","ДД-ММ-ГГГГ"]

{"sheet":"10_5","index":35,"n_rows":101,"n_cols":9,"rows_kept":101,"cut":false,"hidden":true,"merged":[[48,3,48,4],[26,1,26,4],[29,1,29,4],[45,3,45,4],[46,3,46,4],[47,3,47,4],[76,3,76,5],[77,3,77,5],[61,1,68,1],[61,3,61,5],[65,3,66,3],[65,5,66,5],[69,1,75,1],[69,3,69,5]]}
[3,"КОД ГРУППЫ РЕКВИЗИТОВ","БИЛЛИНГ","ШАБЛОН 10_5"]
[]
[null,"Группа реквизитов"]
["№","Наименование реквизита","Имя реквизита для ЕПС","Имя реквизита для ДШК","Тип реквизита","Режим ввода","Текст подсказки в СБОЛ","мин. длина","макс. Длина"]
[1,2,3,4,5,6,7,8,9]
[1,"Лицевой счет","ЛИЦЕВОЙ СЧЕТ","PersAcc","Ключевой.Обязательный.","Ручной","Введите номер лицевого счета плательщика, 1-10 символов",1,10]
[2,"ФИО плательщика","ФИО_ПЛАТЕЛЬЩИКА","LastName, FirstName, MiddleName","Обязательный","Из базы начислений",null,2,60]
[3,"Адрес","АДРЕС","PayerAddress","Обязательный","Из базы начислений",null,5,50]
[4,"Назначение платежа","НАЗНАЧЕНИЕ","Purpose","Ручной","Ручной","Указывается назначение/вид платежа, дополнительная информация о платеже. Длина поля не более 250 символов.",1,250]
[]
[]
[null,null,"ОПИСАНИЕ ТЕГОВ ДЛЯ ДШК","Ваш текст для ДШК","ПРИМЕР"]
[null,"Идентификатор стандарта","СТАНДАРТ КОДИРОВКИ",null,"ST00012"]
[null,"Name","НАИМЕНОВАНИЕ ОРГАНИЗАЦИИ",null,"Школа 13 Великий Новгород"]
[null,"PersonalAcc","РАСЧЕТНЫЙ СЧЕТ",null,"40703810143004000318"]
[null,"BankName","НАИМЕНОВАНИЕ БАНКА ПОЛУЧАТЕЛЯ",null,"Северо-Западный ПАО Сбербанк"]
[null,"BIC","БИК",null,"044030653"]
[null,"CorrespAcc","КОР.СЧЕТ",null,"30101810100000000698"]
[null,"PayeeINN","ИНН ПОЛУЧАТЕЛЯ",null,"5321049060"]
[null,"persAcc","НОМЕР ЛИЦЕВОГО СЧЕТА ПОЛУЧАТЕЛЯ",null,"0000000518","Ключевой.Обязательный."]
[null,"Sum","СУММА ПЛАТЕЖА",null,"10000"]
[null,"Category","НОМЕР УСЛУГИ В СИСТЕМЕ БАНКА",null,"1209556715"]
[]
[]
[]
[null,"Ваш текст для ДШК",null,"Для создания QR кода можно использовать генератор по адресу http://qrcoder.ru"]
[null,{"$f":"CONCATENATE(\"\",D13,\"|\",B14,\"=\",D14,\"|\",B15,A27,\"=\",D15,\"|\",B16,\"=\",D16,\"|\",B17,\"=\",D17,\"|\",B18,\"=\",D18,\"|\",B19,\"=\",D19,\"|\",B20,\"=\",D20,\"|\",B21,\"=\",D21,\"|\",B22,\"=\",D22,\"\")","v":"|Name=|PersonalAcc=|BankName=|BIC=|CorrespAcc=|PayeeINN=|persAcc=|Sum=|Category="}]
[]
[null,"ПРИМЕР"]
[null,{"$f":"CONCATENATE(\"\",E13,\"|Name=\",E14,\"|PersonalAcc=\",E15,\"|BankName=\",E16,\"|BIC=\",E17,\"|CorrespAcc=\",E18,\"|PayeeINN=\",E19,\"|persAcc=\",E20,\"|Sum=\",E21,\"|Category=\",E22,\"\")","v":"ST00012|Name=Школа 13 Великий Новгород|PersonalAcc=40703810143004000318|BankName=Северо-Западный ПАО Сбербанк|BIC=044030653|CorrespAcc=30101810100000000698|PayeeINN=5321049060|persAcc=0000000518|Sum=10000|Category=1209556715"}]
[]
[]
[]
[null,"Структура реестра"]
[null,"Строка 1"]
[null,"Поле 1; Поле 2; Поле 3; …..; Поле t"]
[null,"Строка 2"]
[null,"Поле 1; Поле 2; Поле 3; …..; Поле t"]
[null,"…"]
[null,"Строка n"]
[null,"Поле 1; Поле 2; Поле 3; …..; Поле t"]
[null,"Контрольная строка (используется для исходящего реестра)"]
[null,"=Поле1;Поле2;Поле3;Поле4;Поле5;Поле6"]
[]
[null,"Формат входящего реестра (может не использоваться)"]
[null,"Имя реестра",null,"ИИИИИИИИИ(ИИ)_ РРРРРРРРРРРРРРРРРРРР _XXX_MMDD.txt"]
[null,"Формат реестра",null,"txt"]
[null,"Кодировка",null,"WIN-1251\nKOI8-R\nUTF8"]
[null,"Разделители",null,"; (ASCII-код 59, точка с запятой)"]
[]
[]
[null,"Формат строк"]
[null,"Номер поля в реестре",null,"Наименование поля","Тип поля","Маска"]
[null,1,null,"Лицевой счет","числовое","мин. 1 знак макс. 10"]
[null,2,null,"ФИО","текстовое","Фамилия, Имя, Отчетсво"]
[null,3,null,"Адрес","текстовое","Населенный пункт, адрес, номер дома, кв"]
[null,4,null,"Сумма начислений","числовое",999999.99]
[null,5,null,"Назначение платежа","текстовое","мин. 1 знака макс. 250"]
[]
[]
[null,"Формат исходящего реестра"]
[null,"Имя архива",null,"ИНН_РС_код_счетчик_дата.zip"]
[null,null,null,"значение","описание","параметры"]
[null,null,null,"ИНН","ИНН поставщика услуг","XXXXXXXXXX"]
[null,null,null,"РС","Расчетный счет ПУ для перечисления д/с","YYYYYYYYYYYYYYYYYYYY"]
[null,null,null,"код","Код услуги. В качестве кода будут использоваться последние 3 символа “Лицевого счета” вида платежа ЕПС, дополненного лидирующими нулями.","001-999"]
[null,null,null,null,"Если “Лицевой счет” в ЕПС будет равен 0, код услуги будет пустой."]
[null,null,null,"счетчик","порядковый номер реестра в течение одного рабочего дня","00-99"]
[null,null,null,"дата","дата формирования реестра","ДДММГГГГ"]
[null,"Имя реестра",null,"SBкод_ПП_дата.txt "]
[null,null,null,"значение","описание","параметры"]
[null,null,null,"SB","константа"]
[null,null,null,"код","Код услуги. Аналогия с кодом услуги в имени архива"]
[null,null,null,"ПП","Номер платежного поручения","ZZZZZZ"]
[null,null,null,"дата","дата формирования реестра","ДДММГГГГ"]
[null,null,null,"txt","признак текстового файла"]
[null,"Кодировка",null,"WIN-1251\nKOI8-R\nUTF8"]
[null,"Разделители",null,"; (ASCII-код 59, точка с запятой)"]
[]
[]
[null,"Формат строк"]
[null,"Номер поля в реестре",null,"Наименование поля","Обязательное наличие информации в поле","Тип поля","Маска"]
[null,"Поле 1 строки",null,"Дата платежа","ДА","числовой","ДД-ММ-ГГГГ"]
[null,"Поле 2 строки",null,"Время платежа","ДА","числовой","00-00-00"]
[null,"Поле 3 строки",null,"Номер отделения","ДА","числовой"]
[null,"Поле 4 строки",null,"Номер кассира/УС/СБОЛ","ДА","числовой"]
[null,"Поле 5 строки",null,"Уникальный код операции в ЕПС","ДА","числовой"]
[null,"Поле 6 строки",null,"Лицевой счет","ДА","числовое"]
[null,"Поле 7 строки",null,"Фамилия, Имя, Отчество","ДА","текстовый","Фамилия, Имя, Отчество"]
[null,"Поле 8 строки",null,"Адрес","ДА","текстовый","Населенный пункт, улица, номер дома, номер квартиры"]
[null,"Поле 9 строки",null,"Назначение платежа","ДА","текстовый"]
[null,"Поле 10 строки",null,"Сумма операции","ДА","цифровой",999999.99]
[null,"Поле 11 строки",null,"Сумма перевода","ДА","цифровой",999999.99]
[null,"Поле 12 строки",null,"Сумма комиссии банку","ДА","цифровой",999999.99]
[null,"Признак контрольной знаки",null,"Знак равно \"=\"","ДА","текстовый","="]
[null,"Поле 1 контрольной строки",null,"Количество строк в реестре","ДА","числовой"]
[null,"Поле 2 контрольной строки",null,"Общая сумма принятых средств","ДА","числовой",999999.99]
[null,"Поле 3 контрольной строки",null,"Сумма перечисления клиенту","ДА","числовой",999999.99]
[null,"Поле 4 контрольной строки",null,"Комиссия банку","ДА","числовой",999999.99]
[null,"Поле 5 контрольной строки",null,"Номер платежного поручения","ДА","числовой"]
[null,"Поле 6 контрольной строки",null,"Дата платежного поручения","ДА","числовой","ДД-ММ-ГГГГ"]

{"sheet":"10_6","index":36,"n_rows":130,"n_cols":9,"rows_kept":130,"cut":false,"hidden":true,"merged":[[57,3,57,4],[36,1,36,4],[39,1,39,4],[54,3,54,4],[55,3,55,4],[56,3,56,4],[95,3,95,5],[96,3,96,5],[80,1,87,1],[80,3,80,5],[84,3,85,3],[84,5,85,5],[88,1,94,1],[88,3,88,5]]}
[null,"КОД ГРУППЫ РЕКВИЗИТОВ","БИЛЛИНГ","ШАБЛОН 10_6"]
[]
[null,"Группа реквизитов"]
["№","Наименование реквизита","Имя реквизита для ЕПС","Имя реквизита для ДШК","Тип реквизита","Режим ввода","Текст подсказки в СБОЛ","мин. длина","макс. Длина"]
[1,2,3,4,5,6,7,8,9]
[1,"Лицевой счет","ЛИЦЕВОЙ СЧЕТ","PersAcc","Ключевой.Обязательный.","Ручной*","Введите номер лицевого счета плательщика, 1-18 символов",1,18]
[2,"ФИО плательщика","ФИО_ПЛАТЕЛЬЩИКА","LastName, FirstName, MiddleName","Обязательный","Из базы начислений",null,2,60]
[3,"Адрес","АДРЕС","PayerAddress","Обязательный","Из базы начислений",null,5,50]
[4,"Период оплаты","ПЕРИОД ОПЛАТЫ","PaymPeriod","Необязательный","Ручной*","Введите период оплаты в формате ММГГ, например, 0415",4,4]
[5,"Показания счетчика холодной воды 1","CounterVal Н1",null,"Необязательный","Ручной*",null,1,10]
[6,"Показания счетчика холодной воды 2","CounterVal Н2",null,"Необязательный","Ручной*",null,1,10]
[7,"Показания счетчика холодной воды 3","CounterVal Н3",null,"Необязательный","Ручной*",null,1,10]
[8," Показания счетчика горячей воды 1","CounterVal G1",null,"Необязательный","Ручной*",null,1,10]
[9," Показания счетчика горячей воды 2","CounterVal G2",null,"Необязательный","Ручной*",null,1,10]
[10," Показания счетчика горячей воды 3","CounterVal G3",null,"Необязательный","Ручной*",null,1,10]
[11,"Показания счетчика электроэнергии 1","CounterVal EL1",null,"Необязательный","Ручной*",null,1,10]
[12,"Показания счетчика электроэнергии 2","CounterVal EL2",null,"Необязательный","Ручной*",null,1,10]
[13,"Показания газового счетчика 1","CounterVal Gas1",null,"Необязательный","Ручной*",null,1,10]
[14,"Показания газового счетчика 2","CounterVal Gas2",null,"Необязательный","Ручной*",null,1,10]
[]
[null,"Ручной* - предлагаем подставлять пред. показания из базы с возможностью редактирования на текущие"]
[]
[null,null,"ОПИСАНИЕ ТЕГОВ ДЛЯ ДШК","                   Ваш текст для ДШК","                                        ПРИМЕР"]
[null,"Идентификатор стандарта","СТАНДАРТ КОДИРОВКИ",null,"ST00012"]
[null,"Name","НАИМЕНОВАНИЕ ОРГАНИЗАЦИИ",null,"КОРАЛ ГРУПП ЭКСПЛУАТАЦИЯ"]
[null,"PersonalAcc","РАСЧЕТНЫЙ СЧЕТ",null,"40702810325000000248"]
[null,"BankName","НАИМЕНОВАНИЕ БАНКА ПОЛУЧАТЕЛЯ",null,"Карельское отделение ПАО Сбербанк"]
[null,"BIC","БИК",null,"048602673"]
[null,"CorrespAcc","КОР.СЧЕТ",null,"30101810600000000673"]
[null,"PayeeINN","ИНН ПОЛУЧАТЕЛЯ",null,"1001288150"]
[null,"persAcc","НОМЕР ЛИЦЕВОГО СЧЕТА ПЛАТЕЛЬЩИКА",null,"09014","Ключевой.Обязательный."]
[null,"paymPeriod","ПЕРИОД ОПЛАТЫ В ФОРМАТЕ ММГГ",null,"0616"]
[null,"Category","НОМЕР УСЛУГИ В СИСТЕМЕ БАНКА",null,"8662096833"]
[]
[]
[null,"Ваш текст для ДШК",null,"Для создания QR кода можно использовать генератор по адресу http://qrcoder.ru"]
[null,{"$f":"CONCATENATE(\"\",D24,\"|\",B25,\"=\",D25,\"|\",B26,A37,\"=\",D26,\"|\",B27,\"=\",D27,\"|\",B28,\"=\",D28,\"|\",B29,\"=\",D29,\"|\",B30,\"=\",D30,\"|\",B31,\"=\",D31,\"|\",B32,\"=\",D32,\"|\",B33,\"=\",D33,\"\")","v":"|Name=|PersonalAcc=|BankName=|BIC=|CorrespAcc=|PayeeINN=|persAcc=|paymPeriod=|Category="}]
[]
[null,"ОБРАЗЕЦ"]
[null,{"$f":"CONCATENATE(\"\",E24,\"|Name=\",E25,\"|PersonalAcc=\",E26,\"|BankName=\",E27,\"|BIC=\",E28,\"|CorrespAcc=\",E29,\"|PayeeINN=\",E30,\"|persAcc=\",E31,\"|paymPeriod=\",E32,\"|Category=\",E33,\"\")","v":"ST00012|Name=КОРАЛ ГРУПП ЭКСПЛУАТАЦИЯ|PersonalAcc=40702810325000000248|BankName=Карельское отделение ПАО Сбербанк|BIC=048602673|CorrespAcc=30101810600000000673|PayeeINN=1001288150|persAcc=09014|paymPeriod=0616|Category=8662096833"}]
[]
[]
[null,"Структура реестра"]
[null,"Строка 1"]
[null,"Поле 1; Поле 2; Поле 3; …..; Поле t"]
[null,"Строка 2"]
[null,"Поле 1; Поле 2; Поле 3; …..; Поле t"]
[null,"…"]
[null,"Строка n"]
[null,"Поле 1; Поле 2; Поле 3; …..; Поле t"]
[null,"Контрольная строка (используется для исходящего реестра)"]
[null,"=Поле1;Поле2;Поле3;Поле4;Поле5;Поле6"]
[]
[null,"Формат входящего реестра (может не использоваться)"]
[null,"Имя реестра",null,"ИИИИИИИИИ(ИИ)_ РРРРРРРРРРРРРРРРРРРР _XXX_MMDD.txt"]
[null,"Формат реестра",null,"txt"]
[null,"Кодировка",null,"WIN-1251\nKOI8-R\nUTF8"]
[null,"Разделители",null,"; (ASCII-код 59, точка с запятой)"]
[]
[]
[null,"Формат строк"]
[null,"Номер поля в реестре",null,"Наименование поля","Тип поля","Маска"]
[null,1,null,"Лицевой счет","числовой","мин. 1 знак макс. 10"]
[null,2,null,"ФИО плательщика","текстовый","Фамилия, Имя, Отчетсво"]
[null,3,null,"Адрес","текстовый","Населенный пункт, адрес, номер дома, кв"]
[null,4,null,"Период оплаты","текстовый","ММГГ"]
[null,5,null,"Показания счетчика холодной воды 1","числовой","до 10 знаков"]
[null,6,null,"Показания счетчика холодной воды 2","числовой","до 10 знаков"]
[null,7,null,"Показания счетчика холодной воды 3","числовой","до 10 знаков"]
[null,8,null," Показания счетчика горячей воды 1","числовой","до 10 знаков"]
[null,9,null," Показания счетчика горячей воды 2","числовой","до 10 знаков"]
[null,10,null," Показания счетчика горячей воды 3","числовой","до 10 знаков"]
[null,11,null,"Показания счетчика электроэнергии 1","числовой","до 10 знаков"]
[null,12,null,"Показания счетчика электроэнергии 2","числовой","до 10 знаков"]
[null,13,null,"Показания газового счетчика 1","числовой","до 10 знаков"]
[null,14,null,"Показания газового счетчика 2","числовой","до 10 знаков"]
[null,15,null,"Сумма начислений","числовой",999999.99]
[]
[]
[null,"Формат исходящего реестра"]
[null,"Имя архива",null,"ИНН_РС_код_счетчик_дата.zip"]
[null,null,null,"значение","описание","параметры"]
[null,null,null,"ИНН","ИНН поставщика услуг","XXXXXXXXXX"]
[null,null,null,"РС","Расчетный счет ПУ для перечисления д/с","YYYYYYYYYYYYYYYYYYYY"]
[null,null,null,"код","Код услуги. В качестве кода будут использоваться последние 3 символа “Лицевого счета” вида платежа ЕПС, дополненного лидирующими нулями.","001-999"]
[null,null,null,null,"Если “Лицевой счет” в ЕПС будет равен 0, код услуги будет пустой."]
[null,null,null,"счетчик","порядковый номер реестра в течение одного рабочего дня","00-99"]
[null,null,null,"дата","дата формирования реестра","ДДММГГГГ"]
[null,"Имя реестра",null,"SBкод_ПП_дата.txt "]
[null,null,null,"значение","описание","параметры"]
[null,null,null,"SB","константа"]
[null,null,null,"код","Код услуги. Аналогия с кодом услуги в имени архива"]
[null,null,null,"ПП","Номер платежного поручения","ZZZZZZ"]
[null,null,null,"дата","дата формирования реестра","ДДММГГГГ"]
[null,null,null,"txt","признак текстового файла"]
[null,"Кодировка",null,"WIN-1251\nKOI8-R\nUTF8"]
[null,"Разделители",null,"; (ASCII-код 59, точка с запятой)"]
[]
[]
[null,"Формат строк"]
[null,"Номер поля в реестре",null,"Наименование поля","Обязательное наличие информации в поле","Тип поля","Маска"]
[null,"Поле 1 строки",null,"Дата платежа","ДА","числовой","ДД-ММ-ГГГГ"]
[null,"Поле 2 строки",null,"Время платежа","ДА","числовой","00-00-00"]
[null,"Поле 3 строки",null,"Номер отделения","ДА","числовой"]
[null,"Поле 4 строки",null,"Номер кассира/УС/СБОЛ","ДА","числовой"]
[null,"Поле 5 строки",null,"Уникальный код операции в ЕПС","ДА","числовой"]
[null,"Поле 6 строки",null,"Лицевой счет","ДА","числовой"]
[null,"Поле 7 строки",null,"Фамилия, Имя, Отчество","ДА","текстовый","Фамилия, Имя, Отчество"]
[null,"Поле 8 строки",null,"Адрес","ДА","текстовый","Населенный пункт, улица, номер дома, номер квартиры"]
[null,"Поле 9 строки",null,"Период оплаты","НЕТ","числовой","ММГГ"]
[null,"Поле 10 строки",null,"Счетчик холодной воды 1","НЕТ","числовой"]
[null,"Поле 11 строки",null,"Счетчик холодной воды 2","НЕТ","числовой"]
[null,"Поле 12 строки",null,"Счетчик холодной воды 3","НЕТ","числовой"]
[null,"Поле 13 строки",null,"Счетчик горячей воды 1","НЕТ","числовой"]
[null,"Поле 14 строки",null,"Счетчик горячей воды 2","НЕТ","числовой"]
[null,"Поле 15 строки",null,"Счетчик горячей воды 3","НЕТ","числовой"]
[null,"Поле 16 строки",null,"Счетчик электроэнергии 1","НЕТ","числовой"]
[null,"Поле 17 строки",null,"Счетчик электроэнергии 2","НЕТ","числовой"]
[null,"Поле 18 строки",null,"Счетчик газоснабжения 1","НЕТ","числовой"]
[null,"Поле 19 строки",null,"Счетчик газоснабжения  2","НЕТ","числовой"]
[null,"Поле 20 строки",null,"Сумма операции","ДА","цифровой",999999.99]
[null,"Поле 21 строки",null,"Сумма перевода","ДА","цифровой",999999.99]
[null,"Поле 22 строки",null,"Сумма комиссии банку","ДА","цифровой",999999.99]
[null,"Признак контрольной знаки",null,"Знак равно \"=\"","ДА","текстовый","="]
[null,"Поле 1 контрольной строки",null,"Количество строк в реестре","ДА","числовой"]
[null,"Поле 2 контрольной строки",null,"Общая сумма принятых средств","ДА","числовой",999999.99]
[null,"Поле 3 контрольной строки",null,"Сумма перечисления клиенту","ДА","числовой",999999.99]
[null,"Поле 4 контрольной строки",null,"Комиссия банку","ДА","числовой",999999.99]
[null,"Поле 5 контрольной строки",null,"Номер платежного поручения","ДА","числовой"]
[null,"Поле 6 контрольной строки",null,"Дата платежного поручения","ДА","числовой","ДД-ММ-ГГГГ"]

{"sheet":"11_1","index":37,"n_rows":93,"n_cols":9,"rows_kept":93,"cut":false,"hidden":true,"merged":[[45,3,45,4],[24,1,24,4],[27,1,27,4],[42,3,42,4],[43,3,43,4],[44,3,44,4],[70,3,70,5],[71,3,71,5],[55,1,62,1],[55,3,55,5],[59,3,60,3],[59,5,60,5],[63,1,69,1],[63,3,63,5]]}
[null,"КОД ГРУППЫ РЕКВИЗИТОВ",null,"ШАБЛОН 11_1"]
[]
[null,"Группа реквизитов"]
["№","Наименование реквизита","Имя реквизита для ЕПС","Имя реквизита для ДШК","Тип реквизита","Режим ввода","Текст подсказки в СБОЛ","мин. длина","макс. Длина"]
[1,2,3,4,5,6,7,8,9]
[1,"Лицевой счет","ЛИЦЕВОЙ СЧЕТ","PersAcc","Ключевой.Обязательный.","Ручной","Введите лицевой счет, не менее 3-х и не более 30-ти символов.",3,30]
[2,"Период оплаты","ПЕРИОД ОПЛАТЫ","PaymPeriod","Обязательный","Ручной","Введите период оплаты в формате ММГГ, например, 0415",4,10]
[]
[]
[null,null,"ОПИСАНИЕ ТЕГОВ ДЛЯ ДШК","                   Ваш текст для ДШК","                                              ПРИМЕР"]
[null,"Идентификатор стандарта","СТАНДАРТ КОДИРОВКИ",null,"ST00012"]
[null,"Name","НАИМЕНОВАНИЕ ОРГАНИЗАЦИИ",null,"ТОТОШКА"]
[null,"PersonalAcc","РАСЧЕТНЫЙ СЧЕТ",null,"40702810551000000630"]
[null,"BankName","НАИМЕНОВАНИЕ БАНКА ПОЛУЧАТЕЛЯ",null,"ПАО СБЕРБАНК"]
[null,"BIC","БИК",null,"045805602"]
[null,"CorrespAcc","КОР.СЧЕТ",null,"30101810300000000602"]
[null,"PayeeINN","ИНН ПОЛУЧАТЕЛЯ",null,"6027167022"]
[null,"persAcc","НОМЕР ЛИЦЕВОГО СЧЕТА ПЛАТЕЛЬЩИКА",null,"0005","Ключевой.Обязательный."]
[null,"paymPeriod","ПЕРИОД ОПЛАТЫ",null,"0616"]
[null,"Sum","СУММА",null,"133600"]
[null,"Category","НОМЕР УСЛУГИ В СИСТЕМЕ БАНКА",null,"1949593163"]
[]
[]
[null,"Ваш текст для ДШК",null,"Для создания QR кода можно использовать генератор по адресу http://qrcoder.ru"]
[null,{"$f":"CONCATENATE(\"\",D11,\"|\",B12,\"=\",D12,\"|\",B13,A25,\"=\",D13,\"|\",B14,\"=\",D14,\"|\",B15,\"=\",D15,\"|\",B16,\"=\",D16,\"|\",B17,\"=\",D17,\"|\",B18,\"=\",D18,\"|\",B19,\"=\",D19,\"|\",B20,\"=\",D20,\"|\",B21,\"=\",D21,\"\")","v":"|Name=|PersonalAcc=|BankName=|BIC=|CorrespAcc=|PayeeINN=|persAcc=|paymPeriod=|Sum=|Category="}]
[]
[null,"ПРИМЕР"]
[null,{"$f":"CONCATENATE(\"\",E11,\"|Name=\",E12,\"|PersonalAcc=\",E13,\"|BankName=\",E14,\"|BIC=\",E15,\"|CorrespAcc=\",E16,\"|PayeeINN=\",E17,\"|persAcc=\",E18,\"|paymPeriod=\",E19,\"|Sum=\",E20,\"|Category=\",E21,\"\")","v":"ST00012|Name=ТОТОШКА|PersonalAcc=40702810551000000630|BankName=ПАО СБЕРБАНК|BIC=045805602|CorrespAcc=30101810300000000602|PayeeINN=6027167022|persAcc=0005|paymPeriod=0616|Sum=133600|Category=1949593163"}]
[]
[]
[null,"Структура реестра"]
[null,"Строка 1"]
[null,"Поле 1; Поле 2; Поле 3; …..; Поле t"]
[null,"Строка 2"]
[null,"Поле 1; Поле 2; Поле 3; …..; Поле t"]
[null,"…"]
[null,"Строка n"]
[null,"Поле 1; Поле 2; Поле 3; …..; Поле t"]
[null,"Контрольная строка (используется для исходящего реестра)"]
[null,"=Поле1;Поле2;Поле3;Поле4;Поле5;Поле6"]
[]
[null,"Формат входящего реестра (может не использоваться)"]
[null,"Имя реестра",null,"ИИИИИИИИИ(ИИ)_ РРРРРРРРРРРРРРРРРРРР _XXX_MMDD.txt"]
[null,"Формат реестра",null,"txt"]
[null,"Кодировка",null,"WIN-1251\nKOI8-R\nUTF8"]
[null,"Разделители",null,"; (ASCII-код 59, точка с запятой)"]
[]
[]
[null,"Формат строк"]
[null,"Номер поля в реестре",null,"Наименование поля","Тип поля","Маска"]
[null,1,null,"Лицевой счет","текстовое","мин. 3 знака макс. 50"]
[null,2,null,"Период оплаты","числовое","ММГГ"]
[null,3,null,"Сумма начислений","числовое",999999.99]
[]
[null,"Формат исходящего реестра"]
[null,"Имя архива",null,"ИНН_РС_код_счетчик_дата.zip"]
[null,null,null,"значение","описание","параметры"]
[null,null,null,"ИНН","ИНН поставщика услуг","XXXXXXXXXX"]
[null,null,null,"РС","Расчетный счет ПУ для перечисления д/с","YYYYYYYYYYYYYYYYYYYY"]
[null,null,null,"код","Код услуги. В качестве кода будут использоваться последние 3 символа “Лицевого счета” вида платежа ЕПС, дополненного лидирующими нулями.","001-999"]
[null,null,null,null,"Если “Лицевой счет” в ЕПС будет равен 0, код услуги будет пустой."]
[null,null,null,"счетчик","порядковый номер реестра в течение одного рабочего дня","00-99"]
[null,null,null,"дата","дата формирования реестра","ДДММГГГГ"]
[null,"Имя реестра",null,"SBкод_ПП_дата.txt "]
[null,null,null,"значение","описание","параметры"]
[null,null,null,"SB","константа"]
[null,null,null,"код","Код услуги. Аналогия с кодом услуги в имени архива"]
[null,null,null,"ПП","Номер платежного поручения","ZZZZZZ"]
[null,null,null,"дата","дата формирования реестра","ДДММГГГГ"]
[null,null,null,"txt","признак текстового файла"]
[null,"Кодировка",null,"WIN-1251\nKOI8-R\nUTF8"]
[null,"Разделители",null,"; (ASCII-код 59, точка с запятой)"]
[]
[]
[null,"Формат строк"]
[null,"Номер поля в реестре",null,"Наименование поля","Обязательное наличие информации в поле","Тип поля","Маска"]
[null,"Поле 1 строки",null,"Дата платежа","ДА","числовой","ДД-ММ-ГГГГ"]
[null,"Поле 2 строки",null,"Время платежа","ДА","числовой","00-00-00"]
[null,"Поле 3 строки",null,"Номер отделения","ДА","числовой"]
[null,"Поле 4 строки",null,"Номер кассира/УС/СБОЛ","ДА","числовой"]
[null,"Поле 5 строки",null,"Уникальный код операции в ЕПС","ДА","числовой"]
[null,"Поле 6 строки",null,"Лицевой счет","ДА","текстовый"]
[null,"Поле 7 строки",null,"Период оплаты","ДА","числовой","ММГГ"]
[null,"Поле 8 строки",null,"Сумма операции","ДА","цифровой",999999.99]
[null,"Поле 9 строки",null,"Сумма перевода","ДА","цифровой",999999.99]
[null,"Поле 10 строки",null,"Сумма комиссии банку","ДА","цифровой",999999.99]
[null,"Признак контрольной знаки",null,"Знак равно \"=\"","ДА","текстовый","="]
[null,"Поле 1 контрольной строки",null,"Количество строк в реестре","ДА","числовой"]
[null,"Поле 2 контрольной строки",null,"Общая сумма принятых средств","ДА","числовой",999999.99]
[null,"Поле 3 контрольной строки",null,"Сумма перечисления клиенту","ДА","числовой",999999.99]
[null,"Поле 4 контрольной строки",null,"Комиссия банку","ДА","числовой",999999.99]
[null,"Поле 5 контрольной строки",null,"Номер платежного поручения","ДА","числовой"]
[null,"Поле 6 контрольной строки",null,"Дата платежного поручения","ДА","числовой","ДД-ММ-ГГГГ"]

{"sheet":"13_1","index":38,"n_rows":112,"n_cols":9,"rows_kept":112,"cut":false,"hidden":true,"merged":[[52,4,52,5],[31,1,31,4],[34,1,34,4],[49,4,49,5],[50,4,50,5],[51,4,51,5]]}
[null,"КОД ГРУППЫ РЕКВИЗИТОВ","БИЛЛИНГ","ШАБЛОН 13_1"]
[]
[null,"Группа реквизитов"]
["№","Наименование реквизита","Имя реквизита для ЕПС","Имя реквизита для ДШК","Тип реквизита","Режим ввода","Текст подсказки в СБОЛ","мин. длина","макс. Длина"]
[1,2,3,4,5,6,7,8,9]
[1,"Лицевой счет","ЛИЦЕВОЙ СЧЕТ","PersAcc","Ключевой.Обязательный.","Ручной","Введите лицевой счет, не менее 3-х и не более 30-ти символов.",3,30]
[2,"Период оплаты","ПЕРИОД ОПЛАТЫ","PaymPeriod","Запрос по задолженности","Ручной","Введите период оплаты в формате ММГГ, например, 0415",4,4]
[3,"ХВС (счетчик №1)","CounterVal Н1","CounterVal Н1","Необязательный","Ручной","Введите текущее показание счетчика холодной воды",0,210]
[4,"ХВС (счетчик №2)","CounterVal Н2","CounterVal Н2","Необязательный","Ручной","Введите текущее показание счетчика холодной воды",0,12]
[5,"ХВС (счетчик №3)","CounterVal Н3","CounterVal Н3","Необязательный","Ручной","Введите текущее показание счетчика холодной воды",0,12]
[6,"ГВС (счетчик №1)","CounterVal G1","CounterVal G1","Необязательный","Ручной","Введите текущее показание счетчика горячей воды",0,12]
[7,"ГВС (счетчик №2)","CounterVal G2","CounterVal G2","Необязательный","Ручной","Введите текущее показание счетчика горячей воды",0,12]
[8,"ГВС (счетчик №3)","CounterVal G3","CounterVal G3","Необязательный","Ручной","Введите текущее показание счетчика горячей воды",0,12]
[9,"Электроэнергия (счетчик №1)","CounterVal EL1","CounterVal EL1","Необязательный","Ручной","Введите текущее показание счетчика электроэнергии",0,12]
[10,"Электроэнергия (счетчик №2)","CounterVal EL2","CounterVal EL2","Необязательный","Ручной","Введите текущее показание счетчика электроэнергии",0,12]
[]
[]
[null,null,"ОПИСАНИЕ ТЕГОВ ДЛЯ ДШК","Ваш текст для ДШК","                                   ПРИМЕР "]
[null,"Идентификатор стандарта","СТАНДАРТ КОДИРОВКИ",null,"ST00012"]
[null,"Name","НАИМЕНОВАНИЕ ОРГАНИЗАЦИИ",null,"ТСЖ Ветеран"]
[null,"PersonalAcc","РАСЧЕТНЫЙ СЧЕТ",null,"40703810417000000364"]
[null,"BankName","НАИМЕНОВАНИЕ БАНКА ПОЛУЧАТЕЛЯ",null,"ПАО СБЕРБАНК"]
[null,"BIC","БИК",null,"042406608"]
[null,"CorrespAcc","КОР.СЧЕТ",null,"30101810000000000608"]
[null,"PayeeINN","ИНН ПОЛУЧАТЕЛЯ",null,"3703042433"]
[null,"persAcc","НОМЕР ЛИЦЕВОГО СЧЕТА ПЛАТЕЛЬЩИКА",null,"3352","Ключевой.Обязательный."]
[null,"paymPeriod","ПЕРИОД ОПЛАТЫ В ФОРМАТЕ ММГГ",null,"0616"]
[null,"Category","НОМЕР УСЛУГИ В СИСТЕМЕ БАНКА"]
[]
[]
[null,"Ваш текст для ДШК",null,"Для создания QR кода можно использовать генератор по адресу http://qrcoder.ru"]
[null,{"$f":"CONCATENATE(\"\",D19,\"|\",B20,\"=\",D20,\"|\",B21,A32,\"=\",D21,\"|\",B22,\"=\",D22,\"|\",B23,\"=\",D23,\"|\",B24,\"=\",D24,\"|\",B25,\"=\",D25,\"|\",B26,\"=\",D26,\"|\",B27,\"=\",D27,\"|\",B28,\"=\",D28,\"\")","v":"|Name=|PersonalAcc=|BankName=|BIC=|CorrespAcc=|PayeeINN=|persAcc=|paymPeriod=|Category="}]
[]
[null,"ОБРАЗЕЦ"]
[null,{"$f":"CONCATENATE(\"\",E19,\"|Name=\",E20,\"|PersonalAcc=\",E21,\"|BankName=\",E22,\"|BIC=\",E23,\"|CorrespAcc=\",E24,\"|PayeeINN=\",E25,\"|persAcc=\",E26,\"|paymPeriod=\",E27,\"|Category=\",E28,\"\")","v":"ST00012|Name=ТСЖ Ветеран|PersonalAcc=40703810417000000364|BankName=ПАО СБЕРБАНК|BIC=042406608|CorrespAcc=30101810000000000608|PayeeINN=3703042433|persAcc=3352|paymPeriod=0616|Category="}]
[]
[]
[null,"Структура реестра"]
[null,"Строка 1"]
[null,"Поле 1; Поле 2; Поле 3; …..; Поле t"]
[null,"Строка 2"]
[null,"Поле 1; Поле 2; Поле 3; …..; Поле t"]
[null,"…"]
[null,"Строка n"]
[null,"Поле 1; Поле 2; Поле 3; …..; Поле t"]
[null,"Контрольная строка (используется для исходящего реестра)"]
[null,"=Поле1;Поле2;Поле3;Поле4;Поле5;Поле6"]
[]
[null,"Формат входящего реестра (может не использоваться)"]
[null,"Имя реестра",null,null,"ИИИИИИИИИ(ИИ)_ РРРРРРРРРРРРРРРРРРРР _XXX_MMDD.txt"]
[null,"Формат реестра",null,null,"txt"]
[null,"Кодировка",null,null,"WIN-1251\nKOI8-R\nUTF8"]
[null,"Разделители",null,null,"; (ASCII-код 59, точка с запятой)"]
[]
[null,null,null,"Наименование поля","Тип поля","Маска"]
[null,null,null,"Лицевой счет","текстовое","мин. 3 знака макс. 50"]
[null,null,null,"Период оплаты","числовое","ММГГ"]
[null,null,null,"Счетчик холодной воды 1","числовое","до 12 знаков"]
[null,null,null,"Счетчик холодной воды 2","числовое","до 12 знаков"]
[null,null,null,"Счетчик холодной воды 3","числовое","до 12 знаков"]
[null,null,null,"Счетчик горячей воды 1","числовое","до 12 знаков"]
[null,null,null,"Счетчик горячей воды 2","числовое","до 12 знаков"]
[null,null,null,"Счетчик горячей воды 3","числовое","до 12 знаков"]
[null,null,null,"Счетчик электроэнергии 1","числовое","до 12 знаков"]
[null,null,null,"Счетчик электроэнергии 2","числовое","до 12 знаков"]
[null,null,null,"Сумма начислений","числовое",999999.99]
[]
[null,null,null,"ИНН_РС_код_счетчик_дата.zip"]
[null,null,null,"значение","описание","параметры"]
[null,null,null,"ИНН","ИНН поставщика услуг","XXXXXXXXXX"]
[null,null,null,"РС","Расчетный счет ПУ для перечисления д/с","YYYYYYYYYYYYYYYYYYYY"]
[null,null,null,"код","Код услуги. В качестве кода будут использоваться последние 3 символа “Лицевого счета” вида платежа ЕПС, дополненного лидирующими нулями.","001-999"]
[null,null,null,null,"Если “Лицевой счет” в ЕПС будет равен 0, код услуги будет пустой."]
[null,null,null,"счетчик","порядковый номер реестра в течение одного рабочего дня","00-99"]
[null,null,null,"дата","дата формирования реестра","ДДММГГГГ"]
[null,null,null,"SBкод_ПП_дата.txt "]
[null,null,null,"значение","описание","параметры"]
[null,null,null,"SB","константа"]
[null,null,null,"код","Код услуги. Аналогия с кодом услуги в имени архива"]
[null,null,null,"ПП","Номер платежного поручения","ZZZZZZ"]
[null,null,null,"дата","дата формирования реестра","ДДММГГГГ"]
[null,null,null,"txt","признак текстового файла"]
[null,null,null,"WIN-1251\nKOI8-R\nUTF8"]
[null,null,null,"; (ASCII-код 59, точка с запятой)"]
[]
[]
[null,null,null,"Наименование поля","Обязательное наличие информации в поле","Тип поля","Маска","Маска"]
[null,null,null,"Дата платежа","ДА","числовой","ДД-ММ-ГГГГ","ДД-ММ-ГГГГ"]
[null,null,null,"Время платежа","ДА","числовой","00-00-00","00-00-00"]
[null,null,null,"Номер отделения","ДА","числовой"]
[null,null,null,"Номер кассира/УС/СБОЛ","ДА","числовой"]
[null,null,null,"Уникальный код операции в ЕПС","ДА","числовой"]
[null,null,null,"Лицевой счет","ДА","текстовый"]
[null,null,null,"Период оплаты","ДА","числовой","ММГГ","ММГГ"]
[null,null,null,"Счетчик холодной воды 1","НЕТ","числовой"]
[null,null,null,"Счетчик холодной воды 2","НЕТ","числовой"]
[null,null,null,"Счетчик холодной воды 3","НЕТ","числовой"]
[null,null,null,"Счетчик горячей воды 1","НЕТ","числовой"]
[null,null,null,"Счетчик горячей воды 2","НЕТ","числовой"]
[null,null,null,"Счетчик горячей воды 3","НЕТ","числовой"]
[null,null,null,"Счетчик электроэнергии 1","НЕТ","числовой"]
[null,null,null,"Счетчик электроэнергии 2","НЕТ","числовой"]
[null,null,null,"Сумма операции","ДА","цифровой",999999.99,999999.99]
[null,null,null,"Сумма перевода","ДА","цифровой",999999.99,999999.99]
[null,null,null,"Сумма комиссии банку","ДА","цифровой",999999.99,999999.99]
[null,null,null,"Знак равно \"=\"","ДА","текстовый","=","="]
[null,null,null,"Количество строк в реестре","ДА","числовой"]
[null,null,null,"Общая сумма принятых средств","ДА","числовой",999999.99,999999.99]
[null,null,null,"Сумма перечисления клиенту","ДА","числовой",999999.99,999999.99]
[null,null,null,"Комиссия банку","ДА","числовой",999999.99,999999.99]
[null,null,null,"Номер платежного поручения","ДА","числовой"]
[null,null,null,"Дата платежного поручения","ДА","числовой","ДД-ММ-ГГГГ","ДД-ММ-ГГГГ"]

{"sheet":"13_2","index":39,"n_rows":116,"n_cols":9,"rows_kept":116,"cut":false,"hidden":true,"merged":[[53,3,53,4],[32,1,32,4],[35,1,35,4],[50,3,50,4],[51,3,51,4],[52,3,52,4],[88,3,88,5],[89,3,89,5],[73,1,80,1],[73,3,73,5],[77,3,78,3],[77,5,78,5],[81,1,87,1],[81,3,81,5]]}
[null,"КОД ГРУППЫ РЕКВИЗИТОВ",null,"ШАБЛОН 13_2"]
[]
[null,"Группа реквизитов"]
["№","Наименование реквизита","Имя реквизита для ЕПС","Имя реквизита для ДШК","Тип реквизита","Режим ввода","Текст подсказки в СБОЛ","мин. длина","макс. Длина"]
[1,2,3,4,5,6,7,8,9]
[1,"Лицевой счет","ЛИЦЕВОЙ СЧЕТ","PersAcc","Ключевой.Обязательный.","Ручной","Введите лицевой счет, не менее 3-х и не более 30-ти символов.",3,30]
[2,"ФИО","ФИО_ПЛАТЕЛЬЩИКА","LastName, FirstName, MiddleName","Только для чтения","Из базы начислений",null,2,120]
[3,"Адрес","АДРЕС","PayerAddress","Только для чтения","Из базы начислений",null,1,150]
[4,"Предыдущие показания ХВС (счетчик №1)","CounterVal Н1","CounterVal Н1","Только для чтения","Из базы начислений",null,0,6]
[5,"Текущие показания ХВС (счетчик №1)","CurrentCounter H1","CurrentCounter H1","Запрос по задолженности","Ручной",null,0,6]
[6,"Предыдущие показания ХВС (счетчик №2)","CounterVal Н2","CounterVal Н2","Только для чтения","Из базы начислений",null,0,6]
[7,"Текущие показания ХВС (счетчик №2)","CurrentCounter H2","CurrentCounter H2","Запрос по задолженности","Ручной",null,0,6]
[8,"Предыдущие показания ХВС (счетчик №3)","CounterVal Н3","CounterVal Н3","Только для чтения","Из базы начислений",null,0,6]
[9,"Текущие показания ХВС (счетчик №3)","CurrentCounter H3","CurrentCounter H3","Запрос по задолженности","Ручной",null,0,6]
[10,"Предыдущие показания ХВС (счетчик №4)","CounterVal Н4","CounterVal Н4","Только для чтения","Из базы начислений",null,0,6]
[11,"Текущие показания ХВС (счетчик №4)","CurrentCounter H4","CurrentCounter H4","Запрос по задолженности","Ручной",null,0,6]
[]
[]
[null,null,"        ОПИСАНИЕ ТЕГОВ ДЛЯ ДШК","                        Ваш текст для ДШК","                                            ПРИМЕР"]
[null,"Идентификатор стандарта","СТАНДАРТ КОДИРОВКИ",null,"ST00012"]
[null,"Name","НАИМЕНОВАНИЕ ОРГАНИЗАЦИИ",null,"Мистер Дом"]
[null,"PersonalAcc","РАСЧЕТНЫЙ СЧЕТ",null,"40703810517000000442"]
[null,"BankName","НАИМЕНОВАНИЕ БАНКА ПОЛУЧАТЕЛЯ",null,"ПАО СБЕРБАНК"]
[null,"BIC","БИК",null,"042406608"]
[null,"CorrespAcc","КОР.СЧЕТ",null,"30101810000000000608"]
[null,"PayeeINN","ИНН ПОЛУЧАТЕЛЯ",null,"3702147472"]
[null,"persAcc","НОМЕР ЛИЦЕВОГО СЧЕТА ПЛАТЕЛЬЩИКА",null,"1610001","Ключевой.Обязательный."]
[null,"Sum","СУММА ПЛАТЕЖА",null,"123400"]
[null,"Category","НОМЕР УСЛУГИ В СИСТЕМЕ БАНКА"]
[]
[]
[null,"Ваш текст для ДШК",null,"Для создания QR кода можно использовать генератор по адресу http://qrcoder.ru"]
[null,{"$f":"CONCATENATE(\"\",D20,\"|\",B21,\"=\",D21,\"|\",B22,A33,\"=\",D22,\"|\",B23,\"=\",D23,\"|\",B24,\"=\",D24,\"|\",B25,\"=\",D25,\"|\",B26,\"=\",D26,\"|\",B27,\"=\",D27,\"|\",B28,\"=\",D28,\"|\",B29,\"=\",D29,\"\")","v":"|Name=|PersonalAcc=|BankName=|BIC=|CorrespAcc=|PayeeINN=|persAcc=|Sum=|Category="}]
[]
[null,"ПРИМЕР"]
[null,{"$f":"CONCATENATE(\"\",E20,\"|Name=\",E21,\"|PersonalAcc=\",E22,\"|BankName=\",E23,\"|BIC=\",E24,\"|CorrespAcc=\",E25,\"|PayeeINN=\",E26,\"|persAcc=\",E27,\"|Sum=\",E28,\"|Category=\",E29,\"\")","v":"ST00012|Name=Мистер Дом|PersonalAcc=40703810517000000442|BankName=ПАО СБЕРБАНК|BIC=042406608|CorrespAcc=30101810000000000608|PayeeINN=3702147472|persAcc=1610001|Sum=123400|Category="}]
[]
[]
[null,"Структура реестра"]
[null,"Строка 1"]
[null,"Поле 1; Поле 2; Поле 3; …..; Поле t"]
[null,"Строка 2"]
[null,"Поле 1; Поле 2; Поле 3; …..; Поле t"]
[null,"…"]
[null,"Строка n"]
[null,"Поле 1; Поле 2; Поле 3; …..; Поле t"]
[null,"Контрольная строка (используется для исходящего реестра)"]
[null,"=Поле1;Поле2;Поле3;Поле4;Поле5;Поле6"]
[]
[null,"Формат входящего реестра (может не использоваться)"]
[null,"Имя реестра",null,"ИИИИИИИИИ(ИИ)_ РРРРРРРРРРРРРРРРРРРР _XXX_MMDD.txt"]
[null,"Формат реестра",null,"txt"]
[null,"Кодировка",null,"WIN-1251\nKOI8-R\nUTF8"]
[null,"Разделители",null,"; (ASCII-код 59, точка с запятой)"]
[]
[]
[null,"Формат строк"]
[null,"Номер поля в реестре",null,"Наименование поля","Тип поля","Маска"]
[null,1,null,"Лицевой счет","текстовое","мин. 1 знака макс. 30"]
[null,2,null,"ФИО","текстовое","Фамилия, Имя, Отчество"]
[null,3,null,"Адрес","текстовое","Населенный пункт, адрес, номер дома, кв"]
[null,4,null,"Предыдущие показания ХВС (счетчик №1)","числовое","до 6 знаков"]
[null,5,null,"Текущие показания ХВС (счетчик №1)","числовое","до 6 знаков"]
[null,6,null,"Предыдущие показания ХВС (счетчик №2)","числовое","до 6 знаков"]
[null,7,null,"Текущие показания ХВС (счетчик №2)","числовое","до 6 знаков"]
[null,8,null,"Предыдущие показания ХВС (счетчик №3)","числовое","до 6 знаков"]
[null,9,null,"Текущие показания ХВС (счетчик №3)","числовое","до 6 знаков"]
[null,10,null,"Предыдущие показания ХВС (счетчик №4)","числовое","до 6 знаков"]
[null,11,null,"Текущие показания ХВС (счетчик №4)","числовое","до 6 знаков"]
[null,12,null,"Сумма начислений","числовое",999999.99]
[]
[]
[null,"Формат исходящего реестра"]
[null,"Имя архива",null,"ИНН_РС_код_счетчик_дата.zip"]
[null,null,null,"значение","описание","параметры"]
[null,null,null,"ИНН","ИНН поставщика услуг","XXXXXXXXXX"]
[null,null,null,"РС","Расчетный счет ПУ для перечисления д/с","YYYYYYYYYYYYYYYYYYYY"]
[null,null,null,"код","Код услуги. В качестве кода будут использоваться последние 3 символа “Лицевого счета” вида платежа ЕПС, дополненного лидирующими нулями.","001-999"]
[null,null,null,null,"Если “Лицевой счет” в ЕПС будет равен 0, код услуги будет пустой."]
[null,null,null,"счетчик","порядковый номер реестра в течение одного рабочего дня","00-99"]
[null,null,null,"дата","дата формирования реестра","ДДММГГГГ"]
[null,"Имя реестра",null,"SBкод_ПП_дата.txt "]
[null,null,null,"значение","описание","параметры"]
[null,null,null,"SB","константа"]
[null,null,null,"код","Код услуги. Аналогия с кодом услуги в имени архива"]
[null,null,null,"ПП","Номер платежного поручения","ZZZZZZ"]
[null,null,null,"дата","дата формирования реестра","ДДММГГГГ"]
[null,null,null,"txt","признак текстового файла"]
[null,"Кодировка",null,"WIN-1251\nKOI8-R\nUTF8"]
[null,"Разделители",null,"; (ASCII-код 59, точка с запятой)"]
[]
[]
[null,"Формат строк"]
[null,"Номер поля в реестре",null,"Наименование поля","Обязательное наличие информации в поле","Тип поля"]
[null,"Поле 1 строки",null,"Дата платежа","ДА","числовой"]
[null,"Поле 2 строки",null,"Время платежа","ДА","числовой"]
[null,"Поле 3 строки",null,"Номер отделения","ДА","числовой"]
[null,"Поле 4 строки",null,"Номер кассира/УС/СБОЛ","ДА","числовой"]
[null,"Поле 5 строки",null,"Уникальный код операции в ЕПС","ДА","числовой"]
[null,"Поле 6 строки",null,"Лицевой счет","ДА","текстовый"]
[null,"Поле 7 строки",null,"Фамилия, Имя, Отчество","ДА","текстовый"]
[null,"Поле 8 строки",null,"Адрес","ДА","текстовый"]
[null,"Поле 9 строки",null,"Текущие показания ХВС (счетчик №1)","ДА","числовой"]
[null,"Поле 10 строки",null,"Текущие показания ХВС (счетчик №2)","ДА","числовой"]
[null,"Поле 11 строки",null,"Текущие показания ХВС (счетчик №3)","ДА","числовой"]
[null,"Поле 12 строки",null,"Текущие показания ХВС (счетчик №4)","ДА","числовой"]
[null,"Поле 13 строки",null,"Общая сумма платежа","ДА","цифровой"]
[null,"Поле 14 строки",null,"Сумма перевода","ДА","цифровой"]
[null,"Поле 15 строки",null,"Сумма комиссии банку","ДА","цифровой"]
[null,"Признак контрольной знаки",null,"Знак равно \"=\"","ДА","текстовый"]
[null,"Поле 1 контрольной строки",null,"Количество строк в реестре","ДА","числовой"]
[null,"Поле 2 контрольной строки",null,"Общая сумма принятых средств","ДА","числовой"]
[null,"Поле 3 контрольной строки",null,"Сумма перечисления клиенту","ДА","числовой"]
[null,"Поле 4 контрольной строки",null,"Комиссия банку","ДА","числовой"]
[null,"Поле 5 контрольной строки",null,"Номер платежного поручения","ДА","числовой"]
[null,"Поле 6 контрольной строки",null,"Дата платежного поручения","ДА","числовой"]

{"sheet":"14_1","index":40,"n_rows":194,"n_cols":11,"rows_kept":194,"cut":false,"hidden":true,"merged":[[94,3,94,4],[73,1,73,4],[76,1,76,4],[91,3,91,4],[92,3,92,4],[93,3,93,4],[145,3,145,5],[146,3,146,5],[130,1,137,1],[130,3,130,5],[134,3,135,3],[134,5,135,5],[138,1,144,1],[138,3,138,5]]}
[null,"КОД ГРУППЫ РЕКВИЗИТОВ","БИЛЛИНГ","ШАБЛОН 14_1"]
[]
[null,"Группа реквизитов"]
["№","Наименование реквизита","Имя реквизита для ЕПС","Имя реквизита для ДШК","Тип реквизита","Режим ввода","Текст подсказки в СБОЛ","мин. длина","макс. Длина","Тип поля реквизита","Допнастройка на реквизит"]
[1,2,3,4,5,6,7,8,9,10,11]
[1,"Лицевой счет","PersAcc","PersAcc","Ключевой.Обязательный.","Ручной ввод","Вводится номер лицевого счета, указанный в Вашей квитанции (1-18 цифр).",1,18,"Текст "]
[2,"ФИО","PersonName","PersonName","Только для чтения","Из базы начисления","ФИО",0,200,"Текст "]
[3,"Адрес","PayerAddress","PayerAddress","Только для чтения","Из базы начисления","Адрес",0,200,"Текст "]
[4,"Период оплаты","PaymPeriod","PaymPeriod","Запрос по задолженности","Ручной ввод","Введите период оплаты в формате ММГГ, например, 0415",4,4,"Число"]
[5,"Наименование счетчика","CounterName_1","CounterName_1","Только для чтения","Из базы начисления","Наименование счетчика",0,100,"Текст "]
[6,"Наименование счетчика 1_1","CounterName_1_1","CounterName_1_1","Только для чтения","Из базы начисления",null,0,100,"Текст "]
[7,"Предыдущее показание счетчика","CounterValPre_1","CounterValPre_1","Только для чтения","Из базы начисления","Предыдущее показание счетчика",0,50,"Строка","DYNAMIC_NAMES CounterName_1_1"]
[8,"Текущее показание счетчика","CounterVal_1","CounterVal_1","Запрос по задолженности","Ручной ввод","Вводится текущее показание счетчика",0,50,"Строка","DYNAMIC_NAMES CounterName_1"]
[9,"Наименование счетчика","CounterName_2","CounterName_2","Только для чтения","Из базы начисления","Наименование счетчика",0,100,"Текст ",""]
[10,"Наименование счетчика 2 2","CounterName_2_1","CounterName_2_1","Только для чтения","Из базы начисления",null,0,100,"Текст ",""]
[11,"Предыдущее показание счетчика","CounterValPre_2","CounterValPre_2","Только для чтения","Из базы начисления","Предыдущее показание счетчика",0,50,"Строка","DYNAMIC_NAMES CounterName_2_1"]
[12,"Текущее показание счетчика","CounterVal_2","CounterVal_2","Запрос по задолженности","Ручной ввод","Вводится текущее показание счетчика",0,50,"Строка","DYNAMIC_NAMES CounterName_2"]
[13,"Наименование счетчика","CounterName_3","CounterName_3","Только для чтения","Из базы начисления","Наименование счетчика",0,100,"Текст ",""]
[14,"Наименование счетчика 3 3","CounterName_3_1","CounterName_3_1","Только для чтения","Из базы начисления",null,0,100,"Текст ",""]
[15,"Предыдущее показание счетчика","CounterValPre_3","CounterValPre_3","Только для чтения","Из базы начисления","Предыдущее показание счетчика",0,50,"Строка","DYNAMIC_NAMES CounterName_3_1"]
[16,"Текущее показание счетчика","CounterVal_3","CounterVal_3","Запрос по задолженности","Ручной ввод","Вводится текущее показание счетчика",0,50,"Строка","DYNAMIC_NAMES CounterName_3"]
[17,"Наименование счетчика","CounterName_4","CounterName_4","Только для чтения","Из базы начисления","Наименование счетчика",0,100,"Строка",""]
[18,"Наименование счетчика 4 4","CounterName_4_1","CounterName_4_1","Только для чтения","Из базы начисления",null,0,100,"Текст ",""]
[19,"Предыдущее показание счетчика","CounterValPre_4","CounterValPre_4","Только для чтения","Из базы начисления","Предыдущее показание счетчика",0,50,"Строка","DYNAMIC_NAMES CounterName_4_1"]
[20,"Текущее показание счетчика","CounterVal_4","CounterVal_4","Запрос по задолженности","Ручной ввод","Вводится текущее показание счетчика",0,50,"Строка","DYNAMIC_NAMES CounterName_4"]
[21,"Наименование счетчика","CounterName_5","CounterName_5","Только для чтения","Из базы начисления","Наименование счетчика",0,100,"Строка",""]
[22,"Наименование счетчика 5 5","CounterName_5_1","CounterName_5_1","Только для чтения","Из базы начисления",null,0,100,"Текст ",""]
[23,"Предыдущее показание счетчика","CounterValPre_5","CounterValPre_5","Только для чтения","Из базы начисления","Предыдущее показание счетчика",0,50,"Строка","DYNAMIC_NAMES CounterName_5_1"]
[24,"Текущее показание счетчика","CounterVal_5","CounterVal_5","Запрос по задолженности","Ручной ввод","Вводится текущее показание счетчика",0,50,"Строка","DYNAMIC_NAMES CounterName_5"]
[25,"Наименование счетчика","CounterName_6","CounterName_6","Только для чтения","Из базы начисления","Наименование счетчика",0,100,"Строка",""]
[26,"Наименование счетчика 6 6","CounterName_6_1","CounterName_6_1","Только для чтения","Из базы начисления",null,0,100,"Текст ",""]
[27,"Предыдущее показание счетчика","CounterValPre_6","CounterValPre_6","Только для чтения","Из базы начисления","Предыдущее показание счетчика",0,50,"Строка","DYNAMIC_NAMES CounterName_6_1"]
[28,"Текущее показание счетчика","CounterVal_6","CounterVal_6","Запрос по задолженности","Ручной ввод","Вводится текущее показание счетчика",0,50,"Строка","DYNAMIC_NAMES CounterName_6"]
[29,"Наименование счетчика","CounterName_7","CounterName_7","Только для чтения","Из базы начисления","Наименование счетчика",0,100,"Строка",""]
[30,"Наименование счетчика 7 7","CounterName_7_1","CounterName_7_1","Только для чтения","Из базы начисления",null,0,100,"Текст ",""]
[31,"Предыдущее показание счетчика","CounterValPre_7","CounterValPre_7","Только для чтения","Из базы начисления","Предыдущее показание счетчика",0,50,"Строка","DYNAMIC_NAMES CounterName_7_1"]
[32,"Текущее показание счетчика","CounterVal_7","CounterVal_7","Запрос по задолженности","Ручной ввод","Вводится текущее показание счетчика",0,50,"Строка","DYNAMIC_NAMES CounterName_7"]
[33,"Наименование счетчика","CounterName_8","CounterName_8","Только для чтения","Из базы начисления","Наименование счетчика",0,100,"Строка",""]
[34,"Наименование счетчика 8 8","CounterName_8_1","CounterName_8_1","Только для чтения","Из базы начисления",null,0,100,"Текст ",""]
[35,"Предыдущее показание счетчика","CounterValPre_8","CounterValPre_8","Только для чтения","Из базы начисления","Предыдущее показание счетчика",0,50,"Строка","DYNAMIC_NAMES CounterName_8_1"]
[36,"Текущее показание счетчика","CounterVal_8","CounterVal_8","Запрос по задолженности","Ручной ввод","Вводится текущее показание счетчика",0,50,"Строка","DYNAMIC_NAMES CounterName_8"]
[37,"Наименование счетчика","CounterName_9","CounterName_9","Только для чтения","Из базы начисления","Наименование счетчика",0,100,"Строка",""]
[38,"Наименование счетчика 9 9","CounterName_9_1","CounterName_9_1","Только для чтения","Из базы начисления",null,0,100,"Текст ",""]
[39,"Предыдущее показание счетчика","CounterValPre_9","CounterValPre_9","Только для чтения","Из базы начисления","Предыдущее показание счетчика",0,50,"Строка","DYNAMIC_NAMES CounterName_9_1"]
[40,"Текущее показание счетчика","CounterVal_9","CounterVal_9","Запрос по задолженности","Ручной ввод","Вводится текущее показание счетчика",0,50,"Строка","DYNAMIC_NAMES CounterName_9"]
[41,"Наименование счетчика","CounterName_10","CounterName_10","Только для чтения","Из базы начисления","Наименование счетчика",0,100,"Строка",""]
[42,"Наименование счетчика 10 10","CounterName_10_1","CounterName_10_1","Только для чтения","Из базы начисления",null,0,100,"Текст ",""]
[43,"Предыдущее показание счетчика","CounterValPre_10","CounterValPre_10","Только для чтения","Из базы начисления","Предыдущее показание счетчика",0,50,"Строка","DYNAMIC_NAMES CounterName_10_1"]
[44,"Текущее показание счетчика","CounterVal_10","CounterVal_10","Запрос по задолженности","Ручной ввод","Вводится текущее показание счетчика",0,50,"Строка","DYNAMIC_NAMES CounterName_10"]
[45,"Наименование счетчика","CounterName_11","CounterName_11","Только для чтения","Из базы начисления","Наименование счетчика",0,100,"Строка",""]
[46,"Наименование счетчика 11 11","CounterName_11_1","CounterName_11_1","Только для чтения","Из базы начисления",null,0,100,"Текст ",""]
[47,"Предыдущее показание счетчика","CounterValPre_11","CounterValPre_11","Только для чтения","Из базы начисления","Предыдущее показание счетчика",0,50,"Строка","DYNAMIC_NAMES CounterName_11_1"]
[48,"Текущее показание счетчика","CounterVal_11","CounterVal_11","Запрос по задолженности","Ручной ввод","Вводится текущее показание счетчика",0,50,"Строка","DYNAMIC_NAMES CounterName_11"]
[49,"Наименование счетчика","CounterName_12","CounterName_12","Только для чтения","Из базы начисления","Наименование счетчика",0,100,"Строка",""]
[50,"Наименование счетчика 12 12","CounterName_12_1","CounterName_12_1","Только для чтения","Из базы начисления",null,0,100,"Текст ",""]
[51,"Предыдущее показание счетчика","CounterValPre_12","CounterValPre_12","Только для чтения","Из базы начисления","Предыдущее показание счетчика",0,50,"Строка","DYNAMIC_NAMES CounterName_12_1"]
[52,"Текущее показание счетчика","CounterVal_12","CounterVal_12","Запрос по задолженности","Ручной ввод","Вводится текущее показание счетчика",0,50,"Строка","DYNAMIC_NAMES CounterName_12"]
[]
[]
[null,null,"ОПИСАНИЕ ТЕГОВ ДЛЯ ДШК","Ваш текст для ДШК","ПРИМЕР"]
[null,"Идентификатор стандарта","СТАНДАРТ КОДИРОВКИ",null,"ST00012"]
[null,"Name","НАИМЕНОВАНИЕ ОРГАНИЗАЦИИ",null,"ТСЖ Буревестник"]
[null,"PersonalAcc","РАСЧЕТНЫЙ СЧЕТ",null,"40705810638080000018"]
[null,"BankName","НАИМЕНОВАНИЕ БАНКА ПОЛУЧАТЕЛЯ",null,"ПАО СБЕРБАНК"]
[null,"BIC","БИК",null,"042406608"]
[null,"CorrespAcc","КОР.СЧЕТ",null,"30101810000000000608"]
[null,"PayeeINN","ИНН ПОЛУЧАТЕЛЯ",null,"3703018328"]
[null,"persAcc","ЛИЦЕВОЙ СЧЕТ ПЛАТЕЛЬЩИКА",null,"3702603506","Ключевой. Обязательный"]
[null,"Sum","СУММА ПЛАТЕЖА",null,"123400"]
[null,"Category","НОМЕР УСЛУГИ В СИСТЕМЕ БАНКА"]
[]
[]
[null,"Ваш текст для ДШК",null,"Для создания QR кода можно использовать генератор по адресу http://qrcoder.ru"]
[null,{"$f":"CONCATENATE(\"\",D61,\"|\",B62,\"=\",D62,\"|\",B63,A74,\"=\",D63,\"|\",B64,\"=\",D64,\"|\",B65,\"=\",D65,\"|\",B66,\"=\",D66,\"|\",B67,\"=\",D67,\"|\",B68,\"=\",D68,\"|\",B69,\"=\",D69,\"|\",B70,\"=\",D70,\"\")","v":"|Name=|PersonalAcc=|BankName=|BIC=|CorrespAcc=|PayeeINN=|persAcc=|Sum=|Category="}]
[]
[null,"ПРИМЕР"]
[null,{"$f":"CONCATENATE(\"\",E61,\"|Name=\",E62,\"|PersonalAcc=\",E63,\"|BankName=\",E64,\"|BIC=\",E65,\"|CorrespAcc=\",E66,\"|PayeeINN=\",E67,\"|persAcc=\",E68,\"|Sum=\",E69,\"|Category=\",E70,\"\")","v":"ST00012|Name=ТСЖ Буревестник|PersonalAcc=40705810638080000018|BankName=ПАО СБЕРБАНК|BIC=042406608|CorrespAcc=30101810000000000608|PayeeINN=3703018328|persAcc=3702603506|Sum=123400|Category="}]
[]
[]
[null,"Структура реестра"]
[null,"Строка 1"]
[null,"Поле 1; Поле 2; Поле 3; …..; Поле t"]
[null,"Строка 2"]
[null,"Поле 1; Поле 2; Поле 3; …..; Поле t"]
[null,"…"]
[null,"Строка n"]
[null,"Поле 1; Поле 2; Поле 3; …..; Поле t"]
[null,"Контрольная строка (используется для исходящего реестра)"]
[null,"=Поле1;Поле2;Поле3;Поле4;Поле5;Поле6"]
[]
[null,"Формат входящего реестра "]
[null,"Имя реестра",null,"ИИИИИИИИИ(ИИ)_ РРРРРРРРРРРРРРРРРРРР _XXX_MMDD.txt"]
[null,"Формат реестра",null,"txt"]
[null,"Кодировка",null,"WIN-1251\nKOI8-R\nUTF8"]
[null,"Разделители",null,"; (ASCII-код 59, точка с запятой)"]
[]
[null,"Формат строк"]
[null,"Номер поля в реестре",null,"Наименование поля","Тип поля","min","max"]
[null,1,null,"Лицевой счет","Строка",1,18]
[null,2,null,"ФИО плательщика","Строка",1,60]
[null,3,null,"Адрес","Строка",1,150]
[null,4,null,"Период оплаты","Число",4,4]
[null,5,null,"Сумма задолженности","Число",1,14]
[null,6,null,"Наименование счетчика ","Строка",0,20,"В зависимости от количества счетчиков для конкретного ЛС"]
[null,7,null,"Предыдущее показание счетчика","Строка",0,20]
[null,8,null,"Наименование счетчика ","Строка",0,20]
[null,9,null,"Предыдущее показание счетчика","Строка",0,20]
[null,10,null,"Наименование счетчика ","Строка",0,20]
[null,11,null,"Предыдущее показание счетчика","Строка",0,20]
[null,12,null,"Наименование счетчика ","Строка",0,20]
[null,13,null,"Предыдущее показание счетчика","Строка",0,20]
[null,14,null,"Наименование счетчика ","Строка",0,20]
[null,15,null,"Предыдущее показание счетчика","Строка",0,20]
[null,16,null,"Наименование счетчика ","Строка",0,20]
[null,17,null,"Предыдущее показание счетчика","Строка",0,20]
[null,18,null,"Наименование счетчика ","Строка",0,20]
[null,19,null,"Предыдущее показание счетчика","Строка",0,20]
[null,20,null,"Наименование счетчика ","Строка",0,20]
[null,21,null,"Предыдущее показание счетчика","Строка",0,20]
[null,22,null,"Наименование счетчика ","Строка",0,20]
[null,23,null,"Предыдущее показание счетчика","Строка",0,20]
[null,24,null,"Наименование счетчика ","Строка",0,20]
[null,25,null,"Предыдущее показание счетчика","Строка",0,20]
[null,26,null,"Наименование счетчика ","Строка",0,20]
[null,27,null,"Предыдущее показание счетчика","Строка",0,20]
[null,28,null,"Наименование счетчика ","Строка",0,20]
[null,29,null,"Предыдущее показание счетчика","Строка",0,20]
[]
[]
[null,"Формат исходящего реестра"]
[null,"Имя архива",null,"ИНН_РС_код_счетчик_дата.zip"]
[null,null,null,"значение","описание","параметры"]
[null,null,null,"ИНН","ИНН поставщика услуг","XXXXXXXXXX"]
[null,null,null,"РС","Расчетный счет ПУ для перечисления д/с","YYYYYYYYYYYYYYYYYYYY"]
[null,null,null,"код","Код услуги. В качестве кода будут использоваться последние 3 символа “Лицевого счета” вида платежа ЕПС, дополненного лидирующими нулями.","001-999"]
[null,null,null,null,"Если “Лицевой счет” в ЕПС будет равен 0, код услуги будет пустой."]
[null,null,null,"счетчик","порядковый номер реестра в течение одного рабочего дня","00-99"]
[null,null,null,"дата","дата формирования реестра","ДДММГГГГ"]
[null,"Имя реестра",null,"SBкод_ПП_дата.txt "]
[null,null,null,"значение","описание","параметры"]
[null,null,null,"SB","константа"]
[null,null,null,"код","Код услуги. Аналогия с кодом услуги в имени архива"]
[null,null,null,"ПП","Номер платежного поручения","ZZZZZZ"]
[null,null,null,"дата","дата формирования реестра","ДДММГГГГ"]
[null,null,null,"txt","признак текстового файла"]
[null,"Кодировка",null,"WIN-1251\nKOI8-R\nUTF8"]
[null,"Разделители",null,"; (ASCII-код 59, точка с запятой)"]
[]
[]
[null,"Формат строк"]
[null,"Номер поля в реестре",null,"Наименование поля","Обязательное наличие информации в поле","Тип поля","Маска"]
[null,"Поле 1 строки",null,"Дата платежа","ДА","числовой","ДД-ММ-ГГГГ"]
[null,"Поле 2 строки",null,"Время платежа","ДА","числовой","00-00-00"]
[null,"Поле 3 строки",null,"Номер отделения","ДА","числовой"]
[null,"Поле 4 строки",null,"Номер кассира/УС/СБОЛ","ДА","числовой"]
[null,"Поле 5 строки",null,"Уникальный код операции в ЕПС","ДА","числовой"]
[null,"Поле 6 строки",null,"Лицевой счет","ДА","текстовый"]
[null,"Поле 7 строки",null,"ФИО плательщика","ДА","текстовый"]
[null,"Поле 8 строки",null,"Адрес","ДА","текстовый"]
[null,"Поле 9 строки",null,"Период оплаты",null,"Число","ММГГ"]
[null,"Поле 10 строки",null,"Сумма операции","ДА","цифровой",999999.99]
[null,"Поле 11 строки",null,"Сумма перевода","ДА","цифровой",999999.99]
[null,"Поле 12 строки",null,"Сумма комиссии банку","ДА","цифровой",999999.99]
[null,"Поле 13 строки",null,"Наименование счетчика ",null,"Строка"]
[null,"Поле 14 строки",null,"Текущее показание счетчика",null,"Строка"]
[null,"Поле 15 строки",null,"Наименование счетчика ",null,"Строка"]
[null,"Поле 16 строки",null,"Текущее показание счетчика",null,"Строка"]
[null,"Поле 17 строки",null,"Наименование счетчика ",null,"Строка"]
[null,"Поле 18 строк",null,"Текущее показание счетчика",null,"Строка"]
[null,"Поле 19 строки",null,"Наименование счетчика ",null,"Строка"]
[null,"Поле 20 строки",null,"Текущее показание счетчика",null,"Строка"]
[null,"Поле 21 строки",null,"Наименование счетчика ",null,"Строка"]
[null,"Поле 22 строки",null,"Текущее показание счетчика",null,"Строка"]
[null,"Поле 23 строки",null,"Наименование счетчика ",null,"Строка"]
[null,"Поле 24 строки",null,"Текущее показание счетчика",null,"Строка"]
[null,"Поле 25 строки",null,"Наименование счетчика ",null,"Строка"]
[null,"Поле 26 строки",null,"Текущее показание счетчика",null,"Строка"]
[null,"Поле 27 строки",null,"Наименование счетчика ",null,"Строка"]
[null,"Поле 28 строки",null,"Текущее показание счетчика",null,"Строка"]
[null,"Поле 30 строки",null,"Наименование счетчика ",null,"Строка"]
[null,"Поле 31 строки",null,"Текущее показание счетчика",null,"Строка"]
[null,"Поле 32 строки",null,"Наименование счетчика ",null,"Строка"]
[null,"Поле 33 строки",null,"Текущее показание счетчика",null,"Строка"]
[null,"Поле 34 строки",null,"Наименование счетчика ",null,"Строка"]
[null,"Поле 35 строки",null,"Текущее показание счетчика","ДА","цифровой",999999.99]
[null,"Поле 36 строки",null,"Наименование счетчика ","ДА","цифровой",999999.99]
[null,"Поле 37 строки",null,"Текущее показание счетчика","ДА","цифровой",999999.99]
[null,"Признак контрольной знаки",null,"Знак равно \"=\"","ДА","текстовый","="]
[null,"Поле 1 контрольной строки",null,"Количество строк в реестре","ДА","числовой"]
[null,"Поле 2 контрольной строки",null,"Общая сумма принятых средств","ДА","числовой",999999.99]
[null,"Поле 3 контрольной строки",null,"Сумма перечисления клиенту","ДА","числовой",999999.99]
[null,"Поле 4 контрольной строки",null,"Комиссия банку","ДА","числовой",999999.99]
[null,"Поле 5 контрольной строки",null,"Номер платежного поручения","ДА","числовой"]
[null,"Поле 6 контрольной строки",null,"Дата платежного поручения","ДА","числовой","ДД-ММ-ГГГГ"]

{"sheet":"ЖКХ 55_@100009_1","index":41,"n_rows":20,"n_cols":6,"rows_kept":20,"cut":false,"hidden":true,"merged":[[16,1,16,4],[19,1,19,4]]}
["ЛТШ","группа реквизитов 55_@100009_1  ",null,"БИЛЛИНГ"]
[]
[null,null,"ОПИСАНИЕ ТЕГОВ ДЛЯ ДШК","                   Ваш текст для ДШК","                                              ПРИМЕР"]
[null,"Идентификатор стандарта","СТАНДАРТ КОДИРОВКИ",null,"ST00012"]
[null,"Name","НАИМЕНОВАНИЕ ОРГАНИЗАЦИИ",null,"ТСЖ Нарвский 14"]
[null,"PersonalAcc","РАСЧЕТНЫЙ СЧЕТ",null,"40703810855160000028"]
[null,"BankName","НАИМЕНОВАНИЕ БАНКА ПОЛУЧАТЕЛЯ",null,"СЕВЕРО-ЗАПАДНЫЙ БАНК  ПАО СБЕРБАНК"]
[null,"BIC","БИК",null,"044030653"]
[null,"CorrespAcc","КОР.СЧЕТ",null,"30101810500000000653"]
[null,"PayeeINN","ИНН ПОЛУЧАТЕЛЯ",null,"7839389775"]
[null,"persAcc","ЛИЦЕВОЙ СЧЕТ ПЛАТЕЛЬЩИКА",null,"001","Ключевой. Обязательный"]
[null,"Sum","СУММА ПЛАТЕЖА",null,"327688"]
[null,"Category","НОМЕР УСЛУГИ В СИСТЕМЕ БАНКА",null,"1187700069"]
[]
[]
[null,"Ваш текст для ДШК",null,"Для создания QR кода можно использовать генератор по адресу http://qrcoder.ru"]
[null,{"$f":"CONCATENATE(\"\",D4,\"|\",B5,\"=\",D5,\"|\",B6,A17,\"=\",D6,\"|\",B7,\"=\",D7,\"|\",B8,\"=\",D8,\"|\",B9,\"=\",D9,\"|\",B10,\"=\",D10,\"|\",B11,\"=\",D11,\"|\",B12,\"=\",D12,\"|\",B13,\"=\",D13,\"\")","v":"|Name=|PersonalAcc=|BankName=|BIC=|CorrespAcc=|PayeeINN=|persAcc=|Sum=|Category="}]
[]
[null,"ПРИМЕР"]
[null,{"$f":"CONCATENATE(\"\",E4,\"|Name=\",E5,\"|PersonalAcc=\",E6,\"|BankName=\",E7,\"|BIC=\",E8,\"|CorrespAcc=\",E9,\"|PayeeINN=\",E10,\"|persAcc=\",E11,\"|Sum=\",E12,\"|Category=\",E13,\"\")","v":"ST00012|Name=ТСЖ Нарвский 14|PersonalAcc=40703810855160000028|BankName=СЕВЕРО-ЗАПАДНЫЙ БАНК  ПАО СБЕРБАНК|BIC=044030653|CorrespAcc=30101810500000000653|PayeeINN=7839389775|persAcc=001|Sum=327688|Category=1187700069"}]

{"sheet":"ЖКХ 55_@100500_1","index":42,"n_rows":31,"n_cols":6,"rows_kept":31,"cut":false,"hidden":true,"merged":[[18,1,18,4],[21,1,21,4]]}
["ЛТШ","группа реквизитов 55_@100500_1",null,"БИЛЛИНГ"]
[]
[null,null,"ОПИСАНИЕ ТЕГОВ ДЛЯ ДШК","                   Ваш текст для ДШК","                                              ПРИМЕР"]
[null,"Идентификатор стандарта","СТАНДАРТ КОДИРОВКИ",null,"ST00012"]
[null,"Name","НАИМЕНОВАНИЕ ОРГАНИЗАЦИИ",null,"ТСЖ ПОДКОВА"]
[null,"PersonalAcc","РАСЧЕТНЫЙ СЧЕТ",null,"40703810255240109562"]
[null,"BankName","НАИМЕНОВАНИЕ БАНКА ПОЛУЧАТЕЛЯ",null,"СЕВЕРО-ЗАПАДНЫЙ БАНК ПАО СБЕРБАНК"]
[null,"BIC","БИК",null,"044030653"]
[null,"CorrespAcc","КОР.СЧЕТ",null,"0"]
[null,"PayeeINN","ИНН ПОЛУЧАТЕЛЯ",null,7810272710]
[null,"persAcc","НОМЕР ЛИЦЕВОГО СЧЕТА ПЛАТЕЛЬЩИКА",null,"04100000003","Ключевой. Обязательный"]
[null,"AddAmount","ПЕНИ ИЛИ 000",null,"000","Обязательный"]
[null,"paymPeriod","ПЕРИОД ОПЛАТЫ В ФОРМАТЕ ММГГГГ",null,"062016"]
[null,"Sum","СУММА ПЛАТЕЖА",null,"135690"]
[null,"Category","НОМЕР УСЛУГИ В СИСТЕМЕ БАНКА",null,1189200279]
[]
[]
[null,"Ваш текст для ДШК",null,"Для создания QR кода можно использовать генератор по адресу http://qrcoder.ru"]
[null,{"$f":"CONCATENATE(\"\",D4,\"|\",B5,\"=\",D5,\"|\",B6,A19,\"=\",D6,\"|\",B7,\"=\",D7,\"|\",B8,\"=\",D8,\"|\",B9,\"=\",D9,\"|\",B10,\"=\",D10,\"|\",B11,\"=\",D11,\"|\",B12,\"=\",D12,\"|\",B13,\"=\",D13,\"|\",B14,\"=\",D14,\"|\",B15,\"=\",D15,\"\")","v":"|Name=|PersonalAcc=|BankName=|BIC=|CorrespAcc=|PayeeINN=|persAcc=|AddAmount=|paymPeriod=|Sum=|Category="}]
[]
[null,"ПРИМЕР"]
[null,{"$f":"CONCATENATE(\"\",E4,\"|Name=\",E5,\"|PersonalAcc=\",E6,\"|BankName=\",E7,\"|BIC=\",E8,\"|CorrespAcc=\",E9,\"|PayeeINN=\",E10,\"|persAcc=\",E11,\"|AddAmount=\",E12,\"|paymPeriod=\",E13,\"|Sum=\",E14,\"|Category=\",E15,\"\")","v":"ST00012|Name=ТСЖ ПОДКОВА|PersonalAcc=40703810255240109562|BankName=СЕВЕРО-ЗАПАДНЫЙ БАНК ПАО СБЕРБАНК|BIC=044030653|CorrespAcc=0|PayeeINN=7810272710|persAcc=04100000003|AddAmount=000|paymPeriod=062016|Sum=135690|Category=1189200279"}]
[]
[]
[]
[]
[]
[]
[]
[]
[null,"\\"]

{"sheet":"ДЕТ.САДЫ 55_@100320","index":43,"n_rows":22,"n_cols":6,"rows_kept":22,"cut":false,"hidden":true,"merged":[[18,1,18,4],[21,1,21,4]]}
["ЛТШ","группа реквизитов 55_@100320",null,"БИЛЛИНГ"]
[]
[null,null,"ОПИСАНИЕ ТЕГОВ ДЛЯ ДШК","                   Ваш текст для ДШК","                                              ПРИМЕР"]
[null,"Идентификатор стандарта","СТАНДАРТ КОДИРОВКИ",null,"ST00012"]
[null,"Name","НАИМЕНОВАНИЕ ОРГАНИЗАЦИИ",null,"Name=ГБОУ Гимназия № 524 Московского р-на СПБ"]
[null,"PersonalAcc","РАСЧЕТНЫЙ СЧЕТ",null,"40601810200003000000"]
[null,"BankName","НАИМЕНОВАНИЕ БАНКА ПОЛУЧАТЕЛЯ",null,"Северо-Западное ГУ Банка России"]
[null,"BIC","БИК",null,"044030001"]
[null,"CorrespAcc","КОР.СЧЕТ",null,"0"]
[null,"PayeeINN","ИНН ПОЛУЧАТЕЛЯ",null,7810129936]
[null,"persAcc","НОМЕР ЛИЦЕВОГО СЧЕТА РЕБЕНКА",null,"10462","Ключевой. Обязательный"]
[null,"LastName","ФИО",null,"Шлюева Марина"]
[null,"Sum","СУММА ПЛАТЕЖА",null,"100000"]
[null,"PaymPeriod","ПЕРИОД ОПЛАТЫ В ФОРМАТЕ ММГГГГ",null,"062016","Обязательный"]
[null,"Category","НОМЕР УСЛУГИ В СИСТЕМЕ БАНКА",null,1187700750]
[]
[]
[null,"Ваш текст для ДШК",null,"Для создания QR кода можно использовать генератор по адресу http://qrcoder.ru"]
[null,{"$f":"CONCATENATE(\"\",D4,\"|\",B5,\"=\",D5,\"|\",B6,A19,\"=\",D6,\"|\",B7,\"=\",D7,\"|\",B8,\"=\",D8,\"|\",B9,\"=\",D9,\"|\",B10,\"=\",D10,\"|\",B11,\"=\",D11,\"|\",B12,\"=\",D12,\"|\",B13,\"=\",D13,\"|\",B14,\"=\",D14,\"|\",B15,\"=\",D15,\"\")","v":"|Name=|PersonalAcc=|BankName=|BIC=|CorrespAcc=|PayeeINN=|persAcc=|LastName=|Sum=|PaymPeriod=|Category="}]
[]
[null,"ПРИМЕР"]
[null,{"$f":"CONCATENATE(\"\",E4,\"|Name=\",E5,\"|PersonalAcc=\",E6,\"|BankName=\",E7,\"|BIC=\",E8,\"|CorrespAcc=\",E9,\"|PayeeINN=\",E10,\"|persAcc=\",E11,\"|LastName=\",E12,\"|Sum=\",E13,\"|paymPeriod=\",E14,\"|Category=\",E15,\"\")","v":"ST00012|Name=Name=ГБОУ Гимназия № 524 Московского р-на СПБ|PersonalAcc=40601810200003000000|BankName=Северо-Западное ГУ Банка России|BIC=044030001|CorrespAcc=0|PayeeINN=7810129936|persAcc=10462|LastName=Шлюева Марина|Sum=100000|paymPeriod=062016|Category=1187700750"}]

{"sheet":"ДЕТ.САД ДОП","index":44,"n_rows":23,"n_cols":6,"rows_kept":23,"cut":false,"hidden":true,"merged":[[19,1,19,4],[22,1,22,4]]}
["ЛТШ","группа реквизитов 55_@100320",null,"БИЛЛИНГ"]
[]
[null,null,"ОПИСАНИЕ ТЕГОВ ДЛЯ ДШК","                   Ваш текст для ДШК","                                              ПРИМЕР"]
[null,"Идентификатор стандарта","СТАНДАРТ КОДИРОВКИ",null,"ST00012"]
[null,"Name","НАИМЕНОВАНИЕ ОРГАНИЗАЦИИ",null,"Name=ГБОУ Гимназия № 524 Московского р-на СПБ"]
[null,"PersonalAcc","РАСЧЕТНЫЙ СЧЕТ",null,"40601810200003000000"]
[null,"BankName","НАИМЕНОВАНИЕ БАНКА ПОЛУЧАТЕЛЯ",null,"Северо-Западное ГУ Банка России"]
[null,"BIC","БИК",null,"044030001"]
[null,"CorrespAcc","КОР.СЧЕТ",null,"0"]
[null,"PayeeINN","ИНН ПОЛУЧАТЕЛЯ",null,7810129936]
[null,"persAcc","НОМЕР ЛИЦЕВОГО СЧЕТА РЕБЕНКА",null,"10462","Ключевой. Обязательный"]
[null,"LastName","ФИО",null,"Шлюева Марина"]
[null,"Sum","СУММА ПЛАТЕЖА",null,"100000"]
[null,"PaymPeriod","ПЕРИОД ОПЛАТЫ В ФОРМАТЕ ММГГГГ",null,"062016","Обязательный"]
[null,"NAZNL","НАЗНАЧЕНИЕ"]
[null,"Category","НОМЕР УСЛУГИ В СИСТЕМЕ БАНКА",null,1187700750]
[]
[]
[null,"Ваш текст для ДШК",null,"Для создания QR кода можно использовать генератор по адресу http://qrcoder.ru"]
[null,{"$f":"CONCATENATE(\"\",D4,\"|\",B5,\"=\",D5,\"|\",B6,A20,\"=\",D6,\"|\",B7,\"=\",D7,\"|\",B8,\"=\",D8,\"|\",B9,\"=\",D9,\"|\",B10,\"=\",D10,\"|\",B11,\"=\",D11,\"|\",B12,\"=\",D12,\"|\",B13,\"=\",D13,\"|\",B14,\"=\",D14,\"|\",B16,\"=\",D16,\"\")","v":"|Name=|PersonalAcc=|BankName=|BIC=|CorrespAcc=|PayeeINN=|persAcc=|LastName=|Sum=|PaymPeriod=|Category="}]
[]
[null,"ПРИМЕР"]
[null,{"$f":"CONCATENATE(\"\",E4,\"|Name=\",E5,\"|PersonalAcc=\",E6,\"|BankName=\",E7,\"|BIC=\",E8,\"|CorrespAcc=\",E9,\"|PayeeINN=\",E10,\"|persAcc=\",E11,\"|LastName=\",E12,\"|Sum=\",E13,\"|paymPeriod=\",E14,\"|Category=\",E16,\"\")","v":"ST00012|Name=Name=ГБОУ Гимназия № 524 Московского р-на СПБ|PersonalAcc=40601810200003000000|BankName=Северо-Западное ГУ Банка России|BIC=044030001|CorrespAcc=0|PayeeINN=7810129936|persAcc=10462|LastName=Шлюева Марина|Sum=100000|paymPeriod=062016|Category=1187700750"}]

{"sheet":"ВУЗЫ 55_@100015_1","index":45,"n_rows":19,"n_cols":6,"rows_kept":19,"cut":false,"hidden":true,"merged":[[15,1,15,4],[18,1,18,4]]}
["ЛТШ","группа реквизитов 55_@100015_1",null,"БИЛЛИНГ"]
[]
[null,null,"ОПИСАНИЕ ТЕГОВ ДЛЯ ДШК","                   Ваш текст для ДШК","                                              ПРИМЕР"]
[null,"Идентификатор стандарта","СТАНДАРТ КОДИРОВКИ",null,"ST00012"]
[null,"Name","НАИМЕНОВАНИЕ ОРГАНИЗАЦИИ",null,"УФК ПО Г. САНКТ-ПЕТЕРБУРГУ (ОФК 02, ГОРНЫЙ УНИВЕРСИТЕТ, Л/С 190)"]
[null,"PersonalAcc","РАСЧЕТНЫЙ СЧЕТ",null,"40501810300002000001"]
[null,"BankName","НАИМЕНОВАНИЕ БАНКА ПОЛУЧАТЕЛЯ",null,"Северо-Западное ГУ Банка России"]
[null,"BIC","БИК",null,"044030001"]
[null,"CorrespAcc","КОР.СЧЕТ",null,"0"]
[null,"PayeeINN","ИНН ПОЛУЧАТЕЛЯ",null,"7801021076"]
[null,"persAcc","НОМЕР ЛИЦЕВОГО СЧЕТА/ДОГОВОРА",null,"090517","Ключевой.Обязательный"]
[null,"Category","НОМЕР УСЛУГИ В СИСТЕМЕ БАНКА",null,1300001201]
[]
[]
[null,"Ваш текст для ДШК",null,"Для создания QR кода можно использовать генератор по адресу http://qrcoder.ru"]
[null,{"$f":"CONCATENATE(\"\",D4,\"|\",B5,\"=\",D5,\"|\",B6,A16,\"=\",D6,\"|\",B7,\"=\",D7,\"|\",B8,\"=\",D8,\"|\",B9,\"=\",D9,\"|\",B10,\"=\",D10,\"|\",B11,\"=\",D11,\"|\",B12,\"=\",D12,\"\")","v":"|Name=|PersonalAcc=|BankName=|BIC=|CorrespAcc=|PayeeINN=|persAcc=|Category="}]
[]
[null,"ПРИМЕР"]
[null,{"$f":"CONCATENATE(\"\",E4,\"|Name=\",E5,\"|PersonalAcc=\",E6,\"|BankName=\",E7,\"|BIC=\",E8,\"|CorrespAcc=\",E9,\"|PayeeINN=\",E10,\"|persAcc=\",E11,\"|Category=\",E12,\"\")","v":"ST00012|Name=УФК ПО Г. САНКТ-ПЕТЕРБУРГУ (ОФК 02, ГОРНЫЙ УНИВЕРСИТЕТ, Л/С 190)|PersonalAcc=40501810300002000001|BankName=Северо-Западное ГУ Банка России|BIC=044030001|CorrespAcc=0|PayeeINN=7801021076|persAcc=090517|Category=1300001201"}]

{"sheet":"ВУЗЫ 55_@55000167","index":46,"n_rows":27,"n_cols":6,"rows_kept":27,"cut":false,"hidden":true,"merged":[[23,1,23,4],[26,1,26,4]]}
["ЛТШ","группа реквизитов 55_@55000167",null,"ПРОЧИЕ ПЛАТЕЖИ ВУЗЫ"]
[]
[null,null,"ОПИСАНИЕ ТЕГОВ ДЛЯ ДШК","                   Ваш текст для ДШК","                                              ПРИМЕР"]
[null,"Идентификатор стандарта","СТАНДАРТ КОДИРОВКИ",null,"ST00012"]
[null,"Name","НАИМЕНОВАНИЕ ОРГАНИЗАЦИИ",null,"УФК ПО Г. САНКТ-ПЕТЕРБУРГУ (ОФК 02, ГОРНЫЙ УНИВЕРСИТЕТ, Л/С 190)"]
[null,"PersonalAcc","РАСЧЕТНЫЙ СЧЕТ",null,"40501810300002000001"]
[null,"BankName","НАИМЕНОВАНИЕ БАНКА ПОЛУЧАТЕЛЯ",null,"Северо-Западное ГУ Банка России"]
[null,"BIC","БИК",null,"044030001"]
[null,"CorrespAcc","КОР.СЧЕТ",null,"0"]
[null,"PayeeINN","ИНН ПОЛУЧАТЕЛЯ",null,"7801021076"]
[null,"CBC","КБК",null,"00000000000000000130","Обязательный"]
[null,"NAZNL","НАЗНАЧЕНИЕ ПЛАТЕЖА",null,"за обучение 3 семестр","Обязательный"]
[null,"Sum","СУММА ПЛАТЕЖА",null,"1000000"]
[null,"LastName","ФИО ПЛАТЕЛЬЩИКА",null,"Семенова Ирина Петровна","Ключевой.Обязательный"]
[null,"PayerAddress","АДРЕС ПЛАТЕЛЬЩИКА",null,"Санкт-Петербург  ул Парковая, д 17 кв 5","Обязательный"]
[null,"ChildFio","ФИО СТУДЕНТА",null,"Семенов Иван Сергеевич","Обязательный"]
[null,"FA_S","ФАКУЛЬТЕТ",null,"филология","Обязательный"]
[null,"ID_S","ИНД НОМЕР ПЛАТЕЛЬЩИКА",null,"99055","Обязательный"]
[null,"PaymPeriod","ПЕРИОД ОПЛАТЫ В ФОРМАТЕ ММГГГГ",null,"062016","Обязательный"]
[null,"Category","НОМЕР УСЛУГИ В СИСТЕМЕ БАНКА",null,3000002555]
[]
[]
[null,"Ваш текст для ДШК",null,"Для создания QR кода можно использовать генератор по адресу http://qrcoder.ru"]
[null,{"$f":"CONCATENATE(\"\",D4,\"|\",B5,\"=\",D5,\"|\",B6,A24,\"=\",D6,\"|\",B7,\"=\",D7,\"|\",B8,\"=\",D8,\"|\",B9,\"=\",D9,\"|\",B10,\"=\",D10,\"|\",B11,\"=\",D11,\"|\",B12,\"=\",D12,\"|\",B13,\"=\",D13,\"|\",B14,\"=\",D14,\"|\",B15,\"=\",D15,\"|\",B16,\"=\",D16,\"|\",B17,\"=\",D17,\"|\",B18,\"=\",D18,\"|\",B19,\"=\",D19,\"|\",B20,\"=\",D20,\"\")","v":"|Name=|PersonalAcc=|BankName=|BIC=|CorrespAcc=|PayeeINN=|CBC=|NAZNL=|Sum=|LastName=|PayerAddress=|ChildFio=|FA_S=|ID_S=|PaymPeriod=|Category="}]
[]
[null,"ПРИМЕР"]
[null,{"$f":"CONCATENATE(\"\",E4,\"|Name=\",E5,\"|PersonalAcc=\",E6,\"|BankName=\",E7,\"|BIC=\",E8,\"|CorrespAcc=\",E9,\"|PayeeINN=\",E10,\"|CBC=\",E11,\"|NAZNL=\",E12,\"|Sum=\",E13,\"|LastName=\",E14,\"|PayerAddress=\",E15,\"|ChildFio=\",E16,\"|FA_S=\",E17,\"|ID_S=\",E18,\"|PaymPeriod=\",E19,\"|Category=\",E20,\"\")","v":"ST00012|Name=УФК ПО Г. САНКТ-ПЕТЕРБУРГУ (ОФК 02, ГОРНЫЙ УНИВЕРСИТЕТ, Л/С 190)|PersonalAcc=40501810300002000001|BankName=Северо-Западное ГУ Банка России|BIC=044030001|CorrespAcc=0|PayeeINN=7801021076|CBC=00000000000000000130|NAZNL=за обучение 3 семестр|Sum=1000000|LastName=Семенова Ирина Петровна|PayerAddress=Санкт-Петербург  ул Парковая, д 17 кв 5|ChildFio=Семенов Иван Сергеевич|FA_S=филология|ID_S=99055|PaymPeriod=062016|Category=3000002555"}]

{"sheet":"ШАБЛОН_Б1","index":47,"n_rows":21,"n_cols":10,"rows_kept":21,"cut":false,"hidden":true,"merged":[]}
[null,"КОД ГРУППЫ РЕКВИЗИТОВ","ШАБЛОН_Б1","Используется для счетов 40101. КБК, ОКТМО не нули"]
[]
[null,"Группа реквизитов"]
["№","Наименование реквизита","Имя реквизита для ЕПС","Имя реквизита для ДШК","Тип реквизита","Режим ввода","Текст подсказки в СБОЛ","мин. длина","макс. длина"]
[1,2,3,4,5,6,7,8,9]
[1,"Код бюджетной классификации","КБК","-","-","-"]
[2,"Статус плательщика","DRAWERSTATUS","-","-","-"]
[3,"ОКТМО","ОКТМО","-","-","-"]
[4,"Основание платежа","ОСНОВАНИЕ ПЛАТЕЖА","-","-","-",null,null,null,"скрыть, по умолчанию 0"]
[5,"Налоговый период(107)","TAXESPERIOD","-","-","-",null,null,null,"скрыть, по умолчанию 0"]
[6,"Дата документа","ДАТА_ДОКУМЕНТА","-","-","-",null,null,null,"скрыть, по умолчанию 0"]
[7,"Тип платежа (110)","ТИП_ПЛАТЕЖА","-","-","-",null,null,null,"скрыть, по умолчанию 0"]
[8,"ФИО плательщика","PERSONNAME","-","-","-"]
[9,"Адрес плательщика","PERSONADDRESS","-","-","-"]
[10,"УИН","УИН","-","-","-"]
[11,"Вид документа","ВИД_ДОК","-","-","-"]
[12,"Номер документа","НОМЕР ДОКУМЕНТА","-","-","-"]
[13,"Гражданство","ГРАЖДАНСТВО","-","-","-"]
[14,"Назначение платежа","NAZNPL","-","-","-",null,null,null,"возможно использовать \".\""]
[15,"УИП","УИП","-","-","-"]
[16,"ИПГУ","ИПГУ","-","-","-"]

{"sheet":"ШАБЛОН_Б2","index":48,"n_rows":21,"n_cols":10,"rows_kept":21,"cut":false,"hidden":true,"merged":[]}
[null,"КОД ГРУППЫ РЕКВИЗИТОВ","ШАБЛОН _Б2",null,"предлагаю наименование группы изменить, чтобы не путать ни ОВНСИ ни ТБ. Например БЮД_ДОГ_2 Нужно обязательно указать, для каких счетов это можно использовать. для этого счета КБК и ОКТМО необязательны, можно пропустить (тогда предзаполнить 0), если не пусто и не 0, то не все нули."]
[]
[null,"Группа реквизитов"]
["№","Наименование реквизита","Имя реквизита для ЕПС","Имя реквизита для ДШК","Тип реквизита","Режим ввода","Текст подсказки в СБОЛ","мин. длина","макс. длина"]
[1,2,3,4,5,6,7,8,9]
[1,"Код бюджетной классификации","КБК",null,null,null,"Введите КБК!",20,20]
[2,"Статус плательщика","DRAWERSTATUS",null,null,null,null,2,2]
[3,"ОКТМО","ОКТМО",null,null,null,"Введите ОКТМО (ОКАТО)",8,11]
[4,"Основание платежа","ОСНОВАНИЕ ПЛАТЕЖА",null,null,null,null,0,2,"скрыть, по умолчанию 0"]
[5,"Налоговый период(107)","TAXESPERIOD",null,null,null,null,1,10,"скрыть, по умолчанию 0"]
[6,"Дата документа","ДАТА_ДОКУМЕНТА",null,null,null,null,1,10,"скрыть, по умолчанию 0"]
[7,"Тип платежа (110)","ТИП_ПЛАТЕЖА",null,null,null,"Не более 2-х символов",1,2,"скрыть, по умолчанию 0"]
[8,"ФИО плательщика","PERSONNAME",null,null,null,"Введите ФИО плательщика!",1,60]
[9,"Адрес плательщика","PERSONADDRESS",null,null,null,"Введите адрес плательщика!",3,50]
[10,"Назначение платежа","NAZNPL",null,null,null,"Введите назначение платежа!",5,100,"возможно использовать \".\""]
[11,"УИН","УИН",null,null,null,"Введите УИН!",0,25]
[12,"УИП","УИП",null,null,null,null,32,32]
[13,"Вид документа","ВИД_ДОК",null,null,null,"Выберите вид документа!",0,250]
[14,"Номер документа","НОМЕР ДОКУМЕНТА",null,null,null,"Введите номер документа!",0,12,"12!"]
[15,"Гражданство","ГРАЖДАНСТВО",null,null,null,"Введите гражданство!",0,250]
[16,"ИПГУ","ИПГУ",null,null,null,"Идентификатор получателя гос. услуги!",0,25,"25!"]